Workbook

Sheet Simulador Port
O1: V.2026003
B2: CONVÊNIO | C2: INSS
B3: Prazo simulado (meses) | C3: ='Planilha 1'!P3 -> 108
E6: Observação | H6: TABELA PORT | J6: =C18 -> NORMAL | M6: =E18 -> NORMAL
B7: Data Saldo* | C7: =TODAY() -> 2026-05-26
B8: Saldo Portado** | C8: 10000 | D8: =IF('Planilha 1'!K8="","",'Planilha 1'!K8) ->  | J8: =C20 -> 1. Otimiza Pzo * | M8: =E20 -> 2.Redução Vlr Parcela**
B9: Valor Parcela | C9: 270 | H9: Tabela | J9: Val Fin Novo | K9: Troco | M9: Val Fin Novo | N9: Troco
B10: Nº de Parcelas Restantes | C10: 60 | D10: =IF('Planilha 1'!K10="","",'Planilha 1'!K10) ->  | G10: 1 | H10: =IF('Planilha 1'!M8="","",'Planilha 1'!M8) -> Tx1,779~1,74 (+90d Car) Flex1-RfnP | J10: =IF('Planilha 1'!O8="","",'Planilha 1'!O8) -> 12125.07422 | K10: =IF('Planilha 1'!P8="","",'Planilha 1'!P8) -> 2032.754614 | M10: =IF('Planilha 1'!Q8="","",'Planilha 1'!Q8) -> 12125.07422 | N10: =IF('Planilha 1'!R8="","",'Planilha 1'!R8) -> 2032.754614
B11: Taxa de Juros | C11: =IFERROR('Planilha 1'!J17,"") -> 0.01689739115 | D11: =IF('Planilha 1'!K17="","",'Planilha 1'!K17) ->  | G11: =G10+1 -> 2 | H11: =IF('Planilha 1'!M9="","",'Planilha 1'!M9) -> Tx1,739~1,70 (+90d Car) Flex2-RfnP | J11: =IF('Planilha 1'!O9="","",'Planilha 1'!O9) -> 12236.45417 | K11: =IF('Planilha 1'!P9="","",'Planilha 1'!P9) -> 2142.136266 | M11: =IF('Planilha 1'!Q9="","",'Planilha 1'!Q9) -> 12236.45417 | N11: =IF('Planilha 1'!R9="","",'Planilha 1'!R9) -> 2142.136266
D12: ='Planilha 1'!T18 ->  | G12: =G11+1 -> 3 | H12: =IF('Planilha 1'!M10="","",'Planilha 1'!M10) -> Tx1,699~1,65 (+90d Car) Flex3-RfnP | J12: =IF('Planilha 1'!O10="","",'Planilha 1'!O10) -> 12443.23235 | K12: =IF('Planilha 1'!P10="","",'Planilha 1'!P10) -> 2345.181594 | M12: =IF('Planilha 1'!Q10="","",'Planilha 1'!Q10) -> 12443.23235 | N12: =IF('Planilha 1'!R10="","",'Planilha 1'!R10) -> 2345.181594
B13: *Data Saldo = data de consulta do valor | G13: 4 | H13: =IF('Planilha 1'!M11="","",'Planilha 1'!M11) ->  | J13: =IF('Planilha 1'!O11="","",'Planilha 1'!O11) ->  | K13: =IF('Planilha 1'!P11="","",'Planilha 1'!P11) ->  | M13: =IF('Planilha 1'!Q11="","",'Planilha 1'!Q11) ->  | N13: =IF('Planilha 1'!R11="","",'Planilha 1'!R11) -> 
B14: **Saldo Portado = valor informado do banco origem | G14: 5 | H14: =IF('Planilha 1'!M12="","",'Planilha 1'!M12) ->  | J14: =IF('Planilha 1'!O12="","",'Planilha 1'!O12) ->  | K14: =IF('Planilha 1'!P12="","",'Planilha 1'!P12) ->  | M14: =IF('Planilha 1'!Q12="","",'Planilha 1'!Q12) ->  | N14: =IF('Planilha 1'!R12="","",'Planilha 1'!R12) -> 
G15: 6 | H15: =IF('Planilha 1'!M13="","",'Planilha 1'!M13) ->  | J15: =IF('Planilha 1'!O13="","",'Planilha 1'!O13) ->  | K15: =IF('Planilha 1'!P13="","",'Planilha 1'!P13) ->  | M15: =IF('Planilha 1'!Q13="","",'Planilha 1'!Q13) ->  | N15: =IF('Planilha 1'!R13="","",'Planilha 1'!R13) -> 
G16: 7 | H16: =IF('Planilha 1'!M14="","",'Planilha 1'!M14) ->  | J16: =IF('Planilha 1'!O14="","",'Planilha 1'!O14) ->  | K16: =IF('Planilha 1'!P14="","",'Planilha 1'!P14) ->  | M16: =IF('Planilha 1'!Q14="","",'Planilha 1'!Q14) ->  | N16: =IF('Planilha 1'!R14="","",'Planilha 1'!R14) -> 
G17: 8 | H17: =IF('Planilha 1'!M15="","",'Planilha 1'!M15) ->  | J17: =IF('Planilha 1'!O15="","",'Planilha 1'!O15) ->  | K17: =IF('Planilha 1'!P15="","",'Planilha 1'!P15) ->  | M17: =IF('Planilha 1'!Q15="","",'Planilha 1'!Q15) ->  | N17: =IF('Planilha 1'!R15="","",'Planilha 1'!R15) -> 
B18: TABELA PORT | C18: =UPPER(IFERROR('Planilha 1'!I26,"")) -> NORMAL | E18: =UPPER(IFERROR('Planilha 1'!I27,"")) -> NORMAL | G18: 9 | H18: =IF('Planilha 1'!M16="","",'Planilha 1'!M16) ->  | J18: =IF('Planilha 1'!O16="","",'Planilha 1'!O16) ->  | K18: =IF('Planilha 1'!P16="","",'Planilha 1'!P16) ->  | M18: =IF('Planilha 1'!Q16="","",'Planilha 1'!Q16) ->  | N18: =IF('Planilha 1'!R16="","",'Planilha 1'!R16) -> 
G19: 10 | H19: =IF('Planilha 1'!M17="","",'Planilha 1'!M17) ->  | J19: =IF('Planilha 1'!O17="","",'Planilha 1'!O17) ->  | K19: =IF('Planilha 1'!P17="","",'Planilha 1'!P17) ->  | M19: =IF('Planilha 1'!Q17="","",'Planilha 1'!Q17) ->  | N19: =IF('Planilha 1'!R17="","",'Planilha 1'!R17) -> 
C20: 1. Otimiza Pzo * | E20: 2.Redução Vlr Parcela** | G20: 11 | H20: =IF('Planilha 1'!M18="","",'Planilha 1'!M18) ->  | J20: =IF('Planilha 1'!O18="","",'Planilha 1'!O18) ->  | K20: =IF('Planilha 1'!P18="","",'Planilha 1'!P18) ->  | M20: =IF('Planilha 1'!Q18="","",'Planilha 1'!Q18) ->  | N20: =IF('Planilha 1'!R18="","",'Planilha 1'!R18) -> 
B21: Prazo | C21: =IFERROR('Planilha 1'!BU31,"") -> 60 | D21: =IF(C21<>C10,1,0) -> 0 | E21: =IF(E23="","",'Planilha 1'!BZ16) -> 60 | F21: =IF(E21<>C10,1,0) -> 0 | G21: 12
B22: Valor Parcela | C22: =IFERROR('Planilha 1'!BU32,"") -> 270 | D22: =IF(C22<>C9,1,0) -> 0 | E22: =IF(E23="","",'Planilha 1'!BZ17) -> 270 | F22: =IF(E22<>C9,1,0) -> 0
B23: Taxa de Juros | C23: =IFERROR('Planilha 1'!BU33,"") -> 0.01689739115 | E23: =IFERROR('Planilha 1'!BS32,"") -> 0.01689739115
Q25: INSS
Q26: SIAPE

Sheet Planilha 1 (hidden)
A1: IOF ad | B1: =ROUND(3%/365,6) -> 8.2e-05 | U1: TETO | W1: =J16 -> 0.01689739115 | X1: =IF($P$2=$AH$4,AH1,AP1) -> INSS | Y1: =IF($P$2=$AH$4,AI1,AQ1) -> 0.0135 | Z1: =IF($P$2=$AH$4,AJ1,AR1) -> 0.0185 | AA1: =IF($P$2=$AH$4,AK1,AS1) -> Port | AH1: INSS | AI1: 0.0135 | AJ1: =MAX(AI4:AJ15) -> 0.0185 | AK1: Port | AP1: SIAPE | AQ1: 0.016 | AR1: 0.018 | AS1: Port
A2: IOF adic. | B2: 0.0038 | H2: CONVÊNIO | P2: ='Simulador Port'!C2 -> INSS | U2: TAXA TETO PONDERADO | V2: =((W1*W2)+(Z1*(Z2-W2)))/P3 -> 0.01760966175 | W2: =J10 -> 60 | Z2: =P3 -> 108 | AQ2: 96 | BD2: ='Simulador Port'!C20 -> 1. Otimiza Pzo * | BF2: ='Simulador Port'!E20 -> 2.Redução Vlr Parcela**
O3: Prazo simulado (meses) | P3: =IF(P2="INSS",108,96) -> 108 | X3: Convenio | Y3: TxMax | Z3: TxMin | AA3: Nome | AC3: Fator um jr | AD3: Novo Saldo | AE3: IOF | AF3: TROCO | AG3: VLR FIN | AH3: Convenio | AI3: TxMax | AJ3: TxMin | AK3: Nome | AL3: Nome | AP3: Convenio | AQ3: TxMax | AR3: TxMin | AS3: Nome | AT3: Nome | AY3: Convenio | AZ3: TxMax | BA3: TxMin | BB3: Nome | BD3: Val Fin Novo | BE3: Troco | BF3: Val Fin Novo | BG3: Troco
U4: Troco min % | V4: 0 | W4: =IF(PZO!W4+VL_PARC!W4>0,'Planilha 1'!W3+1,0) -> 0 | X4: =IF($P$2=$AH$4,AH4,AP4) -> INSS | Y4: =IF($P$2=$AH$4,AI4,AQ4) -> 0.0185 | Z4: =IF($P$2=$AH$4,AJ4,AR4) -> 0.0178 | AA4: =IF($P$2=$AH$4,AK4,AS4) -> Normal | AB4: =IF($P$2=$AH$4,AL4,AT4) -> Tx1,850~1,78 (+90d Car) Normal-RfnP | AC4: =(1+MIN(Y4,$V$2))^(1/30) -> 1.00058205 | AD4: =OFFSET($U$32,,ROW()-ROW($AD$4)) -> 12125.07422 | AE4: =OFFSET($AH$29,,ROW()-ROW($AE$4)) -> 92.31953181 | AF4: =AD4-AE4-$J$8 -> 2032.754614 | AG4: =SUM(AD4,AF4) -> 14157.82884 | AH4: INSS | AI4: 0.0185 | AJ4: 0.0178 | AK4: Normal | AL4: Tx1,850~1,78 (+90d Car) Normal-RfnP | AP4: SIAPE | AQ4: 0.01799 | AR4: 0.01799 | AS4: Normal | AT4: SIAPE RfnPort Tx1.799 Normal Web | AX4: =W4 -> 0 | AY4: =X4 -> INSS | AZ4: =Y4 -> 0.0185 | BA4: =Z4 -> 0.0178 | BB4: =AA4 -> Normal | BC4: =AB4 -> Tx1,850~1,78 (+90d Car) Normal-RfnP | BD4: =IF(PZO!$W4=0,"",PZO!AD4) ->  | BE4: =IF(PZO!$W4=0,"",PZO!AF4) ->  | BF4: =IF(VL_PARC!$W4=0,"",VL_PARC!AD4) ->  | BG4: =IF(VL_PARC!$W4=0,"",VL_PARC!AF4) -> 
A5: 96 | U5: Troco min R$ | V5: 50 | W5: =IF(PZO!W5+VL_PARC!W5>0,'Planilha 1'!W4+1,0) -> 1 | X5: =IF($P$2=$AH$4,AH5,AP5) -> INSS | Y5: =IF($P$2=$AH$4,AI5,AQ5) -> 0.01779 | Z5: =IF($P$2=$AH$4,AJ5,AR5) -> 0.0174 | AA5: =IF($P$2=$AH$4,AK5,AS5) -> Flex 1 | AB5: =IF($P$2=$AH$4,AL5,AT5) -> Tx1,779~1,74 (+90d Car) Flex1-RfnP | AC5: =(1+MIN(Y5,$V$2))^(1/30) -> 1.00058205 | AD5: =OFFSET($U$32,,ROW()-ROW($AD$4)) -> 12125.07422 | AE5: =OFFSET($AH$29,,ROW()-ROW($AE$4)) -> 92.31953181 | AF5: =AD5-AE5-$J$8 -> 2032.754614 | AG5: =SUM(AD5,AF5) -> 14157.82884 | AH5: INSS | AI5: 0.01779 | AJ5: 0.0174 | AK5: Flex 1 | AL5: Tx1,779~1,74 (+90d Car) Flex1-RfnP | AP5: SIAPE | AQ5: 0.01798 | AR5: 0.0175 | AS5: Flex 1 | AT5: SIAPE RfnPort Tx1.798 ~ 1.75 Flex 1 Web | AX5: =W5 -> 1 | AY5: =X5 -> INSS | AZ5: 0.01779 | BA5: 0.0174 | BB5: Flex 1 | BC5: Tx1,779~1,74 (+90d Car) Flex1-RfnP | BD5: =IF(PZO!$W5=0,"",PZO!AD5) -> 12125.07422 | BE5: =IF(PZO!$W5=0,"",PZO!AF5) -> 2032.754614 | BF5: =IF(VL_PARC!$W5=0,"",VL_PARC!AD5) -> 12125.07422 | BG5: =IF(VL_PARC!$W5=0,"",VL_PARC!AF5) -> 2032.754614
A6: INSS | B6: INSS | C6: 108 | K6: Observação | M6: Tabela | O6: Val Fin Novo | P6: Troco | U6: Ticket Min | V6: 2000 | W6: =IF(PZO!W6+VL_PARC!W6>0,'Planilha 1'!W5+1,0) -> 2 | X6: INSS | Y6: 0.01739 | Z6: 0.017 | AA6: =IF($P$2=$AH$4,AK6,AS6) -> Flex 2 | AB6: Tx1,739~1,70 (+90d Car) Flex2-RfnP | AC6: 1.000574849 | AD6: 12236.45417 | AE6: 94.31782569 | AF6: 2142.136266 | AG6: 14378.59043 | AH6: INSS | AI6: 0.01739 | AJ6: 0.017 | AK6: Flex 2 | AL6: Tx1,739~1,70 (+90d Car) Flex2-RfnP | AP6: SIAPE | AQ6: 0.01749 | AR6: 0.017 | AS6: Flex 2 | AT6: SIAPE RfnPort Tx1.749 ~ 1.70 Flex 2 Web | AX6: 2 | AY6: INSS | AZ6: 0.01739 | BA6: 0.017 | BB6: Flex 2 | BC6: Tx1,739~1,70 (+90d Car) Flex2-RfnP | BD6: =IF(PZO!$W6=0,"",PZO!AD6) -> 12236.45417 | BE6: =IF(PZO!$W6=0,"",PZO!AF6) -> 2142.136266 | BF6: =IF(VL_PARC!$W6=0,"",VL_PARC!AD6) -> 12236.45417 | BG6: =IF(VL_PARC!$W6=0,"",VL_PARC!AF6) -> 2142.136266
A7: SIAPE | B7: SIAPE | C7: 96 | H7: Data Saldo | I7: ='Simulador Port'!C7 -> 2026-05-26 | J7: =TODAY() -> 2026-05-26 | K7: ='Simulador Port'!D7 -> 0 | W7: =IF(PZO!W7+VL_PARC!W7>0,'Planilha 1'!W6+1,0) -> 3 | X7: INSS | Y7: 0.01699 | Z7: 0.0165 | AA7: Flex 3 | AB7: Tx1,699~1,65 (+90d Car) Flex3-RfnP | AC7: 1.000561734 | AD7: 12443.23235 | AE7: 98.05068134 | AF7: 2345.181594 | AG7: 14788.41395 | AH7: INSS | AI7: 0.01699 | AJ7: 0.0165 | AK7: Flex 3 | AL7: Tx1,699~1,65 (+90d Car) Flex3-RfnP | AP7: SIAPE | AQ7: 0.01699 | AR7: 0.0165 | AS7: Flex 3 | AT7: SIAPE RfnPort Tx1.699 ~ 1.65 Flex 3 Web | AX7: 3 | AY7: INSS | AZ7: 0.01699 | BA7: 0.0165 | BB7: Flex 3 | BC7: Tx1,699~1,65 (+90d Car) Flex3-RfnP | BD7: =IF(PZO!$W7=0,"",PZO!AD7) -> 12443.23235 | BE7: =IF(PZO!$W7=0,"",PZO!AF7) -> 2345.181594 | BF7: =IF(VL_PARC!$W7=0,"",VL_PARC!AD7) -> 12443.23235 | BG7: =IF(VL_PARC!$W7=0,"",VL_PARC!AF7) -> 2345.181594
H8: Saldo Portado | I8: ='Simulador Port'!C8 -> 10000 | J8: =SUM(J35:J143) -> 10000.00008 | K8: =T8 ->  | L8: 1 | M8: =IFERROR(VLOOKUP(L8,$W$4:$AF$15,6,0),"") -> Tx1,779~1,74 (+90d Car) Flex1-RfnP | O8: =IFERROR(VLOOKUP(L8,$AX$4:$BG$15,7,0),"") -> 12125.07422 | P8: =IFERROR(VLOOKUP(L8,$AX$4:$BG$15,8,0),"") -> 2032.754614 | Q8: =IFERROR(VLOOKUP(L8,$AX$4:$BG$15,9,0),"") -> 12125.07422 | R8: =IFERROR(VLOOKUP(L8,$AX$4:$BG$15,10,0),"") -> 2032.754614 | T8: =IFERROR(IF(OR((J17-I17)/I17>2%,(J17-I17)/I17<-2%),"Saldo e Parcela não correspondem à taxa informada",""),"") ->  | U8: TAXA TROCO | W8: =IF(PZO!W8+VL_PARC!W8>0,'Planilha 1'!W7+1,0) -> 0 | X8: INSS | Y8: 0.01649 | Z8: 0.016 | AA8: Flex 4 | AB8: Tx1,649~1,60 (+90d Car) Flex4-RfnP | AC8: 1.000545333 | AD8: 12709.09722 | AE8: 102.8931439 | AF8: 2606.203996 | AG8: 15315.30121 | AH8: INSS | AI8: 0.01649 | AJ8: 0.016 | AK8: Flex 4 | AL8: Tx1,649~1,60 (+90d Car) Flex4-RfnP | AX8: 0 | AY8: INSS | AZ8: 0.01649 | BA8: 0.016 | BB8: Flex 4 | BC8: Tx1,649~1,60 (+90d Car) Flex4-RfnP | BD8: =IF(PZO!$W8=0,"",PZO!AD8) ->  | BE8: =IF(PZO!$W8=0,"",PZO!AF8) ->  | BF8: =IF(VL_PARC!$W8=0,"",VL_PARC!AD8) ->  | BG8: =IF(VL_PARC!$W8=0,"",VL_PARC!AF8) -> 
H9: Valor Parcela | I9: ='Simulador Port'!C9 -> 270 | J9: =I9 -> 270 | K9: ='Simulador Port'!D9 -> 0 | L9: =L8+1 -> 2 | M9: =IFERROR(VLOOKUP(L9,$W$4:$AF$15,6,0),"") -> Tx1,739~1,70 (+90d Car) Flex2-RfnP | O9: =IFERROR(VLOOKUP(L9,$AX$4:$BG$15,7,0),"") -> 12236.45417 | P9: =IFERROR(VLOOKUP(L9,$AX$4:$BG$15,8,0),"") -> 2142.136266 | Q9: =IFERROR(VLOOKUP(L9,$AX$4:$BG$15,9,0),"") -> 12236.45417 | R9: =IFERROR(VLOOKUP(L9,$AX$4:$BG$15,10,0),"") -> 2142.136266 | U9: TAXA Port MIN | V9: =IF(SUM(PZO!$W$4:$W$15,VL_PARC!$W$4:$W$15)=0,"Refin Indisponivel","") ->  | W9: =IF(PZO!W9+VL_PARC!W9>0,'Planilha 1'!W8+1,0) -> 0 | X9: INSS | Y9: 0.01599 | Z9: 0.0155 | AA9: Flex 5 | AB9: Tx1,599~1,55 (+90d Car) Flex5-RfnP | AC9: 1.000528923 | AD9: 12983.47405 | AE9: 107.9398742 | AF9: 2875.534096 | AG9: 15859.00814 | AH9: INSS | AI9: 0.01599 | AJ9: 0.0155 | AK9: Flex 5 | AL9: Tx1,599~1,55 (+90d Car) Flex5-RfnP | AX9: 0 | AY9: INSS | AZ9: 0.01599 | BA9: 0.0155 | BB9: Flex 5 | BC9: Tx1,599~1,55 (+90d Car) Flex5-RfnP | BD9: =IF(PZO!$W9=0,"",PZO!AD9) ->  | BE9: =IF(PZO!$W9=0,"",PZO!AF9) ->  | BF9: =IF(VL_PARC!$W9=0,"",VL_PARC!AD9) ->  | BG9: =IF(VL_PARC!$W9=0,"",VL_PARC!AF9) -> 
H10: Nº de Parcelas Restantes | I10: ='Simulador Port'!C10 -> 60 | J10: =I10 -> 60 | K10: =T10 ->  | L10: =L9+1 -> 3 | M10: Tx1,699~1,65 (+90d Car) Flex3-RfnP | O10: 12443.23235 | P10: 2345.181594 | Q10: 12443.23235 | R10: 2345.181594 | T10: =IF(P3-J10<12,"Contrato com menos de 12 parcelas pagas","") ->  | W10: =IF(PZO!W10+VL_PARC!W10>0,'Planilha 1'!W9+1,0) -> 0 | X10: 0 | Y10: 0 | Z10: 0 | AA10: 0 | AB10: 0 | AC10: 1 | AX10: 0 | AY10: 0 | AZ10: 0 | BA10: 0 | BB10: 0 | BC10: 0 | BD10: =IF(PZO!$W10=0,"",PZO!AD10) ->  | BE10: =IF(PZO!$W10=0,"",PZO!AF10) ->  | BF10: =IF(VL_PARC!$W10=0,"",VL_PARC!AD10) ->  | BG10: =IF(VL_PARC!$W10=0,"",VL_PARC!AF10) -> 
L11: 4 | W11: =IF(PZO!W11+VL_PARC!W11>0,'Planilha 1'!W10+1,0) -> 0 | X11: 0 | Y11: 0 | Z11: 0 | AA11: 0 | AB11: 0 | AC11: 1 | AX11: 0 | AY11: 0 | AZ11: 0 | BA11: 0 | BB11: 0 | BC11: 0 | BD11: =IF(PZO!$W11=0,"",PZO!AD11) ->  | BE11: =IF(PZO!$W11=0,"",PZO!AF11) ->  | BF11: =IF(VL_PARC!$W11=0,"",VL_PARC!AD11) ->  | BG11: =IF(VL_PARC!$W11=0,"",VL_PARC!AF11) -> 
L12: 5 | W12: =IF(PZO!W12+VL_PARC!W12>0,'Planilha 1'!W11+1,0) -> 0 | X12: 0 | Y12: 0 | Z12: 0 | AA12: 0 | AB12: 0 | AC12: 1 | AW12: ; | AX12: 0 | AY12: 0 | AZ12: 0 | BA12: 0 | BB12: 0 | BC12: 0 | BD12: =IF(PZO!$W12=0,"",PZO!AD12) ->  | BE12: =IF(PZO!$W12=0,"",PZO!AF12) ->  | BF12: =IF(VL_PARC!$W12=0,"",VL_PARC!AD12) ->  | BG12: =IF(VL_PARC!$W12=0,"",VL_PARC!AF12) -> 
L13: 6 | W13: =IF(PZO!W13+VL_PARC!W13>0,'Planilha 1'!W12+1,0) -> 0 | X13: 0 | Y13: 0 | Z13: 0 | AA13: 0 | AB13: 0 | AC13: 1 | AX13: 0 | AY13: 0 | AZ13: 0 | BA13: 0 | BB13: 0 | BC13: 0 | BD13: =IF(PZO!$W13=0,"",PZO!AD13) ->  | BE13: =IF(PZO!$W13=0,"",PZO!AF13) ->  | BF13: =IF(VL_PARC!$W13=0,"",VL_PARC!AD13) ->  | BG13: =IF(VL_PARC!$W13=0,"",VL_PARC!AF13) -> 
L14: 7 | W14: =IF(PZO!W14+VL_PARC!W14>0,'Planilha 1'!W13+1,0) -> 0 | X14: 0 | Y14: 0 | Z14: 0 | AA14: 0 | AB14: 0 | AC14: 1 | AX14: 0 | AY14: 0 | AZ14: 0 | BA14: 0 | BB14: 0 | BC14: 0 | BD14: =IF(PZO!$W14=0,"",PZO!AD14) ->  | BE14: =IF(PZO!$W14=0,"",PZO!AF14) ->  | BF14: =IF(VL_PARC!$W14=0,"",VL_PARC!AD14) ->  | BG14: =IF(VL_PARC!$W14=0,"",VL_PARC!AF14) ->  | BY14: Maior Parcela
L15: 8 | W15: =IF(PZO!W15+VL_PARC!W15>0,'Planilha 1'!W14+1,0) -> 0 | X15: 0 | Y15: 0 | Z15: 0 | AA15: 0 | AB15: 0 | AC15: 1 | AX15: 0 | AY15: 0 | AZ15: 0 | BA15: 0 | BB15: 0 | BC15: 0 | BD15: =IF(PZO!$W15=0,"",PZO!AD15) ->  | BE15: =IF(PZO!$W15=0,"",PZO!AF15) ->  | BF15: =IF(VL_PARC!$W15=0,"",VL_PARC!AD15) ->  | BG15: =IF(VL_PARC!$W15=0,"",VL_PARC!AF15) ->  | BY15: Maior Parcela
J16: =J17 -> 0.01689739115 | L16: 9 | BY16: Pzo | BZ16: =I10 -> 60
H17: Taxa de Juros | I17: =J17 -> 0.01689739115 | J17: =(1+XIRR($I$35:$I$143,$M$35:$M$143))^(360/365)^(30/360)-1 -> 0.01689739115 | K17: =T17 ->  | L17: 10 | T17: =IFERROR(IF(J17<'Planilha 1'!Y1,"Taxa original inferior a mínima",IF(J17>'Planilha 1'!Z1,"Atenção! Enquadrar valores p/ port.",IF(SUM(PZO!$W$4:$W$15,VL_PARC!$W$4:$W$15)=0,"Refin Indisponivel",""))),"") ->  | BY17: Parcela | BZ17: =BS36 -> 270
H18: Saldo Calculado pela Taxa | I18: =SUM(K36:K143) -> 10000.00008 | J18: =SUM(J36:J143) -> 10000.00008 | L18: 11 | T18: =IFERROR(IF(J17<'Planilha 1'!Y1,2,IF(J17>'Planilha 1'!Z1,1,"")),"") ->  | BK18: saldo | BL18: 14510.87162
L19: 12 | BY19: Maior Prazo | CA19: 1 | CC19: Maior Prazo | CD19: =MAX(BY29:EX29)-1 -> 5
AB20: =IFERROR(VLOOKUP(Y20,$W$4:$AF$15,8,0),"") -> 12125.07422 | BY20: Pzo | BZ20: =MIN(HLOOKUP(CA19,$BY$29:$EX$31,3,0),'Planilha 1'!I10) -> 60 | CC20: Pzo
BL21: =BL32*1000 -> 17.85229484 | BY21: Taxa | BZ21: =MIN(HLOOKUP(CA19,$BY$29:$EX$32,4,0),'Planilha 1'!I17) -> 0.01514477918 | CC21: Taxa
H22: Taxa AP considerando base 365 | I22: =J16 -> 0.01689739115 | BL22: =1.55%*1000 -> 15.5 | BM22: =BL22-BL21 -> -2.352294836
H23: Taxa CET da PORT | I23: =J17 -> 0.01689739115 | BW23: Teto Conv | BX23: =Z1 -> 0.0185
BW24: Pzo Conv | BX24: =Z2 -> 108
H25: Enquadramento Port | N25: Taxa minima TAB PORT | BY25: =IF(((BY31*BY30)+($BX$23*($BX$24-BY30)))/$BX$24<$BX$23,1,0) -> 0
H26: 1. Otimiza Pzo * | I26: =IF('Simulador Port'!$C$2="INSS",'Planilha 1'!J26,"NORMAL") -> Normal | J26: =IF('Simulador Port'!C23>=$N$26,"Normal",IF('Simulador Port'!C23>=$N$27,"Flex 1",NA())) -> Normal | L26: Normal | N26: 0.0168 | BJ26: SEM MUDA PRAZO | BK26: SOMAR 1 PARCELA | BL26: SOMAR 2 PARCELAS | BM26: TIRAR 1 PARCELA | BN26: TIRAR 2 PARCELAS | BW26: Tx Alvo | BX26: Teto Pond | BY26: =IF(((BY32*BY31)+($BX$23*($BX$24-BY31)))/$BX$24<$BX$23,1,0) -> 0 | BZ26: =IF(((BZ32*BZ31)+($BX$23*($BX$24-BZ31)))/$BX$24<$BX$23,1,0) -> 0 | CA26: 0 | CB26: 0 | CC26: 0 | CD26: 0 | CE26: 0 | CF26: 0 | CG26: 0 | CH26: 0 | CI26: 0 | CJ26: 0 | CK26: 0 | CL26: 0 | CM26: 0 | CN26: 0 | CO26: 0 | CP26: 0 | CQ26: 0 | CR26: 0 | CS26: 0 | CT26: 0 | CU26: 0 | CV26: 0 | CW26: 0 | CX26: 0 | CY26: 0 | CZ26: 0 | DA26: 0 | DB26: 0 | DC26: 0 | DD26: 0 | DE26: 0 | DF26: =IF(((DF32*DF31)+($BX$23*($BX$24-DF31)))/$BX$24<$BX$23,1,0) -> 0 | DG26: 0 | DH26: 0 | DI26: 1 | DJ26: 1 | DK26: 1 | DL26: 1 | DM26: 1 | DN26: 1 | DO26: 1 | DP26: 1 | DQ26: 1 | DR26: 1 | DS26: 1 | DT26: 1 | DU26: 1 | DV26: 1 | DW26: 1 | DX26: 1 | DY26: 1 | DZ26: 1 | EA26: 1 | EB26: 1 | EC26: 1 | ED26: 1 | EE26: 1 | EF26: 1 | EG26: 1 | EH26: 1 | EI26: 1 | EJ26: 1 | EK26: 1 | EL26: =IF(((EL32*EL31)+($BX$23*($BX$24-EL31)))/$BX$24<$BX$23,1,0) -> 1 | EM26: 1 | EN26: 1 | EO26: 1 | EP26: 1 | EQ26: 1 | ER26: 1 | ES26: 1 | ET26: 1 | EU26: 1 | EV26: 1 | EW26: 1 | EX26: 1 | EY26: =IF(((EY32*EY31)+($BX$23*($BX$24-EY31)))/$BX$24<$BX$23,1,0) -> 1 | EZ26: 1 | FA26: 1 | FB26: 1 | FC26: 1 | FD26: 1 | FE26: 1 | FF26: 1 | FG26: 1 | FH26: 1 | FI26: 1 | FJ26: 1 | FK26: 1 | FL26: 1 | FM26: 1 | FN26: 1 | FO26: 1 | FP26: 1 | FQ26: 1
H27: 2.Redução Vlr Parcela** | I27: =IF('Simulador Port'!$C$2="INSS",'Planilha 1'!J27,"NORMAL") -> Normal | J27: =IF('Simulador Port'!E23>=$N$26,"Normal",IF('Simulador Port'!E23>=$N$27,"Flex 1",NA())) -> Normal | L27: Flex1 | N27: 0.0135 | AT27: =XIRR(AU$35:AU$143,$H$35:$H$143) -> 0.06147613823 | AU27: =XIRR(AV$35:AV$143,$H$35:$H$143) -> 0.06147613823 | AV27: 0.06027395427 | AW27: 0.05806687176 | AX27: 0.05527534187 | AY27: 0.05244735181 | BJ27: =IF(K17<>"","Taxa original inferior a mínima","") ->  | BK27: =IF(BK32<'Planilha 1'!$Y$1,"Taxa original inferior a mínima","") ->  | BL27: =IF(BL32<'Planilha 1'!$Y$1,"Taxa original inferior a mínima","") ->  | BM27: =IF(BM32<'Planilha 1'!$Y$1,"Taxa original inferior a mínima","") ->  | BN27: =IF(BN32<'Planilha 1'!$Y$1,"Taxa original inferior a mínima","") ->  | BX27: VAlid1 | BY27: =IF(BY31>$P$3-12,0,IF(BY31>$I$10,0,1)) -> 0 | BZ27: =IF(BZ31>$P$3-12,0,IF(BZ31>$I$10,0,1)) -> 0 | CA27: =IF(CA31>$P$3-12,0,IF(CA31>$I$10,0,1)) -> 0 | CB27: 0 | CC27: 0 | CD27: 0 | CE27: 0 | CF27: 0 | CG27: 0 | CH27: 0 | CI27: 0 | CJ27: 0 | CK27: 0 | CL27: 0 | CM27: 0 | CN27: 0 | CO27: 0 | CP27: 0 | CQ27: 0 | CR27: 0 | CS27: 0 | CT27: =IF(CT31>$P$3-12,0,IF(CT31>$I$10,0,1)) -> 0 | CU27: 0 | CV27: 0 | CW27: 0 | CX27: 0 | CY27: 0 | CZ27: 0 | DA27: 0 | DB27: 0 | DC27: 0 | DD27: 0 | DE27: 0 | DF27: 0 | DG27: 0 | DH27: 0 | DI27: 0 | DJ27: 0 | DK27: 0 | DL27: 0 | DM27: 0 | DN27: 0 | DO27: 0 | DP27: 0 | DQ27: 0 | DR27: 0 | DS27: 0 | DT27: 0 | DU27: 1 | DV27: 1 | DW27: 1 | DX27: 1 | DY27: 1 | DZ27: 1 | EA27: 1 | EB27: 1 | EC27: 1 | ED27: 1 | EE27: 1 | EF27: 1 | EG27: 1 | EH27: 1 | EI27: 1 | EJ27: 1 | EK27: 1 | EL27: =IF(EL31>$P$3-12,0,IF(EL31>$I$10,0,1)) -> 1 | EM27: 1 | EN27: 1 | EO27: 1 | EP27: 1 | EQ27: 1 | ER27: 1 | ES27: 1 | ET27: 1 | EU27: 1 | EV27: 1 | EW27: 1 | EX27: 1 | EY27: =IF(EY31>$P$3-12,0,IF(EY31>$I$10,0,1)) -> 1 | EZ27: 1 | FA27: 1 | FB27: 1 | FC27: 1 | FD27: 1 | FE27: 1 | FF27: 1 | FG27: 1 | FH27: 1 | FI27: 1 | FJ27: 1 | FK27: 1 | FL27: 1 | FM27: 1 | FN27: 1 | FO27: 1 | FP27: 1 | FQ27: 1
AH28: =U32-$J$8 -> 2125.074146 | AI28: =V32-$J$8 -> 2125.074146 | AJ28: 2236.454092 | AK28: 2443.232275 | AL28: 2709.09714 | AM28: 2983.47397 | BW28: Tx Alvo | BX28: =Y1 -> 0.0135 | BY28: =MAX((BY32-$BX$28)*BY27*BY26,0) -> 0 | BZ28: =MAX((BZ32-$BX$28)*BZ27*BZ26,0) -> 0 | CA28: 0 | CB28: 0 | CC28: 0 | CD28: 0 | CE28: 0 | CF28: 0 | CG28: 0 | CH28: 0 | CI28: 0 | CJ28: 0 | CK28: 0 | CL28: 0 | CM28: 0 | CN28: 0 | CO28: 0 | CP28: 0 | CQ28: 0 | CR28: 0 | CS28: 0 | CT28: 0 | CU28: 0 | CV28: 0 | CW28: 0 | CX28: 0 | CY28: 0 | CZ28: 0 | DA28: 0 | DB28: 0 | DC28: 0 | DD28: 0 | DE28: 0 | DF28: 0 | DG28: 0 | DH28: 0 | DI28: 0 | DJ28: 0 | DK28: 0 | DL28: 0 | DM28: 0 | DN28: 0 | DO28: 0 | DP28: 0 | DQ28: 0 | DR28: 0 | DS28: 0 | DT28: 0 | DU28: 0.00164477918 | DV28: 0.00128992279 | DW28: 0.0009182005671 | DX28: 0.000528605656 | DY28: 0.0001202417123 | DZ28: 0 | EA28: 0 | EB28: 0 | EC28: 0 | ED28: 0 | EE28: 0 | EF28: 0 | EG28: 0 | EH28: 0 | EI28: 0 | EJ28: 0 | EK28: 0 | EL28: =MAX((EL32-$BX$28)*EL27*EL26,0) -> 0 | EM28: 0 | EN28: =MAX((EN32-$BX$28)*EN27*EN26,0) -> 0 | EO28: 0 | EP28: 0 | EQ28: 0 | ER28: 0 | ES28: 0 | ET28: 0 | EU28: 0 | EV28: 0 | EW28: 0 | EX28: 0 | EY28: =MAX((EY32-$BX$28)*EY27*EY26,0) -> 0 | EZ28: 0 | FA28: 0 | FB28: 0 | FC28: 0 | FD28: 0 | FE28: 0 | FF28: 0 | FG28: 0 | FH28: 0 | FI28: 0 | FJ28: 0 | FK28: 0 | FL28: 0 | FM28: 0 | FN28: 0 | FO28: 0 | FP28: 0 | FQ28: 0
T29: Taxa REFIN | U29: =VLOOKUP(U34,$AA$4:$AC$15,3,0) -> 1.00058205 | V29: =VLOOKUP(V34,$AA$4:$AC$15,3,0) -> 1.00058205 | W29: =VLOOKUP(W34,$AA$4:$AC$15,3,0) -> 1.000574849 | X29: =VLOOKUP(X34,$AA$4:$AC$15,3,0) -> 1.000561734 | Y29: 1.000545333 | Z29: 1.000528923 | AH29: =SUM(AH35:AH143) -> 92.31953181 | AI29: =SUM(AI35:AI143) -> 92.31953181 | AJ29: 94.31782569 | AK29: 98.05068134 | AL29: 102.8931439 | AM29: 107.9398742 | AU29: =(1+AT27)^(30/365)-1 -> 0.004915646943 | AV29: 0.004915646943 | AW29: 0.004822053696 | AX29: 0.004649972568 | AY29: 0.004431850945 | AZ29: 0.004210339773 | BY29: =RANK(BY28,$BY$28:$EX$28,0) -> 6 | BZ29: 6 | CA29: 6 | CB29: 6 | CC29: 6 | CD29: 6 | CE29: 6 | CF29: 6 | CG29: 6 | CH29: 6 | CI29: 6 | CJ29: 6 | CK29: 6 | CL29: 6 | CM29: 6 | CN29: 6 | CO29: 6 | CP29: 6 | CQ29: 6 | CR29: 6 | CS29: 6 | CT29: 6 | CU29: 6 | CV29: 6 | CW29: 6 | CX29: 6 | CY29: 6 | CZ29: 6 | DA29: 6 | DB29: 6 | DC29: 6 | DD29: 6 | DE29: =RANK(DE28,$BY$28:$EX$28,0) -> 6 | DF29: 6 | DG29: 6 | DH29: 6 | DI29: 6 | DJ29: 6 | DK29: 6 | DL29: 6 | DM29: 6 | DN29: 6 | DO29: 6 | DP29: 6 | DQ29: 6 | DR29: 6 | DS29: 6 | DT29: 6 | DU29: 1 | DV29: 2 | DW29: 3 | DX29: 4 | DY29: 5 | DZ29: 6 | EA29: 6 | EB29: 6 | EC29: 6 | ED29: 6 | EE29: 6 | EF29: 6 | EG29: 6 | EH29: 6 | EI29: 6 | EJ29: 6 | EK29: =RANK(EK28,$BY$28:$EX$28,0) -> 6 | EL29: 6 | EM29: 6 | EN29: 6 | EO29: 6 | EP29: 6 | EQ29: 6 | ER29: 6 | ES29: 6 | ET29: 6 | EU29: 6 | EV29: 6 | EW29: 6 | EX29: 6 | EY29: =RANK(EY28,$BY$28:$EX$28,0) -> 6 | EZ29: 6 | FA29: 6 | FB29: 6 | FC29: 6 | FD29: 6 | FE29: 6 | FF29: 6 | FG29: 6 | FH29: 6 | FI29: 6 | FJ29: 6 | FK29: 6 | FL29: 6 | FM29: 6 | FN29: 6 | FO29: 6 | FP29: 6 | FQ29: =RANK(FQ28,$BY$28:$EX$28,0) -> 6
H30: dt ini fx pmt | J30: =NETWORKDAYS(EOMONTH(I7,-1)+1,I7,$A$34:$A$1297) -> 17
H31: Prox Vencimento | J31: =IF(I31="",IF(P2="INSS",IF(J30<3,EOMONTH(I7,3)+7,EOMONTH(I7,4)+7),IF(DAY(I7)<11,EOMONTH(I7,0)+10,EOMONTH(I7,1)+10)),I31) -> 2026-10-07 | M31: =IF(I31="",IF(P2="INSS",IF(J30<3,EOMONTH(I7,0)+7,EOMONTH(I7,1)+7),IF(DAY(I7)<11,EOMONTH(I7,0)+10,EOMONTH(I7,1)+10)),I31) -> 2026-07-07 | U31: =U32-$I$8 -> 2125.074222 | V31: =V32-$I$8 -> 2125.074222 | W31: 2236.454168 | X31: 2443.232351 | Y31: 2709.097216 | Z31: 2983.474046 | AE31: =AE32-$I$8 ->  | BJ31: Prox Vencimento | BL31: =M31 -> 2026-07-07 | BR31: =(1+BX23)^((364.6/12)/30)-1 -> 0.01873859007 | BT31: =MAX($I$10-3,BZ20) -> 60 | BU31: =MAX($I$10-3,BZ20) -> 60 | BX31: Pzo | BY31: =COUNTIFS(BY36:BY143,">"&0) -> 108 | BZ31: =COUNTIFS(BZ36:BZ143,">"&0) -> 107 | CA31: 106 | CB31: 105 | CC31: 104 | CD31: 103 | CE31: 102 | CF31: 101 | CG31: 100 | CH31: 99 | CI31: 98 | CJ31: 97 | CK31: 96 | CL31: 95 | CM31: 94 | CN31: 93 | CO31: 92 | CP31: 91 | CQ31: 90 | CR31: 89 | CS31: 88 | CT31: 87 | CU31: 86 | CV31: 85 | CW31: 84 | CX31: 83 | CY31: 82 | CZ31: 81 | DA31: 80 | DB31: 79 | DC31: 78 | DD31: 77 | DE31: 76 | DF31: 75 | DG31: 74 | DH31: 73 | DI31: 72 | DJ31: 71 | DK31: 70 | DL31: 69 | DM31: 68 | DN31: 67 | DO31: 66 | DP31: 65 | DQ31: 64 | DR31: 63 | DS31: 62 | DT31: 61 | DU31: 60 | DV31: 59 | DW31: 58 | DX31: 57 | DY31: 56 | DZ31: 55 | EA31: 54 | EB31: 53 | EC31: 52 | ED31: 51 | EE31: 50 | EF31: 49 | EG31: 48 | EH31: 47 | EI31: 46 | EJ31: 45 | EK31: 44 | EL31: =COUNTIFS(EL36:EL143,">"&0) -> 43 | EM31: 42 | EN31: 41 | EO31: 40 | EP31: 39 | EQ31: 38 | ER31: 37 | ES31: 36 | ET31: 35 | EU31: 34 | EV31: 33 | EW31: 32 | EX31: 31 | EY31: =COUNTIFS(EY36:EY143,">"&0) -> 30 | EZ31: 29 | FA31: 28 | FB31: 27 | FC31: 26 | FD31: 25 | FE31: 24 | FF31: 23 | FG31: 22 | FH31: 21 | FI31: 20 | FJ31: 19 | FK31: 18 | FL31: 17 | FM31: 16 | FN31: 15 | FO31: 14 | FP31: 13 | FQ31: 12
H32: Fator Dia | I32: =(1+I17)^(1/30) -> 1.000558697 | J32: =(1+J17)^(1/30) -> 1.000558697 | T32: Vlr Troco | U32: =SUM(U36:U143) -> 12125.07422 | V32: =SUM(V36:V143) -> 12125.07422 | W32: 12236.45417 | X32: 12443.23235 | Y32: 12709.09722 | Z32: 12983.47405 | BJ32: XITR | BK32: =(1+XIRR(BK$35:BK$143,$BJ$35:$BJ$143))^(30/360)-1 -> 0.01750177347 | BL32: =(1+XIRR(BL$35:BL$143,$BJ$35:$BJ$143))^(30/360)-1 -> 0.01785229484 | BM32: 0.01674836729 | BN32: 0.01634330834 | BR32: =BX23 -> 0.0185 | BS32: =(1+XIRR(BS$35:BS$143,$BJ$35:$BJ$143))^(30/365)-1 -> 0.01689739115 | BT32: =MIN(PMT($BR$31,MAX($I$10-3,BZ20),$BR$35),I9) -> 270 | BU32: =MIN(PMT($BR$31,MAX($I$10-3,BZ20),$BR$35),I9) -> 270 | BX32: Tx | BY32: =(1+XIRR(BY35:BY143,'Planilha 1'!$H$35:$H$143))^(30/365)-1 -> 0.02248478597 | BZ32: =(1+XIRR(BZ35:BZ143,'Planilha 1'!$H$35:$H$143))^(30/365)-1 -> 0.02242632893 | CA32: =(1+XIRR(CA35:CA143,'Planilha 1'!$H$35:$H$143))^(30/365)-1 -> 0.02236593647 | CB32: =(1+XIRR(CB35:CB143,'Planilha 1'!$H$35:$H$143))^(30/365)-1 -> 0.02230353585 | CC32: =(1+XIRR(CC35:CC143,'Planilha 1'!$H$35:$H$143))^(30/365)-1 -> 0.02223909615 | CD32: =(1+XIRR(CD35:CD143,'Planilha 1'!$H$35:$H$143))^(30/365)-1 -> 0.02217249115 | CE32: =(1+XIRR(CE35:CE143,'Planilha 1'!$H$35:$H$143))^(30/365)-1 -> 0.02210368851 | CF32: =(1+XIRR(CF35:CF143,'Planilha 1'!$H$35:$H$143))^(30/365)-1 -> 0.02203255118 | CG32: =(1+XIRR(CG35:CG143,'Planilha 1'!$H$35:$H$143))^(30/365)-1 -> 0.02195914756 | CH32: =(1+XIRR(CH35:CH143,'Planilha 1'!$H$35:$H$143))^(30/365)-1 -> 0.02188322678 | CI32: =(1+XIRR(CI35:CI143,'Planilha 1'!$H$35:$H$143))^(30/365)-1 -> 0.02180468946 | CJ32: =(1+XIRR(CJ35:CJ143,'Planilha 1'!$H$35:$H$143))^(30/365)-1 -> 0.02172348803 | CK32: =(1+XIRR(CK35:CK143,'Planilha 1'!$H$35:$H$143))^(30/365)-1 -> 0.02163945576 | CL32: =(1+XIRR(CL35:CL143,'Planilha 1'!$H$35:$H$143))^(30/365)-1 -> 0.02155254091 | CM32: =(1+XIRR(CM35:CM143,'Planilha 1'!$H$35:$H$143))^(30/365)-1 -> 0.02146256138 | CN32: =(1+XIRR(CN35:CN143,'Planilha 1'!$H$35:$H$143))^(30/365)-1 -> 0.02136939137 | CO32: =(1+XIRR(CO35:CO143,'Planilha 1'!$H$35:$H$143))^(30/365)-1 -> 0.02127296467 | CP32: =(1+XIRR(CP35:CP143,'Planilha 1'!$H$35:$H$143))^(30/365)-1 -> 0.02117307642 | CQ32: =(1+XIRR(CQ35:CQ143,'Planilha 1'!$H$35:$H$143))^(30/365)-1 -> 0.02106965327 | CR32: =(1+XIRR(CR35:CR143,'Planilha 1'!$H$35:$H$143))^(30/365)-1 -> 0.02096247037 | CS32: =(1+XIRR(CS35:CS143,'Planilha 1'!$H$35:$H$143))^(30/365)-1 -> 0.02085159788 | CT32: =(1+XIRR(CT35:CT143,'Planilha 1'!$H$35:$H$143))^(30/365)-1 -> 0.02073664306 | CU32: =(1+XIRR(CU35:CU143,'Planilha 1'!$H$35:$H$143))^(30/365)-1 -> 0.02061742839 | CV32: =(1+XIRR(CV35:CV143,'Planilha 1'!$H$35:$H$143))^(30/365)-1 -> 0.0204938483 | CW32: =(1+XIRR(CW35:CW143,'Planilha 1'!$H$35:$H$143))^(30/365)-1 -> 0.02036562552 | CX32: =(1+XIRR(CX35:CX143,'Planilha 1'!$H$35:$H$143))^(30/365)-1 -> 0.02023264042 | CY32: =(1+XIRR(CY35:CY143,'Planilha 1'!$H$35:$H$143))^(30/365)-1 -> 0.02009458683 | CZ32: =(1+XIRR(CZ35:CZ143,'Planilha 1'!$H$35:$H$143))^(30/365)-1 -> 0.01995123296 | DA32: =(1+XIRR(DA35:DA143,'Planilha 1'!$H$35:$H$143))^(30/365)-1 -> 0.01980243291 | DB32: =(1+XIRR(DB35:DB143,'Planilha 1'!$H$35:$H$143))^(30/365)-1 -> 0.01964783393 | DC32: =(1+XIRR(DC35:DC143,'Planilha 1'!$H$35:$H$143))^(30/365)-1 -> 0.01948726631 | DD32: =(1+XIRR(DD35:DD143,'Planilha 1'!$H$35:$H$143))^(30/365)-1 -> 0.01932034364 | DE32: =(1+XIRR(DE35:DE143,'Planilha 1'!$H$35:$H$143))^(30/365)-1 -> 0.01914709251 | DF32: =(1+XIRR(DF35:DF143,'Planilha 1'!$H$35:$H$143))^(30/365)-1 -> 0.01896687126 | DG32: =(1+XIRR(DG35:DG143,'Planilha 1'!$H$35:$H$143))^(30/365)-1 -> 0.01877933983 | DH32: =(1+XIRR(DH35:DH143,'Planilha 1'!$H$35:$H$143))^(30/365)-1 -> 0.01858425747 | DI32: =(1+XIRR(DI35:DI143,'Planilha 1'!$H$35:$H$143))^(30/365)-1 -> 0.01838112471 | DJ32: =(1+XIRR(DJ35:DJ143,'Planilha 1'!$H$35:$H$143))^(30/365)-1 -> 0.01816966251 | DK32: =(1+XIRR(DK35:DK143,'Planilha 1'!$H$35:$H$143))^(30/365)-1 -> 0.01794931816 | DL32: =(1+XIRR(DL35:DL143,'Planilha 1'!$H$35:$H$143))^(30/365)-1 -> 0.01771963116 | DM32: =(1+XIRR(DM35:DM143,'Planilha 1'!$H$35:$H$143))^(30/365)-1 -> 0.01748025502 | DN32: =(1+XIRR(DN35:DN143,'Planilha 1'!$H$35:$H$143))^(30/365)-1 -> 0.01723053731 | DO32: =(1+XIRR(DO35:DO143,'Planilha 1'!$H$35:$H$143))^(30/365)-1 -> 0.01697007283 | DP32: =(1+XIRR(DP35:DP143,'Planilha 1'!$H$35:$H$143))^(30/365)-1 -> 0.01669813082 | DQ32: =(1+XIRR(DQ35:DQ143,'Planilha 1'!$H$35:$H$143))^(30/365)-1 -> 0.01641439699 | DR32: =(1+XIRR(DR35:DR143,'Planilha 1'!$H$35:$H$143))^(30/365)-1 -> 0.0161179017 | DS32: =(1+XIRR(DS35:DS143,'Planilha 1'!$H$35:$H$143))^(30/365)-1 -> 0.01580792788 | DT32: =(1+XIRR(DT35:DT143,'Planilha 1'!$H$35:$H$143))^(30/365)-1 -> 0.01548388066 | DU32: =(1+XIRR(DU35:DU143,'Planilha 1'!$H$35:$H$143))^(30/365)-1 -> 0.01514477918 | DV32: =(1+XIRR(DV35:DV143,'Planilha 1'!$H$35:$H$143))^(30/365)-1 -> 0.01478992279 | DW32: =(1+XIRR(DW35:DW143,'Planilha 1'!$H$35:$H$143))^(30/365)-1 -> 0.01441820057 | DX32: =(1+XIRR(DX35:DX143,'Planilha 1'!$H$35:$H$143))^(30/365)-1 -> 0.01402860566 | DY32: =(1+XIRR(DY35:DY143,'Planilha 1'!$H$35:$H$143))^(30/365)-1 -> 0.01362024171 | DZ32: =(1+XIRR(DZ35:DZ143,'Planilha 1'!$H$35:$H$143))^(30/365)-1 -> 0.01319176097 | EA32: =(1+XIRR(EA35:EA143,'Planilha 1'!$H$35:$H$143))^(30/365)-1 -> 0.01274210348 | EB32: =(1+XIRR(EB35:EB143,'Planilha 1'!$H$35:$H$143))^(30/365)-1 -> 0.01226972823 | EC32: =(1+XIRR(EC35:EC143,'Planilha 1'!$H$35:$H$143))^(30/365)-1 -> 0.01177376892 | ED32: =(1+XIRR(ED35:ED143,'Planilha 1'!$H$35:$H$143))^(30/365)-1 -> 0.01125206055 | EE32: =(1+XIRR(EE35:EE143,'Planilha 1'!$H$35:$H$143))^(30/365)-1 -> 0.01070289741 | EF32: =(1+XIRR(EF35:EF143,'Planilha 1'!$H$35:$H$143))^(30/365)-1 -> 0.01012462931 | EG32: =(1+XIRR(EG35:EG143,'Planilha 1'!$H$35:$H$143))^(30/365)-1 -> 0.009515049384 | EH32: =(1+XIRR(EH35:EH143,'Planilha 1'!$H$35:$H$143))^(30/365)-1 -> 0.008872176188 | EI32: =(1+XIRR(EI35:EI143,'Planilha 1'!$H$35:$H$143))^(30/365)-1 -> 0.008193438566 | EJ32: =(1+XIRR(EJ35:EJ143,'Planilha 1'!$H$35:$H$143))^(30/365)-1 -> 0.007476258585 | EK32: =(1+XIRR(EK35:EK143,'Planilha 1'!$H$35:$H$143))^(30/365)-1 -> 0.006717998749 | EL32: =(1+XIRR(EL35:EL143,'Planilha 1'!$H$35:$H$143))^(30/365)-1 -> 0.005915394227 | EM32: =(1+XIRR(EM35:EM143,'Planilha 1'!$H$35:$H$143))^(30/365)-1 -> 0.005065232498 | EN32: =(1+XIRR(EN35:EN143,'Planilha 1'!$H$35:$H$143))^(30/365)-1 -> 0.004163651156 | EO32: =(1+XIRR(EO35:EO143,'Planilha 1'!$H$35:$H$143))^(30/365)-1 -> 0.003206921158 | EP32: =(1+XIRR(EP35:EP143,'Planilha 1'!$H$35:$H$143))^(30/365)-1 -> 0.002190114318 | EQ32: =(1+XIRR(EQ35:EQ143,'Planilha 1'!$H$35:$H$143))^(30/365)-1 -> 0.001108289725 | ER32: =(1+XIRR(ER35:ER143,'Planilha 1'!$H$35:$H$143))^(30/365)-1 -> -4.400418158e-05 | ES32: =(1+XIRR(ES35:ES143,'Planilha 1'!$H$35:$H$143))^(30/365)-1 -> -0.001272895058 | ET32: =(1+XIRR(ET35:ET143,'Planilha 1'!$H$35:$H$143))^(30/365)-1 -> -0.002585201404 | EU32: =(1+XIRR(EU35:EU143,'Planilha 1'!$H$35:$H$143))^(30/365)-1 -> -0.003988397645 | EV32: =(1+XIRR(EV35:EV143,'Planilha 1'!$H$35:$H$143))^(30/365)-1 -> -0.005490802432 | EW32: =(1+XIRR(EW35:EW143,'Planilha 1'!$H$35:$H$143))^(30/365)-1 -> -0.007102087142 | EX32: =(1+XIRR(EX35:EX143,'Planilha 1'!$H$35:$H$143))^(30/365)-1 -> -0.008832484347 | EY32: =(1+XIRR(EY35:EY143,'Planilha 1'!$H$35:$H$143))^(30/365)-1 -> -0.01069436713 | EZ32: =(1+XIRR(EZ35:EZ143,'Planilha 1'!$H$35:$H$143))^(30/365)-1 -> -0.01270055038 | FA32: =(1+XIRR(FA35:FA143,'Planilha 1'!$H$35:$H$143))^(30/365)-1 -> -0.014869304 | FB32: =(1+XIRR(FB35:FB143,'Planilha 1'!$H$35:$H$143))^(30/365)-1 -> -0.01721582138 | FC32: =(1+XIRR(FC35:FC143,'Planilha 1'!$H$35:$H$143))^(30/365)-1 -> -0.01975971243 | FD32: =(1+XIRR(FD35:FD143,'Planilha 1'!$H$35:$H$143))^(30/365)-1 -> -0.02252553394 | FE32: =(1+XIRR(FE35:FE143,'Planilha 1'!$H$35:$H$143))^(30/365)-1 -> -0.0255377255 | FF32: =(1+XIRR(FF35:FF143,'Planilha 1'!$H$35:$H$143))^(30/365)-1 -> -0.02882935286 | FG32: =(1+XIRR(FG35:FG143,'Planilha 1'!$H$35:$H$143))^(30/365)-1 -> -0.03243291506 | FH32: =(1+XIRR(FH35:FH143,'Planilha 1'!$H$35:$H$143))^(30/365)-1 -> -0.03638854743 | FI32: =(1+XIRR(FI35:FI143,'Planilha 1'!$H$35:$H$143))^(30/365)-1 -> -0.04074932933 | FJ32: =(1+XIRR(FJ35:FJ143,'Planilha 1'!$H$35:$H$143))^(30/365)-1 -> -0.0455665342 | FK32: =(1+XIRR(FK35:FK143,'Planilha 1'!$H$35:$H$143))^(30/365)-1 -> -0.05091508904 | FL32: =(1+XIRR(FL35:FL143,'Planilha 1'!$H$35:$H$143))^(30/365)-1 -> -0.05686687652 | FM32: =(1+XIRR(FM35:FM143,'Planilha 1'!$H$35:$H$143))^(30/365)-1 -> -0.06354620888 | FN32: =(1+XIRR(FN35:FN143,'Planilha 1'!$H$35:$H$143))^(30/365)-1 -> -0.07105070136 | FO32: =(1+XIRR(FO35:FO143,'Planilha 1'!$H$35:$H$143))^(30/365)-1 -> -0.07952149957 | FP32: =(1+XIRR(FP35:FP143,'Planilha 1'!$H$35:$H$143))^(30/365)-1 -> -0.08916326164 | FQ32: =(1+XIRR(FQ35:FQ143,'Planilha 1'!$H$35:$H$143))^(30/365)-1 -> -0.1001750109
A33: Data | B33: Dia da Semana | C33: Feriado | H33: OPERAÇÃO ORIGINAL | T33: REFINANCIAMENTO | AH33: IOF | AU33: REFINANCIAMENTO | BJ33: OPERAÇÃO ORIGINAL | BR33: =(1+BX23)^(1/30) -> 1.000611219 | BS33: =(1+XIRR(BR$35:BR$143,$BP$35:$BP$143))^(30/365)-1 -> 0.01845905487 | BT33: =(1+XIRR(BT$35:BT$143,$BO$35:$BO$143))^(30/365)-1 -> 0.01589433768 | BU33: =(1+XIRR(BU$35:BU$143,$BO$35:$BO$143))^(30/365)-1 -> 0.01689739115 | BY33: 108 | BZ33: =BY33-1 -> 107 | CA33: =BZ33-1 -> 106 | CB33: 105 | CC33: 104 | CD33: 103 | CE33: 102 | CF33: 101 | CG33: 100 | CH33: 99 | CI33: 98 | CJ33: 97 | CK33: 96 | CL33: 95 | CM33: 94 | CN33: 93 | CO33: 92 | CP33: 91 | CQ33: 90 | CR33: 89 | CS33: 88 | CT33: 87 | CU33: 86 | CV33: 85 | CW33: 84 | CX33: =CW33-1 -> 83 | CY33: 82 | CZ33: 81 | DA33: 80 | DB33: 79 | DC33: 78 | DD33: 77 | DE33: 76 | DF33: 75 | DG33: 74 | DH33: 73 | DI33: 72 | DJ33: 71 | DK33: 70 | DL33: 69 | DM33: 68 | DN33: 67 | DO33: 66 | DP33: 65 | DQ33: 64 | DR33: 63 | DS33: 62 | DT33: 61 | DU33: 60 | DV33: 59 | DW33: 58 | DX33: 57 | DY33: 56 | DZ33: 55 | EA33: 54 | EB33: 53 | EC33: 52 | ED33: 51 | EE33: 50 | EF33: 49 | EG33: 48 | EH33: 47 | EI33: 46 | EJ33: 45 | EK33: 44 | EL33: 43 | EM33: 42 | EN33: 41 | EO33: 40 | EP33: 39 | EQ33: 38 | ER33: 37 | ES33: 36 | ET33: 35 | EU33: 34 | EV33: 33 | EW33: 32 | EX33: 31 | EY33: =EX33-1 -> 30 | EZ33: =EY33-1 -> 29 | FA33: =EZ33-1 -> 28 | FB33: =FA33-1 -> 27 | FC33: =FB33-1 -> 26 | FD33: =FC33-1 -> 25 | FE33: =FD33-1 -> 24 | FF33: =FE33-1 -> 23 | FG33: =FF33-1 -> 22 | FH33: =FG33-1 -> 21 | FI33: =FH33-1 -> 20 | FJ33: =FI33-1 -> 19 | FK33: =FJ33-1 -> 18 | FL33: =FK33-1 -> 17 | FM33: =FL33-1 -> 16 | FN33: =FM33-1 -> 15 | FO33: =FN33-1 -> 14 | FP33: =FO33-1 -> 13 | FQ33: 12
A34: 2001-01-01 | B34: segunda-feira | C34: Confraternização Universal | H34: DATA EV | I34: FLUXO | J34: Principal | K34: Principal2 | L34: IOF | M34: Data Sld | T34: FX Refin | U34: Normal | V34: Flex 1 | W34: Flex 2 | X34: Flex 3 | Y34: Flex 4 | Z34: Flex 5 | AA34: Flex 6 | AB34: Flex 7 | AC34: Flex 8 | AD34: Flex 9 | AE34: Flex 10 | AF34: Flex 11 | AH34: Normal | AI34: Flex 1 | AJ34: Flex 2 | AK34: Flex 3 | AL34: Flex 4 | AM34: Flex 5 | AN34: Flex 6 | AO34: Flex 7 | AP34: Flex 8 | AQ34: Flex 9 | AR34: Flex 10 | AS34: Flex 11 | AU34: Normal | AV34: Flex 1 | AW34: Flex 2 | AX34: Flex 3 | AY34: Flex 4 | AZ34: Flex 5 | BA34: Flex 6 | BB34: Flex 7 | BC34: Flex 8 | BD34: Flex 9 | BE34: Flex 10 | BF34: Flex 11 | BJ34: DATA EV | BK34: FLUXO1 | BL34: FLUXO2 | BM34: FLUXO3 | BN34: FLUXO4 | BR34: FLUX06 | BY34: FLUXO | BZ34: FLUXO | CA34: FLUXO | CB34: FLUXO | CC34: FLUXO | CD34: FLUXO | CE34: FLUXO | CF34: FLUXO | CG34: FLUXO | CH34: FLUXO | CI34: FLUXO | CJ34: FLUXO | CK34: FLUXO | CL34: FLUXO | CM34: FLUXO | CN34: FLUXO | CO34: FLUXO | CP34: FLUXO | CQ34: FLUXO | CR34: FLUXO | CS34: FLUXO | CT34: FLUXO | CU34: FLUXO | CV34: FLUXO | CW34: FLUXO | CX34: FLUXO | CY34: FLUXO | CZ34: FLUXO | DA34: FLUXO | DB34: FLUXO | DC34: FLUXO | DD34: FLUXO | DE34: FLUXO | DF34: FLUXO | DG34: FLUXO | DH34: FLUXO | DI34: FLUXO | DJ34: FLUXO | DK34: FLUXO | DL34: FLUXO | DM34: FLUXO | DN34: FLUXO | DO34: FLUXO | DP34: FLUXO | DQ34: FLUXO | DR34: FLUXO | DS34: FLUXO | DT34: FLUXO | DU34: FLUXO | DV34: FLUXO | DW34: FLUXO | DX34: FLUXO | DY34: FLUXO | DZ34: FLUXO | EA34: FLUXO | EB34: FLUXO | EC34: FLUXO | ED34: FLUXO | EE34: FLUXO | EF34: FLUXO | EG34: FLUXO | EH34: FLUXO | EI34: FLUXO | EJ34: FLUXO | EK34: FLUXO | EL34: FLUXO | EM34: FLUXO | EN34: FLUXO | EO34: FLUXO | EP34: FLUXO | EQ34: FLUXO | ER34: FLUXO | ES34: FLUXO | ET34: FLUXO | EU34: FLUXO | EV34: FLUXO | EW34: FLUXO | EX34: FLUXO | EY34: FLUXO | EZ34: FLUXO | FA34: FLUXO | FB34: FLUXO | FC34: FLUXO | FD34: FLUXO | FE34: FLUXO | FF34: FLUXO | FG34: FLUXO | FH34: FLUXO | FI34: FLUXO | FJ34: FLUXO | FK34: FLUXO | FL34: FLUXO | FM34: FLUXO | FN34: FLUXO | FO34: FLUXO | FP34: FLUXO | FQ34: FLUXO
A35: 2001-02-26 | B35: segunda-feira | C35: Carnaval | G35: 0 | H35: =I7 -> 2026-05-26 | I35: =-I8 -> -10000 | K35: ; | L35: =I35*-0.38% -> 38 | M35: =I7 -> 2026-05-26 | T35: =I35 -> -10000 | AH35: =(U31)*$B$2 -> 8.075282043 | AI35: =(V31)*$B$2 -> 8.075282043 | AJ35: 8.498525837 | AK35: 9.284282934 | AL35: 10.29456942 | AM35: 11.33720137 | AU35: =-U32+$I$35 -> -22125.07422 | AV35: =-V32+$I$35 -> -22125.07422 | AW35: -22236.45417 | AX35: -22443.23235 | AY35: -22709.09722 | AZ35: -22983.47405 | BI35: 0 | BJ35: =H35 -> 2026-05-26 | BK35: =I35 -> -10000 | BL35: =BK35 -> -10000 | BM35: =BL35 -> -10000 | BN35: =BM35 -> -10000 | BO35: =H35 -> 2026-05-26 | BP35: =EDATE(BJ36,-1) -> 2026-06-07 | BQ35: =-BJ35+BP35 -> 12 | BR35: =-((-BN35)*BR33^BQ35) -> -10073.5933 | BS35: =BN35 -> -10000 | BT35: =BM35 -> -10000 | BU35: =BN35 -> -10000 | BY35: =BN35 -> -10000 | BZ35: =BY35 -> -10000 | CA35: =BZ35 -> -10000 | CB35: -10000 | CC35: -10000 | CD35: -10000 | CE35: -10000 | CF35: -10000 | CG35: -10000 | CH35: -10000 | CI35: -10000 | CJ35: -10000 | CK35: -10000 | CL35: -10000 | CM35: -10000 | CN35: -10000 | CO35: -10000 | CP35: -10000 | CQ35: -10000 | CR35: -10000 | CS35: -10000 | CT35: -10000 | CU35: -10000 | CV35: -10000 | CW35: -10000 | CX35: =CW35 -> -10000 | CY35: -10000 | CZ35: -10000 | DA35: -10000 | DB35: -10000 | DC35: -10000 | DD35: -10000 | DE35: -10000 | DF35: -10000 | DG35: -10000 | DH35: -10000 | DI35: -10000 | DJ35: -10000 | DK35: -10000 | DL35: -10000 | DM35: -10000 | DN35: -10000 | DO35: -10000 | DP35: -10000 | DQ35: -10000 | DR35: -10000 | DS35: -10000 | DT35: -10000 | DU35: -10000 | DV35: -10000 | DW35: -10000 | DX35: -10000 | DY35: -10000 | DZ35: -10000 | EA35: -10000 | EB35: -10000 | EC35: -10000 | ED35: -10000 | EE35: -10000 | EF35: -10000 | EG35: -10000 | EH35: -10000 | EI35: -10000 | EJ35: -10000 | EK35: -10000 | EL35: -10000 | EM35: -10000 | EN35: -10000 | EO35: -10000 | EP35: -10000 | EQ35: -10000 | ER35: -10000 | ES35: -10000 | ET35: -10000 | EU35: -10000 | EV35: -10000 | EW35: -10000 | EX35: -10000 | EY35: =EX35 -> -10000 | EZ35: =EY35 -> -10000 | FA35: =EZ35 -> -10000 | FB35: =FA35 -> -10000 | FC35: =FB35 -> -10000 | FD35: =FC35 -> -10000 | FE35: =FD35 -> -10000 | FF35: =FE35 -> -10000 | FG35: =FF35 -> -10000 | FH35: =FG35 -> -10000 | FI35: =FH35 -> -10000 | FJ35: =FI35 -> -10000 | FK35: =FJ35 -> -10000 | FL35: =FK35 -> -10000 | FM35: =FL35 -> -10000 | FN35: =FM35 -> -10000 | FO35: =FN35 -> -10000 | FP35: =FO35 -> -10000 | FQ35: -10000
A36: 2001-02-27 | B36: terça-feira | C36: Carnaval | F36: =H36-$H$35 -> 134 | G36: 1 | H36: =J31 -> 2026-10-07 | I36: =IF($G36>$I$10,0,$I$9) -> 270 | J36: =I36/($J$32^(M36-$M$35)) -> 263.7398639 | K36: =I36/($I$32^(M36-$M$35)) -> 263.7398639 | L36: =J36*0.0082%*MIN(F36,365) -> 2.897973625 | M36: =M31 -> 2026-07-07 | S36: 1 | T36: =IF($G36>$P$3,0,$J$9) -> 270 | U36: =$T36/((U$29)^($H36-$H$35)) -> 249.7473988 | V36: =$T36/((V$29)^($H36-$H$35)) -> 249.7473988 | W36: 249.9883417 | X36: =$T36/((X$29)^($H36-$H$35)) -> 250.4278253 | Y36: 250.9785103 | Z36: 251.5306782 | AH36: =IF($I36<>0,0,U36*$B$1*MIN($F36,365)) -> 0 | AI36: =IF($I36<>0,0,V36*$B$1*MIN($F36,365)) -> 0 | AJ36: =IF($I36<>0,0,W36*$B$1*MIN($F36,365)) -> 0 | AK36: =IF($I36<>0,0,X36*$B$1*MIN($F36,365)) -> 0 | AL36: =IF($I36<>0,0,Y36*$B$1*MIN($F36,365)) -> 0 | AM36: =IF($I36<>0,0,Z36*$B$1*MIN($F36,365)) -> 0 | AN36: =IF($I36<>0,0,AA36*$B$1*MIN($F36,365)) -> 0 | AO36: =IF($I36<>0,0,AB36*$B$1*MIN($F36,365)) -> 0 | AP36: =IF($I36<>0,0,AC36*$B$1*MIN($F36,365)) -> 0 | AQ36: =IF($I36<>0,0,AD36*$B$1*MIN($F36,365)) -> 0 | AR36: =IF($I36<>0,0,AE36*$B$1*MIN($F36,365)) -> 0 | AS36: =IF($I36<>0,0,AF36*$B$1*MIN($F36,365)) -> 0 | AU36: =$T36 -> 270 | AV36: 270 | AW36: 270 | AX36: 270 | AY36: 270 | AZ36: 270 | BA36: 270 | BB36: 270 | BC36: 270 | BD36: 270 | BE36: 270 | BF36: 270 | BH36: =BJ36-$H$35 -> 42 | BI36: 1 | BJ36: =BL31 -> 2026-07-07 | BK36: =I36 -> 270 | BL36: =BK36 -> 270 | BM36: =I37 -> 270 | BN36: =BM37 -> 270 | BO36: =M36 -> 2026-07-07 | BP36: =BJ36 -> 2026-07-07 | BR36: =IF(G36>$I$10-3,0,PMT($BR$31,$I$10,$BR$35)) -> 281.0141666 | BS36: =MIN(BR36,$I$9) -> 270 | BT36: =IF(F36>$BU$31,0,$BU$32) -> 0 | BU36: =IF(G36>$BU$31,0,$BU$32) -> 270 | BY36: =IF($G36>BY$33,0,$I$9) -> 270 | BZ36: =IF($G36>BZ$33,0,$I$9) -> 270 | CA36: 270 | CB36: 270 | CC36: 270 | CD36: 270 | CE36: 270 | CF36: 270 | CG36: 270 | CH36: 270 | CI36: 270 | CJ36: 270 | CK36: 270 | CL36: 270 | CM36: 270 | CN36: 270 | CO36: 270 | CP36: =IF($G36>CP$33,0,$I$9) -> 270 | CQ36: 270 | CR36: 270 | CS36: 270 | CT36: 270 | CU36: 270 | CV36: 270 | CW36: 270 | CX36: 270 | CY36: 270 | CZ36: 270 | DA36: 270 | DB36: 270 | DC36: 270 | DD36: 270 | DE36: 270 | DF36: =IF($G36>DF$33,0,$I$9) -> 270 | DG36: 270 | DH36: 270 | DI36: 270 | DJ36: 270 | DK36: 270 | DL36: 270 | DM36: 270 | DN36: 270 | DO36: 270 | DP36: 270 | DQ36: 270 | DR36: 270 | DS36: 270 | DT36: 270 | DU36: 270 | DV36: 270 | DW36: 270 | DX36: 270 | DY36: 270 | DZ36: 270 | EA36: 270 | EB36: 270 | EC36: 270 | ED36: 270 | EE36: 270 | EF36: 270 | EG36: 270 | EH36: 270 | EI36: 270 | EJ36: 270 | EK36: 270 | EL36: 270 | EM36: 270 | EN36: 270 | EO36: 270 | EP36: 270 | EQ36: 270 | ER36: 270 | ES36: 270 | ET36: 270 | EU36: 270 | EV36: 270 | EW36: 270 | EX36: 270 | EY36: =IF($G36>EY$33,0,$I$9) -> 270 | EZ36: 270 | FA36: 270 | FB36: 270 | FC36: 270 | FD36: 270 | FE36: 270 | FF36: 270 | FG36: 270 | FH36: 270 | FI36: 270 | FJ36: 270 | FK36: 270 | FL36: 270 | FM36: 270 | FN36: 270 | FO36: 270 | FP36: 270 | FQ36: =IF($G36>FQ$33,0,$I$9) -> 270
A37: 2001-04-13 | B37: sexta-feira | C37: Paixão de Cristo | F37: =H37-$H$35 -> 165 | G37: =G36+1 -> 2 | H37: =EDATE(H36,1) -> 2026-11-07 | I37: =IF($G37>$I$10,0,$I$9) -> 270 | J37: =I37/($J$32^(M37-$M$35)) -> 259.2125793 | K37: =I37/($I$32^(M37-$M$35)) -> 259.2125793 | L37: =J37*0.0082%*MIN(F37,365) -> 3.507146197 | M37: =EDATE(M36,1) -> 2026-08-07 | S37: =S36+1 -> 2 | T37: 270 | U37: 245.2827714 | V37: 245.2827714 | W37: 245.5741835 | X37: =$T37/((X$29)^($H37-$H$35)) -> 246.1058914 | Y37: 246.7724406 | Z37: 247.4411245 | AE37: =$T37/((AE$29)^($H37-$H$35)) ->  | AH37: =IF($I37<>0,0,U37*$B$1*MIN($F37,365)) -> 0 | AI37: 0 | AJ37: 0 | AK37: 0 | AL37: 0 | AM37: 0 | AN37: 0 | AO37: 0 | AP37: 0 | AQ37: 0 | AR37: 0 | AS37: 0 | AU37: 270 | AV37: 270 | AW37: 270 | AX37: 270 | AY37: 270 | AZ37: 270 | BA37: 270 | BB37: 270 | BC37: 270 | BD37: 270 | BE37: 270 | BF37: 270 | BH37: =BJ37-$H$35 -> 73 | BI37: =BI36+1 -> 2 | BJ37: =EDATE(BJ36,1) -> 2026-08-07 | BK37: =I36 -> 270 | BL37: =BK36 -> 270 | BM37: =I38 -> 270 | BN37: =BM38 -> 270 | BO37: =M37 -> 2026-08-07 | BP37: =BJ37 -> 2026-08-07 | BR37: =IF(I37=0,0,PMT($BR$31,$I$10,$BR$35)) -> 281.0141666 | BS37: =MIN(BR37,$I$9) -> 270 | BT37: =IF(G37>$BT$31,0,$BT$32) -> 270 | BU37: =IF(G37>$BU$31,0,$BU$32) -> 270 | BY37: 270 | BZ37: 270 | CA37: 270 | CB37: 270 | CC37: 270 | CD37: 270 | CE37: 270 | CF37: 270 | CG37: 270 | CH37: 270 | CI37: 270 | CJ37: 270 | CK37: 270 | CL37: 270 | CM37: 270 | CN37: 270 | CO37: 270 | CP37: 270 | CQ37: 270 | CR37: 270 | CS37: 270 | CT37: 270 | CU37: 270 | CV37: 270 | CW37: 270 | CX37: 270 | CY37: 270 | CZ37: 270 | DA37: 270 | DB37: 270 | DC37: 270 | DD37: 270 | DE37: 270 | DF37: 270 | DG37: 270 | DH37: 270 | DI37: 270 | DJ37: 270 | DK37: 270 | DL37: 270 | DM37: 270 | DN37: 270 | DO37: 270 | DP37: 270 | DQ37: 270 | DR37: 270 | DS37: 270 | DT37: 270 | DU37: 270 | DV37: 270 | DW37: 270 | DX37: 270 | DY37: 270 | DZ37: 270 | EA37: 270 | EB37: 270 | EC37: 270 | ED37: 270 | EE37: 270 | EF37: 270 | EG37: 270 | EH37: 270 | EI37: 270 | EJ37: 270 | EK37: 270 | EL37: 270 | EM37: 270 | EN37: 270 | EO37: 270 | EP37: 270 | EQ37: 270 | ER37: 270 | ES37: 270 | ET37: 270 | EU37: 270 | EV37: 270 | EW37: 270 | EX37: 270 | EY37: 270 | EZ37: 270 | FA37: 270 | FB37: 270 | FC37: 270 | FD37: 270 | FE37: 270 | FF37: 270 | FG37: 270 | FH37: 270 | FI37: 270 | FJ37: 270 | FK37: 270 | FL37: 270 | FM37: 270 | FN37: 270 | FO37: 270 | FP37: 270 | FQ37: 270
A38: 2001-04-21 | B38: sábado | C38: Tiradentes | F38: 195 | G38: =G37+1 -> 3 | H38: =EDATE(H37,1) -> 2026-12-07 | I38: =IF($G38>$I$10,0,$I$9) -> 270 | J38: 254.7630087 | K38: 254.7630087 | L38: 4.07366051 | M38: =EDATE(M37,1) -> 2026-09-07 | S38: 3 | T38: 270 | U38: 241.0381707 | V38: 241.0381707 | W38: 241.3766437 | X38: 241.9944064 | Y38: 242.7691769 | Z38: 243.546811 | AH38: 0 | AI38: 0 | AJ38: 0 | AK38: 0 | AL38: 0 | AM38: 0 | AN38: 0 | AO38: 0 | AP38: 0 | AQ38: 0 | AR38: 0 | AS38: 0 | AU38: 270 | AV38: 270 | AW38: 270 | AX38: 270 | AY38: 270 | AZ38: 270 | BA38: 270 | BB38: 270 | BC38: 270 | BD38: 270 | BE38: 270 | BF38: 270 | BH38: 104 | BI38: =BI37+1 -> 3 | BJ38: =EDATE(BJ37,1) -> 2026-09-07 | BK38: =I37 -> 270 | BL38: =BK37 -> 270 | BM38: 270 | BN38: 270 | BO38: 2026-09-07 | BP38: 2026-09-07 | BR38: 281.0141666 | BS38: 270 | BT38: =IF(G38>$BT$31,0,$BT$32) -> 270 | BU38: 270 | BY38: 270 | BZ38: 270 | CA38: 270 | CB38: 270 | CC38: 270 | CD38: 270 | CE38: 270 | CF38: 270 | CG38: 270 | CH38: 270 | CI38: 270 | CJ38: 270 | CK38: 270 | CL38: 270 | CM38: 270 | CN38: 270 | CO38: 270 | CP38: 270 | CQ38: 270 | CR38: 270 | CS38: 270 | CT38: 270 | CU38: 270 | CV38: 270 | CW38: 270 | CX38: 270 | CY38: 270 | CZ38: 270 | DA38: 270 | DB38: 270 | DC38: 270 | DD38: 270 | DE38: 270 | DF38: 270 | DG38: 270 | DH38: 270 | DI38: 270 | DJ38: 270 | DK38: 270 | DL38: 270 | DM38: 270 | DN38: 270 | DO38: 270 | DP38: 270 | DQ38: 270 | DR38: 270 | DS38: 270 | DT38: 270 | DU38: 270 | DV38: 270 | DW38: 270 | DX38: 270 | DY38: 270 | DZ38: 270 | EA38: 270 | EB38: 270 | EC38: 270 | ED38: 270 | EE38: 270 | EF38: 270 | EG38: 270 | EH38: 270 | EI38: 270 | EJ38: 270 | EK38: 270 | EL38: 270 | EM38: 270 | EN38: 270 | EO38: 270 | EP38: 270 | EQ38: 270 | ER38: 270 | ES38: 270 | ET38: 270 | EU38: 270 | EV38: 270 | EW38: 270 | EX38: 270 | EY38: 270 | EZ38: 270 | FA38: 270 | FB38: 270 | FC38: 270 | FD38: 270 | FE38: 270 | FF38: 270 | FG38: 270 | FH38: 270 | FI38: 270 | FJ38: 270 | FK38: 270 | FL38: 270 | FM38: 270 | FN38: 270 | FO38: 270 | FP38: 270 | FQ38: 270
A39: 2001-05-01 | B39: terça-feira | C39: Dia do Trabalho | F39: 226 | G39: 4 | H39: 2027-01-07 | I39: 270 | J39: 250.5297102 | K39: 250.5297102 | L39: 4.64281659 | M39: 2026-10-07 | S39: 4 | T39: 270 | U39: 236.7292344 | V39: 236.7292344 | W39: 237.1145463 | X39: 237.8180181 | Y39: 238.7006848 | Z39: 239.5870643 | AH39: 0 | AI39: 0 | AJ39: 0 | AK39: 0 | AL39: 0 | AM39: 0 | AN39: 0 | AO39: 0 | AP39: 0 | AQ39: 0 | AR39: 0 | AS39: 0 | AU39: 270 | AV39: 270 | AW39: 270 | AX39: 270 | AY39: 270 | AZ39: 270 | BA39: 270 | BB39: 270 | BC39: 270 | BD39: 270 | BE39: 270 | BF39: 270 | BH39: 134 | BI39: 4 | BJ39: 2026-10-07 | BK39: 270 | BL39: 270 | BM39: 270 | BN39: 270 | BO39: 2026-10-07 | BP39: 2026-10-07 | BR39: 281.0141666 | BS39: 270 | BT39: 270 | BU39: 270 | BY39: 270 | BZ39: 270 | CA39: 270 | CB39: 270 | CC39: 270 | CD39: 270 | CE39: 270 | CF39: 270 | CG39: 270 | CH39: 270 | CI39: 270 | CJ39: 270 | CK39: 270 | CL39: 270 | CM39: 270 | CN39: 270 | CO39: 270 | CP39: 270 | CQ39: 270 | CR39: 270 | CS39: 270 | CT39: 270 | CU39: 270 | CV39: 270 | CW39: 270 | CX39: 270 | CY39: 270 | CZ39: 270 | DA39: 270 | DB39: 270 | DC39: 270 | DD39: 270 | DE39: 270 | DF39: 270 | DG39: 270 | DH39: 270 | DI39: 270 | DJ39: 270 | DK39: 270 | DL39: 270 | DM39: 270 | DN39: 270 | DO39: 270 | DP39: 270 | DQ39: 270 | DR39: 270 | DS39: 270 | DT39: 270 | DU39: 270 | DV39: 270 | DW39: 270 | DX39: 270 | DY39: 270 | DZ39: 270 | EA39: 270 | EB39: 270 | EC39: 270 | ED39: 270 | EE39: 270 | EF39: 270 | EG39: 270 | EH39: 270 | EI39: 270 | EJ39: 270 | EK39: 270 | EL39: 270 | EM39: 270 | EN39: 270 | EO39: 270 | EP39: 270 | EQ39: 270 | ER39: 270 | ES39: 270 | ET39: 270 | EU39: 270 | EV39: 270 | EW39: 270 | EX39: 270 | EY39: 270 | EZ39: 270 | FA39: 270 | FB39: 270 | FC39: 270 | FD39: 270 | FE39: 270 | FF39: 270 | FG39: 270 | FH39: 270 | FI39: 270 | FJ39: 270 | FK39: 270 | FL39: 270 | FM39: 270 | FN39: 270 | FO39: 270 | FP39: 270 | FQ39: 270
A40: 2001-06-14 | B40: quinta-feira | C40: Corpus Christi | F40: 257 | G40: 5 | H40: 2027-02-07 | I40: 270 | J40: 246.2291874 | K40: 246.2291874 | L40: 5.189033895 | M40: 2026-11-07 | S40: 5 | T40: 270 | U40: 232.4973271 | V40: 232.4973271 | W40: 232.9277066 | X40: 233.7137068 | Y40: 234.7003754 | Z40: 235.6916978 | AH40: 0 | AI40: 0 | AJ40: 0 | AK40: 0 | AL40: 0 | AM40: 0 | AN40: 0 | AO40: 0 | AP40: 0 | AQ40: 0 | AR40: 0 | AS40: 0 | AU40: 270 | AV40: 270 | AW40: 270 | AX40: 270 | AY40: 270 | AZ40: 270 | BA40: 270 | BB40: 270 | BC40: 270 | BD40: 270 | BE40: 270 | BF40: 270 | BH40: 165 | BI40: 5 | BJ40: 2026-11-07 | BK40: 270 | BL40: 270 | BM40: 270 | BN40: 270 | BO40: 2026-11-07 | BP40: 2026-11-07 | BR40: 281.0141666 | BS40: 270 | BT40: 270 | BU40: 270 | BY40: 270 | BZ40: 270 | CA40: 270 | CB40: 270 | CC40: 270 | CD40: 270 | CE40: 270 | CF40: 270 | CG40: 270 | CH40: 270 | CI40: 270 | CJ40: 270 | CK40: 270 | CL40: 270 | CM40: 270 | CN40: 270 | CO40: 270 | CP40: 270 | CQ40: 270 | CR40: 270 | CS40: 270 | CT40: 270 | CU40: 270 | CV40: 270 | CW40: 270 | CX40: 270 | CY40: 270 | CZ40: 270 | DA40: 270 | DB40: 270 | DC40: 270 | DD40: 270 | DE40: 270 | DF40: 270 | DG40: 270 | DH40: 270 | DI40: 270 | DJ40: 270 | DK40: 270 | DL40: 270 | DM40: 270 | DN40: 270 | DO40: 270 | DP40: 270 | DQ40: 270 | DR40: 270 | DS40: 270 | DT40: 270 | DU40: 270 | DV40: 270 | DW40: 270 | DX40: 270 | DY40: 270 | DZ40: 270 | EA40: 270 | EB40: 270 | EC40: 270 | ED40: 270 | EE40: 270 | EF40: 270 | EG40: 270 | EH40: 270 | EI40: 270 | EJ40: 270 | EK40: 270 | EL40: 270 | EM40: 270 | EN40: 270 | EO40: 270 | EP40: 270 | EQ40: 270 | ER40: 270 | ES40: 270 | ET40: 270 | EU40: 270 | EV40: 270 | EW40: =IF($G40>EW$33,0,$I$9) -> 270 | EX40: 270 | EY40: 270 | EZ40: 270 | FA40: 270 | FB40: 270 | FC40: 270 | FD40: 270 | FE40: 270 | FF40: 270 | FG40: 270 | FH40: 270 | FI40: 270 | FJ40: 270 | FK40: 270 | FL40: 270 | FM40: 270 | FN40: 270 | FO40: 270 | FP40: 270 | FQ40: 270
A41: 2001-09-07 | B41: sexta-feira | C41: Independência do Brasil | F41: 285 | G41: 6 | H41: 2027-03-07 | I41: 270 | J41: 242.1376921 | K41: 242.1376921 | L41: 5.658757864 | M41: 2026-12-07 | S41: 6 | T41: 270 | U41: 228.7400214 | V41: 228.7400214 | W41: 229.2096249 | X41: 230.0675035 | Y41: 231.1448461 | Z41: 232.2277675 | AH41: 0 | AI41: 0 | AJ41: 0 | AK41: 0 | AL41: 0 | AM41: 0 | AN41: 0 | AO41: 0 | AP41: 0 | AQ41: 0 | AR41: 0 | AS41: 0 | AU41: 270 | AV41: 270 | AW41: 270 | AX41: 270 | AY41: 270 | AZ41: 270 | BA41: 270 | BB41: 270 | BC41: 270 | BD41: 270 | BE41: 270 | BF41: 270 | BH41: 195 | BI41: 6 | BJ41: 2026-12-07 | BK41: 270 | BL41: 270 | BM41: 270 | BN41: 270 | BO41: 2026-12-07 | BP41: 2026-12-07 | BR41: 281.0141666 | BS41: 270 | BT41: 270 | BU41: 270 | BY41: 270 | BZ41: 270 | CA41: 270 | CB41: 270 | CC41: 270 | CD41: 270 | CE41: 270 | CF41: 270 | CG41: 270 | CH41: 270 | CI41: 270 | CJ41: 270 | CK41: 270 | CL41: 270 | CM41: 270 | CN41: 270 | CO41: 270 | CP41: 270 | CQ41: 270 | CR41: 270 | CS41: 270 | CT41: 270 | CU41: 270 | CV41: 270 | CW41: 270 | CX41: 270 | CY41: 270 | CZ41: 270 | DA41: 270 | DB41: 270 | DC41: 270 | DD41: 270 | DE41: 270 | DF41: 270 | DG41: 270 | DH41: 270 | DI41: 270 | DJ41: 270 | DK41: 270 | DL41: 270 | DM41: 270 | DN41: 270 | DO41: 270 | DP41: 270 | DQ41: 270 | DR41: 270 | DS41: 270 | DT41: 270 | DU41: 270 | DV41: 270 | DW41: 270 | DX41: 270 | DY41: 270 | DZ41: 270 | EA41: 270 | EB41: 270 | EC41: 270 | ED41: 270 | EE41: 270 | EF41: 270 | EG41: 270 | EH41: 270 | EI41: 270 | EJ41: 270 | EK41: 270 | EL41: 270 | EM41: 270 | EN41: 270 | EO41: 270 | EP41: 270 | EQ41: 270 | ER41: 270 | ES41: 270 | ET41: 270 | EU41: 270 | EV41: 270 | EW41: 270 | EX41: 270 | EY41: 270 | EZ41: 270 | FA41: 270 | FB41: 270 | FC41: 270 | FD41: 270 | FE41: 270 | FF41: 270 | FG41: 270 | FH41: 270 | FI41: 270 | FJ41: 270 | FK41: 270 | FL41: 270 | FM41: 270 | FN41: 270 | FO41: 270 | FP41: 270 | FQ41: 270
A42: 2001-10-12 | B42: sexta-feira | C42: Nossa Sr.a Aparecida - Padroeira do Brasil | F42: 316 | G42: 7 | H42: 2027-04-07 | I42: 270 | J42: 237.9812243 | K42: 237.9812243 | L42: 6.166569484 | M42: 2027-01-07 | S42: 7 | T42: 270 | U42: 224.6509339 | V42: 224.6509339 | W42: 225.162366 | X42: 226.0969521 | Y42: 227.2711626 | Z42: 228.4520534 | AH42: 0 | AI42: 0 | AJ42: 0 | AK42: 0 | AL42: 0 | AM42: 0 | AN42: 0 | AO42: 0 | AP42: 0 | AQ42: 0 | AR42: 0 | AS42: 0 | AU42: 270 | AV42: 270 | AW42: 270 | AX42: 270 | AY42: 270 | AZ42: 270 | BA42: 270 | BB42: 270 | BC42: 270 | BD42: 270 | BE42: 270 | BF42: 270 | BH42: 226 | BI42: 7 | BJ42: 2027-01-07 | BK42: 270 | BL42: 270 | BM42: 270 | BN42: 270 | BO42: 2027-01-07 | BP42: 2027-01-07 | BR42: =IF(I42=0,0,PMT($BR$31,$I$10,$BR$35)) -> 281.0141666 | BS42: 270 | BT42: 270 | BU42: 270 | BY42: 270 | BZ42: 270 | CA42: 270 | CB42: 270 | CC42: 270 | CD42: 270 | CE42: 270 | CF42: 270 | CG42: 270 | CH42: 270 | CI42: 270 | CJ42: 270 | CK42: 270 | CL42: 270 | CM42: 270 | CN42: 270 | CO42: 270 | CP42: 270 | CQ42: 270 | CR42: 270 | CS42: 270 | CT42: 270 | CU42: 270 | CV42: 270 | CW42: 270 | CX42: 270 | CY42: 270 | CZ42: 270 | DA42: 270 | DB42: 270 | DC42: 270 | DD42: 270 | DE42: 270 | DF42: 270 | DG42: 270 | DH42: 270 | DI42: 270 | DJ42: 270 | DK42: 270 | DL42: 270 | DM42: 270 | DN42: 270 | DO42: 270 | DP42: 270 | DQ42: 270 | DR42: 270 | DS42: 270 | DT42: 270 | DU42: 270 | DV42: 270 | DW42: 270 | DX42: 270 | DY42: 270 | DZ42: 270 | EA42: 270 | EB42: 270 | EC42: 270 | ED42: 270 | EE42: 270 | EF42: 270 | EG42: 270 | EH42: 270 | EI42: 270 | EJ42: 270 | EK42: 270 | EL42: 270 | EM42: 270 | EN42: 270 | EO42: 270 | EP42: 270 | EQ42: 270 | ER42: 270 | ES42: 270 | ET42: 270 | EU42: 270 | EV42: 270 | EW42: 270 | EX42: 270 | EY42: 270 | EZ42: 270 | FA42: 270 | FB42: 270 | FC42: 270 | FD42: 270 | FE42: 270 | FF42: 270 | FG42: 270 | FH42: 270 | FI42: 270 | FJ42: 270 | FK42: 270 | FL42: 270 | FM42: 270 | FN42: 270 | FO42: 270 | FP42: 270 | FQ42: 270
A43: 2001-11-02 | B43: sexta-feira | C43: Finados | F43: 346 | G43: 8 | H43: 2027-05-07 | I43: 270 | J43: 233.8961052 | K43: 233.8961052 | L43: 6.636100298 | M43: 2027-02-07 | S43: 8 | T43: 270 | U43: 220.7633657 | V43: 220.7633657 | W43: 221.3137204 | X43: 222.3197398 | Y43: 223.5842582 | Z43: 224.8565964 | AH43: 0 | AI43: 0 | AJ43: 0 | AK43: 0 | AL43: 0 | AM43: 0 | AN43: 0 | AO43: 0 | AP43: 0 | AQ43: 0 | AR43: 0 | AS43: 0 | AU43: 270 | AV43: 270 | AW43: 270 | AX43: 270 | AY43: 270 | AZ43: 270 | BA43: 270 | BB43: 270 | BC43: 270 | BD43: 270 | BE43: 270 | BF43: 270 | BH43: 257 | BI43: 8 | BJ43: 2027-02-07 | BK43: 270 | BL43: 270 | BM43: 270 | BN43: 270 | BO43: 2027-02-07 | BP43: 2027-02-07 | BR43: 281.0141666 | BS43: 270 | BT43: 270 | BU43: 270 | BY43: 270 | BZ43: 270 | CA43: 270 | CB43: 270 | CC43: 270 | CD43: 270 | CE43: 270 | CF43: 270 | CG43: 270 | CH43: 270 | CI43: 270 | CJ43: 270 | CK43: 270 | CL43: 270 | CM43: 270 | CN43: 270 | CO43: 270 | CP43: 270 | CQ43: 270 | CR43: 270 | CS43: 270 | CT43: 270 | CU43: 270 | CV43: 270 | CW43: 270 | CX43: 270 | CY43: 270 | CZ43: 270 | DA43: 270 | DB43: 270 | DC43: 270 | DD43: 270 | DE43: 270 | DF43: 270 | DG43: 270 | DH43: 270 | DI43: 270 | DJ43: 270 | DK43: 270 | DL43: 270 | DM43: 270 | DN43: 270 | DO43: 270 | DP43: 270 | DQ43: 270 | DR43: 270 | DS43: 270 | DT43: 270 | DU43: 270 | DV43: 270 | DW43: 270 | DX43: 270 | DY43: 270 | DZ43: 270 | EA43: 270 | EB43: 270 | EC43: 270 | ED43: 270 | EE43: 270 | EF43: 270 | EG43: 270 | EH43: 270 | EI43: 270 | EJ43: 270 | EK43: 270 | EL43: 270 | EM43: 270 | EN43: 270 | EO43: 270 | EP43: 270 | EQ43: 270 | ER43: 270 | ES43: 270 | ET43: 270 | EU43: 270 | EV43: 270 | EW43: 270 | EX43: 270 | EY43: 270 | EZ43: 270 | FA43: 270 | FB43: 270 | FC43: 270 | FD43: 270 | FE43: 270 | FF43: 270 | FG43: 270 | FH43: 270 | FI43: 270 | FJ43: 270 | FK43: 270 | FL43: 270 | FM43: 270 | FN43: 270 | FO43: 270 | FP43: 270 | FQ43: 270
A44: 2001-11-15 | B44: quinta-feira | C44: Proclamação da República | F44: 377 | G44: 9 | H44: 2027-06-07 | I44: 270 | J44: 230.2666269 | K44: 230.2666269 | L44: 6.891880144 | M44: 2027-03-07 | S44: 9 | T44: 270 | U44: 216.8168734 | V44: 216.8168734 | W44: 217.4058832 | X44: 218.4829009 | Y44: 219.8372801 | Z44: 221.2007277 | AH44: 0 | AI44: 0 | AJ44: 0 | AK44: 0 | AL44: 0 | AM44: 0 | AN44: 0 | AO44: 0 | AP44: 0 | AQ44: 0 | AR44: 0 | AS44: 0 | AU44: 270 | AV44: 270 | AW44: 270 | AX44: 270 | AY44: 270 | AZ44: 270 | BA44: 270 | BB44: 270 | BC44: 270 | BD44: 270 | BE44: 270 | BF44: 270 | BH44: 285 | BI44: 9 | BJ44: 2027-03-07 | BK44: 270 | BL44: 270 | BM44: 270 | BN44: 270 | BO44: 2027-03-07 | BP44: 2027-03-07 | BR44: 281.0141666 | BS44: 270 | BT44: 270 | BU44: 270 | BY44: 270 | BZ44: 270 | CA44: 270 | CB44: 270 | CC44: 270 | CD44: 270 | CE44: 270 | CF44: 270 | CG44: 270 | CH44: 270 | CI44: 270 | CJ44: 270 | CK44: 270 | CL44: 270 | CM44: 270 | CN44: 270 | CO44: 270 | CP44: 270 | CQ44: 270 | CR44: 270 | CS44: 270 | CT44: 270 | CU44: 270 | CV44: 270 | CW44: 270 | CX44: 270 | CY44: 270 | CZ44: 270 | DA44: 270 | DB44: 270 | DC44: 270 | DD44: 270 | DE44: 270 | DF44: 270 | DG44: 270 | DH44: 270 | DI44: 270 | DJ44: 270 | DK44: 270 | DL44: 270 | DM44: 270 | DN44: 270 | DO44: 270 | DP44: 270 | DQ44: 270 | DR44: 270 | DS44: 270 | DT44: 270 | DU44: 270 | DV44: 270 | DW44: 270 | DX44: 270 | DY44: 270 | DZ44: 270 | EA44: 270 | EB44: 270 | EC44: 270 | ED44: 270 | EE44: 270 | EF44: 270 | EG44: 270 | EH44: 270 | EI44: 270 | EJ44: 270 | EK44: 270 | EL44: 270 | EM44: 270 | EN44: 270 | EO44: 270 | EP44: 270 | EQ44: 270 | ER44: 270 | ES44: 270 | ET44: 270 | EU44: 270 | EV44: 270 | EW44: 270 | EX44: 270 | EY44: 270 | EZ44: 270 | FA44: 270 | FB44: 270 | FC44: 270 | FD44: 270 | FE44: 270 | FF44: 270 | FG44: 270 | FH44: 270 | FI44: 270 | FJ44: 270 | FK44: 270 | FL44: 270 | FM44: 270 | FN44: 270 | FO44: 270 | FP44: 270 | FQ44: 270
A45: 2001-12-25 | B45: terça-feira | C45: Natal | F45: 407 | G45: 10 | H45: 2027-07-07 | I45: 270 | J45: 226.3139345 | K45: 226.3139345 | L45: 6.773576059 | M45: 2027-04-07 | S45: 10 | T45: 270 | U45: 213.0648731 | V45: 213.0648731 | W45: 213.6898173 | X45: 214.8328901 | Y45: 216.2709718 | Z45: 217.7193946 | AH45: 0 | AI45: 0 | AJ45: 0 | AK45: 0 | AL45: 0 | AM45: 0 | AN45: 0 | AO45: 0 | AP45: 0 | AQ45: 0 | AR45: 0 | AS45: 0 | AU45: 270 | AV45: 270 | AW45: 270 | AX45: 270 | AY45: 270 | AZ45: 270 | BA45: 270 | BB45: 270 | BC45: 270 | BD45: 270 | BE45: 270 | BF45: 270 | BH45: 316 | BI45: 10 | BJ45: 2027-04-07 | BK45: 270 | BL45: 270 | BM45: 270 | BN45: 270 | BO45: 2027-04-07 | BP45: 2027-04-07 | BR45: 281.0141666 | BS45: 270 | BT45: 270 | BU45: 270 | BY45: 270 | BZ45: 270 | CA45: 270 | CB45: 270 | CC45: 270 | CD45: 270 | CE45: 270 | CF45: 270 | CG45: 270 | CH45: 270 | CI45: 270 | CJ45: 270 | CK45: 270 | CL45: 270 | CM45: 270 | CN45: 270 | CO45: 270 | CP45: 270 | CQ45: 270 | CR45: 270 | CS45: 270 | CT45: 270 | CU45: 270 | CV45: 270 | CW45: 270 | CX45: 270 | CY45: 270 | CZ45: 270 | DA45: 270 | DB45: 270 | DC45: 270 | DD45: 270 | DE45: 270 | DF45: 270 | DG45: 270 | DH45: 270 | DI45: 270 | DJ45: 270 | DK45: 270 | DL45: 270 | DM45: 270 | DN45: 270 | DO45: 270 | DP45: 270 | DQ45: 270 | DR45: 270 | DS45: 270 | DT45: 270 | DU45: 270 | DV45: 270 | DW45: 270 | DX45: 270 | DY45: 270 | DZ45: 270 | EA45: 270 | EB45: 270 | EC45: 270 | ED45: 270 | EE45: 270 | EF45: 270 | EG45: 270 | EH45: 270 | EI45: 270 | EJ45: 270 | EK45: 270 | EL45: 270 | EM45: =IF($G45>EM$33,0,$I$9) -> 270 | EN45: 270 | EO45: 270 | EP45: 270 | EQ45: 270 | ER45: 270 | ES45: 270 | ET45: 270 | EU45: 270 | EV45: 270 | EW45: 270 | EX45: 270 | EY45: 270 | EZ45: 270 | FA45: 270 | FB45: 270 | FC45: 270 | FD45: 270 | FE45: 270 | FF45: 270 | FG45: 270 | FH45: 270 | FI45: 270 | FJ45: 270 | FK45: 270 | FL45: 270 | FM45: 270 | FN45: 270 | FO45: 270 | FP45: 270 | FQ45: 270
A46: 2002-01-01 | B46: terça-feira | C46: Confraternização Universal | F46: 438 | G46: 11 | H46: 2027-08-07 | I46: 270 | J46: 222.5533633 | K46: 222.5533633 | L46: 6.661022162 | M46: 2027-05-07 | S46: 11 | T46: 270 | U46: 209.2560034 | V46: 209.2560034 | W46: 209.9165987 | X46: 211.1252607 | Y46: 212.6465548 | Z46: 214.1795673 | AH46: 0 | AI46: 0 | AJ46: 0 | AK46: 0 | AL46: 0 | AM46: 0 | AN46: 0 | AO46: 0 | AP46: 0 | AQ46: 0 | AR46: 0 | AS46: 0 | AU46: 270 | AV46: 270 | AW46: 270 | AX46: 270 | AY46: 270 | AZ46: 270 | BA46: 270 | BB46: 270 | BC46: 270 | BD46: 270 | BE46: 270 | BF46: 270 | BH46: 346 | BI46: 11 | BJ46: 2027-05-07 | BK46: 270 | BL46: 270 | BM46: 270 | BN46: 270 | BO46: 2027-05-07 | BP46: 2027-05-07 | BR46: 281.0141666 | BS46: 270 | BT46: 270 | BU46: 270 | BY46: 270 | BZ46: 270 | CA46: 270 | CB46: 270 | CC46: 270 | CD46: 270 | CE46: 270 | CF46: 270 | CG46: 270 | CH46: 270 | CI46: 270 | CJ46: 270 | CK46: 270 | CL46: 270 | CM46: 270 | CN46: 270 | CO46: 270 | CP46: 270 | CQ46: 270 | CR46: 270 | CS46: 270 | CT46: 270 | CU46: 270 | CV46: 270 | CW46: 270 | CX46: 270 | CY46: 270 | CZ46: 270 | DA46: 270 | DB46: 270 | DC46: 270 | DD46: 270 | DE46: 270 | DF46: 270 | DG46: 270 | DH46: 270 | DI46: 270 | DJ46: 270 | DK46: 270 | DL46: 270 | DM46: 270 | DN46: 270 | DO46: 270 | DP46: 270 | DQ46: 270 | DR46: 270 | DS46: 270 | DT46: 270 | DU46: 270 | DV46: 270 | DW46: 270 | DX46: 270 | DY46: 270 | DZ46: 270 | EA46: 270 | EB46: 270 | EC46: 270 | ED46: 270 | EE46: 270 | EF46: 270 | EG46: 270 | EH46: 270 | EI46: 270 | EJ46: 270 | EK46: 270 | EL46: 270 | EM46: 270 | EN46: 270 | EO46: 270 | EP46: 270 | EQ46: 270 | ER46: 270 | ES46: 270 | ET46: 270 | EU46: 270 | EV46: 270 | EW46: 270 | EX46: 270 | EY46: 270 | EZ46: 270 | FA46: 270 | FB46: 270 | FC46: 270 | FD46: 270 | FE46: 270 | FF46: 270 | FG46: 270 | FH46: 270 | FI46: 270 | FJ46: 270 | FK46: 270 | FL46: 270 | FM46: 270 | FN46: 270 | FO46: 270 | FP46: 270 | FQ46: 270
A47: 2002-02-11 | B47: segunda-feira | C47: Carnaval | F47: 469 | G47: 12 | H47: 2027-09-07 | I47: 270 | J47: 218.7330746 | K47: 218.7330746 | L47: 6.546680922 | M47: 2027-06-07 | S47: 12 | T47: 270 | U47: 205.5152234 | V47: 205.5152234 | W47: 206.2100057 | X47: 207.4816184 | Y47: 209.0828782 | Z47: 210.6972929 | AH47: 0 | AI47: 0 | AJ47: 0 | AK47: 0 | AL47: 0 | AM47: 0 | AN47: 0 | AO47: 0 | AP47: 0 | AQ47: 0 | AR47: 0 | AS47: 0 | AU47: 270 | AV47: 270 | AW47: 270 | AX47: 270 | AY47: 270 | AZ47: 270 | BA47: 270 | BB47: 270 | BC47: 270 | BD47: 270 | BE47: 270 | BF47: 270 | BH47: 377 | BI47: 12 | BJ47: 2027-06-07 | BK47: 270 | BL47: 270 | BM47: 270 | BN47: 270 | BO47: 2027-06-07 | BP47: 2027-06-07 | BR47: 281.0141666 | BS47: 270 | BT47: 270 | BU47: 270 | BY47: 270 | BZ47: 270 | CA47: 270 | CB47: 270 | CC47: 270 | CD47: 270 | CE47: 270 | CF47: 270 | CG47: 270 | CH47: 270 | CI47: 270 | CJ47: 270 | CK47: 270 | CL47: 270 | CM47: 270 | CN47: 270 | CO47: 270 | CP47: 270 | CQ47: 270 | CR47: 270 | CS47: 270 | CT47: 270 | CU47: 270 | CV47: 270 | CW47: 270 | CX47: 270 | CY47: 270 | CZ47: 270 | DA47: 270 | DB47: 270 | DC47: 270 | DD47: 270 | DE47: 270 | DF47: 270 | DG47: 270 | DH47: 270 | DI47: 270 | DJ47: 270 | DK47: 270 | DL47: 270 | DM47: 270 | DN47: 270 | DO47: 270 | DP47: 270 | DQ47: 270 | DR47: 270 | DS47: 270 | DT47: 270 | DU47: 270 | DV47: 270 | DW47: 270 | DX47: 270 | DY47: 270 | DZ47: 270 | EA47: 270 | EB47: 270 | EC47: 270 | ED47: 270 | EE47: 270 | EF47: 270 | EG47: 270 | EH47: 270 | EI47: 270 | EJ47: 270 | EK47: 270 | EL47: 270 | EM47: 270 | EN47: 270 | EO47: 270 | EP47: 270 | EQ47: 270 | ER47: 270 | ES47: 270 | ET47: 270 | EU47: 270 | EV47: 270 | EW47: 270 | EX47: 270 | EY47: 270 | EZ47: 270 | FA47: 270 | FB47: 270 | FC47: 270 | FD47: 270 | FE47: 270 | FF47: 270 | FG47: 270 | FH47: 270 | FI47: 270 | FJ47: 270 | FK47: 270 | FL47: 270 | FM47: 270 | FN47: 270 | FO47: 270 | FP47: 270 | FQ47: 270
A48: 2002-02-12 | B48: terça-feira | C48: Carnaval | F48: 499 | G48: 13 | H48: 2027-10-07 | I48: 270 | J48: 215.0984716 | K48: 215.0984716 | L48: 6.437897254 | M48: 2027-07-07 | S48: 13 | T48: 270 | U48: 201.9587972 | V48: 201.9587972 | W48: 202.6853082 | X48: 204.0153968 | Y48: 205.6910331 | Z48: 207.3812665 | AH48: 0 | AI48: 0 | AJ48: 0 | AK48: 0 | AL48: 0 | AM48: 0 | AN48: 0 | AO48: 0 | AP48: 0 | AQ48: 0 | AR48: 0 | AS48: 0 | AU48: 270 | AV48: 270 | AW48: 270 | AX48: 270 | AY48: 270 | AZ48: 270 | BA48: 270 | BB48: 270 | BC48: 270 | BD48: 270 | BE48: 270 | BF48: 270 | BH48: 407 | BI48: 13 | BJ48: 2027-07-07 | BK48: 270 | BL48: 270 | BM48: 270 | BN48: 270 | BO48: 2027-07-07 | BP48: 2027-07-07 | BR48: 281.0141666 | BS48: 270 | BT48: 270 | BU48: 270 | BY48: 270 | BZ48: 270 | CA48: 270 | CB48: 270 | CC48: 270 | CD48: 270 | CE48: 270 | CF48: 270 | CG48: 270 | CH48: 270 | CI48: 270 | CJ48: 270 | CK48: 270 | CL48: 270 | CM48: 270 | CN48: 270 | CO48: 270 | CP48: 270 | CQ48: 270 | CR48: 270 | CS48: 270 | CT48: 270 | CU48: 270 | CV48: 270 | CW48: 270 | CX48: 270 | CY48: 270 | CZ48: 270 | DA48: 270 | DB48: 270 | DC48: 270 | DD48: 270 | DE48: 270 | DF48: 270 | DG48: 270 | DH48: 270 | DI48: 270 | DJ48: 270 | DK48: 270 | DL48: 270 | DM48: 270 | DN48: 270 | DO48: 270 | DP48: 270 | DQ48: 270 | DR48: 270 | DS48: 270 | DT48: 270 | DU48: 270 | DV48: 270 | DW48: 270 | DX48: 270 | DY48: 270 | DZ48: 270 | EA48: 270 | EB48: 270 | EC48: 270 | ED48: 270 | EE48: 270 | EF48: 270 | EG48: 270 | EH48: 270 | EI48: 270 | EJ48: 270 | EK48: 270 | EL48: 270 | EM48: 270 | EN48: 270 | EO48: 270 | EP48: 270 | EQ48: 270 | ER48: 270 | ES48: 270 | ET48: 270 | EU48: 270 | EV48: 270 | EW48: 270 | EX48: 270 | EY48: 270 | EZ48: 270 | FA48: 270 | FB48: 270 | FC48: 270 | FD48: 270 | FE48: 270 | FF48: 270 | FG48: 270 | FH48: 270 | FI48: 270 | FJ48: 270 | FK48: 270 | FL48: 270 | FM48: 270 | FN48: 270 | FO48: 270 | FP48: 270 | FQ48: 0
A49: 2002-03-29 | B49: sexta-feira | C49: Paixão de Cristo | F49: 530 | G49: 14 | H49: 2027-11-07 | I49: 270 | J49: 211.4061514 | K49: 211.4061514 | L49: 6.327386112 | M49: 2027-08-07 | S49: 14 | T49: 270 | U49: 198.3484662 | V49: 198.3484662 | W49: 199.1064013 | X49: 200.4944579 | Y49: 202.2439219 | Z49: 204.0095234 | AH49: 0 | AI49: 0 | AJ49: 0 | AK49: 0 | AL49: 0 | AM49: 0 | AN49: 0 | AO49: 0 | AP49: 0 | AQ49: 0 | AR49: 0 | AS49: 0 | AU49: 270 | AV49: 270 | AW49: 270 | AX49: 270 | AY49: 270 | AZ49: 270 | BA49: 270 | BB49: 270 | BC49: 270 | BD49: 270 | BE49: 270 | BF49: 270 | BH49: 438 | BI49: 14 | BJ49: 2027-08-07 | BK49: 270 | BL49: 270 | BM49: 270 | BN49: 270 | BO49: 2027-08-07 | BP49: 2027-08-07 | BR49: 281.0141666 | BS49: 270 | BT49: 270 | BU49: 270 | BY49: 270 | BZ49: 270 | CA49: 270 | CB49: 270 | CC49: 270 | CD49: 270 | CE49: 270 | CF49: 270 | CG49: 270 | CH49: 270 | CI49: 270 | CJ49: 270 | CK49: 270 | CL49: 270 | CM49: 270 | CN49: 270 | CO49: 270 | CP49: 270 | CQ49: 270 | CR49: 270 | CS49: 270 | CT49: 270 | CU49: 270 | CV49: 270 | CW49: 270 | CX49: 270 | CY49: 270 | CZ49: 270 | DA49: 270 | DB49: 270 | DC49: 270 | DD49: 270 | DE49: 270 | DF49: 270 | DG49: 270 | DH49: 270 | DI49: 270 | DJ49: 270 | DK49: 270 | DL49: 270 | DM49: 270 | DN49: 270 | DO49: 270 | DP49: 270 | DQ49: 270 | DR49: 270 | DS49: 270 | DT49: 270 | DU49: 270 | DV49: 270 | DW49: 270 | DX49: 270 | DY49: 270 | DZ49: 270 | EA49: 270 | EB49: 270 | EC49: 270 | ED49: 270 | EE49: 270 | EF49: 270 | EG49: 270 | EH49: 270 | EI49: 270 | EJ49: 270 | EK49: 270 | EL49: 270 | EM49: 270 | EN49: 270 | EO49: 270 | EP49: 270 | EQ49: 270 | ER49: 270 | ES49: 270 | ET49: 270 | EU49: 270 | EV49: 270 | EW49: 270 | EX49: 270 | EY49: 270 | EZ49: 270 | FA49: 270 | FB49: 270 | FC49: 270 | FD49: 270 | FE49: 270 | FF49: 270 | FG49: 270 | FH49: 270 | FI49: 270 | FJ49: 270 | FK49: 270 | FL49: 270 | FM49: 270 | FN49: 270 | FO49: 270 | FP49: 0 | FQ49: 0
A50: 2002-04-21 | B50: domingo | C50: Tiradentes | F50: 560 | G50: 15 | H50: 2027-12-07 | I50: 270 | J50: 207.7772126 | K50: 207.7772126 | L50: 6.218771975 | M50: 2027-09-07 | S50: 15 | T50: 270 | U50: 194.9160603 | V50: 194.9160603 | W50: 195.7031239 | X50: 197.144965 | Y50: 198.9630217 | Z50: 200.7987513 | AH50: 0 | AI50: 0 | AJ50: 0 | AK50: 0 | AL50: 0 | AM50: 0 | AN50: 0 | AO50: 0 | AP50: 0 | AQ50: 0 | AR50: 0 | AS50: 0 | AU50: 270 | AV50: 270 | AW50: 270 | AX50: 270 | AY50: 270 | AZ50: 270 | BA50: 270 | BB50: 270 | BC50: 270 | BD50: 270 | BE50: 270 | BF50: 270 | BH50: 469 | BI50: 15 | BJ50: 2027-09-07 | BK50: 270 | BL50: 270 | BM50: 270 | BN50: 270 | BO50: 2027-09-07 | BP50: 2027-09-07 | BR50: 281.0141666 | BS50: 270 | BT50: 270 | BU50: 270 | BY50: 270 | BZ50: 270 | CA50: 270 | CB50: 270 | CC50: 270 | CD50: 270 | CE50: 270 | CF50: 270 | CG50: 270 | CH50: 270 | CI50: 270 | CJ50: 270 | CK50: 270 | CL50: 270 | CM50: 270 | CN50: 270 | CO50: 270 | CP50: 270 | CQ50: 270 | CR50: 270 | CS50: 270 | CT50: 270 | CU50: 270 | CV50: 270 | CW50: 270 | CX50: 270 | CY50: 270 | CZ50: 270 | DA50: 270 | DB50: 270 | DC50: 270 | DD50: 270 | DE50: 270 | DF50: 270 | DG50: 270 | DH50: 270 | DI50: 270 | DJ50: 270 | DK50: 270 | DL50: 270 | DM50: 270 | DN50: 270 | DO50: 270 | DP50: 270 | DQ50: 270 | DR50: 270 | DS50: 270 | DT50: 270 | DU50: 270 | DV50: 270 | DW50: 270 | DX50: 270 | DY50: 270 | DZ50: 270 | EA50: 270 | EB50: 270 | EC50: =IF($G50>EC$33,0,$I$9) -> 270 | ED50: 270 | EE50: 270 | EF50: 270 | EG50: 270 | EH50: 270 | EI50: 270 | EJ50: 270 | EK50: 270 | EL50: 270 | EM50: 270 | EN50: 270 | EO50: 270 | EP50: 270 | EQ50: 270 | ER50: 270 | ES50: 270 | ET50: 270 | EU50: 270 | EV50: 270 | EW50: 270 | EX50: 270 | EY50: 270 | EZ50: 270 | FA50: 270 | FB50: =IF($G50>FB$33,0,$I$9) -> 270 | FC50: 270 | FD50: 270 | FE50: 270 | FF50: 270 | FG50: 270 | FH50: 270 | FI50: 270 | FJ50: 270 | FK50: 270 | FL50: 270 | FM50: 270 | FN50: 270 | FO50: 0 | FP50: 0 | FQ50: 0
A51: 2002-05-01 | B51: quarta-feira | C51: Dia do Trabalho | F51: 591 | G51: 16 | H51: 2028-01-07 | I51: 270 | J51: 204.324659 | K51: 204.324659 | L51: 6.115437043 | M51: 2027-10-07 | S51: 16 | T51: 270 | U51: 191.4316292 | V51: 191.4316292 | W51: 192.2475047 | X51: 193.7425974 | Y51: 195.6286632 | Z51: 197.5340312 | AH51: 0 | AI51: 0 | AJ51: 0 | AK51: 0 | AL51: 0 | AM51: 0 | AN51: 0 | AO51: 0 | AP51: 0 | AQ51: 0 | AR51: 0 | AS51: 0 | AU51: 270 | AV51: 270 | AW51: 270 | AX51: 270 | AY51: 270 | AZ51: 270 | BA51: 270 | BB51: 270 | BC51: 270 | BD51: 270 | BE51: 270 | BF51: 270 | BH51: 499 | BI51: 16 | BJ51: 2027-10-07 | BK51: 270 | BL51: 270 | BM51: 270 | BN51: 270 | BO51: 2027-10-07 | BP51: 2027-10-07 | BR51: 281.0141666 | BS51: 270 | BT51: 270 | BU51: 270 | BY51: 270 | BZ51: 270 | CA51: 270 | CB51: 270 | CC51: 270 | CD51: 270 | CE51: 270 | CF51: 270 | CG51: 270 | CH51: 270 | CI51: 270 | CJ51: 270 | CK51: 270 | CL51: 270 | CM51: 270 | CN51: 270 | CO51: =IF($G51>CO$33,0,$I$9) -> 270 | CP51: 270 | CQ51: 270 | CR51: 270 | CS51: 270 | CT51: 270 | CU51: 270 | CV51: 270 | CW51: 270 | CX51: 270 | CY51: 270 | CZ51: 270 | DA51: 270 | DB51: 270 | DC51: 270 | DD51: 270 | DE51: 270 | DF51: 270 | DG51: 270 | DH51: 270 | DI51: 270 | DJ51: 270 | DK51: 270 | DL51: 270 | DM51: 270 | DN51: 270 | DO51: 270 | DP51: 270 | DQ51: 270 | DR51: 270 | DS51: 270 | DT51: 270 | DU51: 270 | DV51: 270 | DW51: 270 | DX51: 270 | DY51: 270 | DZ51: 270 | EA51: 270 | EB51: 270 | EC51: 270 | ED51: 270 | EE51: 270 | EF51: 270 | EG51: 270 | EH51: 270 | EI51: 270 | EJ51: 270 | EK51: 270 | EL51: 270 | EM51: 270 | EN51: 270 | EO51: 270 | EP51: 270 | EQ51: 270 | ER51: 270 | ES51: 270 | ET51: 270 | EU51: 270 | EV51: 270 | EW51: 270 | EX51: 270 | EY51: 270 | EZ51: 270 | FA51: 270 | FB51: 270 | FC51: 270 | FD51: 270 | FE51: 270 | FF51: 270 | FG51: 270 | FH51: 270 | FI51: 270 | FJ51: 270 | FK51: 270 | FL51: 270 | FM51: 270 | FN51: 0 | FO51: 0 | FP51: 0 | FQ51: 0
A52: 2002-05-30 | B52: quinta-feira | C52: Corpus Christi | F52: 622 | G52: 17 | H52: 2028-02-07 | I52: 270 | J52: 200.8172791 | K52: 200.8172791 | L52: 6.010461163 | M52: 2027-11-07 | S52: 17 | T52: 270 | U52: =$T52/((U$29)^($H52-$H$35)) -> 188.0094879 | V52: 188.0094879 | W52: 188.8529028 | X52: 190.3989486 | Y52: 192.3501841 | Z52: 194.322391 | AE52: =$T52/((AE$29)^($H52-$H$35)) ->  | AH52: 0 | AI52: 0 | AJ52: 0 | AK52: 0 | AL52: 0 | AM52: 0 | AN52: 0 | AO52: 0 | AP52: 0 | AQ52: 0 | AR52: 0 | AS52: 0 | AU52: =$T52 -> 270 | AV52: 270 | AW52: 270 | AX52: 270 | AY52: 270 | AZ52: 270 | BA52: 270 | BB52: 270 | BC52: 270 | BD52: 270 | BE52: 270 | BF52: 270 | BH52: 530 | BI52: 17 | BJ52: 2027-11-07 | BK52: 270 | BL52: 270 | BM52: 270 | BN52: 270 | BO52: 2027-11-07 | BP52: 2027-11-07 | BR52: 281.0141666 | BS52: 270 | BT52: 270 | BU52: 270 | BY52: 270 | BZ52: =IF($G52>BZ$33,0,$I$9) -> 270 | CA52: 270 | CB52: 270 | CC52: 270 | CD52: 270 | CE52: 270 | CF52: 270 | CG52: 270 | CH52: 270 | CI52: 270 | CJ52: 270 | CK52: 270 | CL52: 270 | CM52: 270 | CN52: 270 | CO52: 270 | CP52: 270 | CQ52: 270 | CR52: 270 | CS52: 270 | CT52: 270 | CU52: 270 | CV52: 270 | CW52: 270 | CX52: 270 | CY52: 270 | CZ52: 270 | DA52: 270 | DB52: 270 | DC52: 270 | DD52: 270 | DE52: 270 | DF52: 270 | DG52: 270 | DH52: 270 | DI52: 270 | DJ52: 270 | DK52: 270 | DL52: 270 | DM52: 270 | DN52: 270 | DO52: 270 | DP52: 270 | DQ52: 270 | DR52: 270 | DS52: 270 | DT52: 270 | DU52: 270 | DV52: 270 | DW52: 270 | DX52: 270 | DY52: 270 | DZ52: 270 | EA52: 270 | EB52: 270 | EC52: 270 | ED52: 270 | EE52: 270 | EF52: 270 | EG52: 270 | EH52: 270 | EI52: 270 | EJ52: 270 | EK52: 270 | EL52: 270 | EM52: 270 | EN52: 270 | EO52: 270 | EP52: 270 | EQ52: 270 | ER52: 270 | ES52: 270 | ET52: 270 | EU52: 270 | EV52: 270 | EW52: 270 | EX52: 270 | EY52: 270 | EZ52: 270 | FA52: 270 | FB52: 270 | FC52: 270 | FD52: 270 | FE52: 270 | FF52: 270 | FG52: 270 | FH52: 270 | FI52: 270 | FJ52: 270 | FK52: 270 | FL52: 270 | FM52: 0 | FN52: 0 | FO52: 0 | FP52: 0 | FQ52: 0
A53: 2002-09-07 | B53: sábado | C53: Independência do Brasil | F53: 651 | G53: 18 | H53: 2028-03-07 | I53: 270 | J53: 197.4803759 | K53: 197.4803759 | L53: 5.910587652 | M53: 2027-12-07 | S53: 18 | T53: 270 | U53: 184.8635344 | V53: 184.8635344 | W53: 185.7315924 | X53: 187.3232796 | Y53: 189.3329781 | Z53: 191.3652424 | AH53: 0 | AI53: 0 | AJ53: 0 | AK53: 0 | AL53: 0 | AM53: 0 | AN53: 0 | AO53: 0 | AP53: 0 | AQ53: 0 | AR53: 0 | AS53: 0 | AU53: 270 | AV53: 270 | AW53: 270 | AX53: 270 | AY53: 270 | AZ53: 270 | BA53: 270 | BB53: 270 | BC53: 270 | BD53: 270 | BE53: 270 | BF53: 270 | BH53: 560 | BI53: 18 | BJ53: 2027-12-07 | BK53: 270 | BL53: 270 | BM53: 270 | BN53: 270 | BO53: 2027-12-07 | BP53: 2027-12-07 | BR53: 281.0141666 | BS53: 270 | BT53: 270 | BU53: 270 | BY53: =IF($G53>BY$33,0,$I$9) -> 270 | BZ53: 270 | CA53: 270 | CB53: 270 | CC53: 270 | CD53: 270 | CE53: 270 | CF53: 270 | CG53: 270 | CH53: 270 | CI53: 270 | CJ53: 270 | CK53: 270 | CL53: 270 | CM53: 270 | CN53: 270 | CO53: 270 | CP53: 270 | CQ53: 270 | CR53: 270 | CS53: 270 | CT53: 270 | CU53: 270 | CV53: 270 | CW53: 270 | CX53: 270 | CY53: 270 | CZ53: 270 | DA53: 270 | DB53: 270 | DC53: 270 | DD53: 270 | DE53: 270 | DF53: 270 | DG53: 270 | DH53: 270 | DI53: 270 | DJ53: 270 | DK53: 270 | DL53: 270 | DM53: 270 | DN53: 270 | DO53: 270 | DP53: 270 | DQ53: 270 | DR53: 270 | DS53: 270 | DT53: 270 | DU53: 270 | DV53: 270 | DW53: 270 | DX53: 270 | DY53: 270 | DZ53: 270 | EA53: 270 | EB53: 270 | EC53: 270 | ED53: 270 | EE53: 270 | EF53: 270 | EG53: 270 | EH53: 270 | EI53: 270 | EJ53: 270 | EK53: 270 | EL53: 270 | EM53: 270 | EN53: 270 | EO53: 270 | EP53: 270 | EQ53: 270 | ER53: 270 | ES53: 270 | ET53: 270 | EU53: 270 | EV53: 270 | EW53: 270 | EX53: 270 | EY53: 270 | EZ53: 270 | FA53: 270 | FB53: 270 | FC53: 270 | FD53: 270 | FE53: 270 | FF53: 270 | FG53: 270 | FH53: 270 | FI53: 270 | FJ53: 270 | FK53: 270 | FL53: 0 | FM53: 0 | FN53: 0 | FO53: 0 | FP53: 0 | FQ53: 0
A54: 2002-10-12 | B54: sábado | C54: Nossa Sr.a Aparecida - Padroeira do Brasil | F54: 682 | G54: 19 | H54: 2028-04-07 | I54: 270 | J54: 194.0904831 | K54: 194.0904831 | L54: 5.80912816 | M54: 2028-01-07 | S54: 19 | T54: 270 | U54: 181.5588081 | V54: 181.5588081 | W54: 182.452045 | X54: 184.0904167 | Y54: 186.1600065 | Z54: 188.2538985 | AH54: 0 | AI54: 0 | AJ54: 0 | AK54: 0 | AL54: 0 | AM54: 0 | AN54: 0 | AO54: 0 | AP54: 0 | AQ54: 0 | AR54: 0 | AS54: 0 | AU54: 270 | AV54: 270 | AW54: 270 | AX54: 270 | AY54: 270 | AZ54: 270 | BA54: 270 | BB54: 270 | BC54: 270 | BD54: 270 | BE54: 270 | BF54: 270 | BH54: 591 | BI54: 19 | BJ54: 2028-01-07 | BK54: 270 | BL54: 270 | BM54: 270 | BN54: 270 | BO54: 2028-01-07 | BP54: 2028-01-07 | BR54: 281.0141666 | BS54: 270 | BT54: 270 | BU54: 270 | BY54: 270 | BZ54: 270 | CA54: 270 | CB54: 270 | CC54: 270 | CD54: 270 | CE54: 270 | CF54: 270 | CG54: 270 | CH54: 270 | CI54: 270 | CJ54: 270 | CK54: 270 | CL54: 270 | CM54: 270 | CN54: 270 | CO54: 270 | CP54: 270 | CQ54: 270 | CR54: 270 | CS54: 270 | CT54: 270 | CU54: 270 | CV54: 270 | CW54: 270 | CX54: 270 | CY54: 270 | CZ54: 270 | DA54: 270 | DB54: 270 | DC54: 270 | DD54: 270 | DE54: 270 | DF54: 270 | DG54: 270 | DH54: 270 | DI54: 270 | DJ54: 270 | DK54: 270 | DL54: 270 | DM54: 270 | DN54: 270 | DO54: 270 | DP54: 270 | DQ54: 270 | DR54: 270 | DS54: 270 | DT54: 270 | DU54: 270 | DV54: 270 | DW54: 270 | DX54: 270 | DY54: 270 | DZ54: 270 | EA54: 270 | EB54: 270 | EC54: 270 | ED54: 270 | EE54: 270 | EF54: 270 | EG54: 270 | EH54: 270 | EI54: 270 | EJ54: 270 | EK54: 270 | EL54: 270 | EM54: 270 | EN54: 270 | EO54: 270 | EP54: 270 | EQ54: 270 | ER54: 270 | ES54: 270 | ET54: 270 | EU54: 270 | EV54: 270 | EW54: 270 | EX54: 270 | EY54: 270 | EZ54: 270 | FA54: 270 | FB54: 270 | FC54: 270 | FD54: 270 | FE54: 270 | FF54: 270 | FG54: 270 | FH54: 270 | FI54: 270 | FJ54: 270 | FK54: 0 | FL54: 0 | FM54: 0 | FN54: 0 | FO54: 0 | FP54: 0 | FQ54: 0
A55: 2002-11-02 | B55: sábado | C55: Finados | F55: 712 | G55: 20 | H55: 2028-05-07 | I55: 270 | J55: 190.7587802 | K55: 190.7587802 | L55: 5.709410293 | M55: 2028-02-07 | S55: 20 | T55: 270 | U55: 178.416946 | V55: 178.416946 | W55: 179.3334365 | X55: 181.0149723 | Y55: 183.1400274 | Z55: 185.291094 | AH55: 0 | AI55: 0 | AJ55: 0 | AK55: 0 | AL55: 0 | AM55: 0 | AN55: 0 | AO55: 0 | AP55: 0 | AQ55: 0 | AR55: 0 | AS55: 0 | AU55: 270 | AV55: 270 | AW55: 270 | AX55: 270 | AY55: 270 | AZ55: 270 | BA55: 270 | BB55: 270 | BC55: 270 | BD55: 270 | BE55: 270 | BF55: 270 | BH55: 622 | BI55: 20 | BJ55: 2028-02-07 | BK55: 270 | BL55: 270 | BM55: 270 | BN55: 270 | BO55: 2028-02-07 | BP55: 2028-02-07 | BR55: 281.0141666 | BS55: 270 | BT55: 270 | BU55: 270 | BY55: 270 | BZ55: 270 | CA55: 270 | CB55: 270 | CC55: 270 | CD55: 270 | CE55: 270 | CF55: 270 | CG55: 270 | CH55: 270 | CI55: 270 | CJ55: 270 | CK55: 270 | CL55: 270 | CM55: 270 | CN55: 270 | CO55: 270 | CP55: 270 | CQ55: 270 | CR55: 270 | CS55: 270 | CT55: 270 | CU55: 270 | CV55: 270 | CW55: 270 | CX55: 270 | CY55: 270 | CZ55: 270 | DA55: 270 | DB55: 270 | DC55: 270 | DD55: 270 | DE55: 270 | DF55: 270 | DG55: 270 | DH55: 270 | DI55: 270 | DJ55: 270 | DK55: 270 | DL55: 270 | DM55: 270 | DN55: 270 | DO55: 270 | DP55: 270 | DQ55: 270 | DR55: 270 | DS55: 270 | DT55: 270 | DU55: 270 | DV55: 270 | DW55: 270 | DX55: 270 | DY55: 270 | DZ55: =IF($G55>DZ$33,0,$I$9) -> 270 | EA55: 270 | EB55: 270 | EC55: 270 | ED55: 270 | EE55: 270 | EF55: 270 | EG55: 270 | EH55: 270 | EI55: 270 | EJ55: 270 | EK55: 270 | EL55: 270 | EM55: 270 | EN55: 270 | EO55: 270 | EP55: 270 | EQ55: 270 | ER55: 270 | ES55: 270 | ET55: 270 | EU55: 270 | EV55: 270 | EW55: 270 | EX55: 270 | EY55: 270 | EZ55: 270 | FA55: 270 | FB55: 270 | FC55: 270 | FD55: 270 | FE55: 270 | FF55: 270 | FG55: 270 | FH55: 270 | FI55: 270 | FJ55: 0 | FK55: 0 | FL55: 0 | FM55: 0 | FN55: 0 | FO55: 0 | FP55: 0 | FQ55: 0
A56: 2002-11-15 | B56: sexta-feira | C56: Proclamação da República | F56: 743 | G56: 21 | H56: 2028-06-07 | I56: 270 | J56: 187.6938206 | K56: 187.6938206 | L56: 5.617676051 | M56: 2028-03-07 | S56: 21 | T56: 270 | U56: 175.2274625 | V56: 175.2274625 | W56: 176.1668643 | X56: 177.8909794 | Y56: 180.0708415 | Z56: 182.2785076 | AH56: 0 | AI56: 0 | AJ56: 0 | AK56: 0 | AL56: 0 | AM56: 0 | AN56: 0 | AO56: 0 | AP56: 0 | AQ56: 0 | AR56: 0 | AS56: 0 | AU56: 270 | AV56: 270 | AW56: 270 | AX56: 270 | AY56: 270 | AZ56: 270 | BA56: 270 | BB56: 270 | BC56: 270 | BD56: 270 | BE56: 270 | BF56: 270 | BH56: 651 | BI56: 21 | BJ56: 2028-03-07 | BK56: 270 | BL56: 270 | BM56: 270 | BN56: 270 | BO56: 2028-03-07 | BP56: 2028-03-07 | BR56: 281.0141666 | BS56: 270 | BT56: 270 | BU56: 270 | BY56: 270 | BZ56: 270 | CA56: 270 | CB56: 270 | CC56: 270 | CD56: 270 | CE56: 270 | CF56: 270 | CG56: 270 | CH56: 270 | CI56: 270 | CJ56: 270 | CK56: 270 | CL56: 270 | CM56: 270 | CN56: 270 | CO56: 270 | CP56: 270 | CQ56: 270 | CR56: 270 | CS56: 270 | CT56: 270 | CU56: 270 | CV56: 270 | CW56: 270 | CX56: 270 | CY56: 270 | CZ56: 270 | DA56: 270 | DB56: 270 | DC56: 270 | DD56: 270 | DE56: 270 | DF56: 270 | DG56: 270 | DH56: 270 | DI56: 270 | DJ56: 270 | DK56: 270 | DL56: 270 | DM56: 270 | DN56: 270 | DO56: 270 | DP56: 270 | DQ56: 270 | DR56: 270 | DS56: 270 | DT56: 270 | DU56: 270 | DV56: 270 | DW56: 270 | DX56: 270 | DY56: 270 | DZ56: 270 | EA56: 270 | EB56: 270 | EC56: 270 | ED56: 270 | EE56: 270 | EF56: 270 | EG56: 270 | EH56: 270 | EI56: 270 | EJ56: 270 | EK56: 270 | EL56: 270 | EM56: 270 | EN56: 270 | EO56: 270 | EP56: 270 | EQ56: 270 | ER56: 270 | ES56: 270 | ET56: 270 | EU56: 270 | EV56: 270 | EW56: 270 | EX56: 270 | EY56: 270 | EZ56: 270 | FA56: 270 | FB56: 270 | FC56: 270 | FD56: 270 | FE56: 270 | FF56: 270 | FG56: 270 | FH56: 270 | FI56: 0 | FJ56: 0 | FK56: 0 | FL56: 0 | FM56: 0 | FN56: 0 | FO56: 0 | FP56: 0 | FQ56: 0
A57: 2002-12-25 | B57: quarta-feira | C57: Natal | F57: 773 | G57: 22 | H57: 2028-07-07 | I57: 270 | J57: 184.4719211 | K57: 184.4719211 | L57: 5.521244598 | M57: 2028-04-07 | S57: 22 | T57: 270 | U57: 172.1951639 | V57: 172.1951639 | W57: 173.1556869 | X57: 174.9191039 | Y57: 177.1496438 | Z57: 179.4097458 | AH57: 0 | AI57: 0 | AJ57: 0 | AK57: 0 | AL57: 0 | AM57: 0 | AN57: 0 | AO57: 0 | AP57: 0 | AQ57: 0 | AR57: 0 | AS57: 0 | AU57: 270 | AV57: 270 | AW57: 270 | AX57: 270 | AY57: 270 | AZ57: 270 | BA57: 270 | BB57: 270 | BC57: 270 | BD57: 270 | BE57: 270 | BF57: 270 | BH57: 682 | BI57: 22 | BJ57: 2028-04-07 | BK57: 270 | BL57: 270 | BM57: 270 | BN57: 270 | BO57: 2028-04-07 | BP57: 2028-04-07 | BR57: 281.0141666 | BS57: 270 | BT57: 270 | BU57: 270 | BY57: 270 | BZ57: 270 | CA57: 270 | CB57: 270 | CC57: 270 | CD57: 270 | CE57: 270 | CF57: 270 | CG57: 270 | CH57: 270 | CI57: 270 | CJ57: 270 | CK57: 270 | CL57: 270 | CM57: 270 | CN57: 270 | CO57: 270 | CP57: 270 | CQ57: 270 | CR57: 270 | CS57: 270 | CT57: 270 | CU57: 270 | CV57: 270 | CW57: 270 | CX57: 270 | CY57: 270 | CZ57: 270 | DA57: 270 | DB57: 270 | DC57: 270 | DD57: 270 | DE57: 270 | DF57: 270 | DG57: 270 | DH57: 270 | DI57: 270 | DJ57: 270 | DK57: 270 | DL57: 270 | DM57: 270 | DN57: 270 | DO57: 270 | DP57: 270 | DQ57: 270 | DR57: 270 | DS57: 270 | DT57: 270 | DU57: 270 | DV57: 270 | DW57: 270 | DX57: 270 | DY57: 270 | DZ57: 270 | EA57: 270 | EB57: 270 | EC57: 270 | ED57: 270 | EE57: 270 | EF57: 270 | EG57: 270 | EH57: 270 | EI57: 270 | EJ57: 270 | EK57: 270 | EL57: 270 | EM57: 270 | EN57: 270 | EO57: 270 | EP57: 270 | EQ57: 270 | ER57: 270 | ES57: 270 | ET57: 270 | EU57: 270 | EV57: 270 | EW57: 270 | EX57: 270 | EY57: 270 | EZ57: 270 | FA57: 270 | FB57: 270 | FC57: 270 | FD57: 270 | FE57: 270 | FF57: 270 | FG57: 270 | FH57: 0 | FI57: 0 | FJ57: 0 | FK57: 0 | FL57: 0 | FM57: 0 | FN57: 0 | FO57: 0 | FP57: 0 | FQ57: 0
A58: 2003-01-01 | B58: quarta-feira | C58: Confraternização Universal | F58: 804 | G58: 23 | H58: 2028-08-07 | I58: 270 | J58: 181.4066224 | K58: 181.4066224 | L58: 5.429500209 | M58: 2028-05-07 | S58: 23 | T58: 270 | U58: 169.1169046 | V58: 169.1169046 | W58: 170.098198 | X58: 171.9003147 | Y58: 174.1808488 | Z58: 176.4927824 | AH58: 0 | AI58: 0 | AJ58: 0 | AK58: 0 | AL58: 0 | AM58: 0 | AN58: 0 | AO58: 0 | AP58: 0 | AQ58: 0 | AR58: 0 | AS58: 0 | AU58: 270 | AV58: 270 | AW58: 270 | AX58: 270 | AY58: 270 | AZ58: 270 | BA58: 270 | BB58: 270 | BC58: 270 | BD58: 270 | BE58: 270 | BF58: 270 | BH58: 712 | BI58: 23 | BJ58: 2028-05-07 | BK58: 270 | BL58: 270 | BM58: 270 | BN58: 270 | BO58: 2028-05-07 | BP58: 2028-05-07 | BR58: 281.0141666 | BS58: 270 | BT58: 270 | BU58: 270 | BY58: 270 | BZ58: 270 | CA58: 270 | CB58: 270 | CC58: 270 | CD58: 270 | CE58: 270 | CF58: 270 | CG58: 270 | CH58: 270 | CI58: 270 | CJ58: 270 | CK58: 270 | CL58: 270 | CM58: 270 | CN58: 270 | CO58: 270 | CP58: 270 | CQ58: 270 | CR58: 270 | CS58: 270 | CT58: 270 | CU58: 270 | CV58: 270 | CW58: 270 | CX58: 270 | CY58: 270 | CZ58: 270 | DA58: 270 | DB58: 270 | DC58: 270 | DD58: 270 | DE58: 270 | DF58: 270 | DG58: 270 | DH58: 270 | DI58: 270 | DJ58: 270 | DK58: 270 | DL58: 270 | DM58: 270 | DN58: 270 | DO58: 270 | DP58: 270 | DQ58: 270 | DR58: 270 | DS58: 270 | DT58: 270 | DU58: 270 | DV58: 270 | DW58: 270 | DX58: 270 | DY58: 270 | DZ58: 270 | EA58: 270 | EB58: 270 | EC58: 270 | ED58: 270 | EE58: 270 | EF58: 270 | EG58: 270 | EH58: 270 | EI58: 270 | EJ58: 270 | EK58: 270 | EL58: 270 | EM58: 270 | EN58: 270 | EO58: 270 | EP58: 270 | EQ58: 270 | ER58: 270 | ES58: 270 | ET58: 270 | EU58: 270 | EV58: 270 | EW58: 270 | EX58: 270 | EY58: 270 | EZ58: 270 | FA58: 270 | FB58: 270 | FC58: 270 | FD58: 270 | FE58: 270 | FF58: 270 | FG58: 0 | FH58: 0 | FI58: 0 | FJ58: 0 | FK58: 0 | FL58: 0 | FM58: 0 | FN58: 0 | FO58: 0 | FP58: 0 | FQ58: 0
A59: 2003-03-03 | B59: segunda-feira | C59: Carnaval | F59: 835 | G59: 24 | H59: 2028-09-07 | I59: 270 | J59: 178.2926471 | K59: 178.2926471 | L59: 5.336298929 | M59: 2028-06-07 | S59: 24 | T59: 270 | U59: 166.093674 | V59: 166.093674 | W59: 167.0946966 | X59: 168.9336244 | Y59: 171.2618069 | Z59: 173.6232449 | AH59: 0 | AI59: 0 | AJ59: 0 | AK59: 0 | AL59: 0 | AM59: 0 | AN59: 0 | AO59: 0 | AP59: 0 | AQ59: 0 | AR59: 0 | AS59: 0 | AU59: 270 | AV59: 270 | AW59: 270 | AX59: 270 | AY59: 270 | AZ59: 270 | BA59: 270 | BB59: 270 | BC59: 270 | BD59: 270 | BE59: 270 | BF59: 270 | BH59: 743 | BI59: 24 | BJ59: 2028-06-07 | BK59: 270 | BL59: 270 | BM59: 270 | BN59: 270 | BO59: 2028-06-07 | BP59: 2028-06-07 | BR59: 281.0141666 | BS59: 270 | BT59: 270 | BU59: 270 | BY59: 270 | BZ59: 270 | CA59: 270 | CB59: 270 | CC59: 270 | CD59: 270 | CE59: 270 | CF59: 270 | CG59: 270 | CH59: 270 | CI59: 270 | CJ59: 270 | CK59: 270 | CL59: 270 | CM59: 270 | CN59: 270 | CO59: 270 | CP59: 270 | CQ59: 270 | CR59: 270 | CS59: 270 | CT59: 270 | CU59: 270 | CV59: 270 | CW59: 270 | CX59: 270 | CY59: 270 | CZ59: 270 | DA59: 270 | DB59: 270 | DC59: 270 | DD59: 270 | DE59: 270 | DF59: 270 | DG59: 270 | DH59: 270 | DI59: 270 | DJ59: 270 | DK59: 270 | DL59: 270 | DM59: 270 | DN59: 270 | DO59: 270 | DP59: 270 | DQ59: 270 | DR59: 270 | DS59: 270 | DT59: 270 | DU59: 270 | DV59: 270 | DW59: 270 | DX59: 270 | DY59: 270 | DZ59: 270 | EA59: 270 | EB59: 270 | EC59: 270 | ED59: 270 | EE59: 270 | EF59: 270 | EG59: 270 | EH59: 270 | EI59: 270 | EJ59: 270 | EK59: 270 | EL59: 270 | EM59: 270 | EN59: 270 | EO59: 270 | EP59: 270 | EQ59: 270 | ER59: 270 | ES59: 270 | ET59: 270 | EU59: 270 | EV59: 270 | EW59: 270 | EX59: 270 | EY59: 270 | EZ59: 270 | FA59: 270 | FB59: 270 | FC59: 270 | FD59: 270 | FE59: 270 | FF59: 0 | FG59: 0 | FH59: 0 | FI59: 0 | FJ59: 0 | FK59: 0 | FL59: 0 | FM59: 0 | FN59: 0 | FO59: 0 | FP59: 0 | FQ59: 0
A60: 2003-03-04 | B60: terça-feira | C60: Carnaval | F60: 865 | G60: 25 | H60: 2028-10-07 | I60: 270 | J60: 175.3300271 | K60: 175.3300271 | L60: 5.247627711 | M60: 2028-07-07 | S60: 25 | T60: 270 | U60: 163.219435 | V60: 163.219435 | W60: 164.2385875 | X60: 166.1113919 | Y60: 168.4835138 | Z60: 170.8907025 | AH60: 0 | AI60: 0 | AJ60: 0 | AK60: 0 | AL60: 0 | AM60: 0 | AN60: 0 | AO60: 0 | AP60: 0 | AQ60: 0 | AR60: 0 | AS60: 0 | AU60: 270 | AV60: 270 | AW60: 270 | AX60: 270 | AY60: 270 | AZ60: 270 | BA60: 270 | BB60: 270 | BC60: 270 | BD60: 270 | BE60: 270 | BF60: 270 | BH60: 773 | BI60: 25 | BJ60: 2028-07-07 | BK60: 270 | BL60: 270 | BM60: 270 | BN60: 270 | BO60: 2028-07-07 | BP60: 2028-07-07 | BR60: 281.0141666 | BS60: 270 | BT60: 270 | BU60: 270 | BY60: 270 | BZ60: 270 | CA60: 270 | CB60: 270 | CC60: 270 | CD60: 270 | CE60: 270 | CF60: 270 | CG60: 270 | CH60: 270 | CI60: 270 | CJ60: 270 | CK60: 270 | CL60: 270 | CM60: 270 | CN60: 270 | CO60: 270 | CP60: 270 | CQ60: 270 | CR60: 270 | CS60: 270 | CT60: 270 | CU60: 270 | CV60: 270 | CW60: 270 | CX60: 270 | CY60: 270 | CZ60: 270 | DA60: 270 | DB60: 270 | DC60: 270 | DD60: 270 | DE60: 270 | DF60: 270 | DG60: 270 | DH60: 270 | DI60: 270 | DJ60: 270 | DK60: 270 | DL60: 270 | DM60: 270 | DN60: 270 | DO60: 270 | DP60: =IF($G60>DP$33,0,$I$9) -> 270 | DQ60: 270 | DR60: 270 | DS60: 270 | DT60: 270 | DU60: 270 | DV60: 270 | DW60: 270 | DX60: 270 | DY60: 270 | DZ60: 270 | EA60: 270 | EB60: 270 | EC60: 270 | ED60: 270 | EE60: 270 | EF60: 270 | EG60: 270 | EH60: 270 | EI60: 270 | EJ60: 270 | EK60: 270 | EL60: 270 | EM60: 270 | EN60: 270 | EO60: 270 | EP60: 270 | EQ60: 270 | ER60: 270 | ES60: 270 | ET60: 270 | EU60: 270 | EV60: 270 | EW60: 270 | EX60: 270 | EY60: 270 | EZ60: 270 | FA60: 270 | FB60: 270 | FC60: 270 | FD60: 270 | FE60: 0 | FF60: 0 | FG60: 0 | FH60: 0 | FI60: 0 | FJ60: 0 | FK60: 0 | FL60: 0 | FM60: 0 | FN60: 0 | FO60: 0 | FP60: 0 | FQ60: 0
A61: 2003-04-18 | B61: sexta-feira | C61: Paixão de Cristo | F61: 896 | G61: 26 | H61: 2028-11-07 | I61: 270 | J61: 172.320361 | K61: 172.320361 | L61: 5.157548403 | M61: 2028-08-07 | S61: 26 | T61: 270 | U61: 160.301631 | V61: 160.301631 | W61: 161.3385519 | X61: 163.244608 | Y61: 165.6599517 | Z61: 168.1122474 | AH61: 0 | AI61: 0 | AJ61: 0 | AK61: 0 | AL61: 0 | AM61: 0 | AN61: 0 | AO61: 0 | AP61: 0 | AQ61: 0 | AR61: 0 | AS61: 0 | AU61: 270 | AV61: 270 | AW61: 270 | AX61: 270 | AY61: 270 | AZ61: 270 | BA61: 270 | BB61: 270 | BC61: 270 | BD61: 270 | BE61: 270 | BF61: 270 | BH61: 804 | BI61: 26 | BJ61: 2028-08-07 | BK61: 270 | BL61: 270 | BM61: 270 | BN61: 270 | BO61: 2028-08-07 | BP61: 2028-08-07 | BR61: 281.0141666 | BS61: 270 | BT61: 270 | BU61: 270 | BY61: 270 | BZ61: 270 | CA61: 270 | CB61: 270 | CC61: 270 | CD61: 270 | CE61: 270 | CF61: 270 | CG61: 270 | CH61: 270 | CI61: 270 | CJ61: 270 | CK61: 270 | CL61: 270 | CM61: 270 | CN61: 270 | CO61: 270 | CP61: 270 | CQ61: 270 | CR61: 270 | CS61: 270 | CT61: 270 | CU61: 270 | CV61: 270 | CW61: 270 | CX61: 270 | CY61: 270 | CZ61: 270 | DA61: 270 | DB61: 270 | DC61: 270 | DD61: 270 | DE61: 270 | DF61: 270 | DG61: 270 | DH61: 270 | DI61: 270 | DJ61: 270 | DK61: 270 | DL61: 270 | DM61: 270 | DN61: 270 | DO61: 270 | DP61: 270 | DQ61: 270 | DR61: 270 | DS61: 270 | DT61: 270 | DU61: 270 | DV61: 270 | DW61: 270 | DX61: 270 | DY61: 270 | DZ61: 270 | EA61: 270 | EB61: 270 | EC61: 270 | ED61: 270 | EE61: 270 | EF61: 270 | EG61: 270 | EH61: 270 | EI61: 270 | EJ61: 270 | EK61: 270 | EL61: 270 | EM61: 270 | EN61: 270 | EO61: 270 | EP61: 270 | EQ61: 270 | ER61: 270 | ES61: 270 | ET61: 270 | EU61: 270 | EV61: 270 | EW61: 270 | EX61: 270 | EY61: 270 | EZ61: 270 | FA61: 270 | FB61: 270 | FC61: 270 | FD61: 0 | FE61: 0 | FF61: 0 | FG61: 0 | FH61: 0 | FI61: 0 | FJ61: 0 | FK61: 0 | FL61: 0 | FM61: 0 | FN61: 0 | FO61: 0 | FP61: 0 | FQ61: 0
A62: 2003-04-21 | B62: segunda-feira | C62: Tiradentes | F62: 926 | G62: 27 | H62: 2028-12-07 | I62: 270 | J62: 169.3623579 | K62: 169.3623579 | L62: 5.069015372 | M62: 2028-09-07 | S62: 27 | T62: 270 | U62: 157.5276228 | V62: 157.5276228 | W62: 158.5808313 | X62: 160.517417 | Y62: 162.9725346 | Z62: 165.466439 | AB62: =$T62/((AB$29)^($H62-$H$35)) ->  | AH62: 0 | AI62: 0 | AJ62: 0 | AK62: 0 | AL62: 0 | AM62: 0 | AN62: 0 | AO62: 0 | AP62: 0 | AQ62: 0 | AR62: 0 | AS62: 0 | AU62: 270 | AV62: 270 | AW62: 270 | AX62: 270 | AY62: 270 | AZ62: 270 | BA62: 270 | BB62: 270 | BC62: 270 | BD62: 270 | BE62: 270 | BF62: 270 | BH62: 835 | BI62: 27 | BJ62: 2028-09-07 | BK62: 270 | BL62: 270 | BM62: 270 | BN62: 270 | BO62: 2028-09-07 | BP62: 2028-09-07 | BR62: 281.0141666 | BS62: 270 | BT62: 270 | BU62: 270 | BY62: 270 | BZ62: 270 | CA62: 270 | CB62: 270 | CC62: 270 | CD62: 270 | CE62: 270 | CF62: 270 | CG62: 270 | CH62: 270 | CI62: 270 | CJ62: 270 | CK62: 270 | CL62: 270 | CM62: 270 | CN62: 270 | CO62: 270 | CP62: 270 | CQ62: 270 | CR62: 270 | CS62: 270 | CT62: 270 | CU62: 270 | CV62: 270 | CW62: 270 | CX62: 270 | CY62: 270 | CZ62: 270 | DA62: 270 | DB62: 270 | DC62: 270 | DD62: 270 | DE62: 270 | DF62: 270 | DG62: 270 | DH62: 270 | DI62: 270 | DJ62: 270 | DK62: 270 | DL62: 270 | DM62: 270 | DN62: 270 | DO62: 270 | DP62: 270 | DQ62: 270 | DR62: 270 | DS62: 270 | DT62: 270 | DU62: 270 | DV62: 270 | DW62: 270 | DX62: 270 | DY62: 270 | DZ62: 270 | EA62: 270 | EB62: 270 | EC62: 270 | ED62: 270 | EE62: 270 | EF62: 270 | EG62: 270 | EH62: 270 | EI62: 270 | EJ62: 270 | EK62: 270 | EL62: 270 | EM62: 270 | EN62: 270 | EO62: 270 | EP62: 270 | EQ62: 270 | ER62: 270 | ES62: 270 | ET62: 270 | EU62: 270 | EV62: 270 | EW62: 270 | EX62: 270 | EY62: 270 | EZ62: 270 | FA62: 270 | FB62: 270 | FC62: 0 | FD62: 0 | FE62: 0 | FF62: 0 | FG62: 0 | FH62: 0 | FI62: 0 | FJ62: 0 | FK62: 0 | FL62: 0 | FM62: 0 | FN62: 0 | FO62: 0 | FP62: 0 | FQ62: 0
A63: 2003-05-01 | B63: quinta-feira | C63: Dia do Trabalho | F63: 957 | G63: 28 | H63: 2029-01-07 | I63: 270 | J63: 166.548129 | K63: 166.548129 | L63: 4.984785502 | M63: 2028-10-07 | S63: 28 | T63: 270 | U63: 154.7115689 | V63: 154.7115689 | W63: 155.7806972 | X63: 157.7471751 | Y63: 160.2413293 | Z63: 162.7761752 | AH63: 0 | AI63: 0 | AJ63: 0 | AK63: 0 | AL63: 0 | AM63: 0 | AN63: 0 | AO63: 0 | AP63: 0 | AQ63: 0 | AR63: 0 | AS63: 0 | AU63: 270 | AV63: 270 | AW63: 270 | AX63: 270 | AY63: 270 | AZ63: 270 | BA63: 270 | BB63: 270 | BC63: 270 | BD63: 270 | BE63: 270 | BF63: 270 | BH63: 865 | BI63: 28 | BJ63: 2028-10-07 | BK63: 270 | BL63: 270 | BM63: 270 | BN63: 270 | BO63: 2028-10-07 | BP63: 2028-10-07 | BR63: 281.0141666 | BS63: 270 | BT63: 270 | BU63: 270 | BY63: 270 | BZ63: 270 | CA63: 270 | CB63: 270 | CC63: 270 | CD63: 270 | CE63: 270 | CF63: 270 | CG63: 270 | CH63: 270 | CI63: 270 | CJ63: 270 | CK63: 270 | CL63: 270 | CM63: 270 | CN63: 270 | CO63: 270 | CP63: 270 | CQ63: 270 | CR63: 270 | CS63: 270 | CT63: 270 | CU63: 270 | CV63: 270 | CW63: 270 | CX63: 270 | CY63: 270 | CZ63: 270 | DA63: 270 | DB63: 270 | DC63: 270 | DD63: 270 | DE63: 270 | DF63: 270 | DG63: 270 | DH63: 270 | DI63: 270 | DJ63: 270 | DK63: 270 | DL63: 270 | DM63: 270 | DN63: 270 | DO63: 270 | DP63: 270 | DQ63: 270 | DR63: 270 | DS63: 270 | DT63: 270 | DU63: 270 | DV63: 270 | DW63: 270 | DX63: 270 | DY63: 270 | DZ63: 270 | EA63: 270 | EB63: 270 | EC63: 270 | ED63: 270 | EE63: 270 | EF63: 270 | EG63: 270 | EH63: 270 | EI63: 270 | EJ63: 270 | EK63: 270 | EL63: 270 | EM63: 270 | EN63: 270 | EO63: 270 | EP63: 270 | EQ63: 270 | ER63: 270 | ES63: 270 | ET63: 270 | EU63: 270 | EV63: 270 | EW63: 270 | EX63: 270 | EY63: 270 | EZ63: 270 | FA63: 270 | FB63: 0 | FC63: 0 | FD63: 0 | FE63: 0 | FF63: 0 | FG63: 0 | FH63: 0 | FI63: 0 | FJ63: 0 | FK63: 0 | FL63: 0 | FM63: 0 | FN63: 0 | FO63: 0 | FP63: 0 | FQ63: 0
A64: 2003-06-19 | B64: quinta-feira | C64: Corpus Christi | F64: 988 | G64: 29 | H64: 2029-02-07 | I64: 270 | J64: 163.6892105 | K64: 163.6892105 | L64: 4.89921807 | M64: 2028-11-07 | S64: 29 | T64: 270 | U64: 151.9458563 | V64: 151.9458563 | W64: 153.0300064 | X64: 155.0247425 | Y64: 157.5558954 | Z64: 160.1296515 | AH64: 0 | AI64: 0 | AJ64: 0 | AK64: 0 | AL64: 0 | AM64: 0 | AN64: 0 | AO64: 0 | AP64: 0 | AQ64: 0 | AR64: 0 | AS64: 0 | AU64: 270 | AV64: 270 | AW64: 270 | AX64: 270 | AY64: 270 | AZ64: 270 | BA64: 270 | BB64: 270 | BC64: 270 | BD64: 270 | BE64: 270 | BF64: 270 | BH64: 896 | BI64: 29 | BJ64: 2028-11-07 | BK64: 270 | BL64: 270 | BM64: 270 | BN64: 270 | BO64: 2028-11-07 | BP64: 2028-11-07 | BR64: 281.0141666 | BS64: 270 | BT64: 270 | BU64: 270 | BY64: 270 | BZ64: 270 | CA64: 270 | CB64: 270 | CC64: 270 | CD64: 270 | CE64: 270 | CF64: 270 | CG64: 270 | CH64: 270 | CI64: 270 | CJ64: 270 | CK64: 270 | CL64: 270 | CM64: 270 | CN64: 270 | CO64: 270 | CP64: 270 | CQ64: 270 | CR64: 270 | CS64: 270 | CT64: 270 | CU64: 270 | CV64: 270 | CW64: 270 | CX64: 270 | CY64: 270 | CZ64: 270 | DA64: 270 | DB64: 270 | DC64: 270 | DD64: 270 | DE64: 270 | DF64: 270 | DG64: 270 | DH64: 270 | DI64: 270 | DJ64: 270 | DK64: 270 | DL64: 270 | DM64: 270 | DN64: 270 | DO64: 270 | DP64: 270 | DQ64: 270 | DR64: 270 | DS64: 270 | DT64: 270 | DU64: 270 | DV64: 270 | DW64: 270 | DX64: 270 | DY64: 270 | DZ64: 270 | EA64: 270 | EB64: 270 | EC64: 270 | ED64: 270 | EE64: 270 | EF64: 270 | EG64: 270 | EH64: 270 | EI64: 270 | EJ64: 270 | EK64: 270 | EL64: 270 | EM64: 270 | EN64: 270 | EO64: 270 | EP64: 270 | EQ64: 270 | ER64: 270 | ES64: 270 | ET64: 270 | EU64: 270 | EV64: 270 | EW64: 270 | EX64: 270 | EY64: 270 | EZ64: 270 | FA64: 0 | FB64: 0 | FC64: 0 | FD64: 0 | FE64: =IF($G64>FE$33,0,$I$9) -> 0 | FF64: 0 | FG64: 0 | FH64: 0 | FI64: 0 | FJ64: 0 | FK64: 0 | FL64: 0 | FM64: 0 | FN64: 0 | FO64: 0 | FP64: 0 | FQ64: 0
A65: 2003-09-07 | B65: domingo | C65: Independência do Brasil | F65: 1016 | G65: 30 | H65: 2029-03-07 | I65: 270 | J65: 160.9692501 | K65: 160.9692501 | L65: 4.817809656 | M65: 2028-12-07 | S65: 30 | T65: 270 | U65: 149.490314 | V65: 149.490314 | W65: 150.5872825 | X65: 152.6061778 | Y65: 155.1690454 | Z65: 157.7762467 | AH65: 0 | AI65: 0 | AJ65: 0 | AK65: 0 | AL65: 0 | AM65: 0 | AN65: 0 | AO65: 0 | AP65: 0 | AQ65: 0 | AR65: 0 | AS65: 0 | AU65: 270 | AV65: 270 | AW65: 270 | AX65: 270 | AY65: 270 | AZ65: 270 | BA65: 270 | BB65: 270 | BC65: 270 | BD65: 270 | BE65: 270 | BF65: 270 | BH65: 926 | BI65: 30 | BJ65: 2028-12-07 | BK65: 270 | BL65: 270 | BM65: 270 | BN65: 270 | BO65: 2028-12-07 | BP65: 2028-12-07 | BR65: 281.0141666 | BS65: 270 | BT65: 270 | BU65: 270 | BY65: 270 | BZ65: 270 | CA65: 270 | CB65: 270 | CC65: 270 | CD65: 270 | CE65: 270 | CF65: 270 | CG65: 270 | CH65: 270 | CI65: 270 | CJ65: 270 | CK65: 270 | CL65: 270 | CM65: 270 | CN65: 270 | CO65: 270 | CP65: 270 | CQ65: 270 | CR65: 270 | CS65: 270 | CT65: 270 | CU65: 270 | CV65: 270 | CW65: 270 | CX65: 270 | CY65: 270 | CZ65: 270 | DA65: 270 | DB65: 270 | DC65: 270 | DD65: 270 | DE65: 270 | DF65: =IF($G65>DF$33,0,$I$9) -> 270 | DG65: 270 | DH65: 270 | DI65: 270 | DJ65: 270 | DK65: 270 | DL65: 270 | DM65: 270 | DN65: 270 | DO65: 270 | DP65: 270 | DQ65: 270 | DR65: 270 | DS65: 270 | DT65: 270 | DU65: 270 | DV65: 270 | DW65: 270 | DX65: 270 | DY65: 270 | DZ65: 270 | EA65: 270 | EB65: 270 | EC65: 270 | ED65: 270 | EE65: 270 | EF65: 270 | EG65: 270 | EH65: 270 | EI65: 270 | EJ65: 270 | EK65: 270 | EL65: 270 | EM65: 270 | EN65: 270 | EO65: 270 | EP65: 270 | EQ65: 270 | ER65: 270 | ES65: 270 | ET65: 270 | EU65: 270 | EV65: 270 | EW65: 270 | EX65: 270 | EY65: =IF($G65>EY$33,0,$I$9) -> 270 | EZ65: 0 | FA65: 0 | FB65: 0 | FC65: 0 | FD65: 0 | FE65: 0 | FF65: 0 | FG65: 0 | FH65: 0 | FI65: 0 | FJ65: 0 | FK65: 0 | FL65: 0 | FM65: 0 | FN65: 0 | FO65: 0 | FP65: 0 | FQ65: 0
A66: 2003-10-12 | B66: domingo | C66: Nossa Sr.a Aparecida - Padroeira do Brasil | F66: 1047 | G66: 31 | H66: 2029-04-07 | I66: 270 | J66: 158.206097 | K66: 158.206097 | L66: 4.735108484 | M66: 2029-01-07 | S66: 31 | T66: 270 | U66: 146.8179396 | V66: 146.8179396 | W66: 147.9282943 | X66: 149.9724696 | Y66: 152.5686163 | Z66: 155.2110151 | AH66: 0 | AI66: 0 | AJ66: 0 | AK66: 0 | AL66: 0 | AM66: 0 | AN66: 0 | AO66: 0 | AP66: 0 | AQ66: 0 | AR66: 0 | AS66: 0 | AU66: 270 | AV66: 270 | AW66: 270 | AX66: 270 | AY66: 270 | AZ66: 270 | BA66: 270 | BB66: 270 | BC66: 270 | BD66: 270 | BE66: 270 | BF66: 270 | BH66: 957 | BI66: 31 | BJ66: 2029-01-07 | BK66: 270 | BL66: 270 | BM66: 270 | BN66: 270 | BO66: 2029-01-07 | BP66: 2029-01-07 | BR66: 281.0141666 | BS66: 270 | BT66: 270 | BU66: 270 | BY66: 270 | BZ66: 270 | CA66: 270 | CB66: 270 | CC66: 270 | CD66: 270 | CE66: 270 | CF66: 270 | CG66: 270 | CH66: 270 | CI66: 270 | CJ66: 270 | CK66: 270 | CL66: 270 | CM66: 270 | CN66: 270 | CO66: 270 | CP66: 270 | CQ66: 270 | CR66: 270 | CS66: 270 | CT66: 270 | CU66: 270 | CV66: 270 | CW66: 270 | CX66: 270 | CY66: 270 | CZ66: 270 | DA66: 270 | DB66: 270 | DC66: 270 | DD66: 270 | DE66: 270 | DF66: 270 | DG66: 270 | DH66: 270 | DI66: 270 | DJ66: 270 | DK66: 270 | DL66: 270 | DM66: 270 | DN66: 270 | DO66: 270 | DP66: 270 | DQ66: 270 | DR66: 270 | DS66: 270 | DT66: 270 | DU66: 270 | DV66: 270 | DW66: 270 | DX66: 270 | DY66: 270 | DZ66: 270 | EA66: 270 | EB66: 270 | EC66: 270 | ED66: 270 | EE66: 270 | EF66: 270 | EG66: 270 | EH66: 270 | EI66: 270 | EJ66: 270 | EK66: 270 | EL66: 270 | EM66: 270 | EN66: 270 | EO66: 270 | EP66: 270 | EQ66: 270 | ER66: 270 | ES66: 270 | ET66: 270 | EU66: 270 | EV66: 270 | EW66: 270 | EX66: 270 | EY66: 0 | EZ66: 0 | FA66: 0 | FB66: 0 | FC66: 0 | FD66: 0 | FE66: 0 | FF66: 0 | FG66: 0 | FH66: 0 | FI66: 0 | FJ66: 0 | FK66: 0 | FL66: 0 | FM66: 0 | FN66: 0 | FO66: 0 | FP66: 0 | FQ66: 0
A67: 2003-11-02 | B67: domingo | C67: Finados | F67: 1077 | G67: 32 | H67: 2029-05-07 | I67: 270 | J67: 155.4903755 | K67: 155.4903755 | L67: 4.653826938 | M67: 2029-02-07 | S67: 32 | T67: 270 | U67: 144.2772657 | V67: 144.2772657 | W67: 145.3997919 | X67: 147.4670052 | Y67: 150.0935733 | Z67: 152.7682508 | AH67: 0 | AI67: 0 | AJ67: 0 | AK67: 0 | AL67: 0 | AM67: 0 | AN67: 0 | AO67: 0 | AP67: 0 | AQ67: 0 | AR67: 0 | AS67: 0 | AU67: 270 | AV67: 270 | AW67: 270 | AX67: 270 | AY67: 270 | AZ67: 270 | BA67: 270 | BB67: 270 | BC67: 270 | BD67: 270 | BE67: 270 | BF67: 270 | BH67: 988 | BI67: 32 | BJ67: 2029-02-07 | BK67: 270 | BL67: 270 | BM67: 270 | BN67: 270 | BO67: 2029-02-07 | BP67: 2029-02-07 | BR67: 281.0141666 | BS67: 270 | BT67: 270 | BU67: 270 | BY67: 270 | BZ67: 270 | CA67: 270 | CB67: 270 | CC67: 270 | CD67: 270 | CE67: 270 | CF67: 270 | CG67: 270 | CH67: 270 | CI67: 270 | CJ67: 270 | CK67: 270 | CL67: 270 | CM67: 270 | CN67: 270 | CO67: =IF($G67>CO$33,0,$I$9) -> 270 | CP67: 270 | CQ67: 270 | CR67: 270 | CS67: 270 | CT67: 270 | CU67: 270 | CV67: 270 | CW67: 270 | CX67: 270 | CY67: 270 | CZ67: 270 | DA67: 270 | DB67: 270 | DC67: 270 | DD67: 270 | DE67: 270 | DF67: 270 | DG67: 270 | DH67: 270 | DI67: 270 | DJ67: 270 | DK67: 270 | DL67: 270 | DM67: 270 | DN67: 270 | DO67: 270 | DP67: 270 | DQ67: 270 | DR67: 270 | DS67: 270 | DT67: 270 | DU67: 270 | DV67: 270 | DW67: 270 | DX67: 270 | DY67: 270 | DZ67: 270 | EA67: 270 | EB67: 270 | EC67: 270 | ED67: 270 | EE67: 270 | EF67: 270 | EG67: 270 | EH67: 270 | EI67: 270 | EJ67: 270 | EK67: 270 | EL67: 270 | EM67: 270 | EN67: 270 | EO67: 270 | EP67: 270 | EQ67: 270 | ER67: 270 | ES67: 270 | ET67: 270 | EU67: 270 | EV67: 270 | EW67: 270 | EX67: 0 | EY67: 0 | EZ67: 0 | FA67: 0 | FB67: 0 | FC67: 0 | FD67: 0 | FE67: 0 | FF67: 0 | FG67: 0 | FH67: 0 | FI67: 0 | FJ67: 0 | FK67: 0 | FL67: 0 | FM67: 0 | FN67: 0 | FO67: 0 | FP67: 0 | FQ67: 0
A68: 2003-11-15 | B68: sábado | C68: Proclamação da República | F68: 1108 | G68: 33 | H68: 2029-06-07 | I68: 270 | J68: 153.0775566 | K68: 153.0775566 | L68: 4.581611268 | M68: 2029-03-07 | S68: 33 | T68: 270 | U68: =$T68/((U$29)^($H68-$H$35)) -> 141.6980827 | V68: 141.6980827 | W68: 142.8324015 | X68: 144.9219899 | Y68: 147.5782025 | Z68: 150.2844426 | AH68: 0 | AI68: 0 | AJ68: 0 | AK68: 0 | AL68: 0 | AM68: 0 | AN68: 0 | AO68: 0 | AP68: 0 | AQ68: 0 | AR68: 0 | AS68: 0 | AU68: =$T68 -> 270 | AV68: 270 | AW68: 270 | AX68: 270 | AY68: 270 | AZ68: 270 | BA68: 270 | BB68: 270 | BC68: 270 | BD68: 270 | BE68: 270 | BF68: 270 | BH68: 1016 | BI68: 33 | BJ68: 2029-03-07 | BK68: 270 | BL68: 270 | BM68: 270 | BN68: 270 | BO68: 2029-03-07 | BP68: 2029-03-07 | BR68: 281.0141666 | BS68: 270 | BT68: 270 | BU68: 270 | BY68: 270 | BZ68: 270 | CA68: 270 | CB68: 270 | CC68: 270 | CD68: 270 | CE68: 270 | CF68: 270 | CG68: 270 | CH68: 270 | CI68: 270 | CJ68: 270 | CK68: 270 | CL68: 270 | CM68: 270 | CN68: =IF($G68>CN$33,0,$I$9) -> 270 | CO68: 270 | CP68: 270 | CQ68: 270 | CR68: 270 | CS68: 270 | CT68: 270 | CU68: 270 | CV68: 270 | CW68: 270 | CX68: 270 | CY68: 270 | CZ68: 270 | DA68: 270 | DB68: 270 | DC68: 270 | DD68: 270 | DE68: 270 | DF68: 270 | DG68: 270 | DH68: 270 | DI68: 270 | DJ68: 270 | DK68: 270 | DL68: 270 | DM68: 270 | DN68: 270 | DO68: 270 | DP68: 270 | DQ68: 270 | DR68: 270 | DS68: 270 | DT68: 270 | DU68: 270 | DV68: 270 | DW68: 270 | DX68: 270 | DY68: 270 | DZ68: 270 | EA68: 270 | EB68: 270 | EC68: 270 | ED68: 270 | EE68: 270 | EF68: 270 | EG68: 270 | EH68: 270 | EI68: 270 | EJ68: 270 | EK68: 270 | EL68: 270 | EM68: 270 | EN68: 270 | EO68: 270 | EP68: 270 | EQ68: 270 | ER68: 270 | ES68: 270 | ET68: 270 | EU68: 270 | EV68: 270 | EW68: 0 | EX68: 0 | EY68: 0 | EZ68: 0 | FA68: 0 | FB68: 0 | FC68: 0 | FD68: 0 | FE68: 0 | FF68: 0 | FG68: 0 | FH68: 0 | FI68: 0 | FJ68: 0 | FK68: 0 | FL68: 0 | FM68: 0 | FN68: 0 | FO68: 0 | FP68: 0 | FQ68: 0
A69: 2003-12-25 | B69: quinta-feira | C69: Natal | F69: 1138 | G69: 34 | H69: 2029-07-07 | I69: 270 | J69: 150.4498701 | K69: 150.4498701 | L69: 4.502964612 | M69: 2029-04-07 | S69: 34 | T69: 270 | U69: 139.2460076 | V69: 139.2460076 | W69: 140.3910019 | X69: 142.5008996 | Y69: 145.1841164 | Z69: 147.9192144 | AH69: 0 | AI69: 0 | AJ69: 0 | AK69: 0 | AL69: 0 | AM69: 0 | AN69: 0 | AO69: 0 | AP69: 0 | AQ69: 0 | AR69: 0 | AS69: 0 | AU69: 270 | AV69: 270 | AW69: 270 | AX69: 270 | AY69: 270 | AZ69: 270 | BA69: 270 | BB69: 270 | BC69: 270 | BD69: 270 | BE69: 270 | BF69: 270 | BH69: 1047 | BI69: 34 | BJ69: 2029-04-07 | BK69: 270 | BL69: 270 | BM69: 270 | BN69: 270 | BO69: 2029-04-07 | BP69: 2029-04-07 | BR69: 281.0141666 | BS69: 270 | BT69: 270 | BU69: =IF(G69>$BU$31,0,$BU$32) -> 270 | BY69: =IF($G69>BY$33,0,$I$9) -> 270 | BZ69: 270 | CA69: 270 | CB69: 270 | CC69: 270 | CD69: 270 | CE69: 270 | CF69: 270 | CG69: 270 | CH69: 270 | CI69: 270 | CJ69: 270 | CK69: 270 | CL69: 270 | CM69: 270 | CN69: 270 | CO69: 270 | CP69: 270 | CQ69: 270 | CR69: 270 | CS69: 270 | CT69: 270 | CU69: 270 | CV69: 270 | CW69: 270 | CX69: 270 | CY69: 270 | CZ69: 270 | DA69: 270 | DB69: 270 | DC69: 270 | DD69: 270 | DE69: 270 | DF69: 270 | DG69: 270 | DH69: 270 | DI69: 270 | DJ69: 270 | DK69: 270 | DL69: 270 | DM69: 270 | DN69: 270 | DO69: 270 | DP69: 270 | DQ69: 270 | DR69: 270 | DS69: 270 | DT69: 270 | DU69: 270 | DV69: 270 | DW69: 270 | DX69: 270 | DY69: 270 | DZ69: 270 | EA69: 270 | EB69: 270 | EC69: 270 | ED69: 270 | EE69: 270 | EF69: 270 | EG69: 270 | EH69: 270 | EI69: 270 | EJ69: 270 | EK69: 270 | EL69: 270 | EM69: 270 | EN69: 270 | EO69: 270 | EP69: 270 | EQ69: 270 | ER69: 270 | ES69: 270 | ET69: 270 | EU69: 270 | EV69: 0 | EW69: 0 | EX69: 0 | EY69: 0 | EZ69: 0 | FA69: 0 | FB69: 0 | FC69: 0 | FD69: 0 | FE69: 0 | FF69: 0 | FG69: 0 | FH69: 0 | FI69: 0 | FJ69: 0 | FK69: 0 | FL69: 0 | FM69: 0 | FN69: 0 | FO69: 0 | FP69: 0 | FQ69: 0
A70: 2004-01-01 | B70: quinta-feira | C70: Confraternização Universal | F70: 1169 | G70: 35 | H70: 2029-08-07 | I70: 270 | J70: 147.9499027 | K70: 147.9499027 | L70: 4.428140589 | M70: 2029-05-07 | S70: 35 | T70: 270 | U70: 136.7567663 | V70: 136.7567663 | W70: 137.912054 | X70: 140.0415903 | Y70: 142.7510216 | Z70: 145.514245 | AH70: 0 | AI70: 0 | AJ70: 0 | AK70: 0 | AL70: 0 | AM70: 0 | AN70: 0 | AO70: 0 | AP70: 0 | AQ70: 0 | AR70: 0 | AS70: 0 | AU70: 270 | AV70: 270 | AW70: 270 | AX70: 270 | AY70: 270 | AZ70: 270 | BA70: 270 | BB70: 270 | BC70: 270 | BD70: 270 | BE70: 270 | BF70: 270 | BH70: 1077 | BI70: 35 | BJ70: 2029-05-07 | BK70: 270 | BL70: 270 | BM70: 270 | BN70: 270 | BO70: 2029-05-07 | BP70: 2029-05-07 | BR70: 281.0141666 | BS70: 270 | BT70: 270 | BU70: 270 | BY70: 270 | BZ70: 270 | CA70: 270 | CB70: 270 | CC70: 270 | CD70: 270 | CE70: 270 | CF70: 270 | CG70: 270 | CH70: 270 | CI70: 270 | CJ70: 270 | CK70: 270 | CL70: 270 | CM70: 270 | CN70: 270 | CO70: 270 | CP70: 270 | CQ70: 270 | CR70: 270 | CS70: 270 | CT70: 270 | CU70: 270 | CV70: 270 | CW70: 270 | CX70: 270 | CY70: 270 | CZ70: 270 | DA70: 270 | DB70: 270 | DC70: =IF($G70>DC$33,0,$I$9) -> 270 | DD70: 270 | DE70: 270 | DF70: 270 | DG70: 270 | DH70: 270 | DI70: 270 | DJ70: 270 | DK70: 270 | DL70: 270 | DM70: 270 | DN70: 270 | DO70: 270 | DP70: 270 | DQ70: 270 | DR70: 270 | DS70: 270 | DT70: 270 | DU70: 270 | DV70: 270 | DW70: 270 | DX70: 270 | DY70: 270 | DZ70: 270 | EA70: 270 | EB70: 270 | EC70: 270 | ED70: 270 | EE70: 270 | EF70: 270 | EG70: 270 | EH70: 270 | EI70: 270 | EJ70: 270 | EK70: 270 | EL70: 270 | EM70: 270 | EN70: 270 | EO70: 270 | EP70: 270 | EQ70: 270 | ER70: 270 | ES70: 270 | ET70: 270 | EU70: 0 | EV70: 0 | EW70: 0 | EX70: 0 | EY70: 0 | EZ70: 0 | FA70: 0 | FB70: 0 | FC70: 0 | FD70: 0 | FE70: 0 | FF70: 0 | FG70: 0 | FH70: 0 | FI70: 0 | FJ70: 0 | FK70: 0 | FL70: 0 | FM70: 0 | FN70: 0 | FO70: 0 | FP70: 0 | FQ70: 0
A71: 2004-02-23 | B71: segunda-feira | C71: Carnaval | F71: 1200 | G71: 36 | H71: 2029-09-07 | I71: 270 | J71: 145.4102361 | K71: 145.4102361 | L71: 4.352128368 | M71: 2029-06-07 | S71: 36 | T71: 270 | U71: 134.3120241 | V71: 134.3120241 | W71: 135.476878 | X71: 137.6247243 | Y71: 140.3587022 | Z71: 143.1483773 | AH71: 0 | AI71: 0 | AJ71: 0 | AK71: 0 | AL71: 0 | AM71: 0 | AN71: 0 | AO71: 0 | AP71: 0 | AQ71: 0 | AR71: 0 | AS71: 0 | AU71: 270 | AV71: 270 | AW71: 270 | AX71: 270 | AY71: 270 | AZ71: 270 | BA71: 270 | BB71: 270 | BC71: 270 | BD71: 270 | BE71: 270 | BF71: 270 | BH71: 1108 | BI71: 36 | BJ71: 2029-06-07 | BK71: 270 | BL71: 270 | BM71: 270 | BN71: 270 | BO71: 2029-06-07 | BP71: 2029-06-07 | BR71: 281.0141666 | BS71: 270 | BT71: 270 | BU71: 270 | BY71: 270 | BZ71: 270 | CA71: 270 | CB71: 270 | CC71: 270 | CD71: 270 | CE71: 270 | CF71: 270 | CG71: 270 | CH71: 270 | CI71: 270 | CJ71: 270 | CK71: 270 | CL71: 270 | CM71: 270 | CN71: 270 | CO71: 270 | CP71: 270 | CQ71: 270 | CR71: 270 | CS71: 270 | CT71: 270 | CU71: 270 | CV71: 270 | CW71: 270 | CX71: 270 | CY71: 270 | CZ71: 270 | DA71: 270 | DB71: 270 | DC71: 270 | DD71: 270 | DE71: 270 | DF71: 270 | DG71: 270 | DH71: 270 | DI71: 270 | DJ71: 270 | DK71: 270 | DL71: 270 | DM71: 270 | DN71: 270 | DO71: 270 | DP71: 270 | DQ71: 270 | DR71: 270 | DS71: 270 | DT71: 270 | DU71: 270 | DV71: 270 | DW71: 270 | DX71: 270 | DY71: 270 | DZ71: 270 | EA71: 270 | EB71: 270 | EC71: 270 | ED71: 270 | EE71: 270 | EF71: 270 | EG71: 270 | EH71: 270 | EI71: 270 | EJ71: 270 | EK71: 270 | EL71: 270 | EM71: 270 | EN71: 270 | EO71: 270 | EP71: 270 | EQ71: 270 | ER71: 270 | ES71: 270 | ET71: 0 | EU71: 0 | EV71: 0 | EW71: 0 | EX71: 0 | EY71: 0 | EZ71: 0 | FA71: 0 | FB71: 0 | FC71: 0 | FD71: 0 | FE71: 0 | FF71: 0 | FG71: 0 | FH71: 0 | FI71: 0 | FJ71: 0 | FK71: 0 | FL71: 0 | FM71: 0 | FN71: 0 | FO71: 0 | FP71: 0 | FQ71: 0
A72: 2004-02-24 | B72: terça-feira | C72: Carnaval | F72: 1230 | G72: 37 | H72: 2029-10-07 | I72: 270 | J72: 142.9940104 | K72: 142.9940104 | L72: 4.279810732 | M72: 2029-07-07 | S72: 37 | T72: 270 | U72: 131.9877642 | V72: 131.9877642 | W72: 133.1612047 | X72: 135.3255433 | Y72: 138.0817344 | Z72: 140.8954589 | AH72: 0 | AI72: 0 | AJ72: 0 | AK72: 0 | AL72: 0 | AM72: 0 | AN72: 0 | AO72: 0 | AP72: 0 | AQ72: 0 | AR72: 0 | AS72: 0 | AU72: 270 | AV72: 270 | AW72: 270 | AX72: 270 | AY72: 270 | AZ72: 270 | BA72: 270 | BB72: 270 | BC72: 270 | BD72: 270 | BE72: 270 | BF72: 270 | BH72: 1138 | BI72: 37 | BJ72: 2029-07-07 | BK72: 270 | BL72: 270 | BM72: 270 | BN72: 270 | BO72: 2029-07-07 | BP72: 2029-07-07 | BR72: 281.0141666 | BS72: 270 | BT72: 270 | BU72: 270 | BY72: 270 | BZ72: 270 | CA72: 270 | CB72: 270 | CC72: 270 | CD72: 270 | CE72: 270 | CF72: 270 | CG72: 270 | CH72: 270 | CI72: 270 | CJ72: 270 | CK72: 270 | CL72: 270 | CM72: 270 | CN72: 270 | CO72: 270 | CP72: 270 | CQ72: 270 | CR72: 270 | CS72: 270 | CT72: 270 | CU72: 270 | CV72: 270 | CW72: 270 | CX72: 270 | CY72: 270 | CZ72: 270 | DA72: 270 | DB72: 270 | DC72: 270 | DD72: 270 | DE72: 270 | DF72: 270 | DG72: 270 | DH72: 270 | DI72: 270 | DJ72: 270 | DK72: 270 | DL72: 270 | DM72: 270 | DN72: 270 | DO72: 270 | DP72: 270 | DQ72: 270 | DR72: 270 | DS72: 270 | DT72: 270 | DU72: 270 | DV72: 270 | DW72: 270 | DX72: 270 | DY72: 270 | DZ72: 270 | EA72: 270 | EB72: 270 | EC72: 270 | ED72: 270 | EE72: 270 | EF72: 270 | EG72: 270 | EH72: 270 | EI72: 270 | EJ72: 270 | EK72: 270 | EL72: 270 | EM72: 270 | EN72: 270 | EO72: 270 | EP72: 270 | EQ72: 270 | ER72: 270 | ES72: 0 | ET72: 0 | EU72: 0 | EV72: 0 | EW72: 0 | EX72: 0 | EY72: 0 | EZ72: 0 | FA72: 0 | FB72: 0 | FC72: 0 | FD72: 0 | FE72: 0 | FF72: 0 | FG72: 0 | FH72: 0 | FI72: 0 | FJ72: 0 | FK72: 0 | FL72: 0 | FM72: 0 | FN72: 0 | FO72: 0 | FP72: 0 | FQ72: 0
A73: 2004-04-09 | B73: sexta-feira | C73: Paixão de Cristo | F73: 1261 | G73: 38 | H73: 2029-11-07 | I73: 270 | J73: 140.5394153 | K73: 140.5394153 | L73: 4.206344699 | M73: 2029-08-07 | S73: 38 | T73: 270 | U73: 129.6282754 | V73: 129.6282754 | W73: 130.8099166 | X73: 132.9900678 | Y73: 135.7676662 | Z73: 138.6046864 | AH73: 0 | AI73: 0 | AJ73: 0 | AK73: 0 | AL73: 0 | AM73: 0 | AN73: 0 | AO73: 0 | AP73: 0 | AQ73: 0 | AR73: 0 | AS73: 0 | AU73: 270 | AV73: 270 | AW73: 270 | AX73: 270 | AY73: 270 | AZ73: 270 | BA73: 270 | BB73: 270 | BC73: 270 | BD73: 270 | BE73: 270 | BF73: 270 | BH73: 1169 | BI73: 38 | BJ73: 2029-08-07 | BK73: 270 | BL73: 270 | BM73: 270 | BN73: 270 | BO73: 2029-08-07 | BP73: 2029-08-07 | BR73: 281.0141666 | BS73: 270 | BT73: 270 | BU73: 270 | BY73: 270 | BZ73: 270 | CA73: 270 | CB73: 270 | CC73: 270 | CD73: 270 | CE73: 270 | CF73: 270 | CG73: 270 | CH73: 270 | CI73: 270 | CJ73: 270 | CK73: 270 | CL73: 270 | CM73: 270 | CN73: 270 | CO73: 270 | CP73: 270 | CQ73: 270 | CR73: 270 | CS73: 270 | CT73: 270 | CU73: 270 | CV73: 270 | CW73: 270 | CX73: 270 | CY73: 270 | CZ73: 270 | DA73: 270 | DB73: 270 | DC73: 270 | DD73: 270 | DE73: 270 | DF73: 270 | DG73: 270 | DH73: 270 | DI73: 270 | DJ73: 270 | DK73: 270 | DL73: 270 | DM73: 270 | DN73: 270 | DO73: 270 | DP73: 270 | DQ73: 270 | DR73: 270 | DS73: 270 | DT73: 270 | DU73: 270 | DV73: 270 | DW73: 270 | DX73: 270 | DY73: 270 | DZ73: 270 | EA73: 270 | EB73: 270 | EC73: 270 | ED73: 270 | EE73: 270 | EF73: 270 | EG73: 270 | EH73: 270 | EI73: 270 | EJ73: 270 | EK73: 270 | EL73: 270 | EM73: 270 | EN73: 270 | EO73: 270 | EP73: 270 | EQ73: 270 | ER73: 0 | ES73: 0 | ET73: 0 | EU73: 0 | EV73: 0 | EW73: 0 | EX73: 0 | EY73: 0 | EZ73: 0 | FA73: 0 | FB73: 0 | FC73: 0 | FD73: 0 | FE73: 0 | FF73: 0 | FG73: 0 | FH73: 0 | FI73: 0 | FJ73: 0 | FK73: 0 | FL73: 0 | FM73: 0 | FN73: 0 | FO73: 0 | FP73: 0 | FQ73: 0
A74: 2004-04-21 | B74: quarta-feira | C74: Tiradentes | F74: 1291 | G74: 39 | H74: 2029-12-07 | I74: 270 | J74: 138.126955 | K74: 138.126955 | L74: 4.134139764 | M74: 2029-09-07 | S74: 39 | T74: 270 | U74: 127.3850674 | V74: 127.3850674 | W74: 128.5740144 | X74: 130.7683142 | Y74: 133.5651764 | Z74: 136.4232782 | AH74: 0 | AI74: 0 | AJ74: 0 | AK74: 0 | AL74: 0 | AM74: 0 | AN74: 0 | AO74: 0 | AP74: 0 | AQ74: 0 | AR74: 0 | AS74: 0 | AU74: 270 | AV74: 270 | AW74: 270 | AX74: 270 | AY74: 270 | AZ74: 270 | BA74: 270 | BB74: 270 | BC74: 270 | BD74: 270 | BE74: 270 | BF74: 270 | BH74: 1200 | BI74: 39 | BJ74: 2029-09-07 | BK74: 270 | BL74: 270 | BM74: 270 | BN74: 270 | BO74: 2029-09-07 | BP74: 2029-09-07 | BR74: 281.0141666 | BS74: 270 | BT74: 270 | BU74: 270 | BY74: 270 | BZ74: 270 | CA74: 270 | CB74: 270 | CC74: 270 | CD74: 270 | CE74: 270 | CF74: 270 | CG74: 270 | CH74: 270 | CI74: 270 | CJ74: 270 | CK74: 270 | CL74: 270 | CM74: 270 | CN74: 270 | CO74: 270 | CP74: 270 | CQ74: 270 | CR74: 270 | CS74: 270 | CT74: 270 | CU74: 270 | CV74: 270 | CW74: 270 | CX74: 270 | CY74: 270 | CZ74: 270 | DA74: 270 | DB74: 270 | DC74: 270 | DD74: 270 | DE74: 270 | DF74: 270 | DG74: 270 | DH74: 270 | DI74: 270 | DJ74: 270 | DK74: 270 | DL74: 270 | DM74: 270 | DN74: 270 | DO74: 270 | DP74: 270 | DQ74: 270 | DR74: 270 | DS74: 270 | DT74: 270 | DU74: 270 | DV74: 270 | DW74: 270 | DX74: 270 | DY74: 270 | DZ74: 270 | EA74: 270 | EB74: 270 | EC74: 270 | ED74: 270 | EE74: 270 | EF74: 270 | EG74: 270 | EH74: 270 | EI74: 270 | EJ74: 270 | EK74: 270 | EL74: 270 | EM74: 270 | EN74: 270 | EO74: 270 | EP74: 270 | EQ74: 0 | ER74: 0 | ES74: 0 | ET74: =IF($G74>ET$33,0,$I$9) -> 0 | EU74: 0 | EV74: 0 | EW74: 0 | EX74: 0 | EY74: 0 | EZ74: 0 | FA74: 0 | FB74: 0 | FC74: 0 | FD74: 0 | FE74: 0 | FF74: 0 | FG74: 0 | FH74: 0 | FI74: 0 | FJ74: 0 | FK74: 0 | FL74: 0 | FM74: 0 | FN74: 0 | FO74: 0 | FP74: 0 | FQ74: 0
A75: 2004-05-01 | B75: sábado | C75: Dia do Trabalho | F75: 1322 | G75: 40 | H75: 2030-01-07 | I75: 270 | J75: 135.8317528 | K75: 135.8317528 | L75: 4.065444361 | M75: 2029-10-07 | S75: 40 | T75: 270 | U75: 125.107859 | V75: 125.107859 | W75: 126.3037245 | X75: 128.5114882 | Y75: 131.3267998 | Z75: 134.2052175 | AH75: 0 | AI75: 0 | AJ75: 0 | AK75: 0 | AL75: 0 | AM75: 0 | AN75: 0 | AO75: 0 | AP75: 0 | AQ75: 0 | AR75: 0 | AS75: 0 | AU75: 270 | AV75: 270 | AW75: 270 | AX75: 270 | AY75: 270 | AZ75: 270 | BA75: 270 | BB75: 270 | BC75: 270 | BD75: 270 | BE75: 270 | BF75: 270 | BH75: 1230 | BI75: 40 | BJ75: 2029-10-07 | BK75: 270 | BL75: 270 | BM75: 270 | BN75: 270 | BO75: 2029-10-07 | BP75: 2029-10-07 | BR75: 281.0141666 | BS75: 270 | BT75: 270 | BU75: 270 | BY75: 270 | BZ75: 270 | CA75: 270 | CB75: 270 | CC75: 270 | CD75: 270 | CE75: 270 | CF75: 270 | CG75: 270 | CH75: 270 | CI75: 270 | CJ75: 270 | CK75: 270 | CL75: 270 | CM75: 270 | CN75: 270 | CO75: 270 | CP75: 270 | CQ75: 270 | CR75: 270 | CS75: 270 | CT75: 270 | CU75: 270 | CV75: 270 | CW75: 270 | CX75: 270 | CY75: 270 | CZ75: 270 | DA75: 270 | DB75: 270 | DC75: 270 | DD75: 270 | DE75: 270 | DF75: 270 | DG75: 270 | DH75: 270 | DI75: 270 | DJ75: 270 | DK75: 270 | DL75: 270 | DM75: 270 | DN75: 270 | DO75: 270 | DP75: 270 | DQ75: 270 | DR75: 270 | DS75: 270 | DT75: 270 | DU75: 270 | DV75: 270 | DW75: 270 | DX75: 270 | DY75: 270 | DZ75: 270 | EA75: 270 | EB75: 270 | EC75: 270 | ED75: 270 | EE75: 270 | EF75: 270 | EG75: 270 | EH75: 270 | EI75: 270 | EJ75: 270 | EK75: 270 | EL75: 270 | EM75: 270 | EN75: 270 | EO75: 270 | EP75: 0 | EQ75: 0 | ER75: 0 | ES75: 0 | ET75: 0 | EU75: 0 | EV75: 0 | EW75: 0 | EX75: 0 | EY75: 0 | EZ75: 0 | FA75: 0 | FB75: 0 | FC75: 0 | FD75: 0 | FE75: 0 | FF75: 0 | FG75: 0 | FH75: 0 | FI75: 0 | FJ75: 0 | FK75: 0 | FL75: 0 | FM75: 0 | FN75: 0 | FO75: 0 | FP75: 0 | FQ75: 0
A76: 2004-06-10 | B76: quinta-feira | C76: Corpus Christi | F76: 1353 | G76: 41 | H76: 2030-02-07 | I76: 270 | J76: 133.500103 | K76: 133.500103 | L76: 3.995658081 | M76: 2029-11-07 | S76: 41 | T76: 270 | U76: 122.8713593 | V76: 122.8713593 | W76: 124.073522 | X76: 126.2936111 | Y76: 129.1259354 | Z76: 132.0232194 | AH76: 0 | AI76: 0 | AJ76: 0 | AK76: 0 | AL76: 0 | AM76: 0 | AN76: 0 | AO76: 0 | AP76: 0 | AQ76: 0 | AR76: 0 | AS76: 0 | AU76: 270 | AV76: 270 | AW76: 270 | AX76: 270 | AY76: 270 | AZ76: 270 | BA76: 270 | BB76: 270 | BC76: 270 | BD76: 270 | BE76: 270 | BF76: 270 | BH76: 1261 | BI76: 41 | BJ76: 2029-11-07 | BK76: 270 | BL76: 270 | BM76: 270 | BN76: 270 | BO76: 2029-11-07 | BP76: 2029-11-07 | BR76: 281.0141666 | BS76: 270 | BT76: 270 | BU76: 270 | BY76: 270 | BZ76: 270 | CA76: 270 | CB76: 270 | CC76: 270 | CD76: 270 | CE76: 270 | CF76: 270 | CG76: 270 | CH76: 270 | CI76: 270 | CJ76: 270 | CK76: 270 | CL76: 270 | CM76: 270 | CN76: 270 | CO76: 270 | CP76: 270 | CQ76: 270 | CR76: 270 | CS76: 270 | CT76: 270 | CU76: 270 | CV76: 270 | CW76: 270 | CX76: 270 | CY76: 270 | CZ76: 270 | DA76: 270 | DB76: 270 | DC76: 270 | DD76: 270 | DE76: 270 | DF76: 270 | DG76: 270 | DH76: 270 | DI76: 270 | DJ76: 270 | DK76: 270 | DL76: 270 | DM76: 270 | DN76: 270 | DO76: 270 | DP76: 270 | DQ76: 270 | DR76: 270 | DS76: 270 | DT76: 270 | DU76: 270 | DV76: 270 | DW76: 270 | DX76: 270 | DY76: 270 | DZ76: 270 | EA76: 270 | EB76: 270 | EC76: 270 | ED76: 270 | EE76: 270 | EF76: 270 | EG76: 270 | EH76: 270 | EI76: 270 | EJ76: 270 | EK76: 270 | EL76: 270 | EM76: 270 | EN76: 270 | EO76: 0 | EP76: 0 | EQ76: 0 | ER76: 0 | ES76: 0 | ET76: 0 | EU76: 0 | EV76: 0 | EW76: 0 | EX76: 0 | EY76: 0 | EZ76: 0 | FA76: 0 | FB76: 0 | FC76: 0 | FD76: 0 | FE76: 0 | FF76: 0 | FG76: 0 | FH76: 0 | FI76: 0 | FJ76: 0 | FK76: 0 | FL76: 0 | FM76: 0 | FN76: 0 | FO76: 0 | FP76: 0 | FQ76: 0
A77: 2004-09-07 | B77: terça-feira | C77: Independência do Brasil | F77: 1381 | G77: 42 | H77: 2030-03-07 | I77: 270 | J77: 131.2817833 | K77: 131.2817833 | L77: 3.929263775 | M77: 2029-12-07 | S77: 42 | T77: 270 | U77: 120.8856795 | V77: 120.8856795 | W77: 122.0930127 | X77: 124.3232851 | Y77: 127.1697773 | Z77: 130.0828913 | AH77: 0 | AI77: 0 | AJ77: 0 | AK77: 0 | AL77: 0 | AM77: 0 | AN77: 0 | AO77: 0 | AP77: 0 | AQ77: 0 | AR77: 0 | AS77: 0 | AU77: 270 | AV77: 270 | AW77: 270 | AX77: 270 | AY77: 270 | AZ77: 270 | BA77: 270 | BB77: 270 | BC77: 270 | BD77: 270 | BE77: 270 | BF77: 270 | BH77: 1291 | BI77: 42 | BJ77: 2029-12-07 | BK77: 270 | BL77: 270 | BM77: 270 | BN77: 270 | BO77: 2029-12-07 | BP77: 2029-12-07 | BR77: 281.0141666 | BS77: 270 | BT77: 270 | BU77: 270 | BY77: 270 | BZ77: 270 | CA77: 270 | CB77: 270 | CC77: 270 | CD77: 270 | CE77: 270 | CF77: 270 | CG77: 270 | CH77: 270 | CI77: 270 | CJ77: 270 | CK77: 270 | CL77: 270 | CM77: 270 | CN77: 270 | CO77: 270 | CP77: 270 | CQ77: 270 | CR77: 270 | CS77: 270 | CT77: 270 | CU77: 270 | CV77: 270 | CW77: 270 | CX77: 270 | CY77: 270 | CZ77: 270 | DA77: 270 | DB77: 270 | DC77: 270 | DD77: 270 | DE77: 270 | DF77: 270 | DG77: 270 | DH77: 270 | DI77: 270 | DJ77: 270 | DK77: 270 | DL77: 270 | DM77: 270 | DN77: 270 | DO77: 270 | DP77: 270 | DQ77: 270 | DR77: 270 | DS77: 270 | DT77: 270 | DU77: 270 | DV77: 270 | DW77: 270 | DX77: 270 | DY77: 270 | DZ77: 270 | EA77: 270 | EB77: 270 | EC77: 270 | ED77: 270 | EE77: 270 | EF77: 270 | EG77: 270 | EH77: 270 | EI77: 270 | EJ77: 270 | EK77: 270 | EL77: 270 | EM77: 270 | EN77: 0 | EO77: 0 | EP77: 0 | EQ77: 0 | ER77: 0 | ES77: 0 | ET77: 0 | EU77: 0 | EV77: 0 | EW77: 0 | EX77: 0 | EY77: 0 | EZ77: 0 | FA77: 0 | FB77: 0 | FC77: 0 | FD77: 0 | FE77: 0 | FF77: 0 | FG77: 0 | FH77: 0 | FI77: 0 | FJ77: 0 | FK77: 0 | FL77: 0 | FM77: 0 | FN77: 0 | FO77: 0 | FP77: 0 | FQ77: 0
A78: 2004-10-12 | B78: terça-feira | C78: Nossa Sr.a Aparecida - Padroeira do Brasil | F78: 1412 | G78: 43 | H78: 2030-04-07 | I78: 270 | J78: 129.028237 | K78: 129.028237 | L78: 3.861815133 | M78: 2030-01-07 | S78: 43 | T78: 270 | U78: 118.7246579 | V78: 118.7246579 | W78: 119.9371607 | X78: 122.1776888 | Y78: 125.0385791 | Z78: =$T78/((Z$29)^($H78-$H$35)) -> 127.9679168 | AH78: 0 | AI78: 0 | AJ78: 0 | AK78: 0 | AL78: 0 | AM78: 0 | AN78: 0 | AO78: 0 | AP78: 0 | AQ78: 0 | AR78: 0 | AS78: 0 | AU78: 270 | AV78: 270 | AW78: 270 | AX78: 270 | AY78: 270 | AZ78: 270 | BA78: 270 | BB78: 270 | BC78: 270 | BD78: 270 | BE78: 270 | BF78: 270 | BH78: 1322 | BI78: 43 | BJ78: 2030-01-07 | BK78: 270 | BL78: 270 | BM78: 270 | BN78: 270 | BO78: 2030-01-07 | BP78: 2030-01-07 | BR78: 281.0141666 | BS78: 270 | BT78: 270 | BU78: 270 | BY78: 270 | BZ78: 270 | CA78: 270 | CB78: 270 | CC78: 270 | CD78: 270 | CE78: 270 | CF78: 270 | CG78: 270 | CH78: 270 | CI78: 270 | CJ78: 270 | CK78: 270 | CL78: 270 | CM78: 270 | CN78: 270 | CO78: 270 | CP78: 270 | CQ78: 270 | CR78: 270 | CS78: 270 | CT78: 270 | CU78: 270 | CV78: 270 | CW78: 270 | CX78: 270 | CY78: 270 | CZ78: 270 | DA78: 270 | DB78: 270 | DC78: 270 | DD78: 270 | DE78: 270 | DF78: 270 | DG78: 270 | DH78: 270 | DI78: 270 | DJ78: 270 | DK78: 270 | DL78: 270 | DM78: 270 | DN78: 270 | DO78: 270 | DP78: 270 | DQ78: 270 | DR78: 270 | DS78: 270 | DT78: 270 | DU78: 270 | DV78: 270 | DW78: 270 | DX78: 270 | DY78: 270 | DZ78: 270 | EA78: 270 | EB78: 270 | EC78: 270 | ED78: 270 | EE78: 270 | EF78: 270 | EG78: 270 | EH78: 270 | EI78: 270 | EJ78: 270 | EK78: 270 | EL78: 270 | EM78: 0 | EN78: 0 | EO78: 0 | EP78: 0 | EQ78: 0 | ER78: 0 | ES78: 0 | ET78: 0 | EU78: 0 | EV78: 0 | EW78: 0 | EX78: 0 | EY78: 0 | EZ78: 0 | FA78: 0 | FB78: 0 | FC78: 0 | FD78: 0 | FE78: 0 | FF78: 0 | FG78: 0 | FH78: 0 | FI78: 0 | FJ78: 0 | FK78: 0 | FL78: 0 | FM78: 0 | FN78: 0 | FO78: 0 | FP78: 0 | FQ78: 0
A79: 2004-11-02 | B79: terça-feira | C79: Finados | F79: 1442 | G79: 44 | H79: 2030-05-07 | I79: 270 | J79: 126.8133744 | K79: 126.8133744 | L79: 3.795524296 | M79: 2030-02-07 | S79: 44 | T79: 270 | U79: 116.6701363 | V79: 116.6701363 | W79: 117.887104 | X79: 120.1365685 | Y79: 123.0101418 | Z79: 125.9539137 | AH79: 0 | AI79: 0 | AJ79: 0 | AK79: 0 | AL79: 0 | AM79: 0 | AN79: 0 | AO79: 0 | AP79: 0 | AQ79: 0 | AR79: 0 | AS79: 0 | AU79: 270 | AV79: 270 | AW79: 270 | AX79: 270 | AY79: 270 | AZ79: 270 | BA79: 270 | BB79: 270 | BC79: 270 | BD79: 270 | BE79: 270 | BF79: 270 | BH79: 1353 | BI79: 44 | BJ79: 2030-02-07 | BK79: 270 | BL79: 270 | BM79: 270 | BN79: 270 | BO79: 2030-02-07 | BP79: 2030-02-07 | BR79: 281.0141666 | BS79: 270 | BT79: 270 | BU79: 270 | BY79: 270 | BZ79: 270 | CA79: 270 | CB79: 270 | CC79: 270 | CD79: 270 | CE79: 270 | CF79: 270 | CG79: 270 | CH79: 270 | CI79: 270 | CJ79: 270 | CK79: 270 | CL79: 270 | CM79: 270 | CN79: 270 | CO79: 270 | CP79: 270 | CQ79: 270 | CR79: 270 | CS79: 270 | CT79: 270 | CU79: 270 | CV79: 270 | CW79: 270 | CX79: 270 | CY79: 270 | CZ79: 270 | DA79: 270 | DB79: 270 | DC79: 270 | DD79: 270 | DE79: 270 | DF79: 270 | DG79: 270 | DH79: 270 | DI79: 270 | DJ79: 270 | DK79: 270 | DL79: 270 | DM79: 270 | DN79: 270 | DO79: 270 | DP79: 270 | DQ79: 270 | DR79: 270 | DS79: 270 | DT79: 270 | DU79: 270 | DV79: 270 | DW79: 270 | DX79: 270 | DY79: 270 | DZ79: 270 | EA79: 270 | EB79: 270 | EC79: 270 | ED79: 270 | EE79: 270 | EF79: 270 | EG79: 270 | EH79: 270 | EI79: 270 | EJ79: =IF($G79>EJ$33,0,$I$9) -> 270 | EK79: 270 | EL79: 0 | EM79: 0 | EN79: 0 | EO79: 0 | EP79: 0 | EQ79: 0 | ER79: 0 | ES79: 0 | ET79: 0 | EU79: 0 | EV79: 0 | EW79: 0 | EX79: 0 | EY79: 0 | EZ79: 0 | FA79: 0 | FB79: =IF($G79>FB$33,0,$I$9) -> 0 | FC79: 0 | FD79: 0 | FE79: 0 | FF79: 0 | FG79: 0 | FH79: 0 | FI79: 0 | FJ79: 0 | FK79: 0 | FL79: 0 | FM79: 0 | FN79: 0 | FO79: 0 | FP79: 0 | FQ79: 0
A80: 2004-11-15 | B80: segunda-feira | C80: Proclamação da República | F80: 1473 | G80: 45 | H80: 2030-06-07 | I80: 270 | J80: 124.8455503 | K80: 124.8455503 | L80: 3.736627321 | M80: 2030-03-07 | S80: 45 | T80: 270 | U80: 114.5844741 | V80: 114.5844741 | W80: 115.8055176 | X80: 118.0632273 | Y80: 120.9486537 | Z80: 123.9060709 | AH80: 0 | AI80: 0 | AJ80: 0 | AK80: 0 | AL80: 0 | AM80: 0 | AN80: 0 | AO80: 0 | AP80: 0 | AQ80: 0 | AR80: 0 | AS80: 0 | AU80: 270 | AV80: 270 | AW80: 270 | AX80: 270 | AY80: 270 | AZ80: 270 | BA80: 270 | BB80: 270 | BC80: 270 | BD80: 270 | BE80: 270 | BF80: 270 | BH80: 1381 | BI80: 45 | BJ80: 2030-03-07 | BK80: 270 | BL80: 270 | BM80: 270 | BN80: 270 | BO80: 2030-03-07 | BP80: 2030-03-07 | BR80: 281.0141666 | BS80: 270 | BT80: 270 | BU80: 270 | BY80: 270 | BZ80: 270 | CA80: 270 | CB80: 270 | CC80: 270 | CD80: 270 | CE80: 270 | CF80: 270 | CG80: 270 | CH80: 270 | CI80: 270 | CJ80: 270 | CK80: 270 | CL80: 270 | CM80: 270 | CN80: 270 | CO80: 270 | CP80: 270 | CQ80: 270 | CR80: 270 | CS80: 270 | CT80: 270 | CU80: 270 | CV80: 270 | CW80: 270 | CX80: 270 | CY80: 270 | CZ80: 270 | DA80: 270 | DB80: 270 | DC80: 270 | DD80: 270 | DE80: 270 | DF80: 270 | DG80: 270 | DH80: 270 | DI80: 270 | DJ80: 270 | DK80: 270 | DL80: 270 | DM80: 270 | DN80: 270 | DO80: 270 | DP80: 270 | DQ80: 270 | DR80: 270 | DS80: 270 | DT80: 270 | DU80: 270 | DV80: 270 | DW80: 270 | DX80: 270 | DY80: 270 | DZ80: 270 | EA80: 270 | EB80: 270 | EC80: 270 | ED80: 270 | EE80: 270 | EF80: 270 | EG80: 270 | EH80: 270 | EI80: 270 | EJ80: 270 | EK80: 0 | EL80: 0 | EM80: 0 | EN80: 0 | EO80: 0 | EP80: 0 | EQ80: 0 | ER80: 0 | ES80: 0 | ET80: 0 | EU80: 0 | EV80: 0 | EW80: 0 | EX80: 0 | EY80: 0 | EZ80: 0 | FA80: 0 | FB80: 0 | FC80: 0 | FD80: 0 | FE80: 0 | FF80: 0 | FG80: 0 | FH80: 0 | FI80: 0 | FJ80: 0 | FK80: 0 | FL80: 0 | FM80: 0 | FN80: 0 | FO80: 0 | FP80: 0 | FQ80: 0
A81: 2004-12-25 | B81: sábado | C81: Natal | F81: 1503 | G81: 46 | H81: 2030-07-07 | I81: 270 | J81: 122.7024866 | K81: 122.7024866 | L81: 3.672485423 | M81: 2030-04-07 | S81: 46 | T81: 270 | U81: 112.6015981 | V81: 112.6015981 | W81: 113.8260821 | X81: 116.0908439 | Y81: 118.9865652 | Z81: 121.9559945 | AH81: 0 | AI81: 0 | AJ81: 0 | AK81: 0 | AL81: 0 | AM81: 0 | AN81: 0 | AO81: 0 | AP81: 0 | AQ81: 0 | AR81: 0 | AS81: 0 | AU81: 270 | AV81: 270 | AW81: 270 | AX81: 270 | AY81: 270 | AZ81: 270 | BA81: 270 | BB81: 270 | BC81: 270 | BD81: 270 | BE81: 270 | BF81: 270 | BH81: 1412 | BI81: 46 | BJ81: 2030-04-07 | BK81: 270 | BL81: 270 | BM81: 270 | BN81: 270 | BO81: 2030-04-07 | BP81: 2030-04-07 | BR81: 281.0141666 | BS81: 270 | BT81: 270 | BU81: 270 | BY81: 270 | BZ81: 270 | CA81: 270 | CB81: 270 | CC81: 270 | CD81: 270 | CE81: 270 | CF81: 270 | CG81: 270 | CH81: 270 | CI81: 270 | CJ81: 270 | CK81: 270 | CL81: 270 | CM81: 270 | CN81: 270 | CO81: 270 | CP81: 270 | CQ81: 270 | CR81: 270 | CS81: 270 | CT81: 270 | CU81: 270 | CV81: 270 | CW81: 270 | CX81: 270 | CY81: 270 | CZ81: 270 | DA81: 270 | DB81: 270 | DC81: 270 | DD81: 270 | DE81: 270 | DF81: 270 | DG81: 270 | DH81: 270 | DI81: 270 | DJ81: 270 | DK81: 270 | DL81: 270 | DM81: 270 | DN81: 270 | DO81: 270 | DP81: 270 | DQ81: 270 | DR81: 270 | DS81: 270 | DT81: 270 | DU81: 270 | DV81: 270 | DW81: 270 | DX81: 270 | DY81: 270 | DZ81: 270 | EA81: 270 | EB81: 270 | EC81: 270 | ED81: 270 | EE81: 270 | EF81: 270 | EG81: 270 | EH81: 270 | EI81: 270 | EJ81: 0 | EK81: 0 | EL81: 0 | EM81: 0 | EN81: 0 | EO81: 0 | EP81: 0 | EQ81: 0 | ER81: 0 | ES81: 0 | ET81: 0 | EU81: 0 | EV81: 0 | EW81: 0 | EX81: 0 | EY81: 0 | EZ81: 0 | FA81: 0 | FB81: 0 | FC81: 0 | FD81: 0 | FE81: 0 | FF81: 0 | FG81: 0 | FH81: 0 | FI81: 0 | FJ81: 0 | FK81: 0 | FL81: 0 | FM81: 0 | FN81: 0 | FO81: 0 | FP81: 0 | FQ81: 0
A82: 2005-01-01 | B82: sábado | C82: Confraternização Universal | F82: 1534 | G82: 47 | H82: 2030-08-07 | I82: 270 | J82: 120.6635867 | K82: 120.6635867 | L82: 3.611461151 | M82: 2030-05-07 | S82: 47 | T82: 270 | U82: 110.5886675 | V82: 110.5886675 | W82: 111.816203 | X82: 114.0873247 | Y82: 116.9925069 | Z82: 119.9731525 | AH82: 0 | AI82: 0 | AJ82: 0 | AK82: 0 | AL82: 0 | AM82: 0 | AN82: 0 | AO82: 0 | AP82: 0 | AQ82: 0 | AR82: 0 | AS82: 0 | AU82: 270 | AV82: 270 | AW82: 270 | AX82: 270 | AY82: 270 | AZ82: 270 | BA82: 270 | BB82: 270 | BC82: 270 | BD82: 270 | BE82: 270 | BF82: 270 | BH82: 1442 | BI82: 47 | BJ82: 2030-05-07 | BK82: 270 | BL82: 270 | BM82: 270 | BN82: 270 | BO82: 2030-05-07 | BP82: 2030-05-07 | BR82: 281.0141666 | BS82: 270 | BT82: 270 | BU82: 270 | BY82: 270 | BZ82: 270 | CA82: 270 | CB82: 270 | CC82: 270 | CD82: 270 | CE82: 270 | CF82: 270 | CG82: 270 | CH82: 270 | CI82: 270 | CJ82: 270 | CK82: 270 | CL82: 270 | CM82: 270 | CN82: 270 | CO82: 270 | CP82: 270 | CQ82: 270 | CR82: 270 | CS82: 270 | CT82: 270 | CU82: 270 | CV82: 270 | CW82: 270 | CX82: 270 | CY82: 270 | CZ82: 270 | DA82: 270 | DB82: 270 | DC82: 270 | DD82: 270 | DE82: 270 | DF82: 270 | DG82: 270 | DH82: 270 | DI82: 270 | DJ82: 270 | DK82: 270 | DL82: 270 | DM82: 270 | DN82: 270 | DO82: 270 | DP82: 270 | DQ82: 270 | DR82: 270 | DS82: 270 | DT82: 270 | DU82: 270 | DV82: 270 | DW82: 270 | DX82: 270 | DY82: 270 | DZ82: 270 | EA82: 270 | EB82: 270 | EC82: 270 | ED82: 270 | EE82: 270 | EF82: 270 | EG82: 270 | EH82: 270 | EI82: 0 | EJ82: 0 | EK82: 0 | EL82: 0 | EM82: 0 | EN82: 0 | EO82: 0 | EP82: 0 | EQ82: 0 | ER82: 0 | ES82: 0 | ET82: 0 | EU82: 0 | EV82: 0 | EW82: 0 | EX82: 0 | EY82: 0 | EZ82: 0 | FA82: 0 | FB82: 0 | FC82: 0 | FD82: 0 | FE82: 0 | FF82: 0 | FG82: 0 | FH82: 0 | FI82: 0 | FJ82: 0 | FK82: 0 | FL82: 0 | FM82: 0 | FN82: 0 | FO82: 0 | FP82: 0 | FQ82: 0
A83: 2005-02-07 | B83: segunda-feira | C83: Carnaval | F83: 1565 | G83: 48 | H83: 2030-09-07 | I83: 270 | J83: 118.5923094 | K83: 118.5923094 | L83: 3.54946782 | M83: 2030-06-07 | S83: 48 | T83: 270 | U83: 108.6117211 | V83: 108.6117211 | W83: 109.8418134 | X83: 112.1183827 | Y83: 115.0318664 | Z83: 118.0225489 | AH83: 0 | AI83: 0 | AJ83: 0 | AK83: 0 | AL83: 0 | AM83: 0 | AN83: 0 | AO83: 0 | AP83: 0 | AQ83: 0 | AR83: 0 | AS83: 0 | AU83: 270 | AV83: 270 | AW83: 270 | AX83: 270 | AY83: 270 | AZ83: 270 | BA83: 270 | BB83: 270 | BC83: 270 | BD83: 270 | BE83: 270 | BF83: 270 | BH83: 1473 | BI83: 48 | BJ83: 2030-06-07 | BK83: 270 | BL83: 270 | BM83: 270 | BN83: 270 | BO83: 2030-06-07 | BP83: 2030-06-07 | BR83: 281.0141666 | BS83: 270 | BT83: 270 | BU83: 270 | BY83: 270 | BZ83: 270 | CA83: 270 | CB83: 270 | CC83: 270 | CD83: 270 | CE83: 270 | CF83: 270 | CG83: 270 | CH83: 270 | CI83: 270 | CJ83: 270 | CK83: 270 | CL83: 270 | CM83: 270 | CN83: 270 | CO83: =IF($G83>CO$33,0,$I$9) -> 270 | CP83: 270 | CQ83: 270 | CR83: 270 | CS83: 270 | CT83: 270 | CU83: 270 | CV83: 270 | CW83: 270 | CX83: 270 | CY83: 270 | CZ83: 270 | DA83: 270 | DB83: 270 | DC83: 270 | DD83: 270 | DE83: 270 | DF83: 270 | DG83: 270 | DH83: 270 | DI83: 270 | DJ83: 270 | DK83: 270 | DL83: 270 | DM83: 270 | DN83: 270 | DO83: 270 | DP83: 270 | DQ83: 270 | DR83: 270 | DS83: 270 | DT83: 270 | DU83: 270 | DV83: 270 | DW83: 270 | DX83: 270 | DY83: 270 | DZ83: 270 | EA83: 270 | EB83: 270 | EC83: 270 | ED83: 270 | EE83: 270 | EF83: 270 | EG83: 270 | EH83: 0 | EI83: 0 | EJ83: 0 | EK83: 0 | EL83: 0 | EM83: 0 | EN83: 0 | EO83: 0 | EP83: 0 | EQ83: 0 | ER83: 0 | ES83: 0 | ET83: 0 | EU83: 0 | EV83: 0 | EW83: 0 | EX83: 0 | EY83: 0 | EZ83: 0 | FA83: 0 | FB83: 0 | FC83: 0 | FD83: 0 | FE83: 0 | FF83: 0 | FG83: 0 | FH83: 0 | FI83: 0 | FJ83: 0 | FK83: 0 | FL83: 0 | FM83: 0 | FN83: 0 | FO83: 0 | FP83: 0 | FQ83: 0
A84: 2005-02-08 | B84: terça-feira | C84: Carnaval | F84: 1595 | G84: 49 | H84: 2030-10-07 | I84: 270 | J84: 116.6217068 | K84: 116.6217068 | L84: 3.490487685 | M84: 2030-07-07 | S84: 49 | T84: 270 | U84: =$T84/((U$29)^($H84-$H$35)) -> 106.7322031 | V84: 106.7322031 | W84: 107.9643139 | X84: 110.2453148 | Y84: 113.1657629 | Z84: 116.1650694 | AH84: 0 | AI84: 0 | AJ84: 0 | AK84: 0 | AL84: 0 | AM84: 0 | AN84: 0 | AO84: 0 | AP84: 0 | AQ84: 0 | AR84: 0 | AS84: 0 | AU84: =$T84 -> 270 | AV84: 270 | AW84: 270 | AX84: 270 | AY84: 270 | AZ84: 270 | BA84: 270 | BB84: 270 | BC84: 270 | BD84: 270 | BE84: 270 | BF84: 270 | BH84: 1503 | BI84: 49 | BJ84: 2030-07-07 | BK84: 270 | BL84: 270 | BM84: 270 | BN84: 270 | BO84: 2030-07-07 | BP84: 2030-07-07 | BR84: 281.0141666 | BS84: 270 | BT84: 270 | BU84: 270 | BY84: 270 | BZ84: 270 | CA84: 270 | CB84: 270 | CC84: 270 | CD84: 270 | CE84: 270 | CF84: 270 | CG84: 270 | CH84: 270 | CI84: 270 | CJ84: 270 | CK84: 270 | CL84: 270 | CM84: 270 | CN84: 270 | CO84: =IF($G84>CO$33,0,$I$9) -> 270 | CP84: 270 | CQ84: 270 | CR84: 270 | CS84: 270 | CT84: 270 | CU84: 270 | CV84: 270 | CW84: 270 | CX84: 270 | CY84: 270 | CZ84: 270 | DA84: 270 | DB84: 270 | DC84: 270 | DD84: 270 | DE84: 270 | DF84: 270 | DG84: 270 | DH84: 270 | DI84: 270 | DJ84: 270 | DK84: 270 | DL84: 270 | DM84: 270 | DN84: 270 | DO84: 270 | DP84: 270 | DQ84: 270 | DR84: 270 | DS84: 270 | DT84: 270 | DU84: 270 | DV84: 270 | DW84: 270 | DX84: 270 | DY84: 270 | DZ84: 270 | EA84: 270 | EB84: 270 | EC84: 270 | ED84: 270 | EE84: 270 | EF84: 270 | EG84: 0 | EH84: 0 | EI84: 0 | EJ84: 0 | EK84: 0 | EL84: 0 | EM84: =IF($G84>EM$33,0,$I$9) -> 0 | EN84: 0 | EO84: 0 | EP84: 0 | EQ84: 0 | ER84: 0 | ES84: 0 | ET84: 0 | EU84: 0 | EV84: 0 | EW84: 0 | EX84: 0 | EY84: 0 | EZ84: 0 | FA84: 0 | FB84: 0 | FC84: 0 | FD84: 0 | FE84: 0 | FF84: 0 | FG84: 0 | FH84: 0 | FI84: 0 | FJ84: 0 | FK84: 0 | FL84: 0 | FM84: 0 | FN84: 0 | FO84: 0 | FP84: 0 | FQ84: 0
A85: 2005-03-25 | B85: sexta-feira | C85: Paixão de Cristo | F85: 1626 | G85: 50 | H85: 2030-11-07 | I85: 270 | J85: 114.6198112 | K85: 114.6198112 | L85: 3.430570951 | M85: 2030-08-07 | S85: 50 | T85: 270 | U85: 104.8241972 | V85: 104.8241972 | W85: 106.0579388 | X85: 108.3426789 | Y85: 111.2692536 | Z85: 114.2763802 | AH85: 0 | AI85: 0 | AJ85: 0 | AK85: 0 | AL85: 0 | AM85: 0 | AN85: 0 | AO85: 0 | AP85: 0 | AQ85: 0 | AR85: 0 | AS85: 0 | AU85: 270 | AV85: 270 | AW85: 270 | AX85: 270 | AY85: 270 | AZ85: 270 | BA85: 270 | BB85: 270 | BC85: 270 | BD85: 270 | BE85: 270 | BF85: 270 | BH85: 1534 | BI85: 50 | BJ85: 2030-08-07 | BK85: 270 | BL85: 270 | BM85: 270 | BN85: 270 | BO85: 2030-08-07 | BP85: 2030-08-07 | BR85: 281.0141666 | BS85: 270 | BT85: 270 | BU85: 270 | BY85: =IF($G85>BY$33,0,$I$9) -> 270 | BZ85: 270 | CA85: 270 | CB85: 270 | CC85: 270 | CD85: 270 | CE85: 270 | CF85: 270 | CG85: 270 | CH85: 270 | CI85: 270 | CJ85: 270 | CK85: 270 | CL85: 270 | CM85: 270 | CN85: 270 | CO85: 270 | CP85: 270 | CQ85: 270 | CR85: 270 | CS85: 270 | CT85: 270 | CU85: 270 | CV85: 270 | CW85: 270 | CX85: 270 | CY85: 270 | CZ85: 270 | DA85: 270 | DB85: 270 | DC85: 270 | DD85: 270 | DE85: 270 | DF85: 270 | DG85: 270 | DH85: 270 | DI85: 270 | DJ85: 270 | DK85: 270 | DL85: 270 | DM85: 270 | DN85: 270 | DO85: 270 | DP85: 270 | DQ85: 270 | DR85: 270 | DS85: 270 | DT85: 270 | DU85: 270 | DV85: 270 | DW85: 270 | DX85: 270 | DY85: 270 | DZ85: 270 | EA85: 270 | EB85: 270 | EC85: 270 | ED85: 270 | EE85: 270 | EF85: 0 | EG85: 0 | EH85: 0 | EI85: 0 | EJ85: 0 | EK85: 0 | EL85: 0 | EM85: 0 | EN85: 0 | EO85: 0 | EP85: 0 | EQ85: 0 | ER85: 0 | ES85: 0 | ET85: 0 | EU85: 0 | EV85: 0 | EW85: 0 | EX85: 0 | EY85: 0 | EZ85: 0 | FA85: 0 | FB85: 0 | FC85: 0 | FD85: 0 | FE85: 0 | FF85: 0 | FG85: 0 | FH85: 0 | FI85: 0 | FJ85: 0 | FK85: 0 | FL85: 0 | FM85: 0 | FN85: 0 | FO85: 0 | FP85: 0 | FQ85: 0
A86: 2005-04-21 | B86: quinta-feira | C86: Tiradentes | F86: 1656 | G86: 51 | H86: 2030-12-07 | I86: 270 | J86: 112.6522797 | K86: 112.6522797 | L86: 3.371682731 | M86: 2030-09-07 | S86: 51 | T86: 270 | U86: 103.010222 | V86: 103.010222 | W86: 104.2451163 | X86: 106.5326885 | Y86: 109.4641891 | Z86: 112.4778592 | AH86: 0 | AI86: 0 | AJ86: 0 | AK86: 0 | AL86: 0 | AM86: 0 | AN86: 0 | AO86: 0 | AP86: 0 | AQ86: 0 | AR86: 0 | AS86: 0 | AU86: 270 | AV86: 270 | AW86: 270 | AX86: 270 | AY86: 270 | AZ86: 270 | BA86: 270 | BB86: 270 | BC86: 270 | BD86: 270 | BE86: 270 | BF86: 270 | BH86: 1565 | BI86: 51 | BJ86: 2030-09-07 | BK86: 270 | BL86: 270 | BM86: 270 | BN86: 270 | BO86: 2030-09-07 | BP86: 2030-09-07 | BR86: 281.0141666 | BS86: 270 | BT86: 270 | BU86: 270 | BY86: 270 | BZ86: 270 | CA86: 270 | CB86: 270 | CC86: 270 | CD86: 270 | CE86: 270 | CF86: 270 | CG86: 270 | CH86: 270 | CI86: 270 | CJ86: 270 | CK86: 270 | CL86: 270 | CM86: 270 | CN86: 270 | CO86: 270 | CP86: 270 | CQ86: 270 | CR86: 270 | CS86: 270 | CT86: 270 | CU86: 270 | CV86: 270 | CW86: 270 | CX86: 270 | CY86: 270 | CZ86: 270 | DA86: 270 | DB86: 270 | DC86: 270 | DD86: 270 | DE86: 270 | DF86: 270 | DG86: 270 | DH86: 270 | DI86: 270 | DJ86: 270 | DK86: 270 | DL86: 270 | DM86: 270 | DN86: 270 | DO86: 270 | DP86: 270 | DQ86: 270 | DR86: 270 | DS86: 270 | DT86: 270 | DU86: 270 | DV86: 270 | DW86: 270 | DX86: 270 | DY86: 270 | DZ86: 270 | EA86: 270 | EB86: 270 | EC86: 270 | ED86: 270 | EE86: 0 | EF86: 0 | EG86: 0 | EH86: 0 | EI86: 0 | EJ86: 0 | EK86: 0 | EL86: 0 | EM86: 0 | EN86: 0 | EO86: 0 | EP86: 0 | EQ86: 0 | ER86: 0 | ES86: 0 | ET86: 0 | EU86: 0 | EV86: 0 | EW86: 0 | EX86: 0 | EY86: 0 | EZ86: 0 | FA86: 0 | FB86: 0 | FC86: 0 | FD86: 0 | FE86: 0 | FF86: 0 | FG86: 0 | FH86: 0 | FI86: 0 | FJ86: 0 | FK86: 0 | FL86: 0 | FM86: 0 | FN86: 0 | FO86: 0 | FP86: 0 | FQ86: 0
A87: 2005-05-01 | B87: domingo | C87: Dia do Trabalho | F87: 1687 | G87: 52 | H87: 2031-01-07 | I87: 270 | J87: 110.7803803 | K87: 110.7803803 | L87: 3.315656781 | M87: 2030-10-07 | S87: 52 | T87: 270 | U87: 101.1687523 | V87: 101.1687523 | W87: 102.4044127 | X87: 104.6941259 | Y87: 107.6297133 | Z87: 110.6491191 | AH87: 0 | AI87: 0 | AJ87: 0 | AK87: 0 | AL87: 0 | AM87: 0 | AN87: 0 | AO87: 0 | AP87: 0 | AQ87: 0 | AR87: 0 | AS87: 0 | AU87: 270 | AV87: 270 | AW87: 270 | AX87: 270 | AY87: 270 | AZ87: 270 | BA87: 270 | BB87: 270 | BC87: 270 | BD87: 270 | BE87: 270 | BF87: 270 | BH87: 1595 | BI87: 52 | BJ87: 2030-10-07 | BK87: 270 | BL87: 270 | BM87: 270 | BN87: 270 | BO87: 2030-10-07 | BP87: 2030-10-07 | BR87: 281.0141666 | BS87: 270 | BT87: 270 | BU87: 270 | BY87: 270 | BZ87: 270 | CA87: 270 | CB87: 270 | CC87: 270 | CD87: 270 | CE87: 270 | CF87: 270 | CG87: 270 | CH87: 270 | CI87: 270 | CJ87: 270 | CK87: 270 | CL87: 270 | CM87: 270 | CN87: 270 | CO87: 270 | CP87: 270 | CQ87: 270 | CR87: 270 | CS87: 270 | CT87: 270 | CU87: 270 | CV87: 270 | CW87: 270 | CX87: 270 | CY87: 270 | CZ87: 270 | DA87: 270 | DB87: 270 | DC87: 270 | DD87: 270 | DE87: 270 | DF87: 270 | DG87: 270 | DH87: 270 | DI87: 270 | DJ87: 270 | DK87: 270 | DL87: 270 | DM87: 270 | DN87: 270 | DO87: 270 | DP87: 270 | DQ87: 270 | DR87: 270 | DS87: 270 | DT87: 270 | DU87: 270 | DV87: 270 | DW87: 270 | DX87: 270 | DY87: 270 | DZ87: 270 | EA87: 270 | EB87: 270 | EC87: 270 | ED87: 0 | EE87: 0 | EF87: 0 | EG87: 0 | EH87: 0 | EI87: 0 | EJ87: 0 | EK87: 0 | EL87: 0 | EM87: 0 | EN87: 0 | EO87: 0 | EP87: 0 | EQ87: 0 | ER87: 0 | ES87: 0 | ET87: 0 | EU87: 0 | EV87: 0 | EW87: 0 | EX87: 0 | EY87: 0 | EZ87: 0 | FA87: 0 | FB87: 0 | FC87: 0 | FD87: 0 | FE87: 0 | FF87: 0 | FG87: 0 | FH87: 0 | FI87: 0 | FJ87: 0 | FK87: 0 | FL87: 0 | FM87: 0 | FN87: 0 | FO87: 0 | FP87: 0 | FQ87: 0
A88: 2005-05-26 | B88: quinta-feira | C88: Corpus Christi | F88: 1718 | G88: 53 | H88: 2031-02-07 | I88: 270 | J88: 108.8787553 | K88: 108.8787553 | L88: 3.258741145 | M88: 2030-11-07 | S88: 53 | T88: 270 | U88: 99.36020181 | V88: 99.36020181 | W88: 100.5962113 | X88: 102.8872936 | Y88: 105.8259809 | Z88: 108.8501118 | AH88: 0 | AI88: 0 | AJ88: 0 | AK88: 0 | AL88: 0 | AM88: 0 | AN88: 0 | AO88: 0 | AP88: 0 | AQ88: 0 | AR88: 0 | AS88: 0 | AU88: 270 | AV88: 270 | AW88: 270 | AX88: 270 | AY88: 270 | AZ88: 270 | BA88: 270 | BB88: 270 | BC88: 270 | BD88: 270 | BE88: 270 | BF88: 270 | BH88: 1626 | BI88: 53 | BJ88: 2030-11-07 | BK88: 270 | BL88: 270 | BM88: 270 | BN88: 270 | BO88: 2030-11-07 | BP88: 2030-11-07 | BR88: 281.0141666 | BS88: 270 | BT88: 270 | BU88: 270 | BY88: 270 | BZ88: 270 | CA88: 270 | CB88: 270 | CC88: 270 | CD88: 270 | CE88: 270 | CF88: 270 | CG88: 270 | CH88: 270 | CI88: 270 | CJ88: 270 | CK88: 270 | CL88: 270 | CM88: 270 | CN88: 270 | CO88: 270 | CP88: 270 | CQ88: 270 | CR88: 270 | CS88: 270 | CT88: 270 | CU88: 270 | CV88: 270 | CW88: 270 | CX88: 270 | CY88: 270 | CZ88: 270 | DA88: 270 | DB88: 270 | DC88: 270 | DD88: 270 | DE88: 270 | DF88: 270 | DG88: 270 | DH88: 270 | DI88: 270 | DJ88: 270 | DK88: 270 | DL88: 270 | DM88: 270 | DN88: 270 | DO88: 270 | DP88: 270 | DQ88: 270 | DR88: 270 | DS88: 270 | DT88: 270 | DU88: 270 | DV88: 270 | DW88: 270 | DX88: 270 | DY88: 270 | DZ88: 270 | EA88: 270 | EB88: 270 | EC88: 0 | ED88: 0 | EE88: 0 | EF88: 0 | EG88: 0 | EH88: 0 | EI88: 0 | EJ88: 0 | EK88: 0 | EL88: 0 | EM88: 0 | EN88: 0 | EO88: 0 | EP88: 0 | EQ88: 0 | ER88: 0 | ES88: 0 | ET88: 0 | EU88: 0 | EV88: 0 | EW88: 0 | EX88: 0 | EY88: 0 | EZ88: 0 | FA88: 0 | FB88: 0 | FC88: 0 | FD88: 0 | FE88: 0 | FF88: 0 | FG88: 0 | FH88: 0 | FI88: 0 | FJ88: 0 | FK88: 0 | FL88: 0 | FM88: 0 | FN88: 0 | FO88: 0 | FP88: 0 | FQ88: 0
A89: 2005-09-07 | B89: quarta-feira | C89: Independência do Brasil | F89: 1746 | G89: 54 | H89: 2031-03-07 | I89: 270 | J89: 107.0695591 | K89: 107.0695591 | L89: 3.204591902 | M89: 2030-12-07 | S89: 54 | T89: 270 | U89: 97.75447732 | V89: 97.75447732 | W89: 98.99045585 | X89: 101.2821331 | Y89: 104.2227991 | Z89: 107.2503558 | AH89: 0 | AI89: 0 | AJ89: 0 | AK89: 0 | AL89: 0 | AM89: 0 | AN89: 0 | AO89: 0 | AP89: 0 | AQ89: 0 | AR89: 0 | AS89: 0 | AU89: 270 | AV89: 270 | AW89: 270 | AX89: 270 | AY89: 270 | AZ89: 270 | BA89: 270 | BB89: 270 | BC89: 270 | BD89: 270 | BE89: 270 | BF89: 270 | BH89: 1656 | BI89: 54 | BJ89: 2030-12-07 | BK89: 270 | BL89: 270 | BM89: 270 | BN89: 270 | BO89: 2030-12-07 | BP89: 2030-12-07 | BR89: 281.0141666 | BS89: 270 | BT89: 270 | BU89: 270 | BY89: 270 | BZ89: 270 | CA89: 270 | CB89: 270 | CC89: 270 | CD89: 270 | CE89: 270 | CF89: 270 | CG89: 270 | CH89: 270 | CI89: 270 | CJ89: 270 | CK89: 270 | CL89: 270 | CM89: 270 | CN89: 270 | CO89: 270 | CP89: 270 | CQ89: 270 | CR89: 270 | CS89: 270 | CT89: 270 | CU89: 270 | CV89: 270 | CW89: 270 | CX89: 270 | CY89: 270 | CZ89: 270 | DA89: 270 | DB89: 270 | DC89: 270 | DD89: 270 | DE89: 270 | DF89: 270 | DG89: 270 | DH89: 270 | DI89: 270 | DJ89: 270 | DK89: 270 | DL89: 270 | DM89: 270 | DN89: 270 | DO89: 270 | DP89: 270 | DQ89: 270 | DR89: 270 | DS89: 270 | DT89: 270 | DU89: 270 | DV89: 270 | DW89: 270 | DX89: 270 | DY89: 270 | DZ89: 270 | EA89: 270 | EB89: 0 | EC89: =IF($G89>EC$33,0,$I$9) -> 0 | ED89: 0 | EE89: 0 | EF89: 0 | EG89: 0 | EH89: 0 | EI89: 0 | EJ89: 0 | EK89: 0 | EL89: 0 | EM89: 0 | EN89: 0 | EO89: 0 | EP89: 0 | EQ89: 0 | ER89: 0 | ES89: 0 | ET89: 0 | EU89: 0 | EV89: 0 | EW89: 0 | EX89: 0 | EY89: 0 | EZ89: 0 | FA89: 0 | FB89: 0 | FC89: 0 | FD89: 0 | FE89: 0 | FF89: 0 | FG89: 0 | FH89: 0 | FI89: 0 | FJ89: 0 | FK89: 0 | FL89: 0 | FM89: 0 | FN89: 0 | FO89: 0 | FP89: 0 | FQ89: 0
A90: 2005-10-12 | B90: quarta-feira | C90: Nossa Sr.a Aparecida - Padroeira do Brasil | F90: 1777 | G90: 55 | H90: 2031-04-07 | I90: 270 | J90: 105.231633 | K90: 105.231633 | L90: 3.149582775 | M90: 2031-01-07 | S90: 55 | T90: 270 | U90: 96.00696233 | V90: 96.00696233 | W90: 97.24253624 | X90: 99.53418566 | Y90: 102.4761621 | Z90: 105.5066079 | AH90: 0 | AI90: 0 | AJ90: 0 | AK90: 0 | AL90: 0 | AM90: 0 | AN90: 0 | AO90: 0 | AP90: 0 | AQ90: 0 | AR90: 0 | AS90: 0 | AU90: 270 | AV90: 270 | AW90: 270 | AX90: 270 | AY90: 270 | AZ90: 270 | BA90: 270 | BB90: 270 | BC90: 270 | BD90: 270 | BE90: 270 | BF90: 270 | BH90: 1687 | BI90: 55 | BJ90: 2031-01-07 | BK90: 270 | BL90: 270 | BM90: 270 | BN90: 270 | BO90: 2031-01-07 | BP90: 2031-01-07 | BR90: 281.0141666 | BS90: 270 | BT90: 270 | BU90: 270 | BY90: 270 | BZ90: 270 | CA90: 270 | CB90: 270 | CC90: 270 | CD90: 270 | CE90: 270 | CF90: 270 | CG90: 270 | CH90: 270 | CI90: 270 | CJ90: 270 | CK90: 270 | CL90: 270 | CM90: 270 | CN90: 270 | CO90: 270 | CP90: 270 | CQ90: 270 | CR90: 270 | CS90: 270 | CT90: 270 | CU90: 270 | CV90: 270 | CW90: 270 | CX90: 270 | CY90: 270 | CZ90: 270 | DA90: 270 | DB90: 270 | DC90: 270 | DD90: 270 | DE90: 270 | DF90: 270 | DG90: 270 | DH90: 270 | DI90: 270 | DJ90: 270 | DK90: 270 | DL90: 270 | DM90: 270 | DN90: 270 | DO90: 270 | DP90: 270 | DQ90: 270 | DR90: 270 | DS90: 270 | DT90: 270 | DU90: 270 | DV90: 270 | DW90: 270 | DX90: 270 | DY90: 270 | DZ90: 270 | EA90: 0 | EB90: 0 | EC90: 0 | ED90: 0 | EE90: 0 | EF90: 0 | EG90: 0 | EH90: 0 | EI90: 0 | EJ90: 0 | EK90: 0 | EL90: 0 | EM90: 0 | EN90: 0 | EO90: 0 | EP90: 0 | EQ90: 0 | ER90: 0 | ES90: 0 | ET90: 0 | EU90: 0 | EV90: 0 | EW90: 0 | EX90: 0 | EY90: 0 | EZ90: 0 | FA90: 0 | FB90: 0 | FC90: 0 | FD90: 0 | FE90: 0 | FF90: 0 | FG90: 0 | FH90: 0 | FI90: 0 | FJ90: 0 | FK90: 0 | FL90: 0 | FM90: 0 | FN90: 0 | FO90: 0 | FP90: 0 | FQ90: 0
A91: 2005-11-02 | B91: quarta-feira | C91: Finados | F91: 1807 | G91: 56 | H91: 2031-05-07 | I91: 270 | J91: 103.4252563 | K91: 103.4252563 | L91: 3.09551792 | M91: 2031-02-07 | S91: 56 | T91: 270 | U91: 94.34556878 | V91: 94.34556878 | W91: 95.58039321 | X91: 97.8713514 | Y91: 100.8137435 | Z91: 103.8461087 | AH91: 0 | AI91: 0 | AJ91: 0 | AK91: 0 | AL91: 0 | AM91: 0 | AN91: 0 | AO91: 0 | AP91: 0 | AQ91: 0 | AR91: 0 | AS91: 0 | AU91: 270 | AV91: 270 | AW91: 270 | AX91: 270 | AY91: 270 | AZ91: 270 | BA91: 270 | BB91: 270 | BC91: 270 | BD91: 270 | BE91: 270 | BF91: 270 | BH91: 1718 | BI91: 56 | BJ91: 2031-02-07 | BK91: 270 | BL91: 270 | BM91: 270 | BN91: 270 | BO91: 2031-02-07 | BP91: 2031-02-07 | BR91: 281.0141666 | BS91: 270 | BT91: 270 | BU91: 270 | BY91: 270 | BZ91: 270 | CA91: 270 | CB91: 270 | CC91: 270 | CD91: 270 | CE91: 270 | CF91: 270 | CG91: 270 | CH91: 270 | CI91: 270 | CJ91: 270 | CK91: 270 | CL91: 270 | CM91: 270 | CN91: 270 | CO91: 270 | CP91: 270 | CQ91: 270 | CR91: 270 | CS91: 270 | CT91: 270 | CU91: 270 | CV91: 270 | CW91: 270 | CX91: 270 | CY91: 270 | CZ91: 270 | DA91: 270 | DB91: 270 | DC91: 270 | DD91: 270 | DE91: 270 | DF91: 270 | DG91: 270 | DH91: 270 | DI91: 270 | DJ91: 270 | DK91: 270 | DL91: 270 | DM91: 270 | DN91: 270 | DO91: 270 | DP91: 270 | DQ91: 270 | DR91: 270 | DS91: 270 | DT91: 270 | DU91: 270 | DV91: 270 | DW91: 270 | DX91: 270 | DY91: 270 | DZ91: 0 | EA91: 0 | EB91: 0 | EC91: 0 | ED91: 0 | EE91: 0 | EF91: 0 | EG91: 0 | EH91: 0 | EI91: 0 | EJ91: 0 | EK91: 0 | EL91: 0 | EM91: 0 | EN91: 0 | EO91: 0 | EP91: 0 | EQ91: 0 | ER91: 0 | ES91: 0 | ET91: 0 | EU91: 0 | EV91: 0 | EW91: 0 | EX91: 0 | EY91: 0 | EZ91: 0 | FA91: 0 | FB91: 0 | FC91: 0 | FD91: 0 | FE91: 0 | FF91: 0 | FG91: 0 | FH91: 0 | FI91: 0 | FJ91: 0 | FK91: 0 | FL91: 0 | FM91: 0 | FN91: 0 | FO91: 0 | FP91: 0 | FQ91: 0
A92: 2005-11-15 | B92: terça-feira | C92: Proclamação da República | F92: 1838 | G92: 57 | H92: 2031-06-07 | I92: 270 | J92: 101.8203568 | K92: 101.8203568 | L92: 3.04748328 | M92: 2031-03-07 | S92: 57 | T92: 270 | U92: 92.65899339 | V92: 92.65899339 | W92: 93.89268663 | X92: 96.18226788 | Y92: 99.12423774 | Z92: 102.1577093 | AH92: 0 | AI92: 0 | AJ92: 0 | AK92: 0 | AL92: 0 | AM92: 0 | AN92: 0 | AO92: 0 | AP92: 0 | AQ92: 0 | AR92: 0 | AS92: 0 | AU92: 270 | AV92: 270 | AW92: 270 | AX92: 270 | AY92: 270 | AZ92: 270 | BA92: 270 | BB92: 270 | BC92: 270 | BD92: 270 | BE92: 270 | BF92: 270 | BH92: 1746 | BI92: 57 | BJ92: 2031-03-07 | BK92: 270 | BL92: 270 | BM92: 270 | BN92: 270 | BO92: 2031-03-07 | BP92: 2031-03-07 | BR92: 281.0141666 | BS92: 270 | BT92: 270 | BU92: 270 | BY92: 270 | BZ92: 270 | CA92: 270 | CB92: 270 | CC92: 270 | CD92: 270 | CE92: 270 | CF92: 270 | CG92: 270 | CH92: 270 | CI92: 270 | CJ92: 270 | CK92: 270 | CL92: 270 | CM92: 270 | CN92: 270 | CO92: 270 | CP92: 270 | CQ92: 270 | CR92: 270 | CS92: 270 | CT92: 270 | CU92: 270 | CV92: 270 | CW92: 270 | CX92: 270 | CY92: 270 | CZ92: 270 | DA92: 270 | DB92: 270 | DC92: 270 | DD92: 270 | DE92: 270 | DF92: 270 | DG92: 270 | DH92: 270 | DI92: 270 | DJ92: 270 | DK92: 270 | DL92: 270 | DM92: 270 | DN92: 270 | DO92: 270 | DP92: 270 | DQ92: 270 | DR92: 270 | DS92: 270 | DT92: 270 | DU92: 270 | DV92: 270 | DW92: 270 | DX92: 270 | DY92: 0 | DZ92: 0 | EA92: 0 | EB92: 0 | EC92: 0 | ED92: 0 | EE92: 0 | EF92: 0 | EG92: 0 | EH92: 0 | EI92: 0 | EJ92: 0 | EK92: 0 | EL92: 0 | EM92: 0 | EN92: 0 | EO92: 0 | EP92: 0 | EQ92: 0 | ER92: 0 | ES92: 0 | ET92: 0 | EU92: 0 | EV92: 0 | EW92: 0 | EX92: 0 | EY92: 0 | EZ92: 0 | FA92: 0 | FB92: 0 | FC92: 0 | FD92: 0 | FE92: 0 | FF92: 0 | FG92: 0 | FH92: 0 | FI92: 0 | FJ92: 0 | FK92: 0 | FL92: 0 | FM92: 0 | FN92: 0 | FO92: 0 | FP92: 0 | FQ92: 0
A93: 2005-12-25 | B93: domingo | C93: Natal | F93: 1868 | G93: 58 | H93: 2031-07-07 | I93: 270 | J93: 100.0725371 | K93: 100.0725371 | L93: 2.995171035 | M93: 2031-04-07 | S93: 58 | T93: 270 | U93: 91.0555362 | V93: 91.0555362 | W93: 92.28780176 | X93: 94.5754313 | Y93: 97.51619567 | Z93: 100.5499161 | AH93: 0 | AI93: 0 | AJ93: 0 | AK93: 0 | AL93: 0 | AM93: 0 | AN93: 0 | AO93: 0 | AP93: 0 | AQ93: 0 | AR93: 0 | AS93: 0 | AU93: 270 | AV93: 270 | AW93: 270 | AX93: 270 | AY93: 270 | AZ93: 270 | BA93: 270 | BB93: 270 | BC93: 270 | BD93: 270 | BE93: 270 | BF93: 270 | BH93: 1777 | BI93: 58 | BJ93: 2031-04-07 | BK93: 270 | BL93: 270 | BM93: 270 | BN93: 270 | BO93: 2031-04-07 | BP93: 2031-04-07 | BR93: 281.0141666 | BS93: 270 | BT93: 270 | BU93: 270 | BY93: 270 | BZ93: 270 | CA93: 270 | CB93: 270 | CC93: 270 | CD93: 270 | CE93: 270 | CF93: 270 | CG93: 270 | CH93: 270 | CI93: 270 | CJ93: 270 | CK93: 270 | CL93: 270 | CM93: 270 | CN93: 270 | CO93: 270 | CP93: 270 | CQ93: 270 | CR93: 270 | CS93: 270 | CT93: 270 | CU93: 270 | CV93: 270 | CW93: 270 | CX93: 270 | CY93: 270 | CZ93: 270 | DA93: 270 | DB93: 270 | DC93: 270 | DD93: 270 | DE93: 270 | DF93: 270 | DG93: 270 | DH93: 270 | DI93: 270 | DJ93: 270 | DK93: 270 | DL93: 270 | DM93: 270 | DN93: 270 | DO93: 270 | DP93: 270 | DQ93: 270 | DR93: 270 | DS93: 270 | DT93: 270 | DU93: 270 | DV93: 270 | DW93: 270 | DX93: 0 | DY93: 0 | DZ93: 0 | EA93: 0 | EB93: 0 | EC93: 0 | ED93: 0 | EE93: 0 | EF93: 0 | EG93: 0 | EH93: 0 | EI93: 0 | EJ93: 0 | EK93: 0 | EL93: 0 | EM93: 0 | EN93: 0 | EO93: 0 | EP93: 0 | EQ93: 0 | ER93: 0 | ES93: 0 | ET93: 0 | EU93: 0 | EV93: 0 | EW93: 0 | EX93: 0 | EY93: 0 | EZ93: 0 | FA93: 0 | FB93: 0 | FC93: 0 | FD93: 0 | FE93: =IF($G93>FE$33,0,$I$9) -> 0 | FF93: 0 | FG93: 0 | FH93: 0 | FI93: 0 | FJ93: 0 | FK93: 0 | FL93: 0 | FM93: 0 | FN93: 0 | FO93: 0 | FP93: 0 | FQ93: 0
A94: 2006-01-01 | B94: domingo | C94: Confraternização Universal | F94: 1899 | G94: 59 | H94: 2031-08-07 | I94: 270 | J94: 98.4096704 | K94: 98.4096704 | L94: 2.945401435 | M94: 2031-05-07 | S94: 59 | T94: 270 | U94: 89.42777532 | V94: 89.42777532 | W94: 90.65823397 | X94: 92.94322944 | Y94: 95.88195251 | Z94: =$T94/((Z$29)^($H94-$H$35)) -> 98.91510846 | AH94: 0 | AI94: 0 | AJ94: 0 | AK94: 0 | AL94: 0 | AM94: 0 | AN94: 0 | AO94: 0 | AP94: 0 | AQ94: 0 | AR94: 0 | AS94: 0 | AU94: 270 | AV94: 270 | AW94: 270 | AX94: 270 | AY94: 270 | AZ94: 270 | BA94: 270 | BB94: 270 | BC94: 270 | BD94: 270 | BE94: 270 | BF94: 270 | BH94: 1807 | BI94: 59 | BJ94: 2031-05-07 | BK94: 270 | BL94: 270 | BM94: 270 | BN94: 0 | BO94: 2031-05-07 | BP94: 2031-05-07 | BR94: 281.0141666 | BS94: 270 | BT94: 270 | BU94: 270 | BY94: 270 | BZ94: 270 | CA94: 270 | CB94: 270 | CC94: 270 | CD94: 270 | CE94: 270 | CF94: 270 | CG94: 270 | CH94: 270 | CI94: 270 | CJ94: 270 | CK94: 270 | CL94: 270 | CM94: 270 | CN94: 270 | CO94: 270 | CP94: 270 | CQ94: 270 | CR94: 270 | CS94: 270 | CT94: 270 | CU94: 270 | CV94: 270 | CW94: 270 | CX94: 270 | CY94: 270 | CZ94: 270 | DA94: 270 | DB94: 270 | DC94: 270 | DD94: 270 | DE94: 270 | DF94: 270 | DG94: 270 | DH94: 270 | DI94: 270 | DJ94: 270 | DK94: 270 | DL94: 270 | DM94: 270 | DN94: 270 | DO94: 270 | DP94: 270 | DQ94: 270 | DR94: 270 | DS94: =IF($G94>DS$33,0,$I$9) -> 270 | DT94: 270 | DU94: 270 | DV94: 270 | DW94: 0 | DX94: 0 | DY94: 0 | DZ94: 0 | EA94: 0 | EB94: 0 | EC94: 0 | ED94: 0 | EE94: 0 | EF94: 0 | EG94: 0 | EH94: 0 | EI94: 0 | EJ94: 0 | EK94: 0 | EL94: 0 | EM94: 0 | EN94: 0 | EO94: 0 | EP94: 0 | EQ94: 0 | ER94: 0 | ES94: 0 | ET94: 0 | EU94: 0 | EV94: 0 | EW94: 0 | EX94: 0 | EY94: =IF($G94>EY$33,0,$I$9) -> 0 | EZ94: 0 | FA94: 0 | FB94: 0 | FC94: 0 | FD94: 0 | FE94: 0 | FF94: 0 | FG94: 0 | FH94: 0 | FI94: 0 | FJ94: 0 | FK94: 0 | FL94: 0 | FM94: 0 | FN94: 0 | FO94: 0 | FP94: 0 | FQ94: 0
A95: 2006-02-27 | B95: segunda-feira | C95: Carnaval | F95: 1930 | G95: 60 | H95: 2031-09-07 | I95: 270 | J95: 96.72039756 | K95: 96.72039756 | L95: 2.894841499 | M95: 2031-06-07 | S95: 60 | T95: 270 | U95: 87.82911322 | V95: 87.82911322 | W95: 89.0574402 | X95: 91.33919645 | Y95: 94.27509711 | Z95: 97.30688058 | AH95: 0 | AI95: 0 | AJ95: 0 | AK95: 0 | AL95: 0 | AM95: 0 | AN95: 0 | AO95: 0 | AP95: 0 | AQ95: 0 | AR95: 0 | AS95: 0 | AU95: 270 | AV95: 270 | AW95: 270 | AX95: 270 | AY95: 270 | AZ95: 270 | BA95: 270 | BB95: 270 | BC95: 270 | BD95: 270 | BE95: 270 | BF95: 270 | BH95: 1838 | BI95: 60 | BJ95: 2031-06-07 | BK95: 270 | BL95: 270 | BM95: 0 | BN95: 0 | BO95: 2031-06-07 | BP95: 2031-06-07 | BR95: 281.0141666 | BS95: 270 | BT95: 270 | BU95: 270 | BY95: 270 | BZ95: 270 | CA95: 270 | CB95: 270 | CC95: 270 | CD95: 270 | CE95: 270 | CF95: 270 | CG95: 270 | CH95: 270 | CI95: 270 | CJ95: 270 | CK95: 270 | CL95: 270 | CM95: 270 | CN95: 270 | CO95: 270 | CP95: 270 | CQ95: 270 | CR95: 270 | CS95: 270 | CT95: 270 | CU95: 270 | CV95: 270 | CW95: 270 | CX95: 270 | CY95: 270 | CZ95: 270 | DA95: 270 | DB95: 270 | DC95: 270 | DD95: 270 | DE95: 270 | DF95: 270 | DG95: 270 | DH95: 270 | DI95: 270 | DJ95: 270 | DK95: 270 | DL95: 270 | DM95: 270 | DN95: 270 | DO95: 270 | DP95: 270 | DQ95: 270 | DR95: 270 | DS95: 270 | DT95: 270 | DU95: 270 | DV95: 0 | DW95: 0 | DX95: 0 | DY95: 0 | DZ95: 0 | EA95: 0 | EB95: 0 | EC95: 0 | ED95: 0 | EE95: 0 | EF95: 0 | EG95: 0 | EH95: 0 | EI95: 0 | EJ95: 0 | EK95: 0 | EL95: 0 | EM95: 0 | EN95: 0 | EO95: 0 | EP95: 0 | EQ95: 0 | ER95: 0 | ES95: 0 | ET95: 0 | EU95: 0 | EV95: 0 | EW95: 0 | EX95: 0 | EY95: 0 | EZ95: 0 | FA95: 0 | FB95: 0 | FC95: 0 | FD95: 0 | FE95: 0 | FF95: 0 | FG95: 0 | FH95: 0 | FI95: 0 | FJ95: 0 | FK95: 0 | FL95: 0 | FM95: 0 | FN95: 0 | FO95: 0 | FP95: 0 | FQ95: 0
A96: 2006-02-28 | B96: terça-feira | C96: Carnaval | F96: 1960 | G96: 61 | H96: 2031-10-07 | I96: 0 | J96: 0 | K96: 0 | L96: 0 | M96: 2031-07-07 | S96: 61 | T96: 270 | U96: 86.30923675 | V96: 86.30923675 | W96: 87.53520302 | X96: 89.81326901 | Y96: 92.74572018 | Z96: 95.77543143 | AH96: 2.583235456 | AI96: 2.583235456 | AJ96: 2.619928626 | AK96: 2.688111141 | AL96: 2.775879405 | AM96: 2.866558663 | AU96: 270 | AV96: 270 | AW96: 270 | AX96: 270 | AY96: 270 | AZ96: 270 | BA96: 270 | BB96: 270 | BC96: 270 | BD96: 270 | BE96: 270 | BF96: 270 | BH96: 1868 | BI96: 61 | BJ96: 2031-07-07 | BK96: 270 | BL96: 270 | BM96: 0 | BN96: 0 | BO96: 2031-07-07 | BP96: 2031-07-07 | BR96: 0 | BS96: 0 | BT96: 0 | BU96: 0 | BY96: 270 | BZ96: 270 | CA96: 270 | CB96: 270 | CC96: 270 | CD96: 270 | CE96: 270 | CF96: 270 | CG96: 270 | CH96: 270 | CI96: 270 | CJ96: 270 | CK96: 270 | CL96: 270 | CM96: 270 | CN96: 270 | CO96: 270 | CP96: 270 | CQ96: 270 | CR96: 270 | CS96: 270 | CT96: 270 | CU96: 270 | CV96: 270 | CW96: 270 | CX96: 270 | CY96: 270 | CZ96: 270 | DA96: 270 | DB96: 270 | DC96: 270 | DD96: 270 | DE96: 270 | DF96: 270 | DG96: 270 | DH96: 270 | DI96: 270 | DJ96: 270 | DK96: 270 | DL96: 270 | DM96: 270 | DN96: 270 | DO96: 270 | DP96: 270 | DQ96: 270 | DR96: 270 | DS96: 270 | DT96: 270 | DU96: 0 | DV96: 0 | DW96: 0 | DX96: 0 | DY96: 0 | DZ96: 0 | EA96: 0 | EB96: 0 | EC96: 0 | ED96: 0 | EE96: 0 | EF96: 0 | EG96: 0 | EH96: 0 | EI96: 0 | EJ96: 0 | EK96: 0 | EL96: 0 | EM96: 0 | EN96: 0 | EO96: 0 | EP96: 0 | EQ96: 0 | ER96: 0 | ES96: 0 | ET96: 0 | EU96: 0 | EV96: 0 | EW96: 0 | EX96: 0 | EY96: 0 | EZ96: 0 | FA96: 0 | FB96: 0 | FC96: 0 | FD96: 0 | FE96: 0 | FF96: 0 | FG96: 0 | FH96: 0 | FI96: 0 | FJ96: 0 | FK96: 0 | FL96: 0 | FM96: 0 | FN96: 0 | FO96: 0 | FP96: 0 | FQ96: 0
A97: 2006-04-14 | B97: sexta-feira | C97: Paixão de Cristo | F97: 1991 | G97: 62 | H97: 2031-11-07 | I97: 0 | J97: 0 | K97: 0 | L97: 0 | M97: 2031-08-07 | S97: 62 | T97: 270 | U97: 84.76632344 | V97: 84.76632344 | W97: 85.98955403 | X97: 88.2632535 | Y97: 91.19142391 | Z97: 94.21825052 | AH97: 2.53705606 | AI97: 2.53705606 | AJ97: 2.573667352 | AK97: 2.641719177 | AL97: 2.729359318 | AM97: 2.819952238 | AU97: 270 | AV97: 270 | AW97: 270 | AX97: 270 | AY97: 270 | AZ97: 270 | BA97: 270 | BB97: 270 | BC97: 270 | BD97: 270 | BE97: 270 | BF97: 270 | BH97: 1899 | BI97: 62 | BJ97: 2031-08-07 | BK97: 0 | BL97: 270 | BM97: 0 | BN97: 0 | BO97: 2031-08-07 | BP97: 2031-08-07 | BR97: 0 | BS97: 0 | BT97: 0 | BU97: 0 | BY97: 270 | BZ97: 270 | CA97: 270 | CB97: 270 | CC97: 270 | CD97: 270 | CE97: 270 | CF97: 270 | CG97: 270 | CH97: 270 | CI97: 270 | CJ97: 270 | CK97: 270 | CL97: 270 | CM97: 270 | CN97: 270 | CO97: 270 | CP97: 270 | CQ97: 270 | CR97: 270 | CS97: 270 | CT97: 270 | CU97: 270 | CV97: 270 | CW97: 270 | CX97: 270 | CY97: 270 | CZ97: 270 | DA97: 270 | DB97: 270 | DC97: 270 | DD97: 270 | DE97: 270 | DF97: 270 | DG97: 270 | DH97: 270 | DI97: 270 | DJ97: 270 | DK97: 270 | DL97: 270 | DM97: 270 | DN97: 270 | DO97: 270 | DP97: 270 | DQ97: 270 | DR97: 270 | DS97: 270 | DT97: 0 | DU97: 0 | DV97: 0 | DW97: 0 | DX97: 0 | DY97: 0 | DZ97: 0 | EA97: 0 | EB97: 0 | EC97: 0 | ED97: 0 | EE97: 0 | EF97: 0 | EG97: 0 | EH97: 0 | EI97: 0 | EJ97: 0 | EK97: 0 | EL97: 0 | EM97: 0 | EN97: 0 | EO97: 0 | EP97: 0 | EQ97: 0 | ER97: 0 | ES97: 0 | ET97: 0 | EU97: 0 | EV97: 0 | EW97: 0 | EX97: 0 | EY97: 0 | EZ97: 0 | FA97: 0 | FB97: 0 | FC97: 0 | FD97: 0 | FE97: 0 | FF97: 0 | FG97: 0 | FH97: 0 | FI97: 0 | FJ97: 0 | FK97: 0 | FL97: 0 | FM97: 0 | FN97: 0 | FO97: 0 | FP97: 0 | FQ97: 0
A98: 2006-04-21 | B98: sexta-feira | C98: Tiradentes | F98: 2021 | G98: 63 | H98: 2031-12-07 | I98: 0 | J98: 0 | K98: 0 | L98: 0 | M98: 2031-09-07 | S98: 63 | T98: 270 | U98: 83.29944833 | V98: 83.29944833 | W98: 84.51975549 | X98: 86.78871326 | Y98: 89.71207185 | Z98: 92.7354113 | AH98: 2.493152488 | AI98: 2.493152488 | AJ98: 2.529676282 | AK98: 2.597586188 | AL98: 2.68508231 | AM98: 2.77557086 | AU98: 270 | AV98: 270 | AW98: 270 | AX98: 270 | AY98: 270 | AZ98: 270 | BA98: 270 | BB98: 270 | BC98: 270 | BD98: 270 | BE98: 270 | BF98: 270 | BH98: 1930 | BI98: 63 | BJ98: 2031-09-07 | BK98: 0 | BL98: 0 | BM98: 0 | BN98: 0 | BO98: 2031-09-07 | BP98: 2031-09-07 | BR98: 0 | BS98: 0 | BT98: 0 | BU98: 0 | BY98: 270 | BZ98: 270 | CA98: 270 | CB98: 270 | CC98: 270 | CD98: 270 | CE98: 270 | CF98: 270 | CG98: 270 | CH98: 270 | CI98: 270 | CJ98: 270 | CK98: 270 | CL98: 270 | CM98: 270 | CN98: 270 | CO98: 270 | CP98: 270 | CQ98: 270 | CR98: 270 | CS98: 270 | CT98: 270 | CU98: 270 | CV98: 270 | CW98: 270 | CX98: 270 | CY98: 270 | CZ98: 270 | DA98: 270 | DB98: 270 | DC98: 270 | DD98: 270 | DE98: 270 | DF98: 270 | DG98: 270 | DH98: 270 | DI98: 270 | DJ98: 270 | DK98: 270 | DL98: 270 | DM98: 270 | DN98: 270 | DO98: 270 | DP98: 270 | DQ98: 270 | DR98: 270 | DS98: 0 | DT98: 0 | DU98: 0 | DV98: 0 | DW98: 0 | DX98: 0 | DY98: 0 | DZ98: 0 | EA98: 0 | EB98: 0 | EC98: 0 | ED98: 0 | EE98: 0 | EF98: 0 | EG98: 0 | EH98: 0 | EI98: 0 | EJ98: 0 | EK98: 0 | EL98: 0 | EM98: 0 | EN98: 0 | EO98: 0 | EP98: 0 | EQ98: 0 | ER98: 0 | ES98: 0 | ET98: 0 | EU98: 0 | EV98: 0 | EW98: 0 | EX98: 0 | EY98: 0 | EZ98: 0 | FA98: 0 | FB98: 0 | FC98: 0 | FD98: 0 | FE98: 0 | FF98: 0 | FG98: 0 | FH98: 0 | FI98: 0 | FJ98: 0 | FK98: 0 | FL98: 0 | FM98: 0 | FN98: 0 | FO98: 0 | FP98: 0 | FQ98: 0
A99: 2006-05-01 | B99: segunda-feira | C99: Dia do Trabalho | F99: 2052 | G99: 64 | H99: 2032-01-07 | I99: 0 | J99: 0 | K99: 0 | L99: 0 | M99: 2031-10-07 | S99: =S98+1 -> 64 | T99: 270 | U99: 81.81033971 | V99: 81.81033971 | W99: 83.02735163 | X99: 85.29089615 | Y99: 88.20861553 | Z99: 91.22765706 | AH99: 2.448583468 | AI99: 2.448583468 | AJ99: 2.485008634 | AK99: 2.552756522 | AL99: 2.640083863 | AM99: 2.730443776 | AU99: 270 | AV99: 270 | AW99: 270 | AX99: 270 | AY99: 270 | AZ99: 270 | BA99: 270 | BB99: 270 | BC99: 270 | BD99: 270 | BE99: 270 | BF99: 270 | BH99: 1960 | BI99: 64 | BJ99: 2031-10-07 | BK99: 0 | BL99: 0 | BM99: 0 | BN99: 0 | BO99: 2031-10-07 | BP99: 2031-10-07 | BR99: 0 | BS99: 0 | BT99: 0 | BU99: 0 | BY99: 270 | BZ99: 270 | CA99: 270 | CB99: 270 | CC99: 270 | CD99: 270 | CE99: 270 | CF99: 270 | CG99: 270 | CH99: 270 | CI99: 270 | CJ99: 270 | CK99: 270 | CL99: 270 | CM99: 270 | CN99: 270 | CO99: 270 | CP99: 270 | CQ99: 270 | CR99: 270 | CS99: 270 | CT99: 270 | CU99: 270 | CV99: 270 | CW99: 270 | CX99: 270 | CY99: 270 | CZ99: 270 | DA99: 270 | DB99: 270 | DC99: 270 | DD99: 270 | DE99: 270 | DF99: 270 | DG99: 270 | DH99: 270 | DI99: =IF($G99>DI$33,0,$I$9) -> 270 | DJ99: 270 | DK99: 270 | DL99: 270 | DM99: 270 | DN99: 270 | DO99: 270 | DP99: 270 | DQ99: 270 | DR99: 0 | DS99: 0 | DT99: 0 | DU99: 0 | DV99: 0 | DW99: 0 | DX99: 0 | DY99: 0 | DZ99: 0 | EA99: 0 | EB99: 0 | EC99: 0 | ED99: 0 | EE99: 0 | EF99: 0 | EG99: 0 | EH99: 0 | EI99: 0 | EJ99: 0 | EK99: 0 | EL99: 0 | EM99: 0 | EN99: 0 | EO99: 0 | EP99: 0 | EQ99: 0 | ER99: 0 | ES99: 0 | ET99: 0 | EU99: 0 | EV99: 0 | EW99: 0 | EX99: 0 | EY99: 0 | EZ99: 0 | FA99: 0 | FB99: 0 | FC99: 0 | FD99: 0 | FE99: 0 | FF99: 0 | FG99: 0 | FH99: 0 | FI99: 0 | FJ99: 0 | FK99: 0 | FL99: 0 | FM99: 0 | FN99: 0 | FO99: 0 | FP99: 0 | FQ99: 0
A100: 2006-06-15 | B100: quinta-feira | C100: Corpus Christi | F100: 2083 | G100: 65 | H100: 2032-02-07 | I100: =IF($G100>$I$10,0,$I$9) -> 0 | J100: 0 | K100: 0 | L100: =J100*0.0082%*MIN(F100,365) -> 0 | M100: 2031-11-07 | S100: 65 | T100: =IF($G100>$P$3,0,$J$9) -> 270 | U100: =$T100/((U$29)^($H100-$H$35)) -> 80.34785125 | V100: 80.34785125 | W100: 81.56129983 | X100: 83.81892866 | Y100: 86.73035517 | Z100: 89.7444169 | AH100: 2.404811188 | AI100: =IF($I100<>0,0,V100*$B$1*MIN($F100,365)) -> 2.404811188 | AJ100: =IF($I100<>0,0,W100*$B$1*MIN($F100,365)) -> 2.441129704 | AK100: =IF($I100<>0,0,X100*$B$1*MIN($F100,365)) -> 2.508700535 | AL100: =IF($I100<>0,0,Y100*$B$1*MIN($F100,365)) -> 2.59583953 | AM100: =IF($I100<>0,0,Z100*$B$1*MIN($F100,365)) -> 2.686050398 | AN100: =IF($I100<>0,0,AA100*$B$1*MIN($F100,365)) ->  | AO100: =IF($I100<>0,0,AB100*$B$1*MIN($F100,365)) ->  | AP100: =IF($I100<>0,0,AC100*$B$1*MIN($F100,365)) ->  | AQ100: =IF($I100<>0,0,AD100*$B$1*MIN($F100,365)) ->  | AR100: =IF($I100<>0,0,AE100*$B$1*MIN($F100,365)) ->  | AS100: =IF($I100<>0,0,AF100*$B$1*MIN($F100,365)) ->  | AU100: =$T100 -> 270 | AV100: 270 | AW100: 270 | AX100: 270 | AY100: 270 | AZ100: 270 | BA100: 270 | BB100: 270 | BC100: 270 | BD100: 270 | BE100: 270 | BF100: 270 | BH100: 1991 | BI100: 65 | BJ100: 2031-11-07 | BK100: 0 | BL100: 0 | BM100: 0 | BN100: 0 | BO100: 2031-11-07 | BP100: 2031-11-07 | BR100: 0 | BS100: 0 | BT100: 0 | BU100: 0 | BY100: 270 | BZ100: 270 | CA100: 270 | CB100: 270 | CC100: 270 | CD100: 270 | CE100: 270 | CF100: 270 | CG100: 270 | CH100: 270 | CI100: 270 | CJ100: 270 | CK100: 270 | CL100: 270 | CM100: 270 | CN100: =IF($G100>CN$33,0,$I$9) -> 270 | CO100: 270 | CP100: 270 | CQ100: 270 | CR100: 270 | CS100: 270 | CT100: 270 | CU100: 270 | CV100: 270 | CW100: 270 | CX100: 270 | CY100: 270 | CZ100: 270 | DA100: 270 | DB100: 270 | DC100: 270 | DD100: =IF($G100>DD$33,0,$I$9) -> 270 | DE100: 270 | DF100: 270 | DG100: 270 | DH100: 270 | DI100: 270 | DJ100: 270 | DK100: 270 | DL100: 270 | DM100: 270 | DN100: 270 | DO100: 270 | DP100: 270 | DQ100: 0 | DR100: 0 | DS100: 0 | DT100: 0 | DU100: 0 | DV100: 0 | DW100: 0 | DX100: 0 | DY100: 0 | DZ100: 0 | EA100: 0 | EB100: 0 | EC100: 0 | ED100: 0 | EE100: 0 | EF100: 0 | EG100: 0 | EH100: 0 | EI100: 0 | EJ100: 0 | EK100: 0 | EL100: 0 | EM100: 0 | EN100: 0 | EO100: 0 | EP100: 0 | EQ100: 0 | ER100: 0 | ES100: 0 | ET100: 0 | EU100: 0 | EV100: 0 | EW100: 0 | EX100: 0 | EY100: 0 | EZ100: 0 | FA100: 0 | FB100: 0 | FC100: 0 | FD100: 0 | FE100: 0 | FF100: 0 | FG100: 0 | FH100: 0 | FI100: 0 | FJ100: 0 | FK100: 0 | FL100: 0 | FM100: 0 | FN100: 0 | FO100: 0 | FP100: 0 | FQ100: =IF($G100>FQ$33,0,$I$9) -> 0
A101: 2006-09-07 | B101: quinta-feira | C101: Independência do Brasil | F101: =H101-$H$35 -> 2112 | G101: 66 | H101: 2032-03-07 | I101: 0 | J101: =I101/($J$32^(M101-$M$35)) -> 0 | K101: =I101/($I$32^(M101-$M$35)) -> 0 | L101: 0 | M101: 2031-12-07 | S101: 66 | T101: 270 | U101: 79.00339463 | V101: 79.00339463 | W101: 80.21327641 | X101: =$T101/((X$29)^($H101-$H$35)) -> 82.46493337 | Y101: 85.36990236 | Z101: 88.37870926 | AH101: =IF($I101<>0,0,U101*$B$1*MIN($F101,365)) -> 2.364571601 | AI101: 2.364571601 | AJ101: 2.400783363 | AK101: 2.468175456 | AL101: 2.555121178 | AM101: 2.645174768 | AU101: 270 | AV101: 270 | AW101: 270 | AX101: 270 | AY101: 270 | AZ101: 270 | BA101: 270 | BB101: 270 | BC101: 270 | BD101: 270 | BE101: 270 | BF101: 270 | BH101: =BJ101-$H$35 -> 2021 | BI101: 66 | BJ101: 2031-12-07 | BK101: 0 | BL101: 0 | BM101: =I102 -> 0 | BN101: =BM102 -> 0 | BO101: =M101 -> 2031-12-07 | BP101: =BJ101 -> 2031-12-07 | BR101: =IF(I101=0,0,PMT($BR$31,$I$10,$BR$35)) -> 0 | BS101: =MIN(BR101,$I$9) -> 0 | BT101: 0 | BU101: =IF(G101>$BU$31,0,$BU$32) -> 0 | BY101: =IF($G101>BY$33,0,$I$9) -> 270 | BZ101: 270 | CA101: 270 | CB101: 270 | CC101: 270 | CD101: 270 | CE101: 270 | CF101: 270 | CG101: 270 | CH101: 270 | CI101: 270 | CJ101: 270 | CK101: 270 | CL101: 270 | CM101: 270 | CN101: 270 | CO101: 270 | CP101: 270 | CQ101: 270 | CR101: 270 | CS101: 270 | CT101: 270 | CU101: 270 | CV101: 270 | CW101: 270 | CX101: 270 | CY101: 270 | CZ101: 270 | DA101: 270 | DB101: 270 | DC101: 270 | DD101: 270 | DE101: 270 | DF101: 270 | DG101: 270 | DH101: 270 | DI101: 270 | DJ101: 270 | DK101: 270 | DL101: 270 | DM101: 270 | DN101: 270 | DO101: 270 | DP101: 0 | DQ101: 0 | DR101: 0 | DS101: 0 | DT101: 0 | DU101: 0 | DV101: 0 | DW101: 0 | DX101: 0 | DY101: 0 | DZ101: 0 | EA101: 0 | EB101: 0 | EC101: 0 | ED101: 0 | EE101: 0 | EF101: 0 | EG101: 0 | EH101: 0 | EI101: 0 | EJ101: 0 | EK101: 0 | EL101: 0 | EM101: 0 | EN101: 0 | EO101: 0 | EP101: 0 | EQ101: 0 | ER101: 0 | ES101: 0 | ET101: 0 | EU101: 0 | EV101: 0 | EW101: 0 | EX101: 0 | EY101: 0 | EZ101: 0 | FA101: 0 | FB101: 0 | FC101: 0 | FD101: 0 | FE101: 0 | FF101: 0 | FG101: 0 | FH101: 0 | FI101: 0 | FJ101: 0 | FK101: 0 | FL101: 0 | FM101: 0 | FN101: 0 | FO101: 0 | FP101: 0 | FQ101: 0
A102: 2006-10-12 | B102: quinta-feira | C102: Nossa Sr.a Aparecida - Padroeira do Brasil | F102: 2143 | G102: =G101+1 -> 67 | H102: =EDATE(H101,1) -> 2032-04-07 | I102: 0 | J102: 0 | K102: 0 | L102: 0 | M102: =EDATE(M101,1) -> 2032-01-07 | S102: 67 | T102: 270 | U102: 77.59108473 | V102: 77.59108473 | W102: 78.79691402 | X102: 81.04173693 | Y102: 83.93921509 | Z102: 86.9417892 | AH102: 2.322301166 | AI102: 2.322301166 | AJ102: 2.358391637 | AK102: 2.425579186 | AL102: 2.512300708 | AM102: 2.602167751 | AU102: 270 | AV102: 270 | AW102: 270 | AX102: 270 | AY102: 270 | AZ102: 270 | BA102: 270 | BB102: 270 | BC102: 270 | BD102: 270 | BE102: 270 | BF102: 270 | BH102: 2052 | BI102: =BI101+1 -> 67 | BJ102: =EDATE(BJ101,1) -> 2032-01-07 | BK102: =I101 -> 0 | BL102: =BK101 -> 0 | BM102: 0 | BN102: 0 | BO102: 2032-01-07 | BP102: 2032-01-07 | BR102: 0 | BS102: 0 | BT102: =IF(G102>$BT$31,0,$BT$32) -> 0 | BU102: 0 | BY102: 270 | BZ102: 270 | CA102: 270 | CB102: 270 | CC102: 270 | CD102: 270 | CE102: 270 | CF102: 270 | CG102: 270 | CH102: 270 | CI102: 270 | CJ102: 270 | CK102: 270 | CL102: 270 | CM102: 270 | CN102: 270 | CO102: 270 | CP102: 270 | CQ102: 270 | CR102: 270 | CS102: 270 | CT102: 270 | CU102: 270 | CV102: 270 | CW102: 270 | CX102: 270 | CY102: 270 | CZ102: 270 | DA102: 270 | DB102: 270 | DC102: 270 | DD102: 270 | DE102: 270 | DF102: 270 | DG102: 270 | DH102: 270 | DI102: 270 | DJ102: 270 | DK102: 270 | DL102: 270 | DM102: 270 | DN102: 270 | DO102: 0 | DP102: 0 | DQ102: 0 | DR102: 0 | DS102: 0 | DT102: 0 | DU102: 0 | DV102: 0 | DW102: 0 | DX102: 0 | DY102: 0 | DZ102: 0 | EA102: 0 | EB102: 0 | EC102: 0 | ED102: 0 | EE102: 0 | EF102: 0 | EG102: 0 | EH102: 0 | EI102: 0 | EJ102: 0 | EK102: 0 | EL102: 0 | EM102: 0 | EN102: 0 | EO102: 0 | EP102: 0 | EQ102: 0 | ER102: 0 | ES102: 0 | ET102: 0 | EU102: 0 | EV102: 0 | EW102: 0 | EX102: 0 | EY102: 0 | EZ102: 0 | FA102: 0 | FB102: 0 | FC102: 0 | FD102: 0 | FE102: 0 | FF102: 0 | FG102: 0 | FH102: 0 | FI102: 0 | FJ102: 0 | FK102: 0 | FL102: 0 | FM102: 0 | FN102: 0 | FO102: 0 | FP102: 0 | FQ102: 0
A103: 2006-11-02 | B103: quinta-feira | C103: Finados | F103: 2173 | G103: 68 | H103: 2032-05-07 | I103: 0 | J103: 0 | K103: 0 | L103: 0 | M103: 2032-02-07 | S103: 68 | T103: 270 | U103: 76.24837661 | V103: 76.24837661 | W103: 77.45005752 | X103: 79.68784052 | Y103: 82.57751192 | Z103: 85.57346942 | AH103: 2.282113912 | AI103: 2.282113912 | AJ103: 2.318080222 | AK103: 2.385057067 | AL103: 2.471544932 | AM103: 2.56121394 | AU103: 270 | AV103: 270 | AW103: 270 | AX103: 270 | AY103: 270 | AZ103: 270 | BA103: 270 | BB103: 270 | BC103: 270 | BD103: 270 | BE103: 270 | BF103: 270 | BH103: 2083 | BI103: 68 | BJ103: 2032-02-07 | BK103: 0 | BL103: 0 | BM103: 0 | BN103: 0 | BO103: 2032-02-07 | BP103: 2032-02-07 | BR103: 0 | BS103: 0 | BT103: 0 | BU103: 0 | BY103: 270 | BZ103: 270 | CA103: 270 | CB103: 270 | CC103: 270 | CD103: 270 | CE103: 270 | CF103: 270 | CG103: 270 | CH103: 270 | CI103: 270 | CJ103: 270 | CK103: 270 | CL103: 270 | CM103: 270 | CN103: 270 | CO103: 270 | CP103: 270 | CQ103: 270 | CR103: 270 | CS103: 270 | CT103: 270 | CU103: 270 | CV103: 270 | CW103: 270 | CX103: 270 | CY103: 270 | CZ103: 270 | DA103: 270 | DB103: 270 | DC103: 270 | DD103: 270 | DE103: 270 | DF103: 270 | DG103: 270 | DH103: 270 | DI103: 270 | DJ103: 270 | DK103: 270 | DL103: 270 | DM103: 270 | DN103: 0 | DO103: 0 | DP103: 0 | DQ103: 0 | DR103: 0 | DS103: 0 | DT103: 0 | DU103: 0 | DV103: 0 | DW103: 0 | DX103: 0 | DY103: 0 | DZ103: 0 | EA103: 0 | EB103: 0 | EC103: 0 | ED103: 0 | EE103: 0 | EF103: 0 | EG103: 0 | EH103: 0 | EI103: 0 | EJ103: 0 | EK103: 0 | EL103: 0 | EM103: 0 | EN103: 0 | EO103: 0 | EP103: 0 | EQ103: 0 | ER103: 0 | ES103: 0 | ET103: 0 | EU103: 0 | EV103: 0 | EW103: 0 | EX103: 0 | EY103: 0 | EZ103: 0 | FA103: 0 | FB103: 0 | FC103: 0 | FD103: 0 | FE103: 0 | FF103: 0 | FG103: 0 | FH103: 0 | FI103: 0 | FJ103: 0 | FK103: 0 | FL103: 0 | FM103: 0 | FN103: 0 | FO103: 0 | FP103: 0 | FQ103: 0
A104: 2006-11-15 | B104: quarta-feira | C104: Proclamação da República | F104: 2204 | G104: 69 | H104: 2032-06-07 | I104: 0 | J104: 0 | K104: 0 | L104: 0 | M104: 2032-03-07 | S104: 69 | T104: 270 | U104: 74.88531699 | V104: 74.88531699 | W104: 76.08248655 | X104: 78.3125717 | Y104: 81.19362144 | Z104: 84.18215882 | AH104: 2.241317537 | AI104: 2.241317537 | AJ104: 2.277148822 | AK104: 2.343895271 | AL104: 2.43012509 | AM104: 2.519572014 | AU104: 270 | AV104: 270 | AW104: 270 | AX104: 270 | AY104: 270 | AZ104: 270 | BA104: 270 | BB104: 270 | BC104: 270 | BD104: 270 | BE104: 270 | BF104: 270 | BH104: 2112 | BI104: 69 | BJ104: 2032-03-07 | BK104: 0 | BL104: 0 | BM104: 0 | BN104: 0 | BO104: 2032-03-07 | BP104: 2032-03-07 | BR104: 0 | BS104: 0 | BT104: 0 | BU104: 0 | BY104: 270 | BZ104: 270 | CA104: 270 | CB104: 270 | CC104: 270 | CD104: 270 | CE104: 270 | CF104: 270 | CG104: 270 | CH104: 270 | CI104: 270 | CJ104: 270 | CK104: 270 | CL104: 270 | CM104: 270 | CN104: 270 | CO104: 270 | CP104: 270 | CQ104: 270 | CR104: 270 | CS104: 270 | CT104: 270 | CU104: 270 | CV104: 270 | CW104: 270 | CX104: 270 | CY104: 270 | CZ104: 270 | DA104: 270 | DB104: 270 | DC104: 270 | DD104: 270 | DE104: 270 | DF104: 270 | DG104: 270 | DH104: 270 | DI104: 270 | DJ104: 270 | DK104: 270 | DL104: 270 | DM104: 0 | DN104: 0 | DO104: 0 | DP104: 0 | DQ104: 0 | DR104: 0 | DS104: 0 | DT104: 0 | DU104: 0 | DV104: 0 | DW104: 0 | DX104: 0 | DY104: 0 | DZ104: 0 | EA104: 0 | EB104: 0 | EC104: 0 | ED104: 0 | EE104: 0 | EF104: 0 | EG104: 0 | EH104: 0 | EI104: 0 | EJ104: 0 | EK104: 0 | EL104: 0 | EM104: 0 | EN104: 0 | EO104: 0 | EP104: 0 | EQ104: 0 | ER104: 0 | ES104: 0 | ET104: 0 | EU104: =IF($G104>EU$33,0,$I$9) -> 0 | EV104: 0 | EW104: 0 | EX104: 0 | EY104: 0 | EZ104: 0 | FA104: 0 | FB104: 0 | FC104: 0 | FD104: 0 | FE104: 0 | FF104: 0 | FG104: 0 | FH104: 0 | FI104: 0 | FJ104: 0 | FK104: 0 | FL104: 0 | FM104: 0 | FN104: 0 | FO104: 0 | FP104: 0 | FQ104: 0
A105: 2006-12-25 | B105: segunda-feira | C105: Natal | F105: 2234 | G105: 70 | H105: 2032-07-07 | I105: 0 | J105: 0 | K105: 0 | L105: 0 | M105: 2032-04-07 | S105: 70 | T105: 270 | U105: 73.58943198 | V105: 73.58943198 | W105: 74.7820271 | X105: 77.00426916 | Y105: 79.87645864 | Z105: 82.85727106 | AH105: 2.202531699 | AI105: 2.202531699 | AJ105: 2.238226071 | AK105: 2.304737776 | AL105: 2.390702407 | AM105: 2.479918123 | AU105: 270 | AV105: 270 | AW105: 270 | AX105: 270 | AY105: 270 | AZ105: 270 | BA105: 270 | BB105: 270 | BC105: 270 | BD105: 270 | BE105: 270 | BF105: 270 | BH105: 2143 | BI105: 70 | BJ105: 2032-04-07 | BK105: 0 | BL105: 0 | BM105: 0 | BN105: 0 | BO105: 2032-04-07 | BP105: 2032-04-07 | BR105: 0 | BS105: 0 | BT105: 0 | BU105: 0 | BY105: 270 | BZ105: 270 | CA105: 270 | CB105: 270 | CC105: 270 | CD105: 270 | CE105: 270 | CF105: 270 | CG105: 270 | CH105: 270 | CI105: 270 | CJ105: 270 | CK105: 270 | CL105: 270 | CM105: 270 | CN105: 270 | CO105: 270 | CP105: 270 | CQ105: 270 | CR105: 270 | CS105: 270 | CT105: 270 | CU105: 270 | CV105: 270 | CW105: 270 | CX105: 270 | CY105: 270 | CZ105: 270 | DA105: 270 | DB105: 270 | DC105: 270 | DD105: 270 | DE105: 270 | DF105: 270 | DG105: 270 | DH105: 270 | DI105: 270 | DJ105: 270 | DK105: 270 | DL105: 0 | DM105: 0 | DN105: 0 | DO105: 0 | DP105: 0 | DQ105: 0 | DR105: 0 | DS105: 0 | DT105: 0 | DU105: 0 | DV105: 0 | DW105: 0 | DX105: 0 | DY105: 0 | DZ105: 0 | EA105: 0 | EB105: 0 | EC105: 0 | ED105: 0 | EE105: 0 | EF105: 0 | EG105: 0 | EH105: 0 | EI105: 0 | EJ105: 0 | EK105: 0 | EL105: 0 | EM105: 0 | EN105: 0 | EO105: 0 | EP105: 0 | EQ105: 0 | ER105: 0 | ES105: 0 | ET105: 0 | EU105: 0 | EV105: 0 | EW105: 0 | EX105: 0 | EY105: 0 | EZ105: 0 | FA105: 0 | FB105: 0 | FC105: 0 | FD105: 0 | FE105: 0 | FF105: 0 | FG105: 0 | FH105: 0 | FI105: 0 | FJ105: 0 | FK105: 0 | FL105: 0 | FM105: 0 | FN105: 0 | FO105: 0 | FP105: 0 | FQ105: 0
A106: 2007-01-01 | B106: segunda-feira | C106: Confraternização Universal | F106: 2265 | G106: 71 | H106: 2032-08-07 | I106: 0 | J106: 0 | K106: 0 | L106: 0 | M106: 2032-05-07 | S106: 71 | T106: 270 | U106: 72.27390517 | V106: 72.27390517 | W106: 73.46156675 | X106: 75.67531396 | Y106: 78.53783427 | Z106: 81.51012222 | AH106: 2.163157982 | AI106: 2.163157982 | AJ106: 2.198704693 | AK106: 2.264962147 | AL106: 2.35063738 | AM106: 2.439597958 | AU106: 270 | AV106: 270 | AW106: 270 | AX106: 270 | AY106: 270 | AZ106: 270 | BA106: 270 | BB106: 270 | BC106: 270 | BD106: 270 | BE106: 270 | BF106: 270 | BH106: 2173 | BI106: 71 | BJ106: 2032-05-07 | BK106: 0 | BL106: 0 | BM106: 0 | BN106: 0 | BO106: 2032-05-07 | BP106: 2032-05-07 | BR106: 0 | BS106: 0 | BT106: 0 | BU106: 0 | BY106: 270 | BZ106: 270 | CA106: 270 | CB106: 270 | CC106: 270 | CD106: 270 | CE106: 270 | CF106: 270 | CG106: 270 | CH106: 270 | CI106: 270 | CJ106: 270 | CK106: 270 | CL106: 270 | CM106: 270 | CN106: 270 | CO106: 270 | CP106: 270 | CQ106: 270 | CR106: 270 | CS106: 270 | CT106: 270 | CU106: 270 | CV106: 270 | CW106: 270 | CX106: 270 | CY106: 270 | CZ106: 270 | DA106: 270 | DB106: 270 | DC106: 270 | DD106: 270 | DE106: 270 | DF106: 270 | DG106: 270 | DH106: 270 | DI106: 270 | DJ106: 270 | DK106: 0 | DL106: 0 | DM106: 0 | DN106: 0 | DO106: 0 | DP106: 0 | DQ106: 0 | DR106: 0 | DS106: 0 | DT106: 0 | DU106: 0 | DV106: 0 | DW106: 0 | DX106: 0 | DY106: 0 | DZ106: 0 | EA106: 0 | EB106: 0 | EC106: 0 | ED106: 0 | EE106: 0 | EF106: 0 | EG106: 0 | EH106: 0 | EI106: 0 | EJ106: 0 | EK106: 0 | EL106: 0 | EM106: 0 | EN106: 0 | EO106: 0 | EP106: 0 | EQ106: 0 | ER106: 0 | ES106: 0 | ET106: 0 | EU106: 0 | EV106: 0 | EW106: 0 | EX106: 0 | EY106: 0 | EZ106: 0 | FA106: 0 | FB106: 0 | FC106: 0 | FD106: 0 | FE106: 0 | FF106: 0 | FG106: 0 | FH106: 0 | FI106: 0 | FJ106: 0 | FK106: 0 | FL106: 0 | FM106: 0 | FN106: 0 | FO106: 0 | FP106: 0 | FQ106: 0
A107: 2007-02-19 | B107: segunda-feira | C107: Carnaval | F107: 2296 | G107: 72 | H107: 2032-09-07 | I107: 0 | J107: 0 | K107: 0 | L107: 0 | M107: 2032-06-07 | S107: 72 | T107: 270 | U107: 70.98189548 | V107: 70.98189548 | W107: 72.16442238 | X107: 74.36929413 | Y107: 77.22164347 | Z107: 80.18487623 | AH107: 2.124488132 | AI107: 2.124488132 | AJ107: 2.159881162 | AK107: 2.225872973 | AL107: 2.311243789 | AM107: 2.399933346 | AU107: 270 | AV107: 270 | AW107: 270 | AX107: 270 | AY107: 270 | AZ107: 270 | BA107: 270 | BB107: 270 | BC107: 270 | BD107: 270 | BE107: 270 | BF107: 270 | BH107: 2204 | BI107: 72 | BJ107: 2032-06-07 | BK107: 0 | BL107: 0 | BM107: 0 | BN107: 0 | BO107: 2032-06-07 | BP107: 2032-06-07 | BR107: 0 | BS107: 0 | BT107: 0 | BU107: 0 | BY107: 270 | BZ107: 270 | CA107: 270 | CB107: 270 | CC107: 270 | CD107: 270 | CE107: 270 | CF107: 270 | CG107: 270 | CH107: 270 | CI107: 270 | CJ107: 270 | CK107: 270 | CL107: 270 | CM107: 270 | CN107: 270 | CO107: 270 | CP107: 270 | CQ107: 270 | CR107: 270 | CS107: 270 | CT107: 270 | CU107: 270 | CV107: 270 | CW107: 270 | CX107: 270 | CY107: 270 | CZ107: 270 | DA107: 270 | DB107: 270 | DC107: 270 | DD107: 270 | DE107: 270 | DF107: 270 | DG107: 270 | DH107: 270 | DI107: 270 | DJ107: 0 | DK107: 0 | DL107: 0 | DM107: 0 | DN107: 0 | DO107: 0 | DP107: 0 | DQ107: 0 | DR107: 0 | DS107: 0 | DT107: 0 | DU107: 0 | DV107: 0 | DW107: 0 | DX107: 0 | DY107: 0 | DZ107: 0 | EA107: 0 | EB107: 0 | EC107: 0 | ED107: 0 | EE107: 0 | EF107: 0 | EG107: 0 | EH107: 0 | EI107: 0 | EJ107: 0 | EK107: 0 | EL107: 0 | EM107: 0 | EN107: 0 | EO107: 0 | EP107: 0 | EQ107: 0 | ER107: 0 | ES107: 0 | ET107: 0 | EU107: 0 | EV107: 0 | EW107: 0 | EX107: 0 | EY107: 0 | EZ107: 0 | FA107: 0 | FB107: 0 | FC107: 0 | FD107: 0 | FE107: 0 | FF107: 0 | FG107: 0 | FH107: 0 | FI107: 0 | FJ107: 0 | FK107: 0 | FL107: 0 | FM107: 0 | FN107: 0 | FO107: 0 | FP107: 0 | FQ107: 0
A108: 2007-02-20 | B108: terça-feira | C108: Carnaval | F108: 2326 | G108: 73 | H108: 2032-10-07 | I108: 0 | J108: 0 | K108: 0 | L108: 0 | M108: 2032-07-07 | S108: 73 | T108: 270 | U108: 69.7535589 | V108: 69.7535589 | W108: 70.93093345 | X108: 73.12686863 | Y108: 75.96891605 | Z108: 78.92289908 | AF108: =$T108/((AF$29)^($H108-$H$35)) ->  | AH108: 2.087724018 | AI108: 2.087724018 | AJ108: 2.122962838 | AK108: 2.188687178 | AL108: 2.273749657 | AM108: 2.362162369 | AU108: 270 | AV108: 270 | AW108: 270 | AX108: 270 | AY108: 270 | AZ108: 270 | BA108: 270 | BB108: 270 | BC108: 270 | BD108: 270 | BE108: 270 | BF108: 270 | BH108: 2234 | BI108: 73 | BJ108: 2032-07-07 | BK108: 0 | BL108: 0 | BM108: 0 | BN108: 0 | BO108: 2032-07-07 | BP108: 2032-07-07 | BR108: 0 | BS108: 0 | BT108: 0 | BU108: 0 | BY108: 270 | BZ108: 270 | CA108: 270 | CB108: 270 | CC108: 270 | CD108: 270 | CE108: 270 | CF108: 270 | CG108: 270 | CH108: 270 | CI108: 270 | CJ108: 270 | CK108: 270 | CL108: 270 | CM108: 270 | CN108: 270 | CO108: 270 | CP108: 270 | CQ108: 270 | CR108: 270 | CS108: 270 | CT108: 270 | CU108: 270 | CV108: 270 | CW108: 270 | CX108: 270 | CY108: 270 | CZ108: 270 | DA108: 270 | DB108: 270 | DC108: 270 | DD108: 270 | DE108: 270 | DF108: 270 | DG108: 270 | DH108: 270 | DI108: 0 | DJ108: 0 | DK108: 0 | DL108: 0 | DM108: 0 | DN108: 0 | DO108: 0 | DP108: 0 | DQ108: 0 | DR108: 0 | DS108: 0 | DT108: 0 | DU108: 0 | DV108: 0 | DW108: 0 | DX108: 0 | DY108: 0 | DZ108: 0 | EA108: 0 | EB108: 0 | EC108: 0 | ED108: 0 | EE108: 0 | EF108: 0 | EG108: 0 | EH108: 0 | EI108: 0 | EJ108: 0 | EK108: 0 | EL108: 0 | EM108: 0 | EN108: 0 | EO108: 0 | EP108: 0 | EQ108: 0 | ER108: 0 | ES108: 0 | ET108: 0 | EU108: 0 | EV108: 0 | EW108: 0 | EX108: 0 | EY108: 0 | EZ108: 0 | FA108: 0 | FB108: 0 | FC108: 0 | FD108: 0 | FE108: 0 | FF108: 0 | FG108: 0 | FH108: 0 | FI108: 0 | FJ108: 0 | FK108: 0 | FL108: 0 | FM108: 0 | FN108: 0 | FO108: 0 | FP108: 0 | FQ108: 0
A109: 2007-04-06 | B109: sexta-feira | C109: Paixão de Cristo | F109: 2357 | G109: 74 | H109: 2032-11-07 | I109: 0 | J109: 0 | K109: 0 | L109: 0 | M109: 2032-08-07 | S109: 74 | T109: 270 | U109: 68.50660435 | V109: 68.50660435 | W109: 69.67847362 | X109: 71.86483039 | Y109: 74.69577695 | Z109: 77.63971789 | AH109: 2.050402668 | AI109: 2.050402668 | AJ109: 2.085476715 | AK109: 2.150914374 | AL109: 2.235644604 | AM109: 2.323756756 | AU109: 270 | AV109: 270 | AW109: 270 | AX109: 270 | AY109: 270 | AZ109: 270 | BA109: 270 | BB109: 270 | BC109: 270 | BD109: 270 | BE109: 270 | BF109: 270 | BH109: 2265 | BI109: 74 | BJ109: 2032-08-07 | BK109: 0 | BL109: 0 | BM109: 0 | BN109: 0 | BO109: 2032-08-07 | BP109: 2032-08-07 | BR109: 0 | BS109: 0 | BT109: 0 | BU109: 0 | BY109: 270 | BZ109: 270 | CA109: 270 | CB109: 270 | CC109: 270 | CD109: 270 | CE109: 270 | CF109: 270 | CG109: 270 | CH109: 270 | CI109: 270 | CJ109: 270 | CK109: 270 | CL109: 270 | CM109: 270 | CN109: 270 | CO109: 270 | CP109: 270 | CQ109: 270 | CR109: 270 | CS109: 270 | CT109: 270 | CU109: 270 | CV109: 270 | CW109: 270 | CX109: 270 | CY109: 270 | CZ109: 270 | DA109: 270 | DB109: 270 | DC109: 270 | DD109: 270 | DE109: 270 | DF109: 270 | DG109: 270 | DH109: 0 | DI109: 0 | DJ109: 0 | DK109: 0 | DL109: 0 | DM109: 0 | DN109: 0 | DO109: 0 | DP109: 0 | DQ109: 0 | DR109: 0 | DS109: 0 | DT109: 0 | DU109: 0 | DV109: 0 | DW109: 0 | DX109: 0 | DY109: 0 | DZ109: 0 | EA109: 0 | EB109: 0 | EC109: 0 | ED109: 0 | EE109: 0 | EF109: 0 | EG109: 0 | EH109: 0 | EI109: 0 | EJ109: 0 | EK109: =IF($G109>EK$33,0,$I$9) -> 0 | EL109: 0 | EM109: 0 | EN109: 0 | EO109: 0 | EP109: 0 | EQ109: 0 | ER109: 0 | ES109: 0 | ET109: 0 | EU109: 0 | EV109: 0 | EW109: 0 | EX109: 0 | EY109: 0 | EZ109: 0 | FA109: 0 | FB109: 0 | FC109: 0 | FD109: 0 | FE109: 0 | FF109: 0 | FG109: 0 | FH109: 0 | FI109: 0 | FJ109: 0 | FK109: 0 | FL109: 0 | FM109: 0 | FN109: 0 | FO109: 0 | FP109: 0 | FQ109: 0
A110: 2007-04-21 | B110: sábado | C110: Tiradentes | F110: 2387 | G110: 75 | H110: 2032-12-07 | I110: 0 | J110: 0 | K110: 0 | L110: 0 | M110: 2032-09-07 | S110: 75 | T110: 270 | U110: 67.32110251 | V110: 67.32110251 | W110: 68.4874764 | X110: 70.66424487 | Y110: 73.48402537 | Z110: 76.41779731 | AH110: 2.014920598 | AI110: 2.014920598 | AJ110: 2.049830169 | AK110: 2.114980849 | AL110: 2.199376879 | AM110: 2.287184674 | AU110: 270 | AV110: 270 | AW110: 270 | AX110: 270 | AY110: 270 | AZ110: 270 | BA110: 270 | BB110: 270 | BC110: 270 | BD110: 270 | BE110: 270 | BF110: 270 | BH110: 2296 | BI110: 75 | BJ110: 2032-09-07 | BK110: 0 | BL110: 0 | BM110: 0 | BN110: 0 | BO110: 2032-09-07 | BP110: 2032-09-07 | BR110: 0 | BS110: 0 | BT110: 0 | BU110: 0 | BY110: 270 | BZ110: 270 | CA110: 270 | CB110: 270 | CC110: 270 | CD110: 270 | CE110: 270 | CF110: 270 | CG110: 270 | CH110: 270 | CI110: 270 | CJ110: 270 | CK110: 270 | CL110: 270 | CM110: 270 | CN110: 270 | CO110: 270 | CP110: 270 | CQ110: 270 | CR110: 270 | CS110: 270 | CT110: 270 | CU110: 270 | CV110: 270 | CW110: 270 | CX110: 270 | CY110: 270 | CZ110: 270 | DA110: 270 | DB110: 270 | DC110: 270 | DD110: 270 | DE110: 270 | DF110: 270 | DG110: 0 | DH110: 0 | DI110: 0 | DJ110: 0 | DK110: 0 | DL110: 0 | DM110: 0 | DN110: 0 | DO110: 0 | DP110: 0 | DQ110: 0 | DR110: 0 | DS110: 0 | DT110: 0 | DU110: 0 | DV110: 0 | DW110: 0 | DX110: 0 | DY110: 0 | DZ110: 0 | EA110: 0 | EB110: 0 | EC110: 0 | ED110: 0 | EE110: 0 | EF110: 0 | EG110: 0 | EH110: 0 | EI110: 0 | EJ110: 0 | EK110: 0 | EL110: 0 | EM110: 0 | EN110: 0 | EO110: 0 | EP110: 0 | EQ110: 0 | ER110: 0 | ES110: 0 | ET110: 0 | EU110: 0 | EV110: 0 | EW110: 0 | EX110: 0 | EY110: 0 | EZ110: 0 | FA110: 0 | FB110: 0 | FC110: 0 | FD110: 0 | FE110: 0 | FF110: 0 | FG110: 0 | FH110: 0 | FI110: 0 | FJ110: 0 | FK110: 0 | FL110: 0 | FM110: 0 | FN110: =IF($G110>FN$33,0,$I$9) -> 0 | FO110: 0 | FP110: 0 | FQ110: 0
A111: 2007-05-01 | B111: terça-feira | C111: Dia do Trabalho | F111: 2418 | G111: 76 | H111: 2033-01-07 | I111: 0 | J111: 0 | K111: 0 | L111: 0 | M111: 2032-10-07 | S111: 76 | T111: 270 | U111: 66.11763195 | V111: 66.11763195 | W111: 67.27816181 | X111: 69.44470708 | Y111: 72.25252976 | Z111: 75.17534574 | AH111: 1.978900724 | AI111: 1.978900724 | AJ111: 2.013635383 | AK111: 2.078480083 | AL111: 2.162518216 | AM111: 2.249998098 | AU111: 270 | AV111: 270 | AW111: 270 | AX111: 270 | AY111: 270 | AZ111: 270 | BA111: 270 | BB111: 270 | BC111: 270 | BD111: 270 | BE111: 270 | BF111: 270 | BH111: 2326 | BI111: 76 | BJ111: 2032-10-07 | BK111: 0 | BL111: 0 | BM111: 0 | BN111: 0 | BO111: 2032-10-07 | BP111: 2032-10-07 | BR111: 0 | BS111: 0 | BT111: 0 | BU111: 0 | BY111: 270 | BZ111: 270 | CA111: 270 | CB111: 270 | CC111: 270 | CD111: 270 | CE111: 270 | CF111: 270 | CG111: 270 | CH111: 270 | CI111: 270 | CJ111: 270 | CK111: 270 | CL111: 270 | CM111: 270 | CN111: 270 | CO111: 270 | CP111: 270 | CQ111: 270 | CR111: 270 | CS111: 270 | CT111: 270 | CU111: 270 | CV111: 270 | CW111: 270 | CX111: 270 | CY111: 270 | CZ111: 270 | DA111: 270 | DB111: 270 | DC111: 270 | DD111: 270 | DE111: 270 | DF111: 0 | DG111: 0 | DH111: 0 | DI111: 0 | DJ111: 0 | DK111: 0 | DL111: 0 | DM111: 0 | DN111: 0 | DO111: 0 | DP111: 0 | DQ111: 0 | DR111: 0 | DS111: 0 | DT111: 0 | DU111: 0 | DV111: 0 | DW111: 0 | DX111: 0 | DY111: 0 | DZ111: 0 | EA111: 0 | EB111: 0 | EC111: 0 | ED111: 0 | EE111: 0 | EF111: 0 | EG111: 0 | EH111: 0 | EI111: 0 | EJ111: 0 | EK111: 0 | EL111: 0 | EM111: 0 | EN111: 0 | EO111: 0 | EP111: 0 | EQ111: 0 | ER111: 0 | ES111: 0 | ET111: 0 | EU111: 0 | EV111: 0 | EW111: 0 | EX111: 0 | EY111: 0 | EZ111: 0 | FA111: 0 | FB111: 0 | FC111: 0 | FD111: 0 | FE111: 0 | FF111: 0 | FG111: 0 | FH111: 0 | FI111: 0 | FJ111: 0 | FK111: 0 | FL111: 0 | FM111: 0 | FN111: 0 | FO111: 0 | FP111: 0 | FQ111: 0
A112: 2007-06-07 | B112: quinta-feira | C112: Corpus Christi | F112: 2449 | G112: 77 | H112: 2033-02-07 | I112: 0 | J112: 0 | K112: 0 | L112: 0 | M112: 2032-11-07 | S112: 77 | T112: 270 | U112: 64.93567532 | V112: 64.93567532 | W112: 66.09020063 | X112: 68.24621632 | Y112: 71.04167241 | Z112: 73.95309478 | AH112: 1.943524762 | AI112: 1.943524762 | AJ112: 1.978079705 | AK112: 2.042609255 | AL112: 2.126277255 | AM112: 2.213416127 | AU112: 270 | AV112: 270 | AW112: 270 | AX112: 270 | AY112: 270 | AZ112: 270 | BA112: 270 | BB112: 270 | BC112: 270 | BD112: 270 | BE112: 270 | BF112: 270 | BH112: 2357 | BI112: 77 | BJ112: 2032-11-07 | BK112: 0 | BL112: 0 | BM112: 0 | BN112: 0 | BO112: 2032-11-07 | BP112: 2032-11-07 | BR112: 0 | BS112: 0 | BT112: 0 | BU112: 0 | BY112: 270 | BZ112: 270 | CA112: 270 | CB112: 270 | CC112: 270 | CD112: 270 | CE112: 270 | CF112: 270 | CG112: 270 | CH112: 270 | CI112: 270 | CJ112: 270 | CK112: 270 | CL112: 270 | CM112: 270 | CN112: 270 | CO112: 270 | CP112: 270 | CQ112: 270 | CR112: 270 | CS112: 270 | CT112: 270 | CU112: 270 | CV112: 270 | CW112: 270 | CX112: 270 | CY112: 270 | CZ112: 270 | DA112: 270 | DB112: 270 | DC112: 270 | DD112: 270 | DE112: 0 | DF112: 0 | DG112: 0 | DH112: 0 | DI112: 0 | DJ112: 0 | DK112: 0 | DL112: 0 | DM112: 0 | DN112: 0 | DO112: 0 | DP112: 0 | DQ112: 0 | DR112: 0 | DS112: 0 | DT112: 0 | DU112: 0 | DV112: 0 | DW112: 0 | DX112: 0 | DY112: 0 | DZ112: 0 | EA112: 0 | EB112: 0 | EC112: 0 | ED112: 0 | EE112: 0 | EF112: 0 | EG112: 0 | EH112: 0 | EI112: 0 | EJ112: 0 | EK112: 0 | EL112: 0 | EM112: 0 | EN112: 0 | EO112: 0 | EP112: 0 | EQ112: 0 | ER112: 0 | ES112: 0 | ET112: 0 | EU112: 0 | EV112: 0 | EW112: 0 | EX112: 0 | EY112: 0 | EZ112: 0 | FA112: 0 | FB112: 0 | FC112: 0 | FD112: 0 | FE112: 0 | FF112: 0 | FG112: 0 | FH112: 0 | FI112: 0 | FJ112: 0 | FK112: 0 | FL112: 0 | FM112: 0 | FN112: 0 | FO112: 0 | FP112: 0 | FQ112: 0
A113: 2007-09-07 | B113: sexta-feira | C113: Independência do Brasil | F113: 2477 | G113: 78 | H113: 2033-03-07 | I113: 0 | J113: 0 | K113: 0 | L113: 0 | M113: 2032-12-07 | S113: 78 | T113: 270 | U113: 63.88627322 | V113: 63.88627322 | W113: 65.0352434 | X113: 67.18149665 | Y113: 69.965446 | Z113: 72.86621572 | AH113: 1.912116158 | AI113: 1.912116158 | AJ113: 1.946504835 | AK113: 2.010742195 | AL113: 2.094065799 | AM113: 2.180885836 | AU113: 270 | AV113: 270 | AW113: 270 | AX113: 270 | AY113: 270 | AZ113: 270 | BA113: 270 | BB113: 270 | BC113: 270 | BD113: 270 | BE113: 270 | BF113: 270 | BH113: 2387 | BI113: 78 | BJ113: 2032-12-07 | BK113: 0 | BL113: 0 | BM113: 0 | BN113: 0 | BO113: 2032-12-07 | BP113: 2032-12-07 | BR113: 0 | BS113: 0 | BT113: 0 | BU113: 0 | BY113: 270 | BZ113: 270 | CA113: 270 | CB113: 270 | CC113: 270 | CD113: 270 | CE113: 270 | CF113: 270 | CG113: 270 | CH113: 270 | CI113: 270 | CJ113: 270 | CK113: 270 | CL113: 270 | CM113: 270 | CN113: 270 | CO113: 270 | CP113: 270 | CQ113: 270 | CR113: 270 | CS113: 270 | CT113: 270 | CU113: 270 | CV113: 270 | CW113: 270 | CX113: 270 | CY113: 270 | CZ113: 270 | DA113: 270 | DB113: 270 | DC113: 270 | DD113: 0 | DE113: 0 | DF113: 0 | DG113: 0 | DH113: 0 | DI113: 0 | DJ113: 0 | DK113: 0 | DL113: 0 | DM113: 0 | DN113: 0 | DO113: 0 | DP113: 0 | DQ113: 0 | DR113: 0 | DS113: 0 | DT113: 0 | DU113: 0 | DV113: 0 | DW113: 0 | DX113: 0 | DY113: 0 | DZ113: 0 | EA113: 0 | EB113: 0 | EC113: 0 | ED113: 0 | EE113: 0 | EF113: 0 | EG113: 0 | EH113: 0 | EI113: 0 | EJ113: 0 | EK113: 0 | EL113: 0 | EM113: 0 | EN113: 0 | EO113: 0 | EP113: 0 | EQ113: 0 | ER113: 0 | ES113: 0 | ET113: 0 | EU113: 0 | EV113: 0 | EW113: 0 | EX113: 0 | EY113: 0 | EZ113: 0 | FA113: 0 | FB113: 0 | FC113: 0 | FD113: 0 | FE113: 0 | FF113: 0 | FG113: 0 | FH113: 0 | FI113: 0 | FJ113: 0 | FK113: 0 | FL113: 0 | FM113: 0 | FN113: 0 | FO113: 0 | FP113: 0 | FQ113: 0
A114: 2007-10-12 | B114: sexta-feira | C114: Nossa Sr.a Aparecida - Padroeira do Brasil | F114: 2508 | G114: 79 | H114: 2033-04-07 | I114: 0 | J114: 0 | K114: 0 | L114: 0 | M114: 2033-01-07 | S114: 79 | T114: 270 | U114: 62.74420564 | V114: 62.74420564 | W114: 63.88688646 | X114: 66.02206484 | Y114: 68.79291716 | Z114: 71.68150813 | AH114: 1.877934075 | AI114: 1.877934075 | AJ114: 1.912134512 | AK114: 1.976040401 | AL114: 2.058972011 | AM114: 2.145427538 | AU114: 270 | AV114: 270 | AW114: 270 | AX114: 270 | AY114: 270 | AZ114: 270 | BA114: 270 | BB114: 270 | BC114: 270 | BD114: 270 | BE114: 270 | BF114: 270 | BH114: 2418 | BI114: 79 | BJ114: 2033-01-07 | BK114: 0 | BL114: 0 | BM114: 0 | BN114: 0 | BO114: 2033-01-07 | BP114: 2033-01-07 | BR114: 0 | BS114: 0 | BT114: 0 | BU114: 0 | BY114: 270 | BZ114: 270 | CA114: 270 | CB114: 270 | CC114: 270 | CD114: 270 | CE114: 270 | CF114: 270 | CG114: 270 | CH114: 270 | CI114: 270 | CJ114: 270 | CK114: 270 | CL114: 270 | CM114: 270 | CN114: 270 | CO114: 270 | CP114: 270 | CQ114: 270 | CR114: 270 | CS114: 270 | CT114: 270 | CU114: 270 | CV114: 270 | CW114: 270 | CX114: 270 | CY114: 270 | CZ114: 270 | DA114: 270 | DB114: 270 | DC114: 0 | DD114: 0 | DE114: 0 | DF114: 0 | DG114: 0 | DH114: 0 | DI114: 0 | DJ114: 0 | DK114: 0 | DL114: 0 | DM114: 0 | DN114: 0 | DO114: 0 | DP114: 0 | DQ114: 0 | DR114: 0 | DS114: 0 | DT114: 0 | DU114: 0 | DV114: 0 | DW114: 0 | DX114: 0 | DY114: 0 | DZ114: 0 | EA114: =IF($G114>EA$33,0,$I$9) -> 0 | EB114: 0 | EC114: 0 | ED114: 0 | EE114: 0 | EF114: 0 | EG114: 0 | EH114: 0 | EI114: 0 | EJ114: 0 | EK114: 0 | EL114: 0 | EM114: 0 | EN114: 0 | EO114: 0 | EP114: 0 | EQ114: 0 | ER114: 0 | ES114: 0 | ET114: 0 | EU114: 0 | EV114: 0 | EW114: 0 | EX114: 0 | EY114: 0 | EZ114: 0 | FA114: 0 | FB114: 0 | FC114: 0 | FD114: 0 | FE114: 0 | FF114: 0 | FG114: 0 | FH114: 0 | FI114: 0 | FJ114: 0 | FK114: 0 | FL114: 0 | FM114: 0 | FN114: 0 | FO114: 0 | FP114: 0 | FQ114: 0
A115: 2007-11-02 | B115: sexta-feira | C115: Finados | F115: 2538 | G115: 80 | H115: 2033-05-07 | I115: 0 | J115: 0 | K115: 0 | L115: 0 | M115: 2033-02-07 | S115: 80 | T115: 270 | U115: 61.65842169 | V115: 61.65842169 | W115: 62.79488344 | X115: 64.91908951 | Y115: 67.67692467 | Z115: 70.55335991 | AH115: 1.845436561 | AI115: 1.845436561 | AJ115: 1.879450861 | AK115: 1.943028349 | AL115: 2.025570355 | AM115: 2.111662062 | AU115: 270 | AV115: 270 | AW115: 270 | AX115: 270 | AY115: 270 | AZ115: 270 | BA115: 270 | BB115: 270 | BC115: 270 | BD115: 270 | BE115: 270 | BF115: 270 | BH115: 2449 | BI115: 80 | BJ115: 2033-02-07 | BK115: 0 | BL115: 0 | BM115: 0 | BN115: 0 | BO115: 2033-02-07 | BP115: 2033-02-07 | BR115: 0 | BS115: 0 | BT115: 0 | BU115: 0 | BY115: 270 | BZ115: 270 | CA115: 270 | CB115: 270 | CC115: 270 | CD115: 270 | CE115: 270 | CF115: 270 | CG115: 270 | CH115: 270 | CI115: 270 | CJ115: 270 | CK115: 270 | CL115: 270 | CM115: 270 | CN115: 270 | CO115: 270 | CP115: 270 | CQ115: 270 | CR115: 270 | CS115: 270 | CT115: 270 | CU115: 270 | CV115: 270 | CW115: 270 | CX115: 270 | CY115: 270 | CZ115: 270 | DA115: 270 | DB115: 0 | DC115: 0 | DD115: 0 | DE115: 0 | DF115: 0 | DG115: 0 | DH115: 0 | DI115: 0 | DJ115: 0 | DK115: 0 | DL115: 0 | DM115: 0 | DN115: 0 | DO115: 0 | DP115: 0 | DQ115: 0 | DR115: 0 | DS115: 0 | DT115: 0 | DU115: 0 | DV115: 0 | DW115: 0 | DX115: 0 | DY115: 0 | DZ115: 0 | EA115: 0 | EB115: 0 | EC115: 0 | ED115: 0 | EE115: 0 | EF115: 0 | EG115: 0 | EH115: 0 | EI115: 0 | EJ115: 0 | EK115: 0 | EL115: 0 | EM115: 0 | EN115: 0 | EO115: 0 | EP115: 0 | EQ115: 0 | ER115: 0 | ES115: 0 | ET115: 0 | EU115: 0 | EV115: 0 | EW115: 0 | EX115: 0 | EY115: 0 | EZ115: 0 | FA115: 0 | FB115: 0 | FC115: 0 | FD115: 0 | FE115: 0 | FF115: 0 | FG115: 0 | FH115: 0 | FI115: 0 | FJ115: 0 | FK115: 0 | FL115: 0 | FM115: 0 | FN115: 0 | FO115: 0 | FP115: 0 | FQ115: 0
A116: 2007-11-15 | B116: quinta-feira | C116: Proclamação da República | F116: 2569 | G116: 81 | H116: 2033-06-07 | I116: 0 | J116: 0 | K116: 0 | L116: 0 | M116: 2033-03-07 | S116: 81 | T116: 270 | U116: =$T116/((U$29)^($H116-$H$35)) -> 60.55618045 | V116: 60.55618045 | W116: 61.68608555 | X116: 63.79870277 | Y116: 66.54274843 | Z116: 69.40625627 | AH116: 1.812446481 | AI116: 1.812446481 | AJ116: 1.846264541 | AK116: 1.909495174 | AL116: 1.991624461 | AM116: 2.07732925 | AU116: =$T116 -> 270 | AV116: 270 | AW116: 270 | AX116: 270 | AY116: 270 | AZ116: 270 | BA116: 270 | BB116: 270 | BC116: 270 | BD116: 270 | BE116: 270 | BF116: 270 | BH116: 2477 | BI116: 81 | BJ116: 2033-03-07 | BK116: 0 | BL116: 0 | BM116: 0 | BN116: 0 | BO116: 2033-03-07 | BP116: 2033-03-07 | BR116: 0 | BS116: 0 | BT116: 0 | BU116: 0 | BY116: 270 | BZ116: 270 | CA116: 270 | CB116: 270 | CC116: 270 | CD116: 270 | CE116: 270 | CF116: 270 | CG116: 270 | CH116: 270 | CI116: 270 | CJ116: 270 | CK116: 270 | CL116: 270 | CM116: 270 | CN116: 270 | CO116: =IF($G116>CO$33,0,$I$9) -> 270 | CP116: 270 | CQ116: 270 | CR116: 270 | CS116: 270 | CT116: 270 | CU116: 270 | CV116: 270 | CW116: 270 | CX116: 270 | CY116: 270 | CZ116: 270 | DA116: 0 | DB116: 0 | DC116: 0 | DD116: 0 | DE116: 0 | DF116: 0 | DG116: 0 | DH116: 0 | DI116: 0 | DJ116: 0 | DK116: 0 | DL116: 0 | DM116: 0 | DN116: 0 | DO116: 0 | DP116: 0 | DQ116: 0 | DR116: 0 | DS116: 0 | DT116: 0 | DU116: 0 | DV116: 0 | DW116: 0 | DX116: 0 | DY116: 0 | DZ116: 0 | EA116: 0 | EB116: 0 | EC116: 0 | ED116: 0 | EE116: 0 | EF116: 0 | EG116: 0 | EH116: 0 | EI116: 0 | EJ116: 0 | EK116: 0 | EL116: 0 | EM116: 0 | EN116: 0 | EO116: 0 | EP116: 0 | EQ116: 0 | ER116: 0 | ES116: 0 | ET116: 0 | EU116: 0 | EV116: 0 | EW116: 0 | EX116: 0 | EY116: 0 | EZ116: 0 | FA116: 0 | FB116: 0 | FC116: 0 | FD116: 0 | FE116: 0 | FF116: 0 | FG116: 0 | FH116: 0 | FI116: 0 | FJ116: 0 | FK116: 0 | FL116: 0 | FM116: 0 | FN116: 0 | FO116: 0 | FP116: 0 | FQ116: 0
A117: 2007-12-25 | B117: terça-feira | C117: Natal | F117: 2599 | G117: 82 | H117: 2033-07-07 | I117: 0 | J117: 0 | K117: 0 | L117: 0 | M117: 2033-04-07 | S117: 82 | T117: 270 | U117: 59.50826012 | V117: 59.50826012 | W117: 60.63170029 | X117: 62.73287129 | Y117: 65.46325929 | Z117: 68.31391675 | AH117: 1.781082225 | AI117: 1.781082225 | AJ117: 1.81470679 | AK117: 1.877594838 | AL117: 1.959315351 | AM117: 2.044635528 | AU117: 270 | AV117: 270 | AW117: 270 | AX117: 270 | AY117: 270 | AZ117: 270 | BA117: 270 | BB117: 270 | BC117: 270 | BD117: 270 | BE117: 270 | BF117: 270 | BH117: 2508 | BI117: 82 | BJ117: 2033-04-07 | BK117: 0 | BL117: 0 | BM117: 0 | BN117: 0 | BO117: 2033-04-07 | BP117: 2033-04-07 | BR117: 0 | BS117: 0 | BT117: 0 | BU117: 0 | BY117: =IF($G117>BY$33,0,$I$9) -> 270 | BZ117: 270 | CA117: 270 | CB117: 270 | CC117: 270 | CD117: 270 | CE117: 270 | CF117: 270 | CG117: 270 | CH117: 270 | CI117: 270 | CJ117: 270 | CK117: 270 | CL117: 270 | CM117: 270 | CN117: 270 | CO117: 270 | CP117: 270 | CQ117: 270 | CR117: 270 | CS117: 270 | CT117: 270 | CU117: 270 | CV117: 270 | CW117: 270 | CX117: 270 | CY117: 270 | CZ117: 0 | DA117: 0 | DB117: 0 | DC117: 0 | DD117: 0 | DE117: 0 | DF117: 0 | DG117: 0 | DH117: 0 | DI117: 0 | DJ117: 0 | DK117: 0 | DL117: 0 | DM117: 0 | DN117: 0 | DO117: 0 | DP117: 0 | DQ117: 0 | DR117: 0 | DS117: 0 | DT117: 0 | DU117: 0 | DV117: 0 | DW117: 0 | DX117: 0 | DY117: 0 | DZ117: 0 | EA117: 0 | EB117: 0 | EC117: 0 | ED117: 0 | EE117: 0 | EF117: 0 | EG117: 0 | EH117: 0 | EI117: 0 | EJ117: 0 | EK117: 0 | EL117: 0 | EM117: 0 | EN117: 0 | EO117: 0 | EP117: 0 | EQ117: 0 | ER117: 0 | ES117: 0 | ET117: 0 | EU117: 0 | EV117: 0 | EW117: 0 | EX117: 0 | EY117: 0 | EZ117: 0 | FA117: 0 | FB117: 0 | FC117: 0 | FD117: 0 | FE117: 0 | FF117: 0 | FG117: 0 | FH117: 0 | FI117: 0 | FJ117: 0 | FK117: 0 | FL117: 0 | FM117: 0 | FN117: 0 | FO117: 0 | FP117: 0 | FQ117: 0
A118: 2008-01-01 | B118: terça-feira | C118: Confraternização Universal | F118: 2630 | G118: 83 | H118: 2033-08-07 | I118: 0 | J118: 0 | K118: 0 | L118: 0 | M118: 2033-05-07 | S118: 83 | T118: 270 | U118: 58.4444564 | V118: 58.4444564 | W118: 59.56109871 | X118: 61.65021474 | Y118: 64.36618117 | Z118: 67.20322348 | AH118: 1.74924258 | AI118: 1.74924258 | AJ118: 1.782663684 | AK118: 1.845190927 | AL118: 1.926479803 | AM118: 2.011392479 | AU118: 270 | AV118: 270 | AW118: 270 | AX118: 270 | AY118: 270 | AZ118: 270 | BA118: 270 | BB118: 270 | BC118: 270 | BD118: 270 | BE118: 270 | BF118: 270 | BH118: 2538 | BI118: 83 | BJ118: 2033-05-07 | BK118: 0 | BL118: 0 | BM118: 0 | BN118: 0 | BO118: 2033-05-07 | BP118: 2033-05-07 | BR118: 0 | BS118: 0 | BT118: 0 | BU118: 0 | BY118: 270 | BZ118: 270 | CA118: 270 | CB118: 270 | CC118: 270 | CD118: 270 | CE118: 270 | CF118: 270 | CG118: 270 | CH118: 270 | CI118: 270 | CJ118: 270 | CK118: 270 | CL118: 270 | CM118: 270 | CN118: 270 | CO118: 270 | CP118: 270 | CQ118: 270 | CR118: 270 | CS118: 270 | CT118: 270 | CU118: 270 | CV118: 270 | CW118: 270 | CX118: 270 | CY118: 0 | CZ118: 0 | DA118: 0 | DB118: 0 | DC118: 0 | DD118: 0 | DE118: 0 | DF118: 0 | DG118: 0 | DH118: 0 | DI118: 0 | DJ118: 0 | DK118: 0 | DL118: 0 | DM118: 0 | DN118: 0 | DO118: 0 | DP118: 0 | DQ118: 0 | DR118: 0 | DS118: 0 | DT118: 0 | DU118: 0 | DV118: 0 | DW118: 0 | DX118: 0 | DY118: 0 | DZ118: 0 | EA118: 0 | EB118: 0 | EC118: 0 | ED118: 0 | EE118: 0 | EF118: 0 | EG118: 0 | EH118: 0 | EI118: 0 | EJ118: 0 | EK118: 0 | EL118: 0 | EM118: 0 | EN118: 0 | EO118: 0 | EP118: 0 | EQ118: 0 | ER118: 0 | ES118: 0 | ET118: 0 | EU118: 0 | EV118: 0 | EW118: 0 | EX118: 0 | EY118: 0 | EZ118: 0 | FA118: 0 | FB118: 0 | FC118: 0 | FD118: 0 | FE118: 0 | FF118: 0 | FG118: 0 | FH118: 0 | FI118: 0 | FJ118: 0 | FK118: 0 | FL118: 0 | FM118: 0 | FN118: 0 | FO118: 0 | FP118: 0 | FQ118: 0
A119: 2008-02-04 | B119: segunda-feira | C119: Carnaval | F119: 2661 | G119: 84 | H119: 2033-09-07 | I119: 0 | J119: 0 | K119: 0 | L119: 0 | M119: 2033-06-07 | S119: 84 | T119: 270 | U119: 57.39966984 | V119: 57.39966984 | W119: 58.50940124 | X119: 60.58624291 | Y119: 63.28748865 | Z119: 66.1105886 | AH119: 1.717972118 | AI119: 1.717972118 | AJ119: 1.751186379 | AK119: 1.81334625 | AL119: 1.894194535 | AM119: 1.978689917 | AU119: 270 | AV119: 270 | AW119: 270 | AX119: 270 | AY119: 270 | AZ119: 270 | BA119: 270 | BB119: 270 | BC119: 270 | BD119: 270 | BE119: 270 | BF119: 270 | BH119: 2569 | BI119: 84 | BJ119: 2033-06-07 | BK119: 0 | BL119: 0 | BM119: 0 | BN119: 0 | BO119: 2033-06-07 | BP119: 2033-06-07 | BR119: 0 | BS119: 0 | BT119: 0 | BU119: 0 | BY119: 270 | BZ119: 270 | CA119: 270 | CB119: 270 | CC119: 270 | CD119: 270 | CE119: 270 | CF119: 270 | CG119: 270 | CH119: 270 | CI119: 270 | CJ119: 270 | CK119: 270 | CL119: 270 | CM119: 270 | CN119: 270 | CO119: 270 | CP119: 270 | CQ119: 270 | CR119: 270 | CS119: 270 | CT119: 270 | CU119: 270 | CV119: 270 | CW119: 270 | CX119: 0 | CY119: 0 | CZ119: 0 | DA119: 0 | DB119: 0 | DC119: 0 | DD119: 0 | DE119: 0 | DF119: 0 | DG119: 0 | DH119: 0 | DI119: 0 | DJ119: 0 | DK119: 0 | DL119: 0 | DM119: 0 | DN119: 0 | DO119: 0 | DP119: 0 | DQ119: 0 | DR119: 0 | DS119: 0 | DT119: 0 | DU119: 0 | DV119: 0 | DW119: 0 | DX119: =IF($G119>DX$33,0,$I$9) -> 0 | DY119: 0 | DZ119: 0 | EA119: 0 | EB119: 0 | EC119: 0 | ED119: 0 | EE119: 0 | EF119: 0 | EG119: 0 | EH119: 0 | EI119: 0 | EJ119: 0 | EK119: 0 | EL119: 0 | EM119: 0 | EN119: 0 | EO119: 0 | EP119: 0 | EQ119: 0 | ER119: 0 | ES119: 0 | ET119: 0 | EU119: 0 | EV119: 0 | EW119: 0 | EX119: 0 | EY119: 0 | EZ119: 0 | FA119: 0 | FB119: 0 | FC119: 0 | FD119: 0 | FE119: 0 | FF119: 0 | FG119: 0 | FH119: 0 | FI119: 0 | FJ119: 0 | FK119: 0 | FL119: 0 | FM119: 0 | FN119: 0 | FO119: 0 | FP119: 0 | FQ119: 0
A120: 2008-02-05 | B120: terça-feira | C120: Carnaval | F120: 2691 | G120: 85 | H120: 2033-10-07 | I120: 0 | J120: 0 | K120: 0 | L120: 0 | M120: 2033-07-07 | S120: 85 | T120: 270 | U120: 56.4063727 | V120: 56.4063727 | W120: 57.50931426 | X120: 59.5740793 | Y120: 62.26080792 | Z120: 65.07011742 | AH120: 1.688242735 | AI120: 1.688242735 | AJ120: 1.721253776 | AK120: 1.783052193 | AL120: 1.863465981 | AM120: 1.947548614 | AU120: 270 | AV120: 270 | AW120: 270 | AX120: 270 | AY120: 270 | AZ120: 270 | BA120: 270 | BB120: 270 | BC120: 270 | BD120: 270 | BE120: 270 | BF120: 270 | BH120: 2599 | BI120: 85 | BJ120: 2033-07-07 | BK120: 0 | BL120: 0 | BM120: 0 | BN120: 0 | BO120: 2033-07-07 | BP120: 2033-07-07 | BR120: 0 | BS120: 0 | BT120: 0 | BU120: 0 | BY120: 270 | BZ120: 270 | CA120: 270 | CB120: 270 | CC120: 270 | CD120: 270 | CE120: 270 | CF120: 270 | CG120: 270 | CH120: 270 | CI120: 270 | CJ120: 270 | CK120: 270 | CL120: 270 | CM120: 270 | CN120: 270 | CO120: 270 | CP120: 270 | CQ120: 270 | CR120: 270 | CS120: 270 | CT120: 270 | CU120: 270 | CV120: 270 | CW120: 0 | CX120: 0 | CY120: 0 | CZ120: 0 | DA120: 0 | DB120: 0 | DC120: 0 | DD120: 0 | DE120: 0 | DF120: 0 | DG120: 0 | DH120: 0 | DI120: 0 | DJ120: 0 | DK120: 0 | DL120: 0 | DM120: 0 | DN120: 0 | DO120: 0 | DP120: 0 | DQ120: 0 | DR120: 0 | DS120: 0 | DT120: 0 | DU120: 0 | DV120: 0 | DW120: 0 | DX120: 0 | DY120: 0 | DZ120: 0 | EA120: 0 | EB120: 0 | EC120: 0 | ED120: 0 | EE120: 0 | EF120: 0 | EG120: 0 | EH120: 0 | EI120: 0 | EJ120: 0 | EK120: 0 | EL120: 0 | EM120: 0 | EN120: 0 | EO120: 0 | EP120: 0 | EQ120: 0 | ER120: 0 | ES120: 0 | ET120: 0 | EU120: 0 | EV120: 0 | EW120: 0 | EX120: 0 | EY120: 0 | EZ120: 0 | FA120: 0 | FB120: 0 | FC120: 0 | FD120: 0 | FE120: 0 | FF120: 0 | FG120: 0 | FH120: 0 | FI120: 0 | FJ120: 0 | FK120: 0 | FL120: 0 | FM120: 0 | FN120: 0 | FO120: 0 | FP120: 0 | FQ120: 0
A121: 2008-03-21 | B121: sexta-feira | C121: Paixão de Cristo | F121: 2722 | G121: 86 | H121: 2033-11-07 | I121: 0 | J121: 0 | K121: 0 | L121: 0 | M121: 2033-08-07 | S121: 86 | T121: 270 | U121: 55.3980201 | V121: 55.3980201 | W121: 56.49384608 | X121: 58.54593783 | Y121: 61.21739868 | Z121: 64.01216401 | AH121: 1.658062741 | AI121: 1.658062741 | AJ121: 1.690860813 | AK121: 1.752279919 | AL121: 1.832236743 | AM121: 1.915884069 | AU121: 270 | AV121: 270 | AW121: 270 | AX121: 270 | AY121: 270 | AZ121: 270 | BA121: 270 | BB121: 270 | BC121: 270 | BD121: 270 | BE121: 270 | BF121: 270 | BH121: 2630 | BI121: 86 | BJ121: 2033-08-07 | BK121: 0 | BL121: 0 | BM121: 0 | BN121: 0 | BO121: 2033-08-07 | BP121: 2033-08-07 | BR121: 0 | BS121: 0 | BT121: 0 | BU121: 0 | BY121: 270 | BZ121: 270 | CA121: 270 | CB121: 270 | CC121: 270 | CD121: 270 | CE121: 270 | CF121: 270 | CG121: 270 | CH121: 270 | CI121: 270 | CJ121: 270 | CK121: 270 | CL121: 270 | CM121: 270 | CN121: 270 | CO121: 270 | CP121: 270 | CQ121: 270 | CR121: 270 | CS121: 270 | CT121: 270 | CU121: 270 | CV121: 0 | CW121: 0 | CX121: 0 | CY121: 0 | CZ121: 0 | DA121: 0 | DB121: 0 | DC121: 0 | DD121: 0 | DE121: 0 | DF121: 0 | DG121: 0 | DH121: 0 | DI121: 0 | DJ121: 0 | DK121: 0 | DL121: 0 | DM121: 0 | DN121: 0 | DO121: 0 | DP121: 0 | DQ121: 0 | DR121: 0 | DS121: 0 | DT121: 0 | DU121: 0 | DV121: 0 | DW121: 0 | DX121: 0 | DY121: 0 | DZ121: 0 | EA121: 0 | EB121: 0 | EC121: 0 | ED121: 0 | EE121: 0 | EF121: 0 | EG121: 0 | EH121: 0 | EI121: 0 | EJ121: 0 | EK121: 0 | EL121: 0 | EM121: 0 | EN121: 0 | EO121: 0 | EP121: 0 | EQ121: 0 | ER121: 0 | ES121: 0 | ET121: 0 | EU121: 0 | EV121: 0 | EW121: 0 | EX121: 0 | EY121: 0 | EZ121: 0 | FA121: 0 | FB121: 0 | FC121: 0 | FD121: 0 | FE121: 0 | FF121: 0 | FG121: 0 | FH121: 0 | FI121: 0 | FJ121: 0 | FK121: 0 | FL121: 0 | FM121: 0 | FN121: 0 | FO121: 0 | FP121: 0 | FQ121: 0
A122: 2008-04-21 | B122: segunda-feira | C122: Tiradentes | F122: 2752 | G122: 87 | H122: 2033-12-07 | I122: 0 | J122: 0 | K122: 0 | L122: 0 | M122: 2033-09-07 | S122: 87 | T122: 270 | U122: 54.43936136 | V122: 54.43936136 | W122: 55.5282105 | X122: 57.56785989 | Y122: 60.22429998 | Z122: 63.00471856 | AH122: 1.629370085 | AI122: 1.629370085 | AJ122: 1.66195934 | AK122: 1.723006046 | AL122: 1.802513298 | AM122: 1.885731226 | AU122: 270 | AV122: 270 | AW122: 270 | AX122: 270 | AY122: 270 | AZ122: 270 | BA122: 270 | BB122: 270 | BC122: 270 | BD122: 270 | BE122: 270 | BF122: 270 | BH122: 2661 | BI122: 87 | BJ122: 2033-09-07 | BK122: 0 | BL122: 0 | BM122: 0 | BN122: 0 | BO122: 2033-09-07 | BP122: 2033-09-07 | BR122: 0 | BS122: 0 | BT122: 0 | BU122: 0 | BY122: 270 | BZ122: 270 | CA122: 270 | CB122: 270 | CC122: 270 | CD122: 270 | CE122: 270 | CF122: 270 | CG122: 270 | CH122: 270 | CI122: 270 | CJ122: 270 | CK122: 270 | CL122: 270 | CM122: 270 | CN122: 270 | CO122: 270 | CP122: 270 | CQ122: 270 | CR122: 270 | CS122: 270 | CT122: 270 | CU122: 0 | CV122: 0 | CW122: 0 | CX122: 0 | CY122: 0 | CZ122: 0 | DA122: 0 | DB122: 0 | DC122: 0 | DD122: 0 | DE122: 0 | DF122: 0 | DG122: 0 | DH122: 0 | DI122: 0 | DJ122: 0 | DK122: 0 | DL122: 0 | DM122: 0 | DN122: 0 | DO122: 0 | DP122: 0 | DQ122: 0 | DR122: 0 | DS122: 0 | DT122: 0 | DU122: 0 | DV122: 0 | DW122: 0 | DX122: 0 | DY122: 0 | DZ122: 0 | EA122: 0 | EB122: 0 | EC122: 0 | ED122: 0 | EE122: 0 | EF122: 0 | EG122: 0 | EH122: 0 | EI122: 0 | EJ122: 0 | EK122: 0 | EL122: 0 | EM122: 0 | EN122: 0 | EO122: 0 | EP122: 0 | EQ122: 0 | ER122: 0 | ES122: 0 | ET122: 0 | EU122: 0 | EV122: 0 | EW122: 0 | EX122: 0 | EY122: 0 | EZ122: 0 | FA122: 0 | FB122: 0 | FC122: 0 | FD122: 0 | FE122: 0 | FF122: 0 | FG122: 0 | FH122: 0 | FI122: 0 | FJ122: 0 | FK122: 0 | FL122: 0 | FM122: 0 | FN122: 0 | FO122: 0 | FP122: 0 | FQ122: 0
A123: 2008-05-01 | B123: quinta-feira | C123: Dia do Trabalho | F123: 2783 | G123: 88 | H123: 2034-01-07 | I123: 0 | J123: 0 | K123: 0 | L123: 0 | M123: 2033-10-07 | S123: 88 | T123: 270 | U123: 53.46617217 | V123: 53.46617217 | W123: 54.54772358 | X123: 56.57434215 | Y123: 59.21501993 | Z123: 61.98034578 | AH123: 1.600242533 | AI123: 1.600242533 | AJ123: 1.632613367 | AK123: 1.693270061 | AL123: 1.772305546 | AM123: 1.855071749 | AU123: 270 | AV123: 270 | AW123: 270 | AX123: 270 | AY123: 270 | AZ123: 270 | BA123: 270 | BB123: 270 | BC123: 270 | BD123: 270 | BE123: 270 | BF123: 270 | BH123: 2691 | BI123: 88 | BJ123: 2033-10-07 | BK123: 0 | BL123: 0 | BM123: 0 | BN123: 0 | BO123: 2033-10-07 | BP123: 2033-10-07 | BR123: 0 | BS123: 0 | BT123: 0 | BU123: 0 | BY123: 270 | BZ123: 270 | CA123: 270 | CB123: 270 | CC123: 270 | CD123: 270 | CE123: 270 | CF123: 270 | CG123: 270 | CH123: 270 | CI123: 270 | CJ123: 270 | CK123: 270 | CL123: 270 | CM123: 270 | CN123: 270 | CO123: 270 | CP123: 270 | CQ123: 270 | CR123: 270 | CS123: 270 | CT123: 0 | CU123: 0 | CV123: 0 | CW123: 0 | CX123: 0 | CY123: 0 | CZ123: 0 | DA123: 0 | DB123: 0 | DC123: 0 | DD123: 0 | DE123: 0 | DF123: 0 | DG123: 0 | DH123: 0 | DI123: 0 | DJ123: 0 | DK123: 0 | DL123: 0 | DM123: 0 | DN123: 0 | DO123: 0 | DP123: 0 | DQ123: 0 | DR123: 0 | DS123: 0 | DT123: 0 | DU123: 0 | DV123: 0 | DW123: 0 | DX123: 0 | DY123: 0 | DZ123: 0 | EA123: 0 | EB123: 0 | EC123: 0 | ED123: 0 | EE123: 0 | EF123: 0 | EG123: 0 | EH123: 0 | EI123: 0 | EJ123: 0 | EK123: 0 | EL123: 0 | EM123: 0 | EN123: 0 | EO123: 0 | EP123: 0 | EQ123: 0 | ER123: 0 | ES123: 0 | ET123: 0 | EU123: 0 | EV123: 0 | EW123: 0 | EX123: 0 | EY123: 0 | EZ123: 0 | FA123: 0 | FB123: 0 | FC123: 0 | FD123: 0 | FE123: 0 | FF123: 0 | FG123: 0 | FH123: 0 | FI123: 0 | FJ123: 0 | FK123: 0 | FL123: 0 | FM123: 0 | FN123: 0 | FO123: 0 | FP123: 0 | FQ123: 0
A124: 2008-05-22 | B124: quinta-feira | C124: Corpus Christi | F124: 2814 | G124: 89 | H124: 2034-02-07 | I124: 0 | J124: 0 | K124: 0 | L124: 0 | M124: 2033-11-07 | S124: 89 | T124: 270 | U124: 52.51038028 | V124: 52.51038028 | W124: 53.58454955 | X124: 55.59797075 | Y124: 58.22265409 | Z124: 60.97262793 | AH124: 1.571635682 | AI124: 1.571635682 | AJ124: 1.603785568 | AK124: 1.664047264 | AL124: 1.742604037 | AM124: 1.824910754 | AU124: 270 | AV124: 270 | AW124: 270 | AX124: 270 | AY124: 270 | AZ124: 270 | BA124: 270 | BB124: 270 | BC124: 270 | BD124: 270 | BE124: 270 | BF124: 270 | BH124: 2722 | BI124: 89 | BJ124: 2033-11-07 | BK124: 0 | BL124: 0 | BM124: 0 | BN124: 0 | BO124: 2033-11-07 | BP124: 2033-11-07 | BR124: 0 | BS124: 0 | BT124: 0 | BU124: 0 | BY124: 270 | BZ124: 270 | CA124: 270 | CB124: 270 | CC124: 270 | CD124: 270 | CE124: 270 | CF124: 270 | CG124: 270 | CH124: 270 | CI124: 270 | CJ124: 270 | CK124: 270 | CL124: 270 | CM124: 270 | CN124: 270 | CO124: 270 | CP124: 270 | CQ124: 270 | CR124: 270 | CS124: 0 | CT124: 0 | CU124: 0 | CV124: 0 | CW124: 0 | CX124: 0 | CY124: 0 | CZ124: 0 | DA124: 0 | DB124: 0 | DC124: 0 | DD124: 0 | DE124: 0 | DF124: 0 | DG124: 0 | DH124: 0 | DI124: 0 | DJ124: 0 | DK124: 0 | DL124: 0 | DM124: 0 | DN124: =IF($G124>DN$33,0,$I$9) -> 0 | DO124: 0 | DP124: 0 | DQ124: 0 | DR124: 0 | DS124: 0 | DT124: 0 | DU124: 0 | DV124: 0 | DW124: 0 | DX124: 0 | DY124: 0 | DZ124: 0 | EA124: 0 | EB124: 0 | EC124: 0 | ED124: 0 | EE124: 0 | EF124: 0 | EG124: 0 | EH124: 0 | EI124: 0 | EJ124: 0 | EK124: 0 | EL124: 0 | EM124: 0 | EN124: 0 | EO124: 0 | EP124: 0 | EQ124: 0 | ER124: 0 | ES124: 0 | ET124: 0 | EU124: 0 | EV124: 0 | EW124: 0 | EX124: 0 | EY124: 0 | EZ124: 0 | FA124: 0 | FB124: 0 | FC124: 0 | FD124: 0 | FE124: 0 | FF124: 0 | FG124: 0 | FH124: 0 | FI124: 0 | FJ124: 0 | FK124: 0 | FL124: 0 | FM124: 0 | FN124: 0 | FO124: 0 | FP124: 0 | FQ124: 0
A125: 2008-09-07 | B125: domingo | C125: Independência do Brasil | F125: 2842 | G125: 90 | H125: 2034-03-07 | I125: 0 | J125: 0 | K125: 0 | L125: 0 | M125: 2033-12-07 | S125: 90 | T125: 270 | U125: 51.66177891 | V125: 51.66177891 | W125: 52.72921234 | X125: 54.73057829 | Y125: 57.34062589 | Z125: 60.07652111 | AH125: 1.546237043 | AI125: 1.546237043 | AJ125: 1.578185325 | AK125: 1.638086208 | AL125: 1.716204933 | AM125: 1.798090277 | AU125: 270 | AV125: 270 | AW125: 270 | AX125: 270 | AY125: 270 | AZ125: 270 | BA125: 270 | BB125: 270 | BC125: 270 | BD125: 270 | BE125: 270 | BF125: 270 | BH125: 2752 | BI125: 90 | BJ125: 2033-12-07 | BK125: 0 | BL125: 0 | BM125: 0 | BN125: 0 | BO125: 2033-12-07 | BP125: 2033-12-07 | BR125: 0 | BS125: 0 | BT125: 0 | BU125: 0 | BY125: 270 | BZ125: 270 | CA125: 270 | CB125: 270 | CC125: 270 | CD125: 270 | CE125: 270 | CF125: 270 | CG125: 270 | CH125: 270 | CI125: 270 | CJ125: 270 | CK125: 270 | CL125: 270 | CM125: 270 | CN125: 270 | CO125: 270 | CP125: 270 | CQ125: 270 | CR125: 0 | CS125: 0 | CT125: 0 | CU125: 0 | CV125: 0 | CW125: 0 | CX125: 0 | CY125: 0 | CZ125: 0 | DA125: 0 | DB125: 0 | DC125: 0 | DD125: 0 | DE125: 0 | DF125: 0 | DG125: 0 | DH125: 0 | DI125: 0 | DJ125: 0 | DK125: 0 | DL125: 0 | DM125: 0 | DN125: 0 | DO125: 0 | DP125: 0 | DQ125: 0 | DR125: 0 | DS125: 0 | DT125: 0 | DU125: 0 | DV125: 0 | DW125: 0 | DX125: 0 | DY125: 0 | DZ125: 0 | EA125: 0 | EB125: 0 | EC125: 0 | ED125: 0 | EE125: 0 | EF125: 0 | EG125: 0 | EH125: 0 | EI125: 0 | EJ125: 0 | EK125: 0 | EL125: 0 | EM125: 0 | EN125: 0 | EO125: 0 | EP125: 0 | EQ125: 0 | ER125: 0 | ES125: 0 | ET125: 0 | EU125: 0 | EV125: 0 | EW125: 0 | EX125: 0 | EY125: =IF($G125>EY$33,0,$I$9) -> 0 | EZ125: 0 | FA125: 0 | FB125: 0 | FC125: 0 | FD125: 0 | FE125: 0 | FF125: 0 | FG125: 0 | FH125: 0 | FI125: 0 | FJ125: 0 | FK125: 0 | FL125: 0 | FM125: 0 | FN125: 0 | FO125: 0 | FP125: 0 | FQ125: 0
A126: 2008-10-12 | B126: domingo | C126: Nossa Sr.a Aparecida - Padroeira do Brasil | F126: 2873 | G126: 91 | H126: 2034-04-07 | I126: 0 | J126: 0 | K126: 0 | L126: 0 | M126: 2034-01-07 | S126: 91 | T126: 270 | U126: 50.73824338 | V126: 50.73824338 | W126: 51.7981486 | X126: 53.78602694 | Y126: 56.37967243 | Z126: 59.09975692 | AH126: 1.518595624 | AI126: 1.518595624 | AJ126: 1.550318588 | AK126: 1.609815786 | AL126: 1.687443596 | AM126: 1.768855725 | AU126: 270 | AV126: 270 | AW126: 270 | AX126: 270 | AY126: 270 | AZ126: 270 | BA126: 270 | BB126: 270 | BC126: 270 | BD126: 270 | BE126: 270 | BF126: 270 | BH126: 2783 | BI126: 91 | BJ126: 2034-01-07 | BK126: 0 | BL126: 0 | BM126: 0 | BN126: 0 | BO126: 2034-01-07 | BP126: 2034-01-07 | BR126: 0 | BS126: 0 | BT126: 0 | BU126: 0 | BY126: 270 | BZ126: 270 | CA126: 270 | CB126: 270 | CC126: 270 | CD126: 270 | CE126: 270 | CF126: 270 | CG126: 270 | CH126: 270 | CI126: 270 | CJ126: 270 | CK126: 270 | CL126: 270 | CM126: 270 | CN126: 270 | CO126: 270 | CP126: 270 | CQ126: 0 | CR126: 0 | CS126: 0 | CT126: 0 | CU126: 0 | CV126: 0 | CW126: 0 | CX126: 0 | CY126: 0 | CZ126: 0 | DA126: 0 | DB126: 0 | DC126: 0 | DD126: 0 | DE126: 0 | DF126: 0 | DG126: 0 | DH126: 0 | DI126: 0 | DJ126: 0 | DK126: 0 | DL126: 0 | DM126: 0 | DN126: 0 | DO126: 0 | DP126: 0 | DQ126: 0 | DR126: 0 | DS126: 0 | DT126: 0 | DU126: 0 | DV126: 0 | DW126: 0 | DX126: 0 | DY126: 0 | DZ126: 0 | EA126: 0 | EB126: 0 | EC126: 0 | ED126: 0 | EE126: 0 | EF126: 0 | EG126: 0 | EH126: 0 | EI126: 0 | EJ126: 0 | EK126: 0 | EL126: 0 | EM126: 0 | EN126: 0 | EO126: 0 | EP126: 0 | EQ126: 0 | ER126: 0 | ES126: 0 | ET126: 0 | EU126: 0 | EV126: 0 | EW126: 0 | EX126: 0 | EY126: 0 | EZ126: 0 | FA126: 0 | FB126: 0 | FC126: 0 | FD126: 0 | FE126: 0 | FF126: 0 | FG126: 0 | FH126: 0 | FI126: 0 | FJ126: 0 | FK126: 0 | FL126: 0 | FM126: 0 | FN126: 0 | FO126: 0 | FP126: 0 | FQ126: 0
A127: 2008-11-02 | B127: domingo | C127: Finados | F127: 2903 | G127: 92 | H127: 2034-05-07 | I127: 0 | J127: 0 | K127: 0 | L127: 0 | M127: 2034-02-07 | S127: 92 | T127: 270 | U127: 49.86022174 | V127: 49.86022174 | W127: 50.91277543 | X127: 52.88746884 | Y127: 55.46505369 | Z127: 58.16962462 | AH127: 1.492316437 | AI127: 1.492316437 | AJ127: 1.523819369 | AK127: 1.582921942 | AL127: 1.660069057 | AM127: 1.741016865 | AU127: 270 | AV127: 270 | AW127: 270 | AX127: 270 | AY127: 270 | AZ127: 270 | BA127: 270 | BB127: 270 | BC127: 270 | BD127: 270 | BE127: 270 | BF127: 270 | BH127: 2814 | BI127: 92 | BJ127: 2034-02-07 | BK127: 0 | BL127: 0 | BM127: 0 | BN127: 0 | BO127: 2034-02-07 | BP127: 2034-02-07 | BR127: 0 | BS127: 0 | BT127: 0 | BU127: 0 | BY127: 270 | BZ127: 270 | CA127: 270 | CB127: 270 | CC127: 270 | CD127: 270 | CE127: 270 | CF127: 270 | CG127: 270 | CH127: 270 | CI127: 270 | CJ127: 270 | CK127: 270 | CL127: 270 | CM127: 270 | CN127: 270 | CO127: 270 | CP127: 0 | CQ127: 0 | CR127: 0 | CS127: 0 | CT127: 0 | CU127: 0 | CV127: 0 | CW127: 0 | CX127: 0 | CY127: 0 | CZ127: 0 | DA127: 0 | DB127: 0 | DC127: 0 | DD127: 0 | DE127: 0 | DF127: 0 | DG127: 0 | DH127: 0 | DI127: 0 | DJ127: 0 | DK127: 0 | DL127: 0 | DM127: 0 | DN127: 0 | DO127: 0 | DP127: 0 | DQ127: 0 | DR127: 0 | DS127: 0 | DT127: 0 | DU127: 0 | DV127: 0 | DW127: 0 | DX127: 0 | DY127: 0 | DZ127: 0 | EA127: 0 | EB127: 0 | EC127: 0 | ED127: 0 | EE127: 0 | EF127: 0 | EG127: 0 | EH127: 0 | EI127: 0 | EJ127: 0 | EK127: 0 | EL127: 0 | EM127: 0 | EN127: 0 | EO127: 0 | EP127: 0 | EQ127: 0 | ER127: 0 | ES127: 0 | ET127: 0 | EU127: 0 | EV127: 0 | EW127: 0 | EX127: 0 | EY127: 0 | EZ127: 0 | FA127: 0 | FB127: 0 | FC127: 0 | FD127: 0 | FE127: 0 | FF127: 0 | FG127: 0 | FH127: 0 | FI127: 0 | FJ127: 0 | FK127: 0 | FL127: 0 | FM127: 0 | FN127: 0 | FO127: 0 | FP127: 0 | FQ127: 0
A128: 2008-11-15 | B128: sábado | C128: Proclamação da República | F128: 2934 | G128: 93 | H128: 2034-06-07 | I128: 0 | J128: 0 | K128: 0 | L128: 0 | M128: 2034-03-07 | S128: 93 | T128: 270 | U128: 48.96889187 | V128: 48.96889187 | W128: 50.01378535 | X128: 51.97472624 | Y128: 54.53553235 | Z128: 57.22386403 | AH128: 1.465638934 | AI128: 1.465638934 | AJ128: 1.496912595 | AK128: 1.555603556 | AL128: 1.632248483 | AM128: 1.71271025 | AU128: 270 | AV128: 270 | AW128: 270 | AX128: 270 | AY128: 270 | AZ128: 270 | BA128: 270 | BB128: 270 | BC128: 270 | BD128: 270 | BE128: 270 | BF128: 270 | BH128: 2842 | BI128: 93 | BJ128: 2034-03-07 | BK128: 0 | BL128: 0 | BM128: 0 | BN128: 0 | BO128: 2034-03-07 | BP128: 2034-03-07 | BR128: 0 | BS128: 0 | BT128: 0 | BU128: 0 | BY128: 270 | BZ128: 270 | CA128: 270 | CB128: 270 | CC128: 270 | CD128: 270 | CE128: 270 | CF128: 270 | CG128: 270 | CH128: 270 | CI128: 270 | CJ128: 270 | CK128: 270 | CL128: 270 | CM128: 270 | CN128: 270 | CO128: 0 | CP128: 0 | CQ128: 0 | CR128: 0 | CS128: 0 | CT128: 0 | CU128: 0 | CV128: 0 | CW128: 0 | CX128: 0 | CY128: 0 | CZ128: 0 | DA128: 0 | DB128: 0 | DC128: 0 | DD128: 0 | DE128: 0 | DF128: 0 | DG128: 0 | DH128: 0 | DI128: 0 | DJ128: 0 | DK128: 0 | DL128: 0 | DM128: 0 | DN128: 0 | DO128: 0 | DP128: 0 | DQ128: 0 | DR128: 0 | DS128: 0 | DT128: 0 | DU128: 0 | DV128: 0 | DW128: 0 | DX128: 0 | DY128: 0 | DZ128: 0 | EA128: 0 | EB128: 0 | EC128: 0 | ED128: 0 | EE128: 0 | EF128: 0 | EG128: 0 | EH128: 0 | EI128: 0 | EJ128: 0 | EK128: 0 | EL128: 0 | EM128: 0 | EN128: 0 | EO128: 0 | EP128: 0 | EQ128: 0 | ER128: 0 | ES128: 0 | ET128: 0 | EU128: 0 | EV128: 0 | EW128: 0 | EX128: 0 | EY128: 0 | EZ128: 0 | FA128: 0 | FB128: 0 | FC128: 0 | FD128: 0 | FE128: 0 | FF128: 0 | FG128: 0 | FH128: 0 | FI128: 0 | FJ128: 0 | FK128: 0 | FL128: 0 | FM128: 0 | FN128: 0 | FO128: 0 | FP128: 0 | FQ128: 0
A129: 2008-12-25 | B129: quinta-feira | C129: Natal | F129: 2964 | G129: 94 | H129: 2034-07-07 | I129: 0 | J129: 0 | K129: 0 | L129: 0 | M129: 2034-04-07 | S129: 94 | T129: 270 | U129: 48.12148874 | V129: 48.12148874 | W129: 49.15891187 | X129: 51.10642803 | Y129: 53.65083016 | Z129: 56.32325518 | AH129: 1.440276158 | AI129: 1.440276158 | AJ129: 1.471326232 | AK129: 1.529615391 | AL129: 1.605769347 | AM129: 1.685755027 | AU129: 270 | AV129: 270 | AW129: 270 | AX129: 270 | AY129: 270 | AZ129: 270 | BA129: 270 | BB129: 270 | BC129: 270 | BD129: 270 | BE129: 270 | BF129: 270 | BH129: 2873 | BI129: 94 | BJ129: 2034-04-07 | BK129: 0 | BL129: 0 | BM129: 0 | BN129: 0 | BO129: 2034-04-07 | BP129: 2034-04-07 | BR129: 0 | BS129: 0 | BT129: 0 | BU129: 0 | BY129: 270 | BZ129: 270 | CA129: 270 | CB129: 270 | CC129: 270 | CD129: 270 | CE129: 270 | CF129: 270 | CG129: 270 | CH129: 270 | CI129: 270 | CJ129: 270 | CK129: 270 | CL129: 270 | CM129: 270 | CN129: 0 | CO129: 0 | CP129: 0 | CQ129: 0 | CR129: 0 | CS129: 0 | CT129: 0 | CU129: 0 | CV129: 0 | CW129: 0 | CX129: 0 | CY129: 0 | CZ129: 0 | DA129: 0 | DB129: 0 | DC129: 0 | DD129: =IF($G129>DD$33,0,$I$9) -> 0 | DE129: 0 | DF129: 0 | DG129: 0 | DH129: 0 | DI129: 0 | DJ129: 0 | DK129: 0 | DL129: 0 | DM129: 0 | DN129: 0 | DO129: 0 | DP129: 0 | DQ129: 0 | DR129: 0 | DS129: 0 | DT129: 0 | DU129: 0 | DV129: 0 | DW129: 0 | DX129: 0 | DY129: 0 | DZ129: 0 | EA129: 0 | EB129: 0 | EC129: 0 | ED129: 0 | EE129: 0 | EF129: 0 | EG129: 0 | EH129: 0 | EI129: 0 | EJ129: 0 | EK129: 0 | EL129: 0 | EM129: 0 | EN129: 0 | EO129: 0 | EP129: 0 | EQ129: 0 | ER129: 0 | ES129: 0 | ET129: 0 | EU129: 0 | EV129: 0 | EW129: 0 | EX129: 0 | EY129: 0 | EZ129: 0 | FA129: 0 | FB129: 0 | FC129: 0 | FD129: 0 | FE129: 0 | FF129: 0 | FG129: 0 | FH129: 0 | FI129: 0 | FJ129: 0 | FK129: 0 | FL129: 0 | FM129: 0 | FN129: 0 | FO129: 0 | FP129: 0 | FQ129: 0
A130: 2009-01-01 | B130: quinta-feira | C130: Confraternização Universal | F130: 2995 | G130: 95 | H130: 2034-08-07 | I130: 0 | J130: 0 | K130: 0 | L130: 0 | M130: 2034-05-07 | S130: 95 | T130: 270 | U130: 47.26124146 | V130: 47.26124146 | W130: 48.29089055 | X130: 50.22442299 | Y130: 52.75171282 | Z130: 55.40751409 | AH130: 1.414528957 | AI130: 1.414528957 | AJ130: 1.445346354 | AK130: 1.50321698 | AL130: 1.578858765 | AM130: 1.658346897 | AU130: 270 | AV130: 270 | AW130: 270 | AX130: 270 | AY130: 270 | AZ130: 270 | BA130: 270 | BB130: 270 | BC130: 270 | BD130: 270 | BE130: 270 | BF130: 270 | BH130: 2903 | BI130: 95 | BJ130: 2034-05-07 | BK130: 0 | BL130: 0 | BM130: 0 | BN130: 0 | BO130: 2034-05-07 | BP130: 2034-05-07 | BR130: 0 | BS130: 0 | BT130: 0 | BU130: 0 | BY130: 270 | BZ130: 270 | CA130: 270 | CB130: 270 | CC130: 270 | CD130: 270 | CE130: 270 | CF130: 270 | CG130: 270 | CH130: 270 | CI130: 270 | CJ130: 270 | CK130: 270 | CL130: 270 | CM130: 0 | CN130: 0 | CO130: 0 | CP130: 0 | CQ130: 0 | CR130: 0 | CS130: 0 | CT130: 0 | CU130: 0 | CV130: 0 | CW130: 0 | CX130: 0 | CY130: 0 | CZ130: 0 | DA130: 0 | DB130: 0 | DC130: 0 | DD130: 0 | DE130: 0 | DF130: 0 | DG130: 0 | DH130: 0 | DI130: 0 | DJ130: 0 | DK130: 0 | DL130: 0 | DM130: 0 | DN130: 0 | DO130: 0 | DP130: 0 | DQ130: 0 | DR130: 0 | DS130: 0 | DT130: 0 | DU130: 0 | DV130: 0 | DW130: 0 | DX130: 0 | DY130: 0 | DZ130: 0 | EA130: 0 | EB130: 0 | EC130: 0 | ED130: 0 | EE130: 0 | EF130: 0 | EG130: 0 | EH130: 0 | EI130: 0 | EJ130: 0 | EK130: 0 | EL130: 0 | EM130: 0 | EN130: 0 | EO130: 0 | EP130: 0 | EQ130: 0 | ER130: 0 | ES130: 0 | ET130: 0 | EU130: 0 | EV130: 0 | EW130: 0 | EX130: 0 | EY130: 0 | EZ130: 0 | FA130: 0 | FB130: 0 | FC130: 0 | FD130: 0 | FE130: 0 | FF130: 0 | FG130: 0 | FH130: 0 | FI130: 0 | FJ130: 0 | FK130: 0 | FL130: 0 | FM130: 0 | FN130: 0 | FO130: 0 | FP130: 0 | FQ130: 0
A131: 2009-02-23 | B131: segunda-feira | C131: Carnaval | F131: 3026 | G131: 96 | H131: 2034-09-07 | I131: 0 | J131: 0 | K131: 0 | L131: 0 | M131: 2034-06-07 | S131: =S130+1 -> 96 | T131: 270 | U131: 46.41637246 | V131: 46.41637246 | W131: 47.43819628 | X131: 49.35763977 | Y131: 51.86766351 | Z131: 54.50666173 | AH131: 1.389242028 | AI131: 1.389242028 | AJ131: 1.419825215 | AK131: 1.477274158 | AL131: 1.552399169 | AM131: 1.631384386 | AU131: 270 | AV131: 270 | AW131: 270 | AX131: 270 | AY131: 270 | AZ131: 270 | BA131: 270 | BB131: 270 | BC131: 270 | BD131: 270 | BE131: 270 | BF131: 270 | BH131: 2934 | BI131: 96 | BJ131: 2034-06-07 | BK131: 0 | BL131: 0 | BM131: 0 | BN131: 0 | BO131: 2034-06-07 | BP131: 2034-06-07 | BR131: 0 | BS131: 0 | BT131: 0 | BU131: 0 | BY131: 270 | BZ131: 270 | CA131: 270 | CB131: 270 | CC131: 270 | CD131: 270 | CE131: 270 | CF131: 270 | CG131: 270 | CH131: 270 | CI131: 270 | CJ131: 270 | CK131: 270 | CL131: 0 | CM131: 0 | CN131: 0 | CO131: 0 | CP131: 0 | CQ131: 0 | CR131: 0 | CS131: 0 | CT131: 0 | CU131: 0 | CV131: 0 | CW131: 0 | CX131: 0 | CY131: 0 | CZ131: 0 | DA131: 0 | DB131: 0 | DC131: 0 | DD131: 0 | DE131: 0 | DF131: 0 | DG131: 0 | DH131: 0 | DI131: 0 | DJ131: 0 | DK131: 0 | DL131: 0 | DM131: 0 | DN131: 0 | DO131: 0 | DP131: 0 | DQ131: 0 | DR131: 0 | DS131: 0 | DT131: 0 | DU131: 0 | DV131: 0 | DW131: 0 | DX131: 0 | DY131: 0 | DZ131: 0 | EA131: 0 | EB131: 0 | EC131: 0 | ED131: 0 | EE131: 0 | EF131: 0 | EG131: 0 | EH131: 0 | EI131: 0 | EJ131: 0 | EK131: 0 | EL131: 0 | EM131: 0 | EN131: 0 | EO131: 0 | EP131: 0 | EQ131: 0 | ER131: 0 | ES131: 0 | ET131: 0 | EU131: 0 | EV131: 0 | EW131: 0 | EX131: 0 | EY131: 0 | EZ131: 0 | FA131: 0 | FB131: 0 | FC131: 0 | FD131: 0 | FE131: 0 | FF131: 0 | FG131: 0 | FH131: 0 | FI131: 0 | FJ131: 0 | FK131: 0 | FL131: 0 | FM131: 0 | FN131: 0 | FO131: 0 | FP131: 0 | FQ131: 0
A132: 2009-02-24 | B132: terça-feira | C132: Carnaval | F132: =H132-$H$35 -> 3056 | G132: 97 | H132: 2034-10-07 | I132: 0 | J132: 0 | K132: 0 | L132: =J132*0.0082%*MIN(F132,365) -> 0 | M132: 2034-07-07 | S132: =S131+1 -> 97 | T132: 270 | U132: 45.61314048 | V132: 45.61314048 | W132: 46.62734672 | X132: 48.53306303 | Y132: 51.0262408 | Z132: 53.64881715 | AH132: =IF($I132<>0,0,U132*$B$1*MIN($F132,365)) -> 1.365201295 | AI132: =IF($I132<>0,0,V132*$B$1*MIN($F132,365)) -> 1.365201295 | AJ132: =IF($I132<>0,0,W132*$B$1*MIN($F132,365)) -> 1.395556487 | AK132: =IF($I132<>0,0,X132*$B$1*MIN($F132,365)) -> 1.452594576 | AL132: =IF($I132<>0,0,Y132*$B$1*MIN($F132,365)) -> 1.527215387 | AM132: =IF($I132<>0,0,Z132*$B$1*MIN($F132,365)) -> 1.605709097 | AN132: =IF($I132<>0,0,AA132*$B$1*MIN($F132,365)) ->  | AO132: =IF($I132<>0,0,AB132*$B$1*MIN($F132,365)) ->  | AP132: =IF($I132<>0,0,AC132*$B$1*MIN($F132,365)) ->  | AQ132: =IF($I132<>0,0,AD132*$B$1*MIN($F132,365)) ->  | AR132: =IF($I132<>0,0,AE132*$B$1*MIN($F132,365)) ->  | AS132: =IF($I132<>0,0,AF132*$B$1*MIN($F132,365)) ->  | AU132: 270 | AV132: 270 | AW132: 270 | AX132: 270 | AY132: 270 | AZ132: 270 | BA132: 270 | BB132: 270 | BC132: 270 | BD132: 270 | BE132: 270 | BF132: 270 | BH132: =BJ132-$H$35 -> 2964 | BI132: 97 | BJ132: 2034-07-07 | BK132: =I131 -> 0 | BL132: =BK131 -> 0 | BM132: =I133 -> 0 | BN132: =BM133 -> 0 | BO132: 2034-07-07 | BP132: =BJ132 -> 2034-07-07 | BR132: =IF(I132=0,0,PMT($BR$31,$I$10,$BR$35)) -> 0 | BS132: =MIN(BR132,$I$9) -> 0 | BT132: =IF(G132>$BT$31,0,$BT$32) -> 0 | BU132: =IF(G132>$BU$31,0,$BU$32) -> 0 | BY132: 270 | BZ132: 270 | CA132: 270 | CB132: 270 | CC132: 270 | CD132: 270 | CE132: 270 | CF132: 270 | CG132: 270 | CH132: 270 | CI132: 270 | CJ132: 270 | CK132: 0 | CL132: 0 | CM132: 0 | CN132: =IF($G132>CN$33,0,$I$9) -> 0 | CO132: 0 | CP132: 0 | CQ132: 0 | CR132: 0 | CS132: 0 | CT132: 0 | CU132: 0 | CV132: 0 | CW132: 0 | CX132: 0 | CY132: 0 | CZ132: 0 | DA132: 0 | DB132: 0 | DC132: 0 | DD132: 0 | DE132: 0 | DF132: 0 | DG132: 0 | DH132: 0 | DI132: 0 | DJ132: 0 | DK132: 0 | DL132: 0 | DM132: 0 | DN132: 0 | DO132: 0 | DP132: 0 | DQ132: 0 | DR132: 0 | DS132: 0 | DT132: 0 | DU132: 0 | DV132: 0 | DW132: 0 | DX132: 0 | DY132: 0 | DZ132: 0 | EA132: 0 | EB132: 0 | EC132: 0 | ED132: 0 | EE132: 0 | EF132: 0 | EG132: 0 | EH132: 0 | EI132: 0 | EJ132: 0 | EK132: 0 | EL132: 0 | EM132: 0 | EN132: 0 | EO132: 0 | EP132: 0 | EQ132: 0 | ER132: 0 | ES132: 0 | ET132: 0 | EU132: 0 | EV132: 0 | EW132: 0 | EX132: 0 | EY132: 0 | EZ132: 0 | FA132: 0 | FB132: 0 | FC132: 0 | FD132: 0 | FE132: 0 | FF132: 0 | FG132: 0 | FH132: 0 | FI132: 0 | FJ132: 0 | FK132: 0 | FL132: 0 | FM132: 0 | FN132: 0 | FO132: 0 | FP132: 0 | FQ132: 0
A133: 2009-04-10 | B133: sexta-feira | C133: Paixão de Cristo | F133: 3087 | G133: 98 | H133: 2034-11-07 | I133: 0 | J133: 0 | K133: 0 | L133: 0 | M133: 2034-08-07 | S133: 98 | T133: 270 | U133: =$T133/((U$29)^($H133-$H$35)) -> 44.79773387 | V133: 44.79773387 | W133: 45.80402641 | X133: 47.69546964 | Y133: 50.17110812 | Z133: 52.77655886 | AH133: 1.340796175 | AI133: 1.340796175 | AJ133: 1.37091451 | AK133: 1.427525406 | AL133: 1.501621266 | AM133: 1.579602407 | AU133: =$T133 -> 270 | AV133: 270 | AW133: 270 | AX133: 270 | AY133: 270 | AZ133: 270 | BA133: 270 | BB133: 270 | BC133: 270 | BD133: 270 | BE133: 270 | BF133: 270 | BH133: 2995 | BI133: 98 | BJ133: 2034-08-07 | BK133: 0 | BL133: 0 | BM133: 0 | BN133: 0 | BO133: 2034-08-07 | BP133: 2034-08-07 | BR133: 0 | BS133: 0 | BT133: 0 | BU133: 0 | BY133: 270 | BZ133: 270 | CA133: 270 | CB133: 270 | CC133: 270 | CD133: 270 | CE133: 270 | CF133: 270 | CG133: 270 | CH133: 270 | CI133: 270 | CJ133: 0 | CK133: 0 | CL133: 0 | CM133: 0 | CN133: 0 | CO133: =IF($G133>CO$33,0,$I$9) -> 0 | CP133: 0 | CQ133: 0 | CR133: 0 | CS133: 0 | CT133: 0 | CU133: 0 | CV133: 0 | CW133: 0 | CX133: 0 | CY133: 0 | CZ133: 0 | DA133: 0 | DB133: 0 | DC133: 0 | DD133: 0 | DE133: 0 | DF133: 0 | DG133: 0 | DH133: 0 | DI133: 0 | DJ133: 0 | DK133: 0 | DL133: 0 | DM133: 0 | DN133: 0 | DO133: 0 | DP133: 0 | DQ133: 0 | DR133: 0 | DS133: 0 | DT133: 0 | DU133: 0 | DV133: 0 | DW133: 0 | DX133: 0 | DY133: 0 | DZ133: 0 | EA133: 0 | EB133: 0 | EC133: 0 | ED133: 0 | EE133: 0 | EF133: 0 | EG133: 0 | EH133: 0 | EI133: 0 | EJ133: 0 | EK133: 0 | EL133: 0 | EM133: 0 | EN133: 0 | EO133: 0 | EP133: 0 | EQ133: 0 | ER133: 0 | ES133: 0 | ET133: 0 | EU133: =IF($G133>EU$33,0,$I$9) -> 0 | EV133: 0 | EW133: 0 | EX133: 0 | EY133: 0 | EZ133: 0 | FA133: 0 | FB133: 0 | FC133: 0 | FD133: 0 | FE133: 0 | FF133: 0 | FG133: 0 | FH133: 0 | FI133: 0 | FJ133: 0 | FK133: 0 | FL133: 0 | FM133: 0 | FN133: 0 | FO133: 0 | FP133: 0 | FQ133: 0
A134: 2009-04-21 | B134: terça-feira | C134: Tiradentes | F134: 3117 | G134: 99 | H134: 2034-12-07 | I134: 0 | J134: 0 | K134: 0 | L134: 0 | M134: 2034-09-07 | S134: 99 | T134: 270 | U134: 44.02251232 | V134: 44.02251232 | W134: 45.02110931 | X134: 46.89866138 | Y134: 49.35720777 | Z134: 51.94594322 | AH134: 1.317593794 | AI134: 1.317593794 | AJ134: 1.347481802 | AK134: 1.403676935 | AL134: 1.477261228 | AM134: 1.554742081 | AU134: 270 | AV134: 270 | AW134: 270 | AX134: 270 | AY134: 270 | AZ134: 270 | BA134: 270 | BB134: 270 | BC134: 270 | BD134: 270 | BE134: 270 | BF134: 270 | BH134: 3026 | BI134: 99 | BJ134: 2034-09-07 | BK134: 0 | BL134: 0 | BM134: 0 | BN134: 0 | BO134: 2034-09-07 | BP134: 2034-09-07 | BR134: 0 | BS134: 0 | BT134: 0 | BU134: 0 | BY134: 270 | BZ134: 270 | CA134: 270 | CB134: 270 | CC134: 270 | CD134: 270 | CE134: 270 | CF134: 270 | CG134: 270 | CH134: 270 | CI134: 0 | CJ134: 0 | CK134: 0 | CL134: 0 | CM134: 0 | CN134: 0 | CO134: 0 | CP134: 0 | CQ134: 0 | CR134: 0 | CS134: 0 | CT134: 0 | CU134: 0 | CV134: 0 | CW134: 0 | CX134: 0 | CY134: 0 | CZ134: 0 | DA134: 0 | DB134: 0 | DC134: 0 | DD134: 0 | DE134: =IF($G134>DE$33,0,$I$9) -> 0 | DF134: 0 | DG134: 0 | DH134: 0 | DI134: 0 | DJ134: 0 | DK134: 0 | DL134: 0 | DM134: 0 | DN134: 0 | DO134: 0 | DP134: 0 | DQ134: 0 | DR134: 0 | DS134: 0 | DT134: 0 | DU134: =IF($G134>DU$33,0,$I$9) -> 0 | DV134: 0 | DW134: 0 | DX134: 0 | DY134: 0 | DZ134: 0 | EA134: 0 | EB134: 0 | EC134: 0 | ED134: 0 | EE134: 0 | EF134: 0 | EG134: 0 | EH134: 0 | EI134: 0 | EJ134: 0 | EK134: =IF($G134>EK$33,0,$I$9) -> 0 | EL134: 0 | EM134: 0 | EN134: 0 | EO134: 0 | EP134: 0 | EQ134: 0 | ER134: 0 | ES134: 0 | ET134: 0 | EU134: 0 | EV134: 0 | EW134: 0 | EX134: 0 | EY134: 0 | EZ134: 0 | FA134: 0 | FB134: 0 | FC134: 0 | FD134: 0 | FE134: 0 | FF134: 0 | FG134: 0 | FH134: 0 | FI134: 0 | FJ134: 0 | FK134: 0 | FL134: 0 | FM134: 0 | FN134: 0 | FO134: 0 | FP134: 0 | FQ134: 0
A135: 2009-05-01 | B135: sexta-feira | C135: Dia do Trabalho | F135: 3148 | G135: 100 | H135: 2035-01-07 | I135: 0 | J135: 0 | K135: 0 | L135: 0 | M135: 2034-10-07 | S135: 100 | T135: 270 | U135: 43.2355407 | V135: 43.2355407 | W135: 44.22615106 | X135: 46.08927483 | Y135: 48.53004589 | Z135: 51.1013714 | AH135: 1.294039733 | AI135: 1.294039733 | AJ135: 1.323688701 | AK135: 1.379451996 | AL135: 1.452504273 | AM135: 1.529464046 | AU135: 270 | AV135: 270 | AW135: 270 | AX135: 270 | AY135: 270 | AZ135: 270 | BA135: 270 | BB135: 270 | BC135: 270 | BD135: 270 | BE135: 270 | BF135: 270 | BH135: 3056 | BI135: 100 | BJ135: 2034-10-07 | BK135: 0 | BL135: 0 | BM135: 0 | BN135: 0 | BO135: 2034-10-07 | BP135: 2034-10-07 | BR135: 0 | BS135: 0 | BT135: 0 | BU135: 0 | BY135: 270 | BZ135: 270 | CA135: 270 | CB135: 270 | CC135: 270 | CD135: 270 | CE135: 270 | CF135: 270 | CG135: 270 | CH135: 0 | CI135: 0 | CJ135: 0 | CK135: 0 | CL135: 0 | CM135: 0 | CN135: 0 | CO135: 0 | CP135: 0 | CQ135: 0 | CR135: 0 | CS135: 0 | CT135: 0 | CU135: 0 | CV135: 0 | CW135: 0 | CX135: 0 | CY135: 0 | CZ135: 0 | DA135: 0 | DB135: 0 | DC135: 0 | DD135: 0 | DE135: 0 | DF135: 0 | DG135: 0 | DH135: 0 | DI135: 0 | DJ135: 0 | DK135: 0 | DL135: 0 | DM135: 0 | DN135: 0 | DO135: 0 | DP135: 0 | DQ135: 0 | DR135: 0 | DS135: 0 | DT135: 0 | DU135: 0 | DV135: 0 | DW135: 0 | DX135: 0 | DY135: 0 | DZ135: 0 | EA135: 0 | EB135: 0 | EC135: 0 | ED135: 0 | EE135: 0 | EF135: 0 | EG135: 0 | EH135: 0 | EI135: 0 | EJ135: 0 | EK135: 0 | EL135: 0 | EM135: 0 | EN135: 0 | EO135: 0 | EP135: 0 | EQ135: 0 | ER135: 0 | ES135: 0 | ET135: 0 | EU135: 0 | EV135: 0 | EW135: 0 | EX135: 0 | EY135: 0 | EZ135: 0 | FA135: 0 | FB135: 0 | FC135: 0 | FD135: 0 | FE135: 0 | FF135: 0 | FG135: 0 | FH135: 0 | FI135: 0 | FJ135: 0 | FK135: 0 | FL135: 0 | FM135: 0 | FN135: 0 | FO135: 0 | FP135: 0 | FQ135: 0
A136: 2009-06-11 | B136: quinta-feira | C136: Corpus Christi | F136: 3179 | G136: 101 | H136: 2035-02-07 | I136: 0 | J136: 0 | K136: 0 | L136: 0 | M136: 2034-11-07 | S136: 101 | T136: 270 | U136: 42.46263742 | V136: 42.46263742 | W136: 43.44522975 | X136: 45.29385683 | Y136: 47.71674616 | Z136: 50.27053118 | AH136: 1.270906738 | AI136: 1.270906738 | AJ136: 1.300315726 | AK136: 1.355645135 | AL136: 1.428162212 | AM136: 1.504596998 | AU136: 270 | AV136: 270 | AW136: 270 | AX136: 270 | AY136: 270 | AZ136: 270 | BA136: 270 | BB136: 270 | BC136: 270 | BD136: 270 | BE136: 270 | BF136: 270 | BH136: 3087 | BI136: 101 | BJ136: 2034-11-07 | BK136: 0 | BL136: 0 | BM136: 0 | BN136: 0 | BO136: 2034-11-07 | BP136: 2034-11-07 | BR136: 0 | BS136: 0 | BT136: 0 | BU136: 0 | BY136: 270 | BZ136: 270 | CA136: 270 | CB136: 270 | CC136: 270 | CD136: 270 | CE136: 270 | CF136: 270 | CG136: 0 | CH136: 0 | CI136: 0 | CJ136: 0 | CK136: 0 | CL136: 0 | CM136: 0 | CN136: 0 | CO136: 0 | CP136: 0 | CQ136: 0 | CR136: 0 | CS136: 0 | CT136: 0 | CU136: 0 | CV136: 0 | CW136: 0 | CX136: 0 | CY136: 0 | CZ136: 0 | DA136: 0 | DB136: 0 | DC136: 0 | DD136: 0 | DE136: 0 | DF136: 0 | DG136: 0 | DH136: 0 | DI136: 0 | DJ136: 0 | DK136: 0 | DL136: 0 | DM136: 0 | DN136: 0 | DO136: 0 | DP136: 0 | DQ136: 0 | DR136: 0 | DS136: 0 | DT136: 0 | DU136: 0 | DV136: 0 | DW136: 0 | DX136: 0 | DY136: 0 | DZ136: 0 | EA136: 0 | EB136: 0 | EC136: 0 | ED136: 0 | EE136: 0 | EF136: 0 | EG136: 0 | EH136: 0 | EI136: 0 | EJ136: 0 | EK136: 0 | EL136: 0 | EM136: 0 | EN136: 0 | EO136: 0 | EP136: 0 | EQ136: 0 | ER136: 0 | ES136: 0 | ET136: 0 | EU136: 0 | EV136: 0 | EW136: 0 | EX136: 0 | EY136: 0 | EZ136: 0 | FA136: 0 | FB136: 0 | FC136: 0 | FD136: 0 | FE136: 0 | FF136: 0 | FG136: 0 | FH136: 0 | FI136: 0 | FJ136: 0 | FK136: 0 | FL136: 0 | FM136: 0 | FN136: 0 | FO136: 0 | FP136: 0 | FQ136: 0
A137: 2009-09-07 | B137: segunda-feira | C137: Independência do Brasil | F137: 3207 | G137: 102 | H137: 2035-03-07 | I137: 0 | J137: 0 | K137: 0 | L137: 0 | M137: 2034-12-07 | S137: 102 | T137: 270 | U137: 41.77641401 | V137: 41.77641401 | W137: 42.75174027 | X137: 44.58722043 | Y137: 46.99387435 | Z137: 49.53171169 | AH137: 1.250368071 | AI137: 1.250368071 | AJ137: 1.279559586 | AK137: 1.334495507 | AL137: 1.406526659 | AM137: 1.482484131 | AU137: 270 | AV137: 270 | AW137: 270 | AX137: 270 | AY137: 270 | AZ137: 270 | BA137: 270 | BB137: 270 | BC137: 270 | BD137: 270 | BE137: 270 | BF137: 270 | BH137: 3117 | BI137: 102 | BJ137: 2034-12-07 | BK137: 0 | BL137: 0 | BM137: 0 | BN137: 0 | BO137: 2034-12-07 | BP137: 2034-12-07 | BR137: 0 | BS137: 0 | BT137: 0 | BU137: 0 | BY137: 270 | BZ137: 270 | CA137: 270 | CB137: 270 | CC137: 270 | CD137: 270 | CE137: 270 | CF137: 0 | CG137: 0 | CH137: 0 | CI137: 0 | CJ137: 0 | CK137: 0 | CL137: 0 | CM137: 0 | CN137: 0 | CO137: 0 | CP137: 0 | CQ137: 0 | CR137: 0 | CS137: 0 | CT137: 0 | CU137: 0 | CV137: 0 | CW137: 0 | CX137: 0 | CY137: 0 | CZ137: 0 | DA137: 0 | DB137: 0 | DC137: 0 | DD137: 0 | DE137: 0 | DF137: 0 | DG137: 0 | DH137: 0 | DI137: 0 | DJ137: 0 | DK137: 0 | DL137: 0 | DM137: 0 | DN137: 0 | DO137: 0 | DP137: 0 | DQ137: 0 | DR137: 0 | DS137: 0 | DT137: 0 | DU137: 0 | DV137: 0 | DW137: 0 | DX137: 0 | DY137: 0 | DZ137: 0 | EA137: 0 | EB137: 0 | EC137: 0 | ED137: 0 | EE137: 0 | EF137: 0 | EG137: 0 | EH137: 0 | EI137: 0 | EJ137: 0 | EK137: 0 | EL137: 0 | EM137: 0 | EN137: 0 | EO137: 0 | EP137: 0 | EQ137: 0 | ER137: 0 | ES137: 0 | ET137: 0 | EU137: 0 | EV137: 0 | EW137: 0 | EX137: 0 | EY137: 0 | EZ137: 0 | FA137: 0 | FB137: 0 | FC137: 0 | FD137: 0 | FE137: 0 | FF137: 0 | FG137: 0 | FH137: 0 | FI137: 0 | FJ137: 0 | FK137: 0 | FL137: 0 | FM137: 0 | FN137: 0 | FO137: 0 | FP137: 0 | FQ137: 0
A138: 2009-10-12 | B138: segunda-feira | C138: Nossa Sr.a Aparecida - Padroeira do Brasil | F138: 3238 | G138: 103 | H138: 2035-04-07 | I138: 0 | J138: 0 | K138: 0 | L138: 0 | M138: 2035-01-07 | S138: 103 | T138: 270 | U138: 41.02959492 | V138: 41.02959492 | W138: 41.9968533 | X138: 43.81772519 | Y138: 46.20631883 | Z138: 48.72639205 | AH138: 1.228015776 | AI138: 1.228015776 | AJ138: 1.256965819 | AK138: 1.311464515 | AL138: 1.382955123 | AM138: 1.458380914 | AU138: 270 | AV138: 270 | AW138: 270 | AX138: 270 | AY138: 270 | AZ138: 270 | BA138: 270 | BB138: 270 | BC138: 270 | BD138: 270 | BE138: 270 | BF138: 270 | BH138: 3148 | BI138: 103 | BJ138: 2035-01-07 | BK138: 0 | BL138: 0 | BM138: 0 | BN138: 0 | BO138: 2035-01-07 | BP138: 2035-01-07 | BR138: 0 | BS138: 0 | BT138: 0 | BU138: 0 | BY138: 270 | BZ138: 270 | CA138: 270 | CB138: 270 | CC138: 270 | CD138: 270 | CE138: 0 | CF138: 0 | CG138: 0 | CH138: 0 | CI138: 0 | CJ138: 0 | CK138: 0 | CL138: 0 | CM138: 0 | CN138: 0 | CO138: 0 | CP138: 0 | CQ138: 0 | CR138: 0 | CS138: 0 | CT138: 0 | CU138: 0 | CV138: 0 | CW138: 0 | CX138: 0 | CY138: 0 | CZ138: 0 | DA138: 0 | DB138: 0 | DC138: 0 | DD138: 0 | DE138: 0 | DF138: 0 | DG138: 0 | DH138: 0 | DI138: 0 | DJ138: 0 | DK138: 0 | DL138: 0 | DM138: 0 | DN138: 0 | DO138: 0 | DP138: 0 | DQ138: 0 | DR138: 0 | DS138: 0 | DT138: 0 | DU138: 0 | DV138: 0 | DW138: 0 | DX138: 0 | DY138: 0 | DZ138: 0 | EA138: 0 | EB138: 0 | EC138: 0 | ED138: 0 | EE138: 0 | EF138: 0 | EG138: 0 | EH138: 0 | EI138: 0 | EJ138: 0 | EK138: 0 | EL138: 0 | EM138: 0 | EN138: 0 | EO138: 0 | EP138: 0 | EQ138: 0 | ER138: 0 | ES138: 0 | ET138: 0 | EU138: 0 | EV138: 0 | EW138: 0 | EX138: 0 | EY138: 0 | EZ138: 0 | FA138: 0 | FB138: 0 | FC138: 0 | FD138: 0 | FE138: 0 | FF138: 0 | FG138: 0 | FH138: 0 | FI138: 0 | FJ138: 0 | FK138: 0 | FL138: 0 | FM138: 0 | FN138: 0 | FO138: 0 | FP138: 0 | FQ138: 0
A139: 2009-11-02 | B139: segunda-feira | C139: Finados | F139: 3268 | G139: 104 | H139: 2035-05-07 | I139: 0 | J139: 0 | K139: 0 | L139: 0 | M139: 2035-02-07 | S139: 104 | T139: 270 | U139: 40.31958074 | V139: 40.31958074 | W139: 41.27901129 | X139: 43.08569916 | Y139: 45.45673723 | Z139: 47.95951934 | AH139: 1.206765052 | AI139: 1.206765052 | AJ139: 1.235480808 | AK139: 1.289554976 | AL139: 1.360520145 | AM139: 1.435428414 | AU139: 270 | AV139: 270 | AW139: 270 | AX139: 270 | AY139: 270 | AZ139: 270 | BA139: 270 | BB139: 270 | BC139: 270 | BD139: 270 | BE139: 270 | BF139: 270 | BH139: 3179 | BI139: 104 | BJ139: 2035-02-07 | BK139: 0 | BL139: 0 | BM139: 0 | BN139: 0 | BO139: 2035-02-07 | BP139: 2035-02-07 | BR139: 0 | BS139: 0 | BT139: 0 | BU139: 0 | BY139: 270 | BZ139: 270 | CA139: 270 | CB139: 270 | CC139: 270 | CD139: 0 | CE139: 0 | CF139: 0 | CG139: 0 | CH139: 0 | CI139: 0 | CJ139: 0 | CK139: 0 | CL139: 0 | CM139: 0 | CN139: 0 | CO139: 0 | CP139: 0 | CQ139: 0 | CR139: 0 | CS139: 0 | CT139: 0 | CU139: 0 | CV139: 0 | CW139: 0 | CX139: 0 | CY139: 0 | CZ139: 0 | DA139: 0 | DB139: 0 | DC139: 0 | DD139: 0 | DE139: 0 | DF139: 0 | DG139: 0 | DH139: 0 | DI139: 0 | DJ139: 0 | DK139: 0 | DL139: 0 | DM139: 0 | DN139: 0 | DO139: 0 | DP139: 0 | DQ139: 0 | DR139: 0 | DS139: 0 | DT139: 0 | DU139: 0 | DV139: 0 | DW139: 0 | DX139: 0 | DY139: 0 | DZ139: 0 | EA139: 0 | EB139: 0 | EC139: 0 | ED139: 0 | EE139: 0 | EF139: 0 | EG139: 0 | EH139: 0 | EI139: 0 | EJ139: 0 | EK139: 0 | EL139: 0 | EM139: 0 | EN139: 0 | EO139: 0 | EP139: 0 | EQ139: 0 | ER139: 0 | ES139: 0 | ET139: 0 | EU139: 0 | EV139: 0 | EW139: 0 | EX139: 0 | EY139: 0 | EZ139: 0 | FA139: 0 | FB139: 0 | FC139: 0 | FD139: 0 | FE139: 0 | FF139: 0 | FG139: 0 | FH139: 0 | FI139: 0 | FJ139: 0 | FK139: 0 | FL139: 0 | FM139: 0 | FN139: 0 | FO139: 0 | FP139: 0 | FQ139: 0
A140: 2009-11-15 | B140: domingo | C140: Proclamação da República | F140: 3299 | G140: 105 | H140: 2035-06-07 | I140: 0 | J140: 0 | K140: 0 | L140: 0 | M140: 2035-03-07 | S140: 105 | T140: 270 | U140: 39.59880484 | V140: 39.59880484 | W140: 40.55012897 | X140: 42.34211748 | Y140: 44.69494211 | Z140: 47.17976145 | AH140: 1.185192229 | AI140: 1.185192229 | AJ140: 1.21366536 | AK140: 1.267299576 | AL140: 1.337719617 | AM140: 1.41209026 | AU140: 270 | AV140: 270 | AW140: 270 | AX140: 270 | AY140: 270 | AZ140: 270 | BA140: 270 | BB140: 270 | BC140: 270 | BD140: 270 | BE140: 270 | BF140: 270 | BH140: 3207 | BI140: 105 | BJ140: 2035-03-07 | BK140: 0 | BL140: 0 | BM140: 0 | BN140: 0 | BO140: 2035-03-07 | BP140: 2035-03-07 | BR140: 0 | BS140: 0 | BT140: 0 | BU140: 0 | BY140: 270 | BZ140: 270 | CA140: 270 | CB140: 270 | CC140: 0 | CD140: 0 | CE140: 0 | CF140: 0 | CG140: 0 | CH140: 0 | CI140: 0 | CJ140: 0 | CK140: 0 | CL140: 0 | CM140: 0 | CN140: 0 | CO140: 0 | CP140: 0 | CQ140: 0 | CR140: 0 | CS140: 0 | CT140: 0 | CU140: 0 | CV140: 0 | CW140: 0 | CX140: 0 | CY140: 0 | CZ140: 0 | DA140: 0 | DB140: 0 | DC140: 0 | DD140: 0 | DE140: 0 | DF140: 0 | DG140: 0 | DH140: 0 | DI140: 0 | DJ140: 0 | DK140: 0 | DL140: 0 | DM140: 0 | DN140: 0 | DO140: 0 | DP140: 0 | DQ140: 0 | DR140: 0 | DS140: 0 | DT140: 0 | DU140: 0 | DV140: 0 | DW140: 0 | DX140: 0 | DY140: 0 | DZ140: 0 | EA140: 0 | EB140: 0 | EC140: 0 | ED140: 0 | EE140: 0 | EF140: 0 | EG140: 0 | EH140: 0 | EI140: 0 | EJ140: 0 | EK140: 0 | EL140: 0 | EM140: 0 | EN140: 0 | EO140: 0 | EP140: 0 | EQ140: 0 | ER140: 0 | ES140: 0 | ET140: 0 | EU140: 0 | EV140: 0 | EW140: 0 | EX140: 0 | EY140: 0 | EZ140: 0 | FA140: 0 | FB140: 0 | FC140: 0 | FD140: 0 | FE140: 0 | FF140: 0 | FG140: 0 | FH140: 0 | FI140: 0 | FJ140: 0 | FK140: 0 | FL140: 0 | FM140: 0 | FN140: 0 | FO140: 0 | FP140: 0 | FQ140: 0
A141: 2009-12-25 | B141: sexta-feira | C141: Natal | F141: 3329 | G141: 106 | H141: 2035-07-07 | I141: 0 | J141: 0 | K141: 0 | L141: 0 | M141: 2035-04-07 | S141: 106 | T141: 270 | U141: 38.91355038 | V141: 38.91355038 | W141: 39.85701547 | X141: 41.63474319 | Y141: 43.96987881 | Z141: 46.43723014 | AH141: 1.164682563 | AI141: 1.164682563 | AJ141: 1.192920473 | AK141: 1.246127864 | AL141: 1.316018473 | AM141: 1.389866298 | AU141: 270 | AV141: 270 | AW141: 270 | AX141: 270 | AY141: 270 | AZ141: 270 | BA141: 270 | BB141: 270 | BC141: 270 | BD141: 270 | BE141: 270 | BF141: 270 | BH141: 3238 | BI141: 106 | BJ141: 2035-04-07 | BK141: 0 | BL141: 0 | BM141: 0 | BN141: 0 | BO141: 2035-04-07 | BP141: 2035-04-07 | BR141: 0 | BS141: 0 | BT141: 0 | BU141: 0 | BY141: 270 | BZ141: 270 | CA141: 270 | CB141: 0 | CC141: 0 | CD141: 0 | CE141: 0 | CF141: 0 | CG141: 0 | CH141: 0 | CI141: 0 | CJ141: 0 | CK141: 0 | CL141: 0 | CM141: 0 | CN141: 0 | CO141: 0 | CP141: 0 | CQ141: 0 | CR141: 0 | CS141: 0 | CT141: 0 | CU141: 0 | CV141: 0 | CW141: 0 | CX141: 0 | CY141: 0 | CZ141: 0 | DA141: 0 | DB141: 0 | DC141: 0 | DD141: 0 | DE141: 0 | DF141: 0 | DG141: 0 | DH141: 0 | DI141: 0 | DJ141: 0 | DK141: 0 | DL141: 0 | DM141: 0 | DN141: 0 | DO141: 0 | DP141: 0 | DQ141: 0 | DR141: 0 | DS141: 0 | DT141: 0 | DU141: 0 | DV141: 0 | DW141: 0 | DX141: 0 | DY141: 0 | DZ141: 0 | EA141: 0 | EB141: 0 | EC141: 0 | ED141: 0 | EE141: 0 | EF141: 0 | EG141: 0 | EH141: 0 | EI141: 0 | EJ141: 0 | EK141: 0 | EL141: 0 | EM141: 0 | EN141: 0 | EO141: 0 | EP141: 0 | EQ141: 0 | ER141: 0 | ES141: 0 | ET141: 0 | EU141: 0 | EV141: 0 | EW141: 0 | EX141: 0 | EY141: 0 | EZ141: 0 | FA141: 0 | FB141: 0 | FC141: 0 | FD141: 0 | FE141: 0 | FF141: 0 | FG141: 0 | FH141: 0 | FI141: 0 | FJ141: 0 | FK141: 0 | FL141: 0 | FM141: 0 | FN141: 0 | FO141: 0 | FP141: 0 | FQ141: 0
A142: 2010-01-01 | B142: sexta-feira | C142: Confraternização Universal | F142: 3360 | G142: 107 | H142: 2035-08-07 | I142: 0 | J142: 0 | K142: 0 | L142: 0 | M142: 2035-05-07 | S142: 107 | T142: 270 | U142: 38.21790948 | V142: 38.21790948 | W142: 39.15324198 | X142: 40.9162024 | Y142: 43.23300148 | Z142: 45.68222265 | AH142: 1.143862031 | AI142: 1.143862031 | AJ142: 1.171856532 | AK142: 1.224621938 | AL142: 1.293963734 | AM142: 1.367268924 | AU142: 270 | AV142: 270 | AW142: 270 | AX142: 270 | AY142: 270 | AZ142: 270 | BA142: 270 | BB142: 270 | BC142: 270 | BD142: 270 | BE142: 270 | BF142: 270 | BH142: 3268 | BI142: 107 | BJ142: 2035-05-07 | BK142: 0 | BL142: 0 | BM142: 0 | BN142: 0 | BO142: 2035-05-07 | BP142: 2035-05-07 | BR142: 0 | BS142: 0 | BT142: 0 | BU142: 0 | BY142: 270 | BZ142: 270 | CA142: 0 | CB142: 0 | CC142: 0 | CD142: 0 | CE142: 0 | CF142: 0 | CG142: 0 | CH142: 0 | CI142: 0 | CJ142: 0 | CK142: 0 | CL142: 0 | CM142: 0 | CN142: 0 | CO142: 0 | CP142: 0 | CQ142: 0 | CR142: 0 | CS142: 0 | CT142: 0 | CU142: 0 | CV142: 0 | CW142: 0 | CX142: 0 | CY142: 0 | CZ142: 0 | DA142: 0 | DB142: 0 | DC142: 0 | DD142: 0 | DE142: 0 | DF142: 0 | DG142: 0 | DH142: 0 | DI142: 0 | DJ142: 0 | DK142: 0 | DL142: 0 | DM142: 0 | DN142: 0 | DO142: 0 | DP142: 0 | DQ142: 0 | DR142: 0 | DS142: 0 | DT142: 0 | DU142: 0 | DV142: 0 | DW142: 0 | DX142: 0 | DY142: 0 | DZ142: 0 | EA142: 0 | EB142: 0 | EC142: 0 | ED142: 0 | EE142: 0 | EF142: 0 | EG142: 0 | EH142: 0 | EI142: 0 | EJ142: 0 | EK142: 0 | EL142: 0 | EM142: 0 | EN142: 0 | EO142: 0 | EP142: 0 | EQ142: 0 | ER142: 0 | ES142: 0 | ET142: 0 | EU142: 0 | EV142: 0 | EW142: 0 | EX142: 0 | EY142: 0 | EZ142: 0 | FA142: 0 | FB142: 0 | FC142: 0 | FD142: 0 | FE142: 0 | FF142: 0 | FG142: 0 | FH142: 0 | FI142: 0 | FJ142: 0 | FK142: 0 | FL142: 0 | FM142: 0 | FN142: 0 | FO142: 0 | FP142: 0 | FQ142: 0
A143: 2010-02-15 | B143: segunda-feira | C143: Carnaval | F143: 3391 | G143: 108 | H143: 2035-09-07 | I143: 0 | J143: 0 | K143: 0 | L143: 0 | M143: 2035-06-07 | S143: 108 | T143: 270 | U143: 37.53470426 | V143: 37.53470426 | W143: 38.46189534 | X143: 40.21006233 | Y143: 42.50847324 | Z143: 44.93949057 | AH143: 1.123413698 | AI143: 1.123413698 | AJ143: 1.151164527 | AK143: 1.203487165 | AL143: 1.272278604 | AM143: 1.345038953 | AU143: 270 | AV143: 270 | AW143: 270 | AX143: 270 | AY143: 270 | AZ143: 270 | BA143: 270 | BB143: 270 | BC143: 270 | BD143: 270 | BE143: 270 | BF143: 270 | BH143: 3299 | BI143: 108 | BJ143: 2035-06-07 | BK143: 0 | BL143: 0 | BM143: 0 | BN143: 0 | BO143: 2035-06-07 | BP143: 2035-06-07 | BR143: 0 | BS143: 0 | BT143: 0 | BU143: 0 | BY143: 270 | BZ143: 0 | CA143: 0 | CB143: 0 | CC143: 0 | CD143: 0 | CE143: 0 | CF143: 0 | CG143: 0 | CH143: 0 | CI143: 0 | CJ143: 0 | CK143: 0 | CL143: 0 | CM143: 0 | CN143: 0 | CO143: 0 | CP143: 0 | CQ143: 0 | CR143: 0 | CS143: 0 | CT143: 0 | CU143: 0 | CV143: 0 | CW143: 0 | CX143: 0 | CY143: 0 | CZ143: 0 | DA143: 0 | DB143: 0 | DC143: 0 | DD143: 0 | DE143: 0 | DF143: 0 | DG143: 0 | DH143: 0 | DI143: 0 | DJ143: 0 | DK143: 0 | DL143: 0 | DM143: 0 | DN143: 0 | DO143: 0 | DP143: 0 | DQ143: 0 | DR143: 0 | DS143: 0 | DT143: 0 | DU143: 0 | DV143: 0 | DW143: 0 | DX143: 0 | DY143: 0 | DZ143: 0 | EA143: 0 | EB143: 0 | EC143: 0 | ED143: 0 | EE143: 0 | EF143: 0 | EG143: 0 | EH143: 0 | EI143: 0 | EJ143: 0 | EK143: 0 | EL143: 0 | EM143: 0 | EN143: 0 | EO143: 0 | EP143: 0 | EQ143: 0 | ER143: 0 | ES143: 0 | ET143: 0 | EU143: 0 | EV143: 0 | EW143: 0 | EX143: 0 | EY143: 0 | EZ143: 0 | FA143: 0 | FB143: 0 | FC143: 0 | FD143: 0 | FE143: 0 | FF143: 0 | FG143: 0 | FH143: 0 | FI143: 0 | FJ143: 0 | FK143: 0 | FL143: 0 | FM143: 0 | FN143: 0 | FO143: 0 | FP143: 0 | FQ143: 0
A144: 2010-02-16 | B144: terça-feira | C144: Carnaval
A145: 2010-04-02 | B145: sexta-feira | C145: Paixão de Cristo
A146: 2010-04-21 | B146: quarta-feira | C146: Tiradentes
A147: 2010-05-01 | B147: sábado | C147: Dia do Trabalho
A148: 2010-06-03 | B148: quinta-feira | C148: Corpus Christi
A149: 2010-09-07 | B149: terça-feira | C149: Independência do Brasil
A150: 2010-10-12 | B150: terça-feira | C150: Nossa Sr.a Aparecida - Padroeira do Brasil
A151: 2010-11-02 | B151: terça-feira | C151: Finados
A152: 2010-11-15 | B152: segunda-feira | C152: Proclamação da República
A153: 2010-12-25 | B153: sábado | C153: Natal
A154: 2011-01-01 | B154: sábado | C154: Confraternização Universal
A155: 2011-03-07 | B155: segunda-feira | C155: Carnaval
A156: 2011-03-08 | B156: terça-feira | C156: Carnaval
A157: 2011-04-21 | B157: quinta-feira | C157: Tiradentes
A158: 2011-04-22 | B158: sexta-feira | C158: Paixão de Cristo
A159: 2011-05-01 | B159: domingo | C159: Dia do Trabalho
A160: 2011-06-23 | B160: quinta-feira | C160: Corpus Christi
A161: 2011-09-07 | B161: quarta-feira | C161: Independência do Brasil
A162: 2011-10-12 | B162: quarta-feira | C162: Nossa Sr.a Aparecida - Padroeira do Brasil
A163: 2011-11-02 | B163: quarta-feira | C163: Finados
A164: 2011-11-15 | B164: terça-feira | C164: Proclamação da República
A165: 2011-12-25 | B165: domingo | C165: Natal
A166: 2012-01-01 | B166: domingo | C166: Confraternização Universal
A167: 2012-02-20 | B167: segunda-feira | C167: Carnaval
A168: 2012-02-21 | B168: terça-feira | C168: Carnaval
A169: 2012-04-06 | B169: sexta-feira | C169: Paixão de Cristo
A170: 2012-04-21 | B170: sábado | C170: Tiradentes
A171: 2012-05-01 | B171: terça-feira | C171: Dia do Trabalho
A172: 2012-06-07 | B172: quinta-feira | C172: Corpus Christi
A173: 2012-09-07 | B173: sexta-feira | C173: Independência do Brasil
A174: 2012-10-12 | B174: sexta-feira | C174: Nossa Sr.a Aparecida - Padroeira do Brasil
A175: 2012-11-02 | B175: sexta-feira | C175: Finados
A176: 2012-11-15 | B176: quinta-feira | C176: Proclamação da República
A177: 2012-12-25 | B177: terça-feira | C177: Natal
A178: 2013-01-01 | B178: terça-feira | C178: Confraternização Universal
A179: 2013-02-11 | B179: segunda-feira | C179: Carnaval
A180: 2013-02-12 | B180: terça-feira | C180: Carnaval
A181: 2013-03-29 | B181: sexta-feira | C181: Paixão de Cristo
A182: 2013-04-21 | B182: domingo | C182: Tiradentes
A183: 2013-05-01 | B183: quarta-feira | C183: Dia do Trabalho
A184: 2013-05-30 | B184: quinta-feira | C184: Corpus Christi
A185: 2013-09-07 | B185: sábado | C185: Independência do Brasil
A186: 2013-10-12 | B186: sábado | C186: Nossa Sr.a Aparecida - Padroeira do Brasil
A187: 2013-11-02 | B187: sábado | C187: Finados
A188: 2013-11-15 | B188: sexta-feira | C188: Proclamação da República
A189: 2013-12-25 | B189: quarta-feira | C189: Natal
A190: 2014-01-01 | B190: quarta-feira | C190: Confraternização Universal
A191: 2014-03-03 | B191: segunda-feira | C191: Carnaval
A192: 2014-03-04 | B192: terça-feira | C192: Carnaval
A193: 2014-04-18 | B193: sexta-feira | C193: Paixão de Cristo
A194: 2014-04-21 | B194: segunda-feira | C194: Tiradentes
A195: 2014-05-01 | B195: quinta-feira | C195: Dia do Trabalho
A196: 2014-06-19 | B196: quinta-feira | C196: Corpus Christi
A197: 2014-09-07 | B197: domingo | C197: Independência do Brasil
A198: 2014-10-12 | B198: domingo | C198: Nossa Sr.a Aparecida - Padroeira do Brasil
A199: 2014-11-02 | B199: domingo | C199: Finados
A200: 2014-11-15 | B200: sábado | C200: Proclamação da República
... 1097 more rows

Sheet PZO (hidden)
A1: IOF ad | B1: =ROUND(3%/365,6) -> 8.2e-05 | U1: Port final | W1: =J16 -> 0.01689739115 | X1: =IF($P$2=$AH$4,AH1,AP1) -> INSS | Y1: =IF($P$2=$AH$4,AI1,AQ1) -> 0.0135 | Z1: =IF($P$2=$AH$4,AJ1,AR1) -> 0.0185 | AA1: =IF($P$2=$AH$4,AK1,AS1) -> Port | AB1: ='Simulador Port'!C18 -> NORMAL | AH1: INSS | AI1: ='Planilha 1'!AI1 -> 0.0135 | AJ1: ='Planilha 1'!AJ1 -> 0.0185 | AK1: Port | AP1: SIAPE | AQ1: ='Planilha 1'!AQ1 -> 0.016 | AR1: ='Planilha 1'!AR1 -> 0.018 | AS1: Port
A2: IOF adic. | B2: 0.0038 | H2: CONVÊNIO | P2: ='Planilha 1'!P2 -> INSS | U2: TAXA TETO PONDERADO | V2: =((W1*W2)+(Z1*(Z2-W2)))/P3 -> 0.01760966175 | W2: =J10 -> 60 | Z2: =P3 -> 108 | AQ2: 96
O3: Prazo simulado (meses) | P3: ='Planilha 1'!P3 -> 108 | X3: Convenio | Y3: TxMax | Z3: TxMin | AA3: Nome | AC3: Fator um jr | AD3: Novo Saldo | AE3: IOF | AF3: TROCO | AG3: VLR FIN | AH3: Convenio | AI3: TxMax | AJ3: TxMin | AK3: Nome | AL3: Nome | AP3: Convenio | AQ3: TxMax | AR3: TxMin | AS3: Nome | AT3: Nome
S4: =IF(AG4<$V$6,0,IF(AND(Z4>$V$2,Y4>$V$2),0,IF(OR(AF4/AD4>$V$4,$AF4>=$V$5),W3+1,0))) -> 0 | U4: Troco min % | V4: ='Planilha 1'!V4 -> 0 | W4: =IF(AND(X4="INSS",$AB$1="NORMAL",OR(AA4=$AK$8,AA4=$AK$9)),0,IF($I$17<$Y$1,0,IFERROR(IF(AG4<$V$6,0,IF(AND(Z4>$V$2,Y4>$V$2),0,IF(OR(AF4/AD4>$V$4,$AF4>=$V$5),W3+1,0))),0))) -> 0 | X4: =IF($P$2=$AH$4,AH4,AP4) -> INSS | Y4: =IF($P$2=$AH$4,AI4,AQ4) -> 0.0185 | Z4: =IF($P$2=$AH$4,AJ4,AR4) -> 0.0178 | AA4: =IF($P$2=$AH$4,AK4,AS4) -> Normal | AB4: =IF($P$2=$AH$4,AL4,AT4) -> Tx1,850~1,78 (+90d Car) Normal-RfnP | AC4: =(1+MIN(Y4,$V$2))^(1/30) -> 1.00058205 | AD4: =OFFSET($U$32,,ROW()-ROW($AD$4)) -> 12125.07422 | AE4: =OFFSET($AH$29,,ROW()-ROW($AE$4)) -> 92.31953181 | AF4: =AD4-AE4-$J$8 -> 2032.754614 | AG4: =SUM(AD4,AF4) -> 14157.82884 | AH4: ='Planilha 1'!AH4 -> INSS | AI4: ='Planilha 1'!AI4 -> 0.0185 | AJ4: ='Planilha 1'!AJ4 -> 0.0178 | AK4: ='Planilha 1'!AK4 -> Normal | AL4: ='Planilha 1'!AL4 -> Tx1,850~1,78 (+90d Car) Normal-RfnP | AP4: ='Planilha 1'!AP4 -> SIAPE | AQ4: ='Planilha 1'!AQ4 -> 0.01799 | AR4: ='Planilha 1'!AR4 -> 0.01799 | AS4: ='Planilha 1'!AS4 -> Normal | AT4: ='Planilha 1'!AT4 -> SIAPE RfnPort Tx1.799 Normal Web
U5: Troco min R$ | V5: ='Planilha 1'!V5 -> 50 | W5: =IF(AND(X5="INSS",$AB$1="NORMAL",OR(AA5=$AK$8,AA5=$AK$9)),0,IF($I$17<$Y$1,0,IFERROR(IF(AG5<$V$6,0,IF(AND(Z5>$V$2,Y5>$V$2),0,IF(OR(AF5/AD5>$V$4,$AF5>=$V$5),W4+1,0))),0))) -> 1 | X5: =IF($P$2=$AH$4,AH5,AP5) -> INSS | Y5: =IF($P$2=$AH$4,AI5,AQ5) -> 0.01779 | Z5: =IF($P$2=$AH$4,AJ5,AR5) -> 0.0174 | AA5: =IF($P$2=$AH$4,AK5,AS5) -> Flex 1 | AB5: =IF($P$2=$AH$4,AL5,AT5) -> Tx1,779~1,74 (+90d Car) Flex1-RfnP | AC5: =(1+MIN(Y5,$V$2))^(1/30) -> 1.00058205 | AD5: =OFFSET($U$32,,ROW()-ROW($AD$4)) -> 12125.07422 | AE5: =OFFSET($AH$29,,ROW()-ROW($AE$4)) -> 92.31953181 | AF5: =AD5-AE5-$J$8 -> 2032.754614 | AG5: =SUM(AD5,AF5) -> 14157.82884 | AH5: ='Planilha 1'!AH5 -> INSS | AI5: ='Planilha 1'!AI5 -> 0.01779 | AJ5: ='Planilha 1'!AJ5 -> 0.0174 | AK5: ='Planilha 1'!AK5 -> Flex 1 | AL5: ='Planilha 1'!AL5 -> Tx1,779~1,74 (+90d Car) Flex1-RfnP | AP5: ='Planilha 1'!AP5 -> SIAPE | AQ5: ='Planilha 1'!AQ5 -> 0.01798 | AR5: ='Planilha 1'!AR5 -> 0.0175 | AS5: ='Planilha 1'!AS5 -> Flex 1 | AT5: ='Planilha 1'!AT5 -> SIAPE RfnPort Tx1.798 ~ 1.75 Flex 1 Web
K6: Observação | M6: Tabela | O6: Val Fin Novo | P6: Troco | U6: Ticket Min | V6: ='Planilha 1'!V6 -> 2000 | W6: 2 | X6: INSS | Y6: 0.01739 | Z6: 0.017 | AA6: Flex 2 | AB6: Tx1,739~1,70 (+90d Car) Flex2-RfnP | AC6: =(1+MIN(Y6,$V$2))^(1/30) -> 1.000574849 | AD6: 12236.45417 | AE6: 94.31782569 | AF6: 2142.136266 | AG6: 14378.59043 | AH6: ='Planilha 1'!AH6 -> INSS | AI6: ='Planilha 1'!AI6 -> 0.01739 | AJ6: ='Planilha 1'!AJ6 -> 0.017 | AK6: ='Planilha 1'!AK6 -> Flex 2 | AL6: ='Planilha 1'!AL6 -> Tx1,739~1,70 (+90d Car) Flex2-RfnP | AP6: ='Planilha 1'!AP6 -> SIAPE | AQ6: ='Planilha 1'!AQ6 -> 0.01749 | AR6: ='Planilha 1'!AR6 -> 0.017 | AS6: ='Planilha 1'!AS6 -> Flex 2 | AT6: ='Planilha 1'!AT6 -> SIAPE RfnPort Tx1.749 ~ 1.70 Flex 2 Web
H7: Data Saldo | I7: ='Simulador Port'!C7 -> 2026-05-26 | J7: =TODAY() -> 2026-05-26 | K7: ='Simulador Port'!D7 -> 0 | W7: 3 | X7: INSS | Y7: 0.01699 | Z7: 0.0165 | AA7: Flex 3 | AB7: Tx1,699~1,65 (+90d Car) Flex3-RfnP | AC7: 1.000561734 | AD7: 12443.23235 | AE7: 98.05068134 | AF7: 2345.181594 | AG7: 14788.41395 | AH7: ='Planilha 1'!AH7 -> INSS | AI7: ='Planilha 1'!AI7 -> 0.01699 | AJ7: ='Planilha 1'!AJ7 -> 0.0165 | AK7: ='Planilha 1'!AK7 -> Flex 3 | AL7: ='Planilha 1'!AL7 -> Tx1,699~1,65 (+90d Car) Flex3-RfnP | AP7: ='Planilha 1'!AP7 -> SIAPE | AQ7: ='Planilha 1'!AQ7 -> 0.01699 | AR7: ='Planilha 1'!AR7 -> 0.0165 | AS7: ='Planilha 1'!AS7 -> Flex 3 | AT7: ='Planilha 1'!AT7 -> SIAPE RfnPort Tx1.699 ~ 1.65 Flex 3 Web
H8: Saldo Portado | I8: ='Simulador Port'!C8 -> 10000 | J8: =SUM(PZO!J35:J143) -> 10000.00008 | K8: =T8 ->  | L8: 1 | M8: =IFERROR(VLOOKUP(L8,$W$4:$AF$15,6,0),"") -> Tx1,779~1,74 (+90d Car) Flex1-RfnP | O8: =IFERROR(VLOOKUP(L8,$W$4:$AF$15,8,0),"") -> 12125.07422 | P8: =IFERROR(VLOOKUP(L8,$W$4:$AF$15,10,0),"") -> 2032.754614 | R8: =O8-$I$8 -> 2125.074222 | T8: =IF(OR((J17-I17)/I17>2%,(J17-I17)/I17<-2%),"Saldo e Parcela não correspondem à taxa informada","") ->  | U8: TAXA TROCO | W8: 0 | X8: INSS | Y8: 0.01649 | Z8: 0.016 | AA8: Flex 4 | AB8: Tx1,649~1,60 (+90d Car) Flex4-RfnP | AC8: 1.000545333 | AD8: 12709.09722 | AE8: 102.8931439 | AF8: 2606.203996 | AG8: 15315.30121 | AH8: ='Planilha 1'!AH8 -> INSS | AI8: ='Planilha 1'!AI8 -> 0.01649 | AJ8: ='Planilha 1'!AJ8 -> 0.016 | AK8: ='Planilha 1'!AK8 -> Flex 4 | AL8: ='Planilha 1'!AL8 -> Tx1,649~1,60 (+90d Car) Flex4-RfnP
H9: Valor Parcela | I9: ='Simulador Port'!C22 -> 270 | J9: =I9 -> 270 | K9: ='Simulador Port'!D9 -> 0 | L9: =L8+1 -> 2 | M9: =IFERROR(VLOOKUP(L9,$W$4:$AF$15,6,0),"") -> Tx1,739~1,70 (+90d Car) Flex2-RfnP | O9: =IFERROR(VLOOKUP(L9,$W$4:$AF$15,8,0),"") -> 12236.45417 | P9: =IFERROR(VLOOKUP(L9,$W$4:$AF$15,10,0),"") -> 2142.136266 | R9: =O9-$I$8 -> 2236.454168 | W9: 0 | X9: INSS | Y9: 0.01599 | Z9: 0.0155 | AA9: Flex 5 | AB9: Tx1,599~1,55 (+90d Car) Flex5-RfnP | AC9: 1.000528923 | AD9: 12983.47405 | AE9: 107.9398742 | AF9: 2875.534096 | AG9: 15859.00814 | AH9: ='Planilha 1'!AH9 -> INSS | AI9: ='Planilha 1'!AI9 -> 0.01599 | AJ9: ='Planilha 1'!AJ9 -> 0.0155 | AK9: ='Planilha 1'!AK9 -> Flex 5 | AL9: ='Planilha 1'!AL9 -> Tx1,599~1,55 (+90d Car) Flex5-RfnP
H10: Nº de Parcelas Restantes | I10: ='Simulador Port'!C21 -> 60 | J10: =I10 -> 60 | K10: =T10 ->  | L10: =L9+1 -> 3 | M10: Tx1,699~1,65 (+90d Car) Flex3-RfnP | O10: 12443.23235 | P10: 2345.181594 | R10: 2443.232351 | T10: =IF(P3-J10<12,"Contrato com menos de 12 parcelas pagas","") ->  | W10: 0 | X10: 0 | Y10: 0 | Z10: 0 | AA10: 0 | AB10: 0 | AC10: 1 | AH10: ='Planilha 1'!AH10 -> 0 | AI10: ='Planilha 1'!AI10 -> 0 | AJ10: ='Planilha 1'!AJ10 -> 0 | AK10: ='Planilha 1'!AK10 -> 0 | AL10: ='Planilha 1'!AL10 -> 0
L11: 4 | W11: 0 | X11: 0 | Y11: 0 | Z11: 0 | AA11: 0 | AB11: 0 | AC11: 1 | AH11: ='Planilha 1'!AH11 -> 0 | AI11: ='Planilha 1'!AI11 -> 0 | AJ11: ='Planilha 1'!AJ11 -> 0 | AK11: ='Planilha 1'!AK11 -> 0 | AL11: ='Planilha 1'!AL11 -> 0
L12: 5 | W12: 0 | X12: 0 | Y12: 0 | Z12: 0 | AA12: 0 | AB12: 0 | AC12: 1 | AH12: ='Planilha 1'!AH12 -> 0 | AI12: ='Planilha 1'!AI12 -> 0 | AJ12: ='Planilha 1'!AJ12 -> 0 | AK12: ='Planilha 1'!AK12 -> 0 | AL12: ='Planilha 1'!AL12 -> 0 | AW12: ;
L13: 6 | W13: 0 | X13: 0 | Y13: 0 | Z13: 0 | AA13: 0 | AB13: 0 | AC13: 1 | AH13: ='Planilha 1'!AH13 -> 0 | AI13: ='Planilha 1'!AI13 -> 0 | AJ13: ='Planilha 1'!AJ13 -> 0 | AK13: ='Planilha 1'!AK13 -> 0 | AL13: ='Planilha 1'!AL13 -> 0
L14: 7 | W14: 0 | X14: 0 | Y14: 0 | Z14: 0 | AA14: 0 | AB14: 0 | AC14: 1
L15: 8 | W15: 0 | X15: 0 | Y15: 0 | Z15: 0 | AA15: 0 | AB15: 0 | AC15: 1
J16: =J17 -> 0.01689739115 | L16: 9
H17: Taxa de Juros | I17: =J17 -> 0.01689739115 | J17: =(1+XIRR($I$35:$I$143,$M$35:$M$143))^(360/365)^(30/360)-1 -> 0.01689739115 | K17: =T17 ->  | L17: 10 | T17: =IF(J17<PZO!Y1,"Taxa original inferior a mínima","") -> 
H18: Saldo Calculado pela Taxa | I18: =SUM(K36:K143) -> 10000.00008 | J18: =SUM(J36:J143) -> 10000.00008 | K18: ='Simulador Port'!F20 -> 0 | L18: 11 | Z18: =IFERROR(VLOOKUP(M8,PZO!$AB$4:$AG$15,3,0),"") -> 
L19: 12
H22: Taxa AP considerando base 365 | I22: =J16 -> 0.01689739115 | AB22: =IFERROR(VLOOKUP(M8,PZO!$AB$4:$AG$15,3,0),"") -> 
H23: Taxa CET da PORT | I23: =J17 -> 0.01689739115
K25: ;
BJ26: SEM MUDA PRAZO | BK26: SOMAR 1 PARCELA | BL26: SOMAR 2 PARCELAS | BM26: TIRAR 1 PARCELA | BN26: TIRAR 2 PARCELAS
AT27: =XIRR(AU$35:AU$143,$H$35:$H$143) -> 0.06147613823 | AU27: =XIRR(AV$35:AV$143,$H$35:$H$143) -> 0.06147613823 | AV27: 0.06027395427 | AW27: 0.05806687176 | AX27: 0.05527534187 | AY27: 0.05244735181 | BJ27: =IF(K17<>"","Taxa original inferior a mínima","") ->  | BK27: =IF(BK32<PZO!$Y$1,"Taxa original inferior a mínima","") ->  | BL27: =IF(BL32<PZO!$Y$1,"Taxa original inferior a mínima","") ->  | BM27: =IF(BM32<PZO!$Y$1,"Taxa original inferior a mínima","") ->  | BN27: =IF(BN32<PZO!$Y$1,"Taxa original inferior a mínima","") -> 
AH28: =U32-$J$8 -> 2125.074146 | AI28: =V32-$J$8 -> 2125.074146 | AJ28: 2236.454092 | AK28: 2443.232275 | AL28: 2709.09714 | AM28: 2983.47397
T29: Taxa REFIN | U29: =VLOOKUP(U34,$AA$4:$AC$15,3,0) -> 1.00058205 | V29: =VLOOKUP(V34,$AA$4:$AC$15,3,0) -> 1.00058205 | W29: =VLOOKUP(W34,$AA$4:$AC$15,3,0) -> 1.000574849 | X29: =VLOOKUP(X34,$AA$4:$AC$15,3,0) -> 1.000561734 | Y29: 1.000545333 | Z29: 1.000528923 | AH29: =SUM(AH35:AH143) -> 92.31953181 | AI29: =SUM(AI35:AI143) -> 92.31953181 | AJ29: 94.31782569 | AK29: 98.05068134 | AL29: 102.8931439 | AM29: 107.9398742 | AU29: =(1+AT27)^(30/365)-1 -> 0.004915646943 | AV29: 0.004915646943 | AW29: 0.004822053696 | AX29: 0.004649972568 | AY29: 0.004431850945 | AZ29: 0.004210339773
H30: dt ini fx pmt | I30: =EDATE(J31,-1) -> 2026-09-07 | J30: =NETWORKDAYS(EOMONTH(I7,-1)+1,I7,$A$34:$A$1297) -> 17 | BJ30: dt ini fx pmt | BK30: =I30 -> 2026-09-07
H31: Prox Vencimento | J31: ='Planilha 1'!J31 -> 2026-10-07 | M31: ='Planilha 1'!M31 -> 2026-07-07 | U31: =U32-$I$8 -> 2125.074222 | V31: =V32-$I$8 -> 2125.074222 | W31: 2236.454168 | X31: 2443.232351 | Y31: 2709.097216 | Z31: 2983.474046 | AE31: =AE32-$I$8 ->  | BJ31: Prox Vencimento | BL31: =J31 -> 2026-10-07
H32: Fator Dia | I32: =(1+I17)^(1/30) -> 1.000558697 | J32: =(1+J17)^(1/30) -> 1.000558697 | T32: Vlr Troco | U32: =SUM(U36:U143) -> 12125.07422 | V32: =SUM(V36:V143) -> 12125.07422 | W32: 12236.45417 | X32: 12443.23235 | Y32: 12709.09722 | Z32: 12983.47405 | BJ32: XITR | BK32: =(1+XIRR(BK$35:BK$143,$BJ$35:$BJ$143))^(30/360)-1 -> 0.01570061409 | BL32: =(1+XIRR(BL$35:BL$143,$BJ$35:$BJ$143))^(30/360)-1 -> 0.01602923282 | BM32: 0.01499687109 | BN32: 0.01461991016
A33: Data | B33: Dia da Semana | C33: Feriado | H33: OPERAÇÃO ORIGINAL | T33: REFINANCIAMENTO | AH33: IOF | AU33: REFINANCIAMENTO | BJ33: OPERAÇÃO ORIGINAL
A34: 2001-01-01 | B34: segunda-feira | C34: Confraternização Universal | H34: DATA EV | I34: FLUXO | J34: Principal | K34: Principal2 | L34: IOF | M34: Data Sld | T34: FX Refin | U34: Normal | V34: Flex 1 | W34: Flex 2 | X34: Flex 3 | Y34: Flex 4 | Z34: Flex 5 | AA34: Flex 6 | AB34: Flex 7 | AC34: Flex 8 | AD34: Flex 9 | AE34: Flex 10 | AF34: Flex 11 | AH34: Normal | AI34: Flex 1 | AJ34: Flex 2 | AK34: Flex 3 | AL34: Flex 4 | AM34: Flex 5 | AN34: Flex 6 | AO34: Flex 7 | AP34: Flex 8 | AQ34: Flex 9 | AR34: Flex 10 | AS34: Flex 11 | AU34: Normal | AV34: Flex 1 | AW34: Flex 2 | AX34: Flex 3 | AY34: Flex 4 | AZ34: Flex 5 | BA34: Flex 6 | BB34: Flex 7 | BC34: Flex 8 | BD34: Flex 9 | BE34: Flex 10 | BF34: Flex 11 | BJ34: DATA EV | BK34: FLUXO1 | BL34: FLUXO2 | BM34: FLUXO3 | BN34: FLUXO4
A35: 2001-02-26 | B35: segunda-feira | C35: Carnaval | G35: 0 | H35: =I7 -> 2026-05-26 | I35: =-I8 -> -10000 | L35: =I35*-0.38% -> 38 | M35: =I7 -> 2026-05-26 | T35: =I35 -> -10000 | AH35: =(U31)*$B$2 -> 8.075282043 | AI35: =(V31)*$B$2 -> 8.075282043 | AJ35: 8.498525837 | AK35: 9.284282934 | AL35: 10.29456942 | AM35: 11.33720137 | AU35: =-U32+$I$35 -> -22125.07422 | AV35: =-V32+$I$35 -> -22125.07422 | AW35: -22236.45417 | AX35: -22443.23235 | AY35: -22709.09722 | AZ35: -22983.47405 | BI35: 0 | BJ35: =H35 -> 2026-05-26 | BK35: =I35 -> -10000 | BL35: =BK35 -> -10000 | BM35: =BL35 -> -10000 | BN35: =BM35 -> -10000
A36: 2001-02-27 | B36: terça-feira | C36: Carnaval | F36: =H36-$H$35 -> 134 | G36: 1 | H36: =J31 -> 2026-10-07 | I36: =IF($G36>$I$10,0,$I$9) -> 270 | J36: =I36/($J$32^(M36-$M$35)) -> 263.7398639 | K36: =I36/($I$32^(M36-$M$35)) -> 263.7398639 | L36: =J36*0.0082%*MIN(F36,365) -> 2.897973625 | M36: =M31 -> 2026-07-07 | S36: 1 | T36: =IF($G36>$P$3,0,$J$9) -> 270 | U36: =$T36/((U$29)^($H36-$H$35)) -> 249.7473988 | V36: =$T36/((V$29)^($H36-$H$35)) -> 249.7473988 | W36: 249.9883417 | X36: 250.4278253 | Y36: 250.9785103 | Z36: 251.5306782 | AH36: =IF($I36<>0,0,U36*$B$1*MIN($F36,365)) -> 0 | AI36: =IF($I36<>0,0,V36*$B$1*MIN($F36,365)) -> 0 | AJ36: 0 | AK36: 0 | AL36: 0 | AM36: 0 | AN36: 0 | AO36: 0 | AP36: 0 | AQ36: 0 | AR36: 0 | AS36: 0 | AU36: =$T36 -> 270 | AV36: 270 | AW36: 270 | AX36: 270 | AY36: 270 | AZ36: 270 | BA36: 270 | BB36: 270 | BC36: 270 | BD36: 270 | BE36: 270 | BF36: 270 | BH36: =BJ36-$H$35 -> 134 | BI36: 1 | BJ36: =BL31 -> 2026-10-07 | BK36: =I36 -> 270 | BL36: =BK36 -> 270 | BM36: =I37 -> 270 | BN36: =BM37 -> 270
A37: 2001-04-13 | B37: sexta-feira | C37: Paixão de Cristo | F37: =H37-$H$35 -> 165 | G37: =G36+1 -> 2 | H37: =EDATE(H36,1) -> 2026-11-07 | I37: =IF($G37>$I$10,0,$I$9) -> 270 | J37: =I37/($J$32^(M37-$M$35)) -> 259.2125793 | K37: =I37/($I$32^(M37-$M$35)) -> 259.2125793 | L37: =J37*0.0082%*MIN(F37,365) -> 3.507146197 | M37: =EDATE(M36,1) -> 2026-08-07 | S37: =S36+1 -> 2 | T37: 270 | U37: 245.2827714 | V37: 245.2827714 | W37: 245.5741835 | X37: 246.1058914 | Y37: 246.7724406 | Z37: 247.4411245 | AH37: 0 | AI37: 0 | AJ37: 0 | AK37: 0 | AL37: 0 | AM37: 0 | AN37: 0 | AO37: 0 | AP37: 0 | AQ37: 0 | AR37: 0 | AS37: 0 | AU37: 270 | AV37: 270 | AW37: 270 | AX37: 270 | AY37: 270 | AZ37: 270 | BA37: 270 | BB37: 270 | BC37: 270 | BD37: 270 | BE37: 270 | BF37: 270 | BH37: =BJ37-$H$35 -> 165 | BI37: =BI36+1 -> 2 | BJ37: =EDATE(BJ36,1) -> 2026-11-07 | BK37: =I36 -> 270 | BL37: =BK36 -> 270 | BM37: =I38 -> 270 | BN37: =BM38 -> 270
A38: 2001-04-21 | B38: sábado | C38: Tiradentes | F38: 195 | G38: =G37+1 -> 3 | H38: =EDATE(H37,1) -> 2026-12-07 | I38: =IF($G38>$I$10,0,$I$9) -> 270 | J38: 254.7630087 | K38: 254.7630087 | L38: 4.07366051 | M38: =EDATE(M37,1) -> 2026-09-07 | S38: 3 | T38: 270 | U38: 241.0381707 | V38: 241.0381707 | W38: 241.3766437 | X38: 241.9944064 | Y38: 242.7691769 | Z38: 243.546811 | AH38: 0 | AI38: 0 | AJ38: 0 | AK38: 0 | AL38: 0 | AM38: 0 | AN38: 0 | AO38: 0 | AP38: 0 | AQ38: 0 | AR38: 0 | AS38: 0 | AU38: 270 | AV38: 270 | AW38: 270 | AX38: 270 | AY38: 270 | AZ38: 270 | BA38: 270 | BB38: 270 | BC38: 270 | BD38: 270 | BE38: 270 | BF38: 270 | BH38: 195 | BI38: =BI37+1 -> 3 | BJ38: =EDATE(BJ37,1) -> 2026-12-07 | BK38: =I37 -> 270 | BL38: =BK37 -> 270 | BM38: 270 | BN38: 270
A39: 2001-05-01 | B39: terça-feira | C39: Dia do Trabalho | F39: 226 | G39: 4 | H39: 2027-01-07 | I39: =IF($G39>$I$10,0,$I$9) -> 270 | J39: 250.5297102 | K39: 250.5297102 | L39: 4.64281659 | M39: 2026-10-07 | S39: 4 | T39: 270 | U39: 236.7292344 | V39: 236.7292344 | W39: 237.1145463 | X39: 237.8180181 | Y39: 238.7006848 | Z39: 239.5870643 | AH39: 0 | AI39: 0 | AJ39: 0 | AK39: 0 | AL39: 0 | AM39: 0 | AN39: 0 | AO39: 0 | AP39: 0 | AQ39: 0 | AR39: 0 | AS39: 0 | AU39: 270 | AV39: 270 | AW39: 270 | AX39: 270 | AY39: 270 | AZ39: 270 | BA39: 270 | BB39: 270 | BC39: 270 | BD39: 270 | BE39: 270 | BF39: 270 | BH39: 226 | BI39: 4 | BJ39: 2027-01-07 | BK39: 270 | BL39: 270 | BM39: 270 | BN39: 270
A40: 2001-06-14 | B40: quinta-feira | C40: Corpus Christi | F40: 257 | G40: 5 | H40: 2027-02-07 | I40: 270 | J40: 246.2291874 | K40: 246.2291874 | L40: 5.189033895 | M40: 2026-11-07 | S40: 5 | T40: 270 | U40: 232.4973271 | V40: 232.4973271 | W40: 232.9277066 | X40: 233.7137068 | Y40: 234.7003754 | Z40: 235.6916978 | AH40: 0 | AI40: 0 | AJ40: 0 | AK40: 0 | AL40: 0 | AM40: 0 | AN40: 0 | AO40: 0 | AP40: 0 | AQ40: 0 | AR40: 0 | AS40: 0 | AU40: 270 | AV40: 270 | AW40: 270 | AX40: 270 | AY40: 270 | AZ40: 270 | BA40: 270 | BB40: 270 | BC40: 270 | BD40: 270 | BE40: 270 | BF40: 270 | BH40: 257 | BI40: 5 | BJ40: 2027-02-07 | BK40: 270 | BL40: 270 | BM40: 270 | BN40: 270
A41: 2001-09-07 | B41: sexta-feira | C41: Independência do Brasil | F41: 285 | G41: 6 | H41: 2027-03-07 | I41: 270 | J41: 242.1376921 | K41: 242.1376921 | L41: 5.658757864 | M41: 2026-12-07 | S41: 6 | T41: 270 | U41: 228.7400214 | V41: 228.7400214 | W41: 229.2096249 | X41: 230.0675035 | Y41: 231.1448461 | Z41: 232.2277675 | AH41: 0 | AI41: 0 | AJ41: 0 | AK41: 0 | AL41: 0 | AM41: 0 | AN41: 0 | AO41: 0 | AP41: 0 | AQ41: 0 | AR41: 0 | AS41: 0 | AU41: 270 | AV41: 270 | AW41: 270 | AX41: 270 | AY41: 270 | AZ41: 270 | BA41: 270 | BB41: 270 | BC41: 270 | BD41: 270 | BE41: 270 | BF41: 270 | BH41: 285 | BI41: 6 | BJ41: 2027-03-07 | BK41: 270 | BL41: 270 | BM41: 270 | BN41: 270
A42: 2001-10-12 | B42: sexta-feira | C42: Nossa Sr.a Aparecida - Padroeira do Brasil | F42: 316 | G42: 7 | H42: 2027-04-07 | I42: 270 | J42: 237.9812243 | K42: 237.9812243 | L42: 6.166569484 | M42: 2027-01-07 | S42: 7 | T42: 270 | U42: 224.6509339 | V42: 224.6509339 | W42: 225.162366 | X42: 226.0969521 | Y42: 227.2711626 | Z42: 228.4520534 | AH42: 0 | AI42: 0 | AJ42: 0 | AK42: 0 | AL42: 0 | AM42: 0 | AN42: 0 | AO42: 0 | AP42: 0 | AQ42: 0 | AR42: 0 | AS42: 0 | AU42: 270 | AV42: 270 | AW42: 270 | AX42: 270 | AY42: 270 | AZ42: 270 | BA42: 270 | BB42: 270 | BC42: 270 | BD42: 270 | BE42: 270 | BF42: 270 | BH42: 316 | BI42: 7 | BJ42: 2027-04-07 | BK42: 270 | BL42: 270 | BM42: 270 | BN42: 270
A43: 2001-11-02 | B43: sexta-feira | C43: Finados | F43: 346 | G43: 8 | H43: 2027-05-07 | I43: 270 | J43: 233.8961052 | K43: 233.8961052 | L43: 6.636100298 | M43: 2027-02-07 | S43: 8 | T43: 270 | U43: 220.7633657 | V43: 220.7633657 | W43: 221.3137204 | X43: 222.3197398 | Y43: 223.5842582 | Z43: 224.8565964 | AH43: 0 | AI43: 0 | AJ43: 0 | AK43: 0 | AL43: 0 | AM43: 0 | AN43: 0 | AO43: 0 | AP43: 0 | AQ43: 0 | AR43: 0 | AS43: 0 | AU43: 270 | AV43: 270 | AW43: 270 | AX43: 270 | AY43: 270 | AZ43: 270 | BA43: 270 | BB43: 270 | BC43: 270 | BD43: 270 | BE43: 270 | BF43: 270 | BH43: 346 | BI43: 8 | BJ43: 2027-05-07 | BK43: 270 | BL43: 270 | BM43: 270 | BN43: 270
A44: 2001-11-15 | B44: quinta-feira | C44: Proclamação da República | F44: 377 | G44: 9 | H44: 2027-06-07 | I44: 270 | J44: 230.2666269 | K44: 230.2666269 | L44: 6.891880144 | M44: 2027-03-07 | S44: 9 | T44: 270 | U44: 216.8168734 | V44: 216.8168734 | W44: 217.4058832 | X44: 218.4829009 | Y44: 219.8372801 | Z44: 221.2007277 | AH44: 0 | AI44: 0 | AJ44: 0 | AK44: 0 | AL44: 0 | AM44: 0 | AN44: 0 | AO44: 0 | AP44: 0 | AQ44: 0 | AR44: 0 | AS44: 0 | AU44: 270 | AV44: 270 | AW44: 270 | AX44: 270 | AY44: 270 | AZ44: 270 | BA44: 270 | BB44: 270 | BC44: 270 | BD44: 270 | BE44: 270 | BF44: 270 | BH44: 377 | BI44: 9 | BJ44: 2027-06-07 | BK44: 270 | BL44: 270 | BM44: 270 | BN44: 270
A45: 2001-12-25 | B45: terça-feira | C45: Natal | F45: 407 | G45: 10 | H45: 2027-07-07 | I45: 270 | J45: 226.3139345 | K45: 226.3139345 | L45: 6.773576059 | M45: 2027-04-07 | S45: 10 | T45: 270 | U45: 213.0648731 | V45: 213.0648731 | W45: 213.6898173 | X45: 214.8328901 | Y45: 216.2709718 | Z45: 217.7193946 | AH45: 0 | AI45: 0 | AJ45: 0 | AK45: 0 | AL45: 0 | AM45: 0 | AN45: 0 | AO45: 0 | AP45: 0 | AQ45: 0 | AR45: 0 | AS45: 0 | AU45: 270 | AV45: 270 | AW45: 270 | AX45: 270 | AY45: 270 | AZ45: 270 | BA45: 270 | BB45: 270 | BC45: 270 | BD45: 270 | BE45: 270 | BF45: 270 | BH45: 407 | BI45: 10 | BJ45: 2027-07-07 | BK45: 270 | BL45: 270 | BM45: 270 | BN45: 270
A46: 2002-01-01 | B46: terça-feira | C46: Confraternização Universal | F46: 438 | G46: 11 | H46: 2027-08-07 | I46: 270 | J46: 222.5533633 | K46: 222.5533633 | L46: 6.661022162 | M46: 2027-05-07 | S46: 11 | T46: 270 | U46: 209.2560034 | V46: 209.2560034 | W46: 209.9165987 | X46: 211.1252607 | Y46: 212.6465548 | Z46: 214.1795673 | AH46: 0 | AI46: 0 | AJ46: 0 | AK46: 0 | AL46: 0 | AM46: 0 | AN46: 0 | AO46: 0 | AP46: 0 | AQ46: 0 | AR46: 0 | AS46: 0 | AU46: 270 | AV46: 270 | AW46: 270 | AX46: 270 | AY46: 270 | AZ46: 270 | BA46: 270 | BB46: 270 | BC46: 270 | BD46: 270 | BE46: 270 | BF46: 270 | BH46: 438 | BI46: 11 | BJ46: 2027-08-07 | BK46: 270 | BL46: 270 | BM46: 270 | BN46: 270
A47: 2002-02-11 | B47: segunda-feira | C47: Carnaval | F47: 469 | G47: 12 | H47: 2027-09-07 | I47: 270 | J47: 218.7330746 | K47: 218.7330746 | L47: 6.546680922 | M47: 2027-06-07 | S47: 12 | T47: 270 | U47: 205.5152234 | V47: 205.5152234 | W47: 206.2100057 | X47: 207.4816184 | Y47: 209.0828782 | Z47: 210.6972929 | AH47: 0 | AI47: 0 | AJ47: 0 | AK47: 0 | AL47: 0 | AM47: 0 | AN47: 0 | AO47: 0 | AP47: 0 | AQ47: 0 | AR47: 0 | AS47: 0 | AU47: 270 | AV47: 270 | AW47: 270 | AX47: 270 | AY47: 270 | AZ47: 270 | BA47: 270 | BB47: 270 | BC47: 270 | BD47: 270 | BE47: 270 | BF47: 270 | BH47: 469 | BI47: 12 | BJ47: 2027-09-07 | BK47: 270 | BL47: 270 | BM47: 270 | BN47: 270
A48: 2002-02-12 | B48: terça-feira | C48: Carnaval | F48: 499 | G48: 13 | H48: 2027-10-07 | I48: 270 | J48: 215.0984716 | K48: 215.0984716 | L48: 6.437897254 | M48: 2027-07-07 | S48: 13 | T48: 270 | U48: 201.9587972 | V48: 201.9587972 | W48: 202.6853082 | X48: 204.0153968 | Y48: 205.6910331 | Z48: 207.3812665 | AH48: 0 | AI48: 0 | AJ48: 0 | AK48: 0 | AL48: 0 | AM48: 0 | AN48: 0 | AO48: 0 | AP48: 0 | AQ48: 0 | AR48: 0 | AS48: 0 | AU48: 270 | AV48: 270 | AW48: 270 | AX48: 270 | AY48: 270 | AZ48: 270 | BA48: 270 | BB48: 270 | BC48: 270 | BD48: 270 | BE48: 270 | BF48: 270 | BH48: 499 | BI48: 13 | BJ48: 2027-10-07 | BK48: 270 | BL48: 270 | BM48: 270 | BN48: 270
A49: 2002-03-29 | B49: sexta-feira | C49: Paixão de Cristo | F49: 530 | G49: 14 | H49: 2027-11-07 | I49: 270 | J49: 211.4061514 | K49: 211.4061514 | L49: 6.327386112 | M49: 2027-08-07 | S49: 14 | T49: 270 | U49: 198.3484662 | V49: 198.3484662 | W49: 199.1064013 | X49: 200.4944579 | Y49: 202.2439219 | Z49: 204.0095234 | AH49: 0 | AI49: 0 | AJ49: 0 | AK49: 0 | AL49: 0 | AM49: 0 | AN49: 0 | AO49: 0 | AP49: 0 | AQ49: 0 | AR49: 0 | AS49: 0 | AU49: 270 | AV49: 270 | AW49: 270 | AX49: 270 | AY49: 270 | AZ49: 270 | BA49: 270 | BB49: 270 | BC49: 270 | BD49: 270 | BE49: 270 | BF49: 270 | BH49: 530 | BI49: 14 | BJ49: 2027-11-07 | BK49: 270 | BL49: 270 | BM49: 270 | BN49: 270
A50: 2002-04-21 | B50: domingo | C50: Tiradentes | F50: 560 | G50: 15 | H50: 2027-12-07 | I50: 270 | J50: 207.7772126 | K50: 207.7772126 | L50: 6.218771975 | M50: 2027-09-07 | S50: 15 | T50: 270 | U50: 194.9160603 | V50: 194.9160603 | W50: 195.7031239 | X50: 197.144965 | Y50: 198.9630217 | Z50: 200.7987513 | AH50: 0 | AI50: 0 | AJ50: 0 | AK50: 0 | AL50: 0 | AM50: 0 | AN50: 0 | AO50: 0 | AP50: 0 | AQ50: 0 | AR50: 0 | AS50: 0 | AU50: 270 | AV50: 270 | AW50: 270 | AX50: 270 | AY50: 270 | AZ50: 270 | BA50: 270 | BB50: 270 | BC50: 270 | BD50: 270 | BE50: 270 | BF50: 270 | BH50: 560 | BI50: 15 | BJ50: 2027-12-07 | BK50: 270 | BL50: 270 | BM50: 270 | BN50: 270
A51: 2002-05-01 | B51: quarta-feira | C51: Dia do Trabalho | F51: 591 | G51: 16 | H51: 2028-01-07 | I51: 270 | J51: 204.324659 | K51: 204.324659 | L51: 6.115437043 | M51: 2027-10-07 | S51: 16 | T51: 270 | U51: 191.4316292 | V51: 191.4316292 | W51: 192.2475047 | X51: 193.7425974 | Y51: 195.6286632 | Z51: 197.5340312 | AH51: 0 | AI51: 0 | AJ51: 0 | AK51: 0 | AL51: 0 | AM51: 0 | AN51: 0 | AO51: 0 | AP51: 0 | AQ51: 0 | AR51: 0 | AS51: 0 | AU51: 270 | AV51: 270 | AW51: 270 | AX51: 270 | AY51: 270 | AZ51: 270 | BA51: 270 | BB51: 270 | BC51: 270 | BD51: 270 | BE51: 270 | BF51: 270 | BH51: 591 | BI51: 16 | BJ51: 2028-01-07 | BK51: 270 | BL51: 270 | BM51: 270 | BN51: 270
A52: 2002-05-30 | B52: quinta-feira | C52: Corpus Christi | F52: 622 | G52: 17 | H52: 2028-02-07 | I52: 270 | J52: 200.8172791 | K52: 200.8172791 | L52: 6.010461163 | M52: 2027-11-07 | S52: 17 | T52: 270 | U52: =$T52/((U$29)^($H52-$H$35)) -> 188.0094879 | V52: 188.0094879 | W52: 188.8529028 | X52: 190.3989486 | Y52: 192.3501841 | Z52: 194.322391 | AH52: 0 | AI52: 0 | AJ52: 0 | AK52: 0 | AL52: 0 | AM52: 0 | AN52: 0 | AO52: 0 | AP52: 0 | AQ52: 0 | AR52: 0 | AS52: 0 | AU52: =$T52 -> 270 | AV52: 270 | AW52: 270 | AX52: 270 | AY52: 270 | AZ52: 270 | BA52: 270 | BB52: 270 | BC52: 270 | BD52: 270 | BE52: 270 | BF52: 270 | BH52: 622 | BI52: 17 | BJ52: 2028-02-07 | BK52: 270 | BL52: 270 | BM52: 270 | BN52: 270
A53: 2002-09-07 | B53: sábado | C53: Independência do Brasil | F53: 651 | G53: 18 | H53: 2028-03-07 | I53: 270 | J53: 197.4803759 | K53: 197.4803759 | L53: 5.910587652 | M53: 2027-12-07 | S53: 18 | T53: 270 | U53: 184.8635344 | V53: 184.8635344 | W53: 185.7315924 | X53: 187.3232796 | Y53: 189.3329781 | Z53: 191.3652424 | AH53: 0 | AI53: 0 | AJ53: 0 | AK53: 0 | AL53: 0 | AM53: 0 | AN53: 0 | AO53: 0 | AP53: 0 | AQ53: 0 | AR53: 0 | AS53: 0 | AU53: 270 | AV53: 270 | AW53: 270 | AX53: 270 | AY53: 270 | AZ53: 270 | BA53: 270 | BB53: 270 | BC53: 270 | BD53: 270 | BE53: 270 | BF53: 270 | BH53: 651 | BI53: 18 | BJ53: 2028-03-07 | BK53: 270 | BL53: 270 | BM53: 270 | BN53: 270
A54: 2002-10-12 | B54: sábado | C54: Nossa Sr.a Aparecida - Padroeira do Brasil | F54: 682 | G54: 19 | H54: 2028-04-07 | I54: 270 | J54: 194.0904831 | K54: 194.0904831 | L54: 5.80912816 | M54: 2028-01-07 | S54: 19 | T54: 270 | U54: 181.5588081 | V54: 181.5588081 | W54: 182.452045 | X54: 184.0904167 | Y54: 186.1600065 | Z54: 188.2538985 | AH54: 0 | AI54: 0 | AJ54: 0 | AK54: 0 | AL54: 0 | AM54: 0 | AN54: 0 | AO54: 0 | AP54: 0 | AQ54: 0 | AR54: 0 | AS54: 0 | AU54: 270 | AV54: 270 | AW54: 270 | AX54: 270 | AY54: 270 | AZ54: 270 | BA54: 270 | BB54: 270 | BC54: 270 | BD54: 270 | BE54: 270 | BF54: 270 | BH54: 682 | BI54: 19 | BJ54: 2028-04-07 | BK54: 270 | BL54: 270 | BM54: 270 | BN54: 270
A55: 2002-11-02 | B55: sábado | C55: Finados | F55: 712 | G55: 20 | H55: 2028-05-07 | I55: 270 | J55: 190.7587802 | K55: 190.7587802 | L55: 5.709410293 | M55: 2028-02-07 | S55: 20 | T55: 270 | U55: 178.416946 | V55: 178.416946 | W55: 179.3334365 | X55: 181.0149723 | Y55: 183.1400274 | Z55: 185.291094 | AH55: 0 | AI55: 0 | AJ55: 0 | AK55: 0 | AL55: 0 | AM55: 0 | AN55: 0 | AO55: 0 | AP55: 0 | AQ55: 0 | AR55: 0 | AS55: 0 | AU55: 270 | AV55: 270 | AW55: 270 | AX55: 270 | AY55: 270 | AZ55: 270 | BA55: 270 | BB55: 270 | BC55: 270 | BD55: 270 | BE55: 270 | BF55: 270 | BH55: 712 | BI55: 20 | BJ55: 2028-05-07 | BK55: 270 | BL55: 270 | BM55: 270 | BN55: 270
A56: 2002-11-15 | B56: sexta-feira | C56: Proclamação da República | F56: 743 | G56: 21 | H56: 2028-06-07 | I56: 270 | J56: 187.6938206 | K56: 187.6938206 | L56: 5.617676051 | M56: 2028-03-07 | S56: 21 | T56: 270 | U56: 175.2274625 | V56: 175.2274625 | W56: 176.1668643 | X56: 177.8909794 | Y56: 180.0708415 | Z56: 182.2785076 | AH56: 0 | AI56: 0 | AJ56: 0 | AK56: 0 | AL56: 0 | AM56: 0 | AN56: 0 | AO56: 0 | AP56: 0 | AQ56: 0 | AR56: 0 | AS56: 0 | AU56: 270 | AV56: 270 | AW56: 270 | AX56: 270 | AY56: 270 | AZ56: 270 | BA56: 270 | BB56: 270 | BC56: 270 | BD56: 270 | BE56: 270 | BF56: 270 | BH56: 743 | BI56: 21 | BJ56: 2028-06-07 | BK56: 270 | BL56: 270 | BM56: 270 | BN56: 270
A57: 2002-12-25 | B57: quarta-feira | C57: Natal | F57: 773 | G57: 22 | H57: 2028-07-07 | I57: 270 | J57: 184.4719211 | K57: 184.4719211 | L57: 5.521244598 | M57: 2028-04-07 | S57: 22 | T57: 270 | U57: 172.1951639 | V57: 172.1951639 | W57: 173.1556869 | X57: 174.9191039 | Y57: 177.1496438 | Z57: 179.4097458 | AH57: 0 | AI57: 0 | AJ57: 0 | AK57: 0 | AL57: 0 | AM57: 0 | AN57: 0 | AO57: 0 | AP57: 0 | AQ57: 0 | AR57: 0 | AS57: 0 | AU57: 270 | AV57: 270 | AW57: 270 | AX57: 270 | AY57: 270 | AZ57: 270 | BA57: 270 | BB57: 270 | BC57: 270 | BD57: 270 | BE57: 270 | BF57: 270 | BH57: 773 | BI57: 22 | BJ57: 2028-07-07 | BK57: 270 | BL57: 270 | BM57: 270 | BN57: 270
A58: 2003-01-01 | B58: quarta-feira | C58: Confraternização Universal | F58: 804 | G58: 23 | H58: 2028-08-07 | I58: 270 | J58: 181.4066224 | K58: 181.4066224 | L58: 5.429500209 | M58: 2028-05-07 | S58: 23 | T58: 270 | U58: 169.1169046 | V58: 169.1169046 | W58: 170.098198 | X58: 171.9003147 | Y58: 174.1808488 | Z58: 176.4927824 | AH58: 0 | AI58: 0 | AJ58: 0 | AK58: 0 | AL58: 0 | AM58: 0 | AN58: 0 | AO58: 0 | AP58: 0 | AQ58: 0 | AR58: 0 | AS58: 0 | AU58: 270 | AV58: 270 | AW58: 270 | AX58: 270 | AY58: 270 | AZ58: 270 | BA58: 270 | BB58: 270 | BC58: 270 | BD58: 270 | BE58: 270 | BF58: 270 | BH58: 804 | BI58: 23 | BJ58: 2028-08-07 | BK58: 270 | BL58: 270 | BM58: 270 | BN58: 270
A59: 2003-03-03 | B59: segunda-feira | C59: Carnaval | F59: 835 | G59: 24 | H59: 2028-09-07 | I59: 270 | J59: 178.2926471 | K59: 178.2926471 | L59: 5.336298929 | M59: 2028-06-07 | S59: 24 | T59: 270 | U59: 166.093674 | V59: 166.093674 | W59: 167.0946966 | X59: 168.9336244 | Y59: 171.2618069 | Z59: 173.6232449 | AH59: 0 | AI59: 0 | AJ59: 0 | AK59: =IF($I59<>0,0,X59*$B$1*MIN($F59,365)) -> 0 | AL59: 0 | AM59: 0 | AN59: 0 | AO59: 0 | AP59: 0 | AQ59: 0 | AR59: 0 | AS59: 0 | AU59: 270 | AV59: 270 | AW59: 270 | AX59: 270 | AY59: 270 | AZ59: 270 | BA59: 270 | BB59: 270 | BC59: 270 | BD59: 270 | BE59: 270 | BF59: 270 | BH59: 835 | BI59: 24 | BJ59: 2028-09-07 | BK59: 270 | BL59: 270 | BM59: 270 | BN59: 270
A60: 2003-03-04 | B60: terça-feira | C60: Carnaval | F60: 865 | G60: 25 | H60: 2028-10-07 | I60: 270 | J60: 175.3300271 | K60: 175.3300271 | L60: 5.247627711 | M60: 2028-07-07 | S60: 25 | T60: 270 | U60: 163.219435 | V60: 163.219435 | W60: 164.2385875 | X60: 166.1113919 | Y60: 168.4835138 | Z60: 170.8907025 | AH60: 0 | AI60: =IF($I60<>0,0,V60*$B$1*MIN($F60,365)) -> 0 | AJ60: =IF($I60<>0,0,W60*$B$1*MIN($F60,365)) -> 0 | AK60: 0 | AL60: 0 | AM60: 0 | AN60: 0 | AO60: 0 | AP60: 0 | AQ60: 0 | AR60: 0 | AS60: 0 | AU60: 270 | AV60: 270 | AW60: 270 | AX60: 270 | AY60: 270 | AZ60: 270 | BA60: 270 | BB60: 270 | BC60: 270 | BD60: 270 | BE60: 270 | BF60: 270 | BH60: 865 | BI60: 25 | BJ60: 2028-10-07 | BK60: 270 | BL60: 270 | BM60: 270 | BN60: 270
A61: 2003-04-18 | B61: sexta-feira | C61: Paixão de Cristo | F61: 896 | G61: 26 | H61: 2028-11-07 | I61: 270 | J61: 172.320361 | K61: 172.320361 | L61: 5.157548403 | M61: 2028-08-07 | S61: 26 | T61: 270 | U61: 160.301631 | V61: 160.301631 | W61: 161.3385519 | X61: 163.244608 | Y61: 165.6599517 | Z61: 168.1122474 | AH61: 0 | AI61: 0 | AJ61: 0 | AK61: 0 | AL61: 0 | AM61: 0 | AN61: 0 | AO61: 0 | AP61: 0 | AQ61: 0 | AR61: 0 | AS61: 0 | AU61: 270 | AV61: 270 | AW61: 270 | AX61: 270 | AY61: 270 | AZ61: 270 | BA61: 270 | BB61: 270 | BC61: 270 | BD61: 270 | BE61: 270 | BF61: 270 | BH61: 896 | BI61: 26 | BJ61: 2028-11-07 | BK61: 270 | BL61: 270 | BM61: 270 | BN61: 270
A62: 2003-04-21 | B62: segunda-feira | C62: Tiradentes | F62: 926 | G62: 27 | H62: 2028-12-07 | I62: 270 | J62: 169.3623579 | K62: 169.3623579 | L62: 5.069015372 | M62: 2028-09-07 | S62: 27 | T62: 270 | U62: 157.5276228 | V62: 157.5276228 | W62: 158.5808313 | X62: 160.517417 | Y62: 162.9725346 | Z62: 165.466439 | AH62: 0 | AI62: 0 | AJ62: 0 | AK62: 0 | AL62: 0 | AM62: 0 | AN62: 0 | AO62: 0 | AP62: 0 | AQ62: 0 | AR62: 0 | AS62: 0 | AU62: 270 | AV62: 270 | AW62: 270 | AX62: 270 | AY62: 270 | AZ62: 270 | BA62: 270 | BB62: 270 | BC62: 270 | BD62: 270 | BE62: 270 | BF62: 270 | BH62: 926 | BI62: 27 | BJ62: 2028-12-07 | BK62: 270 | BL62: 270 | BM62: 270 | BN62: 270
A63: 2003-05-01 | B63: quinta-feira | C63: Dia do Trabalho | F63: 957 | G63: 28 | H63: 2029-01-07 | I63: 270 | J63: 166.548129 | K63: 166.548129 | L63: 4.984785502 | M63: 2028-10-07 | S63: 28 | T63: 270 | U63: 154.7115689 | V63: 154.7115689 | W63: 155.7806972 | X63: 157.7471751 | Y63: 160.2413293 | Z63: 162.7761752 | AH63: 0 | AI63: 0 | AJ63: 0 | AK63: 0 | AL63: 0 | AM63: 0 | AN63: 0 | AO63: 0 | AP63: 0 | AQ63: 0 | AR63: 0 | AS63: 0 | AU63: 270 | AV63: 270 | AW63: 270 | AX63: 270 | AY63: 270 | AZ63: 270 | BA63: 270 | BB63: 270 | BC63: 270 | BD63: 270 | BE63: 270 | BF63: 270 | BH63: 957 | BI63: 28 | BJ63: 2029-01-07 | BK63: 270 | BL63: 270 | BM63: 270 | BN63: 270
A64: 2003-06-19 | B64: quinta-feira | C64: Corpus Christi | F64: 988 | G64: 29 | H64: 2029-02-07 | I64: 270 | J64: 163.6892105 | K64: 163.6892105 | L64: 4.89921807 | M64: 2028-11-07 | S64: 29 | T64: 270 | U64: 151.9458563 | V64: 151.9458563 | W64: 153.0300064 | X64: 155.0247425 | Y64: 157.5558954 | Z64: 160.1296515 | AH64: 0 | AI64: 0 | AJ64: 0 | AK64: 0 | AL64: 0 | AM64: 0 | AN64: 0 | AO64: 0 | AP64: 0 | AQ64: 0 | AR64: 0 | AS64: 0 | AU64: 270 | AV64: 270 | AW64: 270 | AX64: 270 | AY64: 270 | AZ64: 270 | BA64: 270 | BB64: 270 | BC64: 270 | BD64: 270 | BE64: 270 | BF64: 270 | BH64: 988 | BI64: 29 | BJ64: 2029-02-07 | BK64: 270 | BL64: 270 | BM64: 270 | BN64: 270
A65: 2003-09-07 | B65: domingo | C65: Independência do Brasil | F65: 1016 | G65: 30 | H65: 2029-03-07 | I65: 270 | J65: 160.9692501 | K65: 160.9692501 | L65: 4.817809656 | M65: 2028-12-07 | S65: 30 | T65: 270 | U65: 149.490314 | V65: 149.490314 | W65: 150.5872825 | X65: 152.6061778 | Y65: 155.1690454 | Z65: 157.7762467 | AH65: 0 | AI65: 0 | AJ65: 0 | AK65: 0 | AL65: 0 | AM65: 0 | AN65: 0 | AO65: 0 | AP65: 0 | AQ65: 0 | AR65: 0 | AS65: 0 | AU65: 270 | AV65: 270 | AW65: 270 | AX65: 270 | AY65: 270 | AZ65: 270 | BA65: 270 | BB65: 270 | BC65: 270 | BD65: 270 | BE65: 270 | BF65: 270 | BH65: 1016 | BI65: 30 | BJ65: 2029-03-07 | BK65: 270 | BL65: 270 | BM65: 270 | BN65: 270
A66: 2003-10-12 | B66: domingo | C66: Nossa Sr.a Aparecida - Padroeira do Brasil | F66: 1047 | G66: 31 | H66: 2029-04-07 | I66: 270 | J66: 158.206097 | K66: 158.206097 | L66: 4.735108484 | M66: 2029-01-07 | S66: 31 | T66: 270 | U66: 146.8179396 | V66: 146.8179396 | W66: 147.9282943 | X66: 149.9724696 | Y66: 152.5686163 | Z66: 155.2110151 | AH66: 0 | AI66: 0 | AJ66: 0 | AK66: 0 | AL66: 0 | AM66: 0 | AN66: 0 | AO66: 0 | AP66: 0 | AQ66: 0 | AR66: 0 | AS66: 0 | AU66: 270 | AV66: 270 | AW66: 270 | AX66: 270 | AY66: 270 | AZ66: 270 | BA66: 270 | BB66: 270 | BC66: 270 | BD66: 270 | BE66: 270 | BF66: 270 | BH66: 1047 | BI66: 31 | BJ66: 2029-04-07 | BK66: 270 | BL66: 270 | BM66: 270 | BN66: 270
A67: 2003-11-02 | B67: domingo | C67: Finados | F67: 1077 | G67: 32 | H67: 2029-05-07 | I67: 270 | J67: 155.4903755 | K67: 155.4903755 | L67: 4.653826938 | M67: 2029-02-07 | S67: 32 | T67: 270 | U67: 144.2772657 | V67: 144.2772657 | W67: 145.3997919 | X67: 147.4670052 | Y67: 150.0935733 | Z67: 152.7682508 | AH67: 0 | AI67: 0 | AJ67: 0 | AK67: 0 | AL67: 0 | AM67: 0 | AN67: 0 | AO67: 0 | AP67: 0 | AQ67: 0 | AR67: 0 | AS67: 0 | AU67: 270 | AV67: 270 | AW67: 270 | AX67: 270 | AY67: 270 | AZ67: 270 | BA67: 270 | BB67: 270 | BC67: 270 | BD67: 270 | BE67: 270 | BF67: 270 | BH67: 1077 | BI67: 32 | BJ67: 2029-05-07 | BK67: 270 | BL67: 270 | BM67: 270 | BN67: 270
A68: 2003-11-15 | B68: sábado | C68: Proclamação da República | F68: 1108 | G68: 33 | H68: 2029-06-07 | I68: 270 | J68: 153.0775566 | K68: 153.0775566 | L68: 4.581611268 | M68: 2029-03-07 | S68: 33 | T68: 270 | U68: =$T68/((U$29)^($H68-$H$35)) -> 141.6980827 | V68: 141.6980827 | W68: 142.8324015 | X68: 144.9219899 | Y68: 147.5782025 | Z68: 150.2844426 | AH68: =IF($I68<>0,0,U68*$B$1*MIN($F68,365)) -> 0 | AI68: 0 | AJ68: 0 | AK68: 0 | AL68: 0 | AM68: 0 | AN68: 0 | AO68: 0 | AP68: 0 | AQ68: 0 | AR68: 0 | AS68: 0 | AU68: =$T68 -> 270 | AV68: 270 | AW68: 270 | AX68: 270 | AY68: 270 | AZ68: 270 | BA68: 270 | BB68: 270 | BC68: 270 | BD68: 270 | BE68: 270 | BF68: 270 | BH68: 1108 | BI68: 33 | BJ68: 2029-06-07 | BK68: 270 | BL68: 270 | BM68: 270 | BN68: 270
A69: 2003-12-25 | B69: quinta-feira | C69: Natal | F69: 1138 | G69: 34 | H69: 2029-07-07 | I69: 270 | J69: 150.4498701 | K69: 150.4498701 | L69: 4.502964612 | M69: 2029-04-07 | S69: 34 | T69: 270 | U69: 139.2460076 | V69: 139.2460076 | W69: 140.3910019 | X69: 142.5008996 | Y69: 145.1841164 | Z69: 147.9192144 | AH69: 0 | AI69: 0 | AJ69: 0 | AK69: 0 | AL69: 0 | AM69: 0 | AN69: 0 | AO69: 0 | AP69: 0 | AQ69: 0 | AR69: 0 | AS69: 0 | AU69: 270 | AV69: 270 | AW69: 270 | AX69: 270 | AY69: 270 | AZ69: 270 | BA69: 270 | BB69: 270 | BC69: 270 | BD69: 270 | BE69: 270 | BF69: 270 | BH69: 1138 | BI69: 34 | BJ69: 2029-07-07 | BK69: 270 | BL69: 270 | BM69: 270 | BN69: 270
A70: 2004-01-01 | B70: quinta-feira | C70: Confraternização Universal | F70: 1169 | G70: 35 | H70: 2029-08-07 | I70: 270 | J70: 147.9499027 | K70: 147.9499027 | L70: 4.428140589 | M70: 2029-05-07 | S70: 35 | T70: 270 | U70: 136.7567663 | V70: 136.7567663 | W70: 137.912054 | X70: 140.0415903 | Y70: 142.7510216 | Z70: 145.514245 | AH70: 0 | AI70: 0 | AJ70: 0 | AK70: 0 | AL70: 0 | AM70: 0 | AN70: 0 | AO70: 0 | AP70: 0 | AQ70: 0 | AR70: 0 | AS70: 0 | AU70: 270 | AV70: 270 | AW70: 270 | AX70: 270 | AY70: 270 | AZ70: 270 | BA70: 270 | BB70: 270 | BC70: 270 | BD70: 270 | BE70: 270 | BF70: 270 | BH70: 1169 | BI70: 35 | BJ70: 2029-08-07 | BK70: 270 | BL70: 270 | BM70: 270 | BN70: 270
A71: 2004-02-23 | B71: segunda-feira | C71: Carnaval | F71: 1200 | G71: 36 | H71: 2029-09-07 | I71: 270 | J71: 145.4102361 | K71: 145.4102361 | L71: 4.352128368 | M71: 2029-06-07 | S71: 36 | T71: 270 | U71: 134.3120241 | V71: 134.3120241 | W71: 135.476878 | X71: 137.6247243 | Y71: 140.3587022 | Z71: 143.1483773 | AH71: 0 | AI71: 0 | AJ71: 0 | AK71: 0 | AL71: 0 | AM71: 0 | AN71: 0 | AO71: 0 | AP71: 0 | AQ71: 0 | AR71: 0 | AS71: 0 | AU71: 270 | AV71: 270 | AW71: 270 | AX71: 270 | AY71: 270 | AZ71: 270 | BA71: 270 | BB71: 270 | BC71: 270 | BD71: 270 | BE71: 270 | BF71: 270 | BH71: 1200 | BI71: 36 | BJ71: 2029-09-07 | BK71: 270 | BL71: 270 | BM71: 270 | BN71: 270
A72: 2004-02-24 | B72: terça-feira | C72: Carnaval | F72: 1230 | G72: 37 | H72: 2029-10-07 | I72: 270 | J72: 142.9940104 | K72: 142.9940104 | L72: 4.279810732 | M72: 2029-07-07 | S72: 37 | T72: 270 | U72: 131.9877642 | V72: 131.9877642 | W72: 133.1612047 | X72: 135.3255433 | Y72: 138.0817344 | Z72: 140.8954589 | AH72: 0 | AI72: 0 | AJ72: 0 | AK72: 0 | AL72: 0 | AM72: 0 | AN72: 0 | AO72: 0 | AP72: 0 | AQ72: 0 | AR72: 0 | AS72: 0 | AU72: 270 | AV72: 270 | AW72: 270 | AX72: 270 | AY72: 270 | AZ72: 270 | BA72: 270 | BB72: 270 | BC72: 270 | BD72: 270 | BE72: 270 | BF72: 270 | BH72: 1230 | BI72: 37 | BJ72: 2029-10-07 | BK72: 270 | BL72: 270 | BM72: 270 | BN72: 270
A73: 2004-04-09 | B73: sexta-feira | C73: Paixão de Cristo | F73: 1261 | G73: 38 | H73: 2029-11-07 | I73: 270 | J73: 140.5394153 | K73: 140.5394153 | L73: 4.206344699 | M73: 2029-08-07 | S73: 38 | T73: 270 | U73: 129.6282754 | V73: 129.6282754 | W73: 130.8099166 | X73: 132.9900678 | Y73: 135.7676662 | Z73: 138.6046864 | AH73: 0 | AI73: 0 | AJ73: 0 | AK73: 0 | AL73: 0 | AM73: 0 | AN73: 0 | AO73: 0 | AP73: 0 | AQ73: 0 | AR73: 0 | AS73: 0 | AU73: 270 | AV73: 270 | AW73: 270 | AX73: 270 | AY73: 270 | AZ73: 270 | BA73: 270 | BB73: 270 | BC73: 270 | BD73: 270 | BE73: 270 | BF73: 270 | BH73: 1261 | BI73: 38 | BJ73: 2029-11-07 | BK73: 270 | BL73: 270 | BM73: 270 | BN73: 270
A74: 2004-04-21 | B74: quarta-feira | C74: Tiradentes | F74: 1291 | G74: 39 | H74: 2029-12-07 | I74: 270 | J74: 138.126955 | K74: 138.126955 | L74: 4.134139764 | M74: 2029-09-07 | S74: 39 | T74: 270 | U74: 127.3850674 | V74: 127.3850674 | W74: 128.5740144 | X74: 130.7683142 | Y74: 133.5651764 | Z74: 136.4232782 | AH74: 0 | AI74: 0 | AJ74: 0 | AK74: 0 | AL74: 0 | AM74: 0 | AN74: 0 | AO74: 0 | AP74: 0 | AQ74: 0 | AR74: 0 | AS74: 0 | AU74: 270 | AV74: 270 | AW74: 270 | AX74: 270 | AY74: 270 | AZ74: 270 | BA74: 270 | BB74: 270 | BC74: 270 | BD74: 270 | BE74: 270 | BF74: 270 | BH74: 1291 | BI74: 39 | BJ74: 2029-12-07 | BK74: 270 | BL74: 270 | BM74: 270 | BN74: 270
A75: 2004-05-01 | B75: sábado | C75: Dia do Trabalho | F75: 1322 | G75: 40 | H75: 2030-01-07 | I75: 270 | J75: 135.8317528 | K75: 135.8317528 | L75: 4.065444361 | M75: 2029-10-07 | S75: 40 | T75: 270 | U75: 125.107859 | V75: 125.107859 | W75: 126.3037245 | X75: 128.5114882 | Y75: 131.3267998 | Z75: 134.2052175 | AH75: 0 | AI75: 0 | AJ75: 0 | AK75: 0 | AL75: 0 | AM75: 0 | AN75: 0 | AO75: 0 | AP75: 0 | AQ75: 0 | AR75: 0 | AS75: 0 | AU75: 270 | AV75: 270 | AW75: 270 | AX75: 270 | AY75: 270 | AZ75: 270 | BA75: 270 | BB75: 270 | BC75: 270 | BD75: 270 | BE75: 270 | BF75: 270 | BH75: 1322 | BI75: 40 | BJ75: 2030-01-07 | BK75: 270 | BL75: 270 | BM75: 270 | BN75: 270
A76: 2004-06-10 | B76: quinta-feira | C76: Corpus Christi | F76: 1353 | G76: 41 | H76: 2030-02-07 | I76: 270 | J76: 133.500103 | K76: 133.500103 | L76: 3.995658081 | M76: 2029-11-07 | S76: 41 | T76: 270 | U76: 122.8713593 | V76: 122.8713593 | W76: 124.073522 | X76: 126.2936111 | Y76: 129.1259354 | Z76: 132.0232194 | AH76: 0 | AI76: 0 | AJ76: 0 | AK76: 0 | AL76: 0 | AM76: 0 | AN76: 0 | AO76: 0 | AP76: 0 | AQ76: 0 | AR76: 0 | AS76: 0 | AU76: 270 | AV76: 270 | AW76: 270 | AX76: 270 | AY76: 270 | AZ76: 270 | BA76: 270 | BB76: 270 | BC76: 270 | BD76: 270 | BE76: 270 | BF76: 270 | BH76: 1353 | BI76: 41 | BJ76: 2030-02-07 | BK76: 270 | BL76: 270 | BM76: 270 | BN76: 270
A77: 2004-09-07 | B77: terça-feira | C77: Independência do Brasil | F77: 1381 | G77: 42 | H77: 2030-03-07 | I77: 270 | J77: 131.2817833 | K77: 131.2817833 | L77: 3.929263775 | M77: 2029-12-07 | S77: 42 | T77: 270 | U77: 120.8856795 | V77: 120.8856795 | W77: 122.0930127 | X77: 124.3232851 | Y77: 127.1697773 | Z77: 130.0828913 | AH77: 0 | AI77: 0 | AJ77: 0 | AK77: 0 | AL77: 0 | AM77: 0 | AN77: 0 | AO77: 0 | AP77: 0 | AQ77: 0 | AR77: 0 | AS77: 0 | AU77: 270 | AV77: 270 | AW77: 270 | AX77: 270 | AY77: 270 | AZ77: 270 | BA77: 270 | BB77: 270 | BC77: 270 | BD77: 270 | BE77: 270 | BF77: 270 | BH77: 1381 | BI77: 42 | BJ77: 2030-03-07 | BK77: 270 | BL77: 270 | BM77: 270 | BN77: 270
A78: 2004-10-12 | B78: terça-feira | C78: Nossa Sr.a Aparecida - Padroeira do Brasil | F78: 1412 | G78: 43 | H78: 2030-04-07 | I78: 270 | J78: 129.028237 | K78: 129.028237 | L78: 3.861815133 | M78: 2030-01-07 | S78: 43 | T78: 270 | U78: 118.7246579 | V78: 118.7246579 | W78: 119.9371607 | X78: 122.1776888 | Y78: 125.0385791 | Z78: 127.9679168 | AH78: 0 | AI78: 0 | AJ78: 0 | AK78: 0 | AL78: 0 | AM78: 0 | AN78: 0 | AO78: 0 | AP78: 0 | AQ78: 0 | AR78: 0 | AS78: 0 | AU78: 270 | AV78: 270 | AW78: 270 | AX78: 270 | AY78: 270 | AZ78: 270 | BA78: 270 | BB78: 270 | BC78: 270 | BD78: 270 | BE78: 270 | BF78: 270 | BH78: 1412 | BI78: 43 | BJ78: 2030-04-07 | BK78: 270 | BL78: 270 | BM78: 270 | BN78: 270
A79: 2004-11-02 | B79: terça-feira | C79: Finados | F79: 1442 | G79: 44 | H79: 2030-05-07 | I79: 270 | J79: 126.8133744 | K79: 126.8133744 | L79: 3.795524296 | M79: 2030-02-07 | S79: 44 | T79: 270 | U79: 116.6701363 | V79: 116.6701363 | W79: 117.887104 | X79: 120.1365685 | Y79: 123.0101418 | Z79: 125.9539137 | AH79: 0 | AI79: 0 | AJ79: 0 | AK79: 0 | AL79: 0 | AM79: 0 | AN79: 0 | AO79: 0 | AP79: 0 | AQ79: 0 | AR79: 0 | AS79: 0 | AU79: 270 | AV79: 270 | AW79: 270 | AX79: 270 | AY79: 270 | AZ79: 270 | BA79: 270 | BB79: 270 | BC79: 270 | BD79: 270 | BE79: 270 | BF79: 270 | BH79: 1442 | BI79: 44 | BJ79: 2030-05-07 | BK79: 270 | BL79: 270 | BM79: 270 | BN79: 270
A80: 2004-11-15 | B80: segunda-feira | C80: Proclamação da República | F80: 1473 | G80: 45 | H80: 2030-06-07 | I80: 270 | J80: 124.8455503 | K80: 124.8455503 | L80: 3.736627321 | M80: 2030-03-07 | S80: 45 | T80: 270 | U80: 114.5844741 | V80: 114.5844741 | W80: 115.8055176 | X80: 118.0632273 | Y80: 120.9486537 | Z80: 123.9060709 | AH80: 0 | AI80: 0 | AJ80: 0 | AK80: 0 | AL80: 0 | AM80: 0 | AN80: 0 | AO80: 0 | AP80: 0 | AQ80: 0 | AR80: 0 | AS80: 0 | AU80: 270 | AV80: 270 | AW80: 270 | AX80: 270 | AY80: 270 | AZ80: 270 | BA80: 270 | BB80: 270 | BC80: 270 | BD80: 270 | BE80: 270 | BF80: 270 | BH80: 1473 | BI80: 45 | BJ80: 2030-06-07 | BK80: 270 | BL80: 270 | BM80: 270 | BN80: 270
A81: 2004-12-25 | B81: sábado | C81: Natal | F81: 1503 | G81: 46 | H81: 2030-07-07 | I81: 270 | J81: 122.7024866 | K81: 122.7024866 | L81: 3.672485423 | M81: 2030-04-07 | S81: 46 | T81: 270 | U81: 112.6015981 | V81: 112.6015981 | W81: 113.8260821 | X81: 116.0908439 | Y81: 118.9865652 | Z81: 121.9559945 | AH81: 0 | AI81: 0 | AJ81: 0 | AK81: 0 | AL81: 0 | AM81: 0 | AN81: 0 | AO81: 0 | AP81: 0 | AQ81: 0 | AR81: 0 | AS81: 0 | AU81: 270 | AV81: 270 | AW81: 270 | AX81: 270 | AY81: 270 | AZ81: 270 | BA81: 270 | BB81: 270 | BC81: 270 | BD81: 270 | BE81: 270 | BF81: 270 | BH81: 1503 | BI81: 46 | BJ81: 2030-07-07 | BK81: 270 | BL81: 270 | BM81: 270 | BN81: 270
A82: 2005-01-01 | B82: sábado | C82: Confraternização Universal | F82: 1534 | G82: 47 | H82: 2030-08-07 | I82: 270 | J82: 120.6635867 | K82: 120.6635867 | L82: 3.611461151 | M82: 2030-05-07 | S82: 47 | T82: 270 | U82: 110.5886675 | V82: 110.5886675 | W82: 111.816203 | X82: 114.0873247 | Y82: 116.9925069 | Z82: 119.9731525 | AH82: 0 | AI82: 0 | AJ82: 0 | AK82: 0 | AL82: 0 | AM82: 0 | AN82: 0 | AO82: 0 | AP82: 0 | AQ82: 0 | AR82: 0 | AS82: 0 | AU82: 270 | AV82: 270 | AW82: 270 | AX82: 270 | AY82: 270 | AZ82: 270 | BA82: 270 | BB82: 270 | BC82: 270 | BD82: 270 | BE82: 270 | BF82: 270 | BH82: 1534 | BI82: 47 | BJ82: 2030-08-07 | BK82: 270 | BL82: 270 | BM82: 270 | BN82: 270
A83: 2005-02-07 | B83: segunda-feira | C83: Carnaval | F83: 1565 | G83: 48 | H83: 2030-09-07 | I83: 270 | J83: 118.5923094 | K83: 118.5923094 | L83: 3.54946782 | M83: 2030-06-07 | S83: 48 | T83: 270 | U83: 108.6117211 | V83: 108.6117211 | W83: 109.8418134 | X83: 112.1183827 | Y83: 115.0318664 | Z83: 118.0225489 | AH83: 0 | AI83: 0 | AJ83: 0 | AK83: 0 | AL83: 0 | AM83: 0 | AN83: 0 | AO83: 0 | AP83: 0 | AQ83: 0 | AR83: 0 | AS83: 0 | AU83: 270 | AV83: 270 | AW83: 270 | AX83: 270 | AY83: 270 | AZ83: 270 | BA83: 270 | BB83: 270 | BC83: 270 | BD83: 270 | BE83: 270 | BF83: 270 | BH83: 1565 | BI83: 48 | BJ83: 2030-09-07 | BK83: 270 | BL83: 270 | BM83: 270 | BN83: 270
A84: 2005-02-08 | B84: terça-feira | C84: Carnaval | F84: 1595 | G84: 49 | H84: 2030-10-07 | I84: 270 | J84: 116.6217068 | K84: 116.6217068 | L84: 3.490487685 | M84: 2030-07-07 | S84: 49 | T84: 270 | U84: =$T84/((U$29)^($H84-$H$35)) -> 106.7322031 | V84: 106.7322031 | W84: 107.9643139 | X84: 110.2453148 | Y84: 113.1657629 | Z84: 116.1650694 | AH84: 0 | AI84: 0 | AJ84: 0 | AK84: 0 | AL84: 0 | AM84: 0 | AN84: 0 | AO84: 0 | AP84: 0 | AQ84: 0 | AR84: 0 | AS84: 0 | AU84: =$T84 -> 270 | AV84: 270 | AW84: 270 | AX84: 270 | AY84: 270 | AZ84: 270 | BA84: 270 | BB84: 270 | BC84: 270 | BD84: 270 | BE84: 270 | BF84: 270 | BH84: 1595 | BI84: 49 | BJ84: 2030-10-07 | BK84: 270 | BL84: 270 | BM84: 270 | BN84: 270
A85: 2005-03-25 | B85: sexta-feira | C85: Paixão de Cristo | F85: 1626 | G85: 50 | H85: 2030-11-07 | I85: 270 | J85: 114.6198112 | K85: 114.6198112 | L85: 3.430570951 | M85: 2030-08-07 | S85: 50 | T85: 270 | U85: 104.8241972 | V85: 104.8241972 | W85: 106.0579388 | X85: 108.3426789 | Y85: 111.2692536 | Z85: 114.2763802 | AH85: 0 | AI85: 0 | AJ85: 0 | AK85: 0 | AL85: 0 | AM85: 0 | AN85: 0 | AO85: 0 | AP85: 0 | AQ85: 0 | AR85: 0 | AS85: 0 | AU85: 270 | AV85: 270 | AW85: 270 | AX85: 270 | AY85: 270 | AZ85: 270 | BA85: 270 | BB85: 270 | BC85: 270 | BD85: 270 | BE85: 270 | BF85: 270 | BH85: 1626 | BI85: 50 | BJ85: 2030-11-07 | BK85: 270 | BL85: 270 | BM85: 270 | BN85: 270
